Workbook

Sheet Pres & Prop Rev
B2: =IF(Base1_Billing2=2,"BILLED","") -> 
D4: RESIDENTIAL | E4: GENERAL SVC. | F4: GENERAL SVC. | G4: LG. GEN. SVC. | H4: LG. GEN. SVC. | I4: EX LG GEN SVC | J4: EX LG GEN SVC | K4: PUMPING | L4: ST & AREA LTG
C5: TOTAL | D5: SCHEDULE 1,2 | E5: SCH. 11,12 | F5: SCH. 13 | G5: SCH. 21,22 | H5: SCH. 23 | I5: SCHEDULE 25 | J5: SCHEDULE 25I | K5: SCH. 30, 31, 32 | L5: SCH. 41-48 | S5: Print Header for all printed pages on this worksheet:
B6: PRESENT BILL DETERMINANTS | O6: Calculate all revenue exhibits using ____ rates: | S6: ="AVISTA UTILITIES WASHINGTON ELECTRIC PRO FORMA REVENUE UNDER PRESENT AND PROPOSED "&Q9&" RATES 12 MONTHS ENDED SEPTEMBER 30, 2021" -> AVISTA UTILITIES WASHINGTON ELECTRIC PRO FORMA REVENUE UNDER PRESENT AND PROPOSED BASE TARIFF RATES 12 MONTHS ENDED SEPTEMBER 30, 2021
B7: KILOWATT HOURS (KWHS) | N7: 1) | O7: BASE TARIFF
B8: BLOCK 1 | D8: ='Bill Determ'!$B$9 -> 1699114426 | E8: ='Bill Determ'!$B$17 -> 440976955.8 | F8: ='Bill Determ'!$B$27 -> 0 | G8: ='Bill Determ'!$B$38 -> 1176388254 | H8: ='Bill Determ'!$B$49 -> 0 | I8: ='Bill Determ'!$B$58 -> 125726244.4 | J8: ='Bill Determ'!$B$62 -> 6000000 | K8: =SUM('Bill Determ'!$B$68:$C$68) -> 51510333.79 | O8: or | Q8: 1
B9: BLOCK 2 | D9: ='Bill Determ'!$C$9 -> 560062332.6 | E9: ='Bill Determ'!$C$17 -> 206157623.5 | F9: ='Bill Determ'!$C$27 -> 0 | G9: ='Bill Determ'!$C$38 -> 143363345.5 | H9: ='Bill Determ'!$C$49 -> 0 | I9: ='Bill Determ'!$C$58 -> 435765470.9 | J9: ='Bill Determ'!$C$62 -> 66000000 | K9: ='Bill Determ'!$D$68 -> 112757486.3 | N9: 2) | O9: BILLING | Q9: =CHOOSE(Base1_Billing2,O7,O9) -> BASE TARIFF
B10: BLOCK 3 | D10: ='Bill Determ'!$D$9 -> 314000634.3 | I10: ='Bill Determ'!$D$58 -> 0 | J10: ='Bill Determ'!$D$62 -> 387738120 | Q10: =CHOOSE(Base1_Billing2,"Base","Billing") -> Base
B11: BLOCK 4
B12: STREET & AREA LIGHTS | L12: ='REVRUNS 12ME0921'!P341 -> 16979796.48
B14: SUBTOTAL | C14: =SUM(D14:L14) -> 5742541023 | D14: =SUM(D8:D12) -> 2573177392 | E14: 647134579.3 | F14: =SUM(F8:F12) -> 0 | G14: 1319751600 | H14: =SUM(H8:H12) -> 0 | I14: =SUM(I8:I12) -> 561491715.3 | J14: =SUM(J8:J12) -> 459738120 | K14: 164267820 | L14: 16979796.48
B17: SUBTOTAL | C17: =SUM(D17:L17) -> 5742541023 | D17: =D14+D15 -> 2573177392 | E17: 647134579.3 | F17: =F14+F15 -> 0 | G17: 1319751600 | H17: =H14+H15 -> 0 | I17: 561491715.3 | J17: =J14+J15 -> 459738120 | K17: 164267820 | L17: 16979796.48
B18: ADJUSTMENT TO ACTUAL | C18: =SUM(D18:L18) -> 0 | D18: ='Bill Determ'!$E$11 -> 0 | E18: ='Bill Determ'!$D$21 -> 0 | F18: ='Bill Determ'!$D$21 -> 0 | G18: ='Bill Determ'!$D$43 -> 0 | H18: ='Bill Determ'!$D$43 -> 0 | I18: 0 | J18: 0 | K18: ='Bill Determ'!$E$70 -> 0 | L18: 0
B20: TOTAL BEFORE ADJUSTMENT | C20: =SUM(D20:L20) -> 5742541023 | D20: =D17+D18 -> 2573177392 | E20: 647134579.3 | F20: =F17+F18 -> 0 | G20: 1319751600 | H20: =H17+H18 -> 0 | I20: 561491715.3 | J20: =J17+J18 -> 459738120 | K20: 164267820 | L20: 16979796.48
B21: WEATHER & UNBILLED ADJ. KWHS | C21: =SUM(D21:L21) -> -106488975 | D21: =D142+D145 -> -73774001 | E21: -12331152 | F21: =F142+F145 -> 0 | G21: -19392888 | H21: =H142+H145 -> 0 | I21: 0 | J21: =J142+J145 -> 0 | K21: -990934 | L21: 0
B23: TOTAL PROFORMA KWHS | C23: =IF(ROUND(SUM(D23:L23),3)<>ROUND(SUM(C20:C21),3),#VALUE!,SUM(D23:L23)) -> 5636052048 | D23: =D20+D21 -> 2499403391 | E23: 634803427.3 | F23: =F20+F21 -> 0 | G23: 1300358712 | H23: =H20+H21 -> 0 | I23: 561491715.3 | J23: =J20+J21 -> 459738120 | K23: 163276886 | L23: 16979796.48
B25: TOTAL BILLS | D25: ='Bill Determ'!$F$9 -> 2681552 | E25: ='Bill Determ'!$F$17 -> 403355 | F25: ='Bill Determ'!$F$27 -> 0 | G25: ='Bill Determ'!$F$38 -> 21942 | H25: ='Bill Determ'!$F$29 -> 0 | I25: ='Bill Determ'!$G$58 -> 252 | J25: ='Bill Determ'!$G$62 -> 12 | K25: ='Bill Determ'!$F$66 -> 30331
B26: MINIMUM BILLS
B27: EXCESS DEMAND | E27: ='Bill Determ'!$E$17 -> 555536.7062 | F27: ='Bill Determ'!$E$27 -> 0 | G27: ='Bill Determ'!$E$38 -> 2822572.714 | H27: ='Bill Determ'!$E$49 -> 0 | I27: ='Bill Determ'!$F$58+'Bill Determ'!F59 -> 475862.632 | J27: ='Bill Determ'!$F$62 -> 703831.31
B29: PROPOSED BILL DETERMINANTS
B30: KILOWATT HOURS (KWHS)
B31: BLOCK 1 | D31: =D8 -> 1699114426 | E31: 440976955.8 | F31: =F8 -> 0 | G31: 1176388254 | H31: =H8 -> 0 | I31: 125726244.4 | J31: =J8 -> 6000000 | K31: 51510333.79 | L31: 0
B32: BLOCK 2 | D32: =D9 -> 560062332.6 | E32: 206157623.5 | F32: =F9 -> 0 | G32: 143363345.5 | H32: =H9 -> 0 | I32: ='Bill Determ'!$C$58 -> 435765470.9 | J32: ='Bill Determ'!$C$62 -> 66000000 | K32: 112757486.3 | L32: 0
B33: BLOCK 3 | D33: 314000634.3 | E33: 0 | F33: =F10 -> 0 | G33: 0 | H33: =H10 -> 0 | I33: ='Bill Determ'!$D$58 -> 0 | J33: ='Bill Determ'!$D$62 -> 387738120 | K33: 0 | L33: 0
B34: BLOCK 4 | D34: 0 | E34: 0 | F34: =F11 -> 0 | G34: 0 | H34: =H11 -> 0 | I34: 0 | J34: =J11 -> 0 | K34: 0 | L34: 0
B35: STREET & AREA LIGHTS | D35: 0 | E35: 0 | F35: =F12 -> 0 | G35: 0 | H35: =H12 -> 0 | I35: 0 | J35: =J12 -> 0 | K35: 0 | L35: =L12 -> 16979796.48
B37: SUBTOTAL | C37: =SUM(D37:L37) -> 5742541023 | D37: =SUM(D31:D35) -> 2573177392 | E37: 647134579.3 | F37: =SUM(F31:F35) -> 0 | G37: 1319751600 | H37: =SUM(H31:H35) -> 0 | I37: 561491715.3 | J37: =SUM(J31:J35) -> 459738120 | K37: 164267820 | L37: 16979796.48
C38: =SUM(D38:L38) -> 0 | D38: =D15 -> 0 | E38: 0 | F38: =F15 -> 0 | G38: 0 | H38: =H15 -> 0 | I38: 0 | J38: =J15 -> 0 | K38: 0 | L38: 0
B40: SUBTOTAL | C40: =SUM(D40:L40) -> 5742541023 | D40: =D37+D38 -> 2573177392 | E40: 647134579.3 | F40: =F37+F38 -> 0 | G40: 1319751600 | H40: =H37+H38 -> 0 | I40: 561491715.3 | J40: =J37+J38 -> 459738120 | K40: 164267820 | L40: 16979796.48
B41: ADJUSTMENT TO ACTUAL | C41: =SUM(D41:L41) -> 0 | D41: =D18 -> 0 | E41: 0 | F41: =F18 -> 0 | G41: 0 | H41: =H18 -> 0 | I41: 0 | J41: =J18 -> 0 | K41: 0 | L41: 0
B43: TOTAL BEFORE ADJUSTMENT | C43: =SUM(D43:L43) -> 5742541023 | D43: =D40+D41 -> 2573177392 | E43: 647134579.3 | F43: =F40+F41 -> 0 | G43: 1319751600 | H43: =H40+H41 -> 0 | I43: 561491715.3 | J43: =J40+J41 -> 459738120 | K43: 164267820 | L43: 16979796.48
B44: WEATHER & UNBILLED ADJ. KWHS | C44: =SUM(D44:L44) -> -106488975 | D44: =D21 -> -73774001 | E44: -12331152 | F44: =F21 -> 0 | G44: -19392888 | H44: =H21 -> 0 | I44: 0 | J44: =J21 -> 0 | K44: -990934 | L44: 0
B46: TOTAL PROFORMA KWHS | C46: =IF(ROUND(SUM(D46:L46),3)<>ROUND(SUM(C43:C44),3),#VALUE!,SUM(D46:L46)) -> 5636052048 | D46: =D43+D44 -> 2499403391 | E46: 634803427.3 | F46: =F43+F44 -> 0 | G46: 1300358712 | H46: =H43+H44 -> 0 | I46: 561491715.3 | J46: =J43+J44 -> 459738120 | K46: 163276886 | L46: 16979796.48
B48: TOTAL BILLS | D48: =D25 -> 2681552 | E48: 403355 | F48: 0 | G48: 21942 | H48: 0 | I48: 252 | J48: 12 | K48: 30331
B49: MINIMUM BILLS
B50: EXCESS DEMAND | E50: =E27 -> 555536.7062 | F50: 0 | G50: 2822572.714 | H50: 0 | I50: 475862.632 | J50: =J27 -> 703831.31
E55: 2 | F55: 3 | G55: 4 | H55: 5 | I55: 6 | J55: 7 | K55: 8 | L55: 9 | O55: =SUMPRODUCT(--(ISBLANK(D55:L55))) -> 1
D56: =D$4 -> RESIDENTIAL | E56: GENERAL SVC. | F56: GENERAL SVC. | G56: LG. GEN. SVC. | H56: LG. GEN. SVC. | I56: EX LG GEN SVC | J56: EX LG GEN SVC | K56: PUMPING | L56: ST & AREA LTG | O56: ="selected in cell "&CELL("address",Base1_Billing2)&":" -> selected in cell $Q$8:
C57: TOTAL | D57: =D$5 -> SCHEDULE 1,2 | E57: SCH. 11,12 | F57: SCH. 13 | G57: SCH. 21,22 | H57: SCH. 23 | I57: SCHEDULE 25 | J57: SCHEDULE 25I | K57: SCH. 30, 31, 32 | L57: SCH. 41-48 | O57: =Q10 -> Base
B58: PRESENT RATES | O58: ="Rates_"&$O$57&"_Present" -> Rates_Base_Present | Q58: - range name where Present Rates table can be found
B59: BASIC CHARGE | D59: =INDEX(INDIRECT($O$58),$N59,D$55) -> 9 | E59: 21 | F59: 21 | G59: 0 | H59: 600 | I59: 0 | J59: 0 | K59: 21 | L59: 0 | N59: 1 | O59: ="Rates_"&$O$57&"_Proposed" -> Rates_Base_Proposed | Q59: - range name where Proposed Rates table can be found
B60: MONTHLY MINIMUM
B62: BLOCK 1 PER KWH | D62: =INDEX(INDIRECT($O$58),$N62,D$55) -> 9.486 | E62: 12.379 | F62: 21.89 | G62: 7.927 | H62: 16.784 | I62: 5.906 | J62: 4.782 | K62: 11.763 | L62: 0 | N62: 2
B63: BLOCK 2 PER KWH | D63: 11.035 | E63: 9.096 | F63: 8.906 | G63: 7.092 | H63: 6.928 | I63: 5.313 | J63: 4.303 | K63: 8.401 | L63: 0 | N63: 3
B64: BLOCK 3 PER KWH | D64: 12.94 | E64: 0 | F64: 0 | G64: 0 | H64: 0 | I64: 4.352 | J64: 3.679 | K64: 0 | L64: 0 | N64: 4
B65: BLOCK 4 PER KWH | N65: 5
B67: ADJUST TO ACTUAL PER KWH | D67: =(D124-D111)/D14*100 -> 10.24463201 | E67: =(E124-E111-SUM(E117:E120))/E14*100 -> 11.33313489 | F67: 0 | G67: =(G124-G111-SUM(G117:G120))/G14*100 -> 7.836294754 | H67: 0 | K67: =(K124-K111-SUM(K117:K120))/K14*100 -> 9.455240214
B69: DEMAND BLOCK 1 | D69: =INDEX(INDIRECT($O$58),$N69,D$55) -> 0 | E69: 0 | F69: 0 | G69: 600 | H69: 0 | I69: 30650 | J69: 30650 | K69: 0 | L69: 0 | N69: 6
B70: DEMAND BLOCK 2 | D70: 0 | E70: 7.5 | F70: 0 | G70: 7.5 | H70: 0 | I70: 8.3 | J70: 8.3 | K70: 0 | L70: 0 | N70: 7
B75: PROPOSED RATES
B76: BASIC CHARGE | D76: =INDEX(INDIRECT($O$59),$N76,D$55) -> 9 | E76: =INDEX(INDIRECT($O$59),$N76,E$55) -> 21 | F76: =INDEX(INDIRECT($O$59),$N76,F$55) -> 21 | H76: =INDEX(INDIRECT($O$59),$N76,H$55) -> 600 | K76: =INDEX(INDIRECT($O$59),$N76,K$55) -> 21 | N76: 1
B77: MONTHLY MINIMUM
B79: BLOCK 1 PER KWH | D79: =INDEX(INDIRECT($O$59),$N79,D$55) -> 9.721 | E79: 12.708 | F79: 22.472 | G79: 8.167 | H79: 17.292 | I79: 5.987 | J79: 4.843 | K79: 12.039 | N79: 2
B80: BLOCK 2 PER KWH | D80: 11.307 | E80: 9.338 | F80: 9.143 | G80: 7.307 | H80: 7.138 | I80: 5.386 | J80: 4.358 | K80: 8.598 | N80: 3
B81: BLOCK 3 PER KWH | D81: =INDEX(INDIRECT($O$59),$N81,D$55) -> 13.26 | I81: =INDEX(INDIRECT($O$59),$N81,I$55) -> 4.412 | J81: =INDEX(INDIRECT($O$59),$N81,J$55) -> 3.726 | N81: 4
B82: BLOCK 4 PER KWH | N82: 5
B84: ADJUST TO ACTUAL PER KWH | D84: =(D177-D164)/D37*100 -> 10.49805762 | E84: =(E177-E164-SUM(E170:E173))/E37*100 -> 11.63441931 | F84: 0 | G84: =(G177-G164-SUM(G170:G173))/G37*100 -> 8.073579029 | H84: 0 | K84: =(K177-K164-SUM(K170:K173))/K37*100 -> 9.677012671
B86: DEMAND BLOCK 1 | G86: =INDEX(INDIRECT($O$59),$N86,G$55) -> 600 | H86: 0 | I86: 30650 | J86: 30650 | N86: 6
B87: DEMAND BLOCK 2 | E87: =INDEX(INDIRECT($O$59),$N87,E$55) -> 7.5 | F87: =INDEX(INDIRECT($O$59),$N87,F$55) -> 0 | G87: 7.5 | H87: 0 | I87: 8.3 | J87: 8.3 | N87: 7
B95: =CHOOSE(Base1_Billing2,"Note: Rates do not include BPA Residential Exchange Program Schedule 59, Decoupling Schedule 75, Tax Credit Schedule 76, Public Purpose Adjustment Schedules 89,91,92, REC Revenue Adjustment Schedule 98 or Power Cost Surcharge Schedule 93.","") -> Note: Rates do not include BPA Residential Exchange Program Schedule 59, Decoupling Schedule 75, Tax Credit Schedule 76, Public Purpose Adjustment Schedules 89,91,92, REC Revenue Adjustment Schedule 98 or Power Cost Surcharge Schedule 93.
D107: =D$4 -> RESIDENTIAL | E107: GENERAL SVC. | F107: GENERAL SVC. | G107: LG. GEN. SVC. | H107: LG. GEN. SVC. | I107: EX LG GEN SVC | J107: EX LG GEN SVC | K107: PUMPING | L107: ST & AREA LTG
C108: TOTAL | D108: =D$5 -> SCHEDULE 1,2 | E108: SCH. 11,12 | F108: SCH. 13 | G108: SCH. 21,22 | H108: SCH. 23 | I108: SCHEDULE 25 | J108: SCHEDULE 25I | K108: SCH. 30, 31, 32 | L108: SCH. 41-48
B109: PRESENT REVENUE
B110: =UPPER(CHOOSE(Base1_Billing2,$Q$9,$Q$10))&" REVENUE" -> BASE TARIFF REVENUE
B111: BASIC CHARGE | C111: =SUM(D111:L111) -> 33241374 | D111: =D25*D59 -> 24133968 | E111: =E25*E59 -> 8470455 | F111: =F25*F59 -> 0 | H111: =H25*H59 -> 0 | K111: =K25*K59 -> 636951
B112: MONTHLY MINIMUM | C112: 0
B113: BLOCK 1 | C113: 322790301.2 | D113: =ROUND(D8*D62/100,2) -> 161177994.4 | E113: 54588537.36 | F113: =ROUND(F8*F62/100,2) -> 0 | G113: 93252296.92 | H113: =ROUND(H8*H62/100,2) -> 0 | I113: =ROUND(I8*I62/100,2) -> 7425391.99 | J113: =ROUND(J8*J62/100,2) -> 286920 | K113: 6059160.56
B114: BLOCK 2 | C114: 126187260.2 | D114: 61802878.4 | E114: 18752097.43 | F114: =ROUND(F9*F63/100,2) -> 0 | G114: 10167328.46 | H114: =ROUND(H9*H63/100,2) -> 0 | I114: =ROUND(I9*I63/100,2) -> 23152219.47 | J114: =ROUND(J9*J63/100,2) -> 2839980 | K114: 9472756.42
B115: BLOCK 3 | C115: 54896567.51 | D115: =ROUND(D10*D64/100,2) -> 40631682.08 | I115: 0 | J115: =ROUND(J10*J64/100,2) -> 14264885.43
B116: BLOCK 4 | C116: 0
B117: DEMAND BLOCK 1 | C117: 21256800 | G117: =G25*G69 -> 13165200 | I117: =I25*I69 -> 7723800 | J117: =J25*J69 -> 367800
B118: DEMAND BLOCK 2 | C118: 35127280.37 | E118: =E27*E70 -> 4166525.296 | G118: 21169295.35 | I118: 3949659.846 | J118: 5841799.873
B119: POWER FACTOR ADJUSTMENT | C119: 174577.77 | E119: ='Bill Determ'!G17*0.5 -> 0 | F119: ='Bill Determ'!G27*0.5 -> 0 | G119: =('Bill Determ'!G38)*0.5 -> 174577.77 | H119: =('Bill Determ'!G49)*0.5 -> 0 | K119: ='Bill Determ'!G66*0.5 -> 0
B120: PRIMARY VOLTAGE DISCOUNT | C120: -1664472.374 | G120: ='REVRUNS 12ME0921'!P441+'REVRUNS 12ME0921'!P448 -> -60832.87 | H120: ='REVRUNS 12ME0921'!P455 -> 0 | I120: ='WA Sch 25'!P108 -> -210365.7126 | J120: ='WA Sch 25'!P119 -> -1393273.792
B121: ANNUAL MINIMUM ADJUSTMENT | C121: 0 | I121: ='WA Sch 25'!T161 -> 0
B122: STREET & AREA LIGHT REVENUE | C122: 7163502.482 | L122: ='Lighting summary'!D19 -> 7163502.482
B124: SUBTOTAL | C124: =IF(ROUND(SUM(C111:C122),3)<>ROUND(SUM(D124:L124),3),#VALUE!,SUM(D124:L124)) -> 599173191.2 | D124: =SUM(D111:D122) -> 287746522.9 | E124: 85977615.09 | F124: =SUM(F111:F122) -> 0 | G124: 137867865.6 | H124: =SUM(H111:H122) -> 0 | I124: 42040705.59 | J124: =SUM(J111:J122) -> 22208111.51 | K124: 16168867.98 | L124: 7163502.482
C125: =SUM(D125:L125) -> 0 | D125: =ROUND(D15*D67/100,2) -> 0 | E125: =ROUND(E15*E67/100,2) -> 0 | F125: =ROUND(F15*F67/100,2) -> 0 | G125: =ROUND(G15*G67/100,2) -> 0 | H125: =ROUND(H15*H67/100,2) -> 0 | I125: =ROUND(I15*I63/100,2) -> 0 | J125: =ROUND(J15*J63/100,2) -> 0 | K125: =ROUND(K15*K67/100,2) -> 0
B127: SUBTOTAL | C127: =SUM(D127:L127) -> 599173191.2 | D127: =D124+D125 -> 287746522.9 | E127: 85977615.09 | F127: =F124+F125 -> 0 | G127: 137867865.6 | H127: =H124+H125 -> 0 | I127: 42040705.59 | J127: =J124+J125 -> 22208111.51 | K127: 16168867.98 | L127: 7163502.482
B128: ADJUST TO ACTUAL | C128: =SUM(D128:L128) -> 0 | D128: =ROUND(D18*D67/100,2) -> 0 | E128: 0 | F128: =ROUND(F18*F67/100,2) -> 0 | G128: 0 | H128: =ROUND(H18*H67/100,2) -> 0 | I128: 0 | J128: =ROUND(J18*J67/100,2) -> 0 | K128: 0 | L128: 0
B130: ="TOTAL "&UPPER(CHOOSE(Base1_Billing2,$Q$9,$Q$10))&" REVENUE" -> TOTAL BASE TARIFF REVENUE | C130: =IF(ROUND(SUM(D130:L130),3)<>ROUND(SUM(C127:C128),3),#VALUE!,SUM(D130:L130)) -> 599173191.2 | D130: =D127+D128 -> 287746522.9 | E130: 85977615.09 | F130: =F127+F128 -> 0 | G130: 137867865.6 | H130: =H127+H128 -> 0 | I130: 42040705.59 | J130: =J127+J128 -> 22208111.51 | K130: 16168867.98 | L130: 7163502.482
B132: ADJUSTMENT REVENUE
B133: UNBILLED REVENUE ADJUSTMENT | O133: =D8/$D$14 -> 0.660317641 | Q133: =$D$134*O133 -> -7537527.192 | S133: =Q133*(D62/100) -> -715009.8295
B134: UNBILLED LOAD KWHS | C134: =SUM(D134:L134) -> -16518266 | D134: ='REVRUNS 12ME0921'!P395 -> -11415002 | E134: ='REVRUNS 12ME0921'!P396 -> -962561 | F134: ='REVRUNS 12ME0921'!P397 -> 0 | G134: ='REVRUNS 12ME0921'!P398 -> -3149769 | H134: ='REVRUNS 12ME0921'!P399 -> 0 | K134: ='REVRUNS 12ME0921'!P402 -> -990934 | O134: =D9/$D$14 -> 0.2176539924 | Q134: =$D$134*O134 -> -2484520.758 | S134: =Q134*(D63/100) -> -274166.8657
B135: UNBILLED LOAD RATE | D135: =D67 -> 10.24463201 | E135: =E67 -> 11.33313489 | F135: =F67 -> 0 | G135: =G67 -> 7.836294754 | H135: =H67 -> 0 | K135: =K67 -> 9.455240214 | O135: =D10/$D$14 -> 0.1220283666 | Q135: =$D$134*O135 -> -1392954.049 | S135: =Q135*(D64/100) -> -180248.254
B136: UNBILLED LOAD REVENUE | C136: =SUM(D136:L136) -> -1619033.66 | D136: =ROUND(D134*D135/100,2) -> -1169424.95 | E136: =ROUND(E134*E135/100,2) -> -109088.34 | F136: =ROUND(F134*F135/100,2) -> 0 | G136: =ROUND(G134*G135/100,2) -> -246825.18 | H136: =ROUND(H134*H135/100,2) -> 0 | K136: =ROUND(K134*K135/100,2) -> -93695.19 | O136: =SUM(O133:O135) -> 1 | Q136: =SUM(Q133:Q135) -> -11415002 | S136: =SUM(S133:S135) -> -1169424.949
B138: WEATHER-SENSITIVE KWHS | C138: =SUM(D138:L138) -> 0 | D138: 0 | E138: 0 | F138: 0 | G138: 0 | H138: 0
B139: WEATHER-SENSITIVE RATE | D139: =I226 -> 11.37396703 | E139: =I245 -> 9.096 | F139: =J245 -> 0 | G139: =G278 -> 7.51893259 | H139: =H278 -> 0
B140: WEATHER-SENSITIVE REVENUE | C140: =SUM(D140:L140) -> 0 | D140: =ROUND(D138*D139/100,2) -> 0 | E140: =ROUND(E138*E139/100,2) -> 0 | F140: =ROUND(F138*F139/100,2) -> 0 | G140: =ROUND(G138*G139/100,2) -> 0 | H140: =ROUND(H138*H139/100,2) -> 0
B142: TOTAL UNBILLED KWH ADJUST | C142: =IF(ROUND(C134+C138,3)<>ROUND(SUM(D142:L142),3),#VALUE!,C134+C138) -> -16518266 | D142: =D134+D138 -> -11415002 | E142: =E134+E138 -> -962561 | F142: =F134+F138 -> 0 | G142: =G134+G138 -> -3149769 | H142: =H134+H138 -> 0 | K142: =K134+K138 -> -990934 | L142: =L134+L138 -> 0
B143: TOTAL UNBILLED REVENUE ADJ | C143: =IF(ROUND(C136+C140,3)<>ROUND(SUM(D143:L143),3),#VALUE!,C136+C140) -> -1619033.66 | D143: =D136+D140 -> -1169424.95 | E143: =E136+E140 -> -109088.34 | F143: =F136+F140 -> 0 | G143: =G136+G140 -> -246825.18 | H143: =H136+H140 -> 0 | K143: =K136+K140 -> -93695.19
B144: WEATHER NORMALIZATION ADJ
B145: WEATHER-SENSITIVE KWHS | C145: =SUM(D145:L145) -> -89970709 | D145: -62358999 | E145: -11368591 | F145: 0 | G145: -16243119 | H145: 0
B146: WEATHER-SENSITIVE RATE | D146: =I226 -> 11.37396703 | E146: =I245 -> 9.096 | F146: =J245 -> 0 | G146: =G278 -> 7.51893259 | H146: =H278 -> 0
B147: WEATHER-SENSITIVE REVENUE | C147: =SUM(D147:L147) -> -9348088.2 | D147: =ROUND(D145*D146/100,2) -> -7092691.99 | E147: =ROUND(E145*E146/100,2) -> -1034087.04 | F147: =ROUND(F145*F146/100,2) -> 0 | G147: =ROUND(G145*G146/100,2) -> -1221309.17 | H147: =ROUND(H145*H146/100,2) -> 0
B149: TOTAL ADJUSTMENT REVENUE | C149: =IF(ROUND(C143+C147,3)<>ROUND(SUM(D149:L149),3),#VALUE!,C143+C147) -> -10967121.86 | D149: =D147+D143 -> -8262116.94 | E149: =E147+E143 -> -1143175.38 | F149: =F147+F143 -> 0 | G149: =G147+G143 -> -1468134.35 | H149: =H147+H143 -> 0 | K149: =K147+K143 -> -93695.19
B150: =B130 -> TOTAL BASE TARIFF REVENUE | C150: =C130 -> 599173191.2 | D150: 287746522.9 | E150: 85977615.09 | F150: =F130 -> 0 | G150: 137867865.6 | H150: =H130 -> 0 | I150: 42040705.59 | J150: =J130 -> 22208111.51 | K150: 16168867.98 | L150: 7163502.482
B152: TOTAL PRESENT REVENUE | C152: =IF(ROUND(C149+C150,3)<>ROUND(SUM(D152:L152),3),#VALUE!,SUM(D152:L152)) -> 588206069.3 | D152: =D149+D150 -> 279484405.9 | E152: 84834439.71 | F152: =F149+F150 -> 0 | G152: 136399731.3 | H152: =H149+H150 -> 0 | I152: 42040705.59 | J152: =J149+J150 -> 22208111.51 | K152: 16075172.79 | L152: 7163502.482
D160: =D$4 -> RESIDENTIAL | E160: GENERAL SVC. | F160: GENERAL SVC. | G160: LG. GEN. SVC. | H160: LG. GEN. SVC. | I160: EX LG GEN SVC | J160: EX LG GEN SVC | K160: PUMPING | L160: ST & AREA LTG
C161: TOTAL | D161: =D$5 -> SCHEDULE 1,2 | E161: SCH. 11,12 | F161: SCH. 13 | G161: SCH. 21,22 | H161: SCH. 23 | I161: SCHEDULE 25 | J161: SCHEDULE 25I | K161: SCH. 30, 31, 32 | L161: SCH. 41-48
B162: PROPOSED REVENUE
B163: =UPPER(CHOOSE(Base1_Billing2,$Q$9,$Q$10))&" REVENUE" -> BASE TARIFF REVENUE
B164: BASIC CHARGE | C164: =SUM(D164:L164) -> 33241374 | D164: =D48*D76 -> 24133968 | E164: =E48*E76 -> 8470455 | F164: =F48*F76 -> 0 | H164: =H48*H76 -> 0 | K164: =K48*K76 -> 636951
B165: MONTHLY MINIMUM | C165: 0 | D165: =D49*D77 -> 0
B166: BLOCK 1 | C166: 331305032.9 | D166: =ROUND(D31*D79/100,2) -> 165170913.3 | E166: 56039351.54 | F166: =ROUND(F31*F79/100,2) -> 0 | G166: 96075628.73 | H166: =ROUND(H31*H79/100,2) -> 0 | I166: 7527230.25 | J166: =ROUND(J31*J79/100,2) -> 290580 | K166: =ROUND(K31*K79/100,2) -> 6201329.09
B167: BLOCK 2 | C167: 129094303.4 | D167: 63326247.94 | E167: 19250998.88 | F167: =ROUND(F32*F80/100,2) -> 0 | G167: 10475559.66 | H167: =ROUND(H32*H80/100,2) -> 0 | I167: 23470328.26 | J167: =ROUND(J32*J80/100,2) -> 2876280 | K167: 9694888.67
B168: BLOCK 3 | C168: 56083606.46 | D168: =ROUND(D33*D81/100,2) -> 41636484.11 | I168: 0 | J168: =ROUND(J33*J81/100,2) -> 14447122.35
B169: BLOCK 4 | C169: 0 | D169: =ROUND(D34*D82/100,2) -> 0
B170: DEMAND BLOCK 1 | C170: 21256800 | G170: =ROUND(G48*G86,2) -> 13165200 | I170: =ROUND(I48*I86,2) -> 7723800 | J170: =ROUND(J48*J86,2) -> 367800
B171: DEMAND BLOCK 2 | C171: 35127280.37 | E171: =ROUND(E50*E87,2) -> 4166525.3 | G171: 21169295.35 | I171: 3949659.85 | J171: 5841799.87
B172: POWER FACTOR ADJUSTMENT | C172: 174577.77 | E172: =E119 -> 0 | F172: =F119 -> 0 | G172: =G119 -> 174577.77 | H172: =H119 -> 0 | K172: =K119 -> 0
B173: PRIMARY VOLTAGE DISCOUNT | C173: -1664472.374 | G173: =G120 -> -60832.87 | H173: =H120 -> 0 | I173: ='WA Sch 25'!P113 -> -210365.7126 | J173: ='WA Sch 25'!P124 -> -1393273.792
B174: ANNUAL MINIMUM ADJUSTMENT | C174: 0 | I174: 0 | J174: 0
B175: STREET & AREA LIGHT REVENUE | C175: 7336496.642 | L175: ='Lighting summary'!G19 -> 7336496.642
B177: SUBTOTAL | C177: =IF(ROUND(SUM(C164:C175),3)<>ROUND(SUM(D177:L177),3),#VALUE!,SUM(D177:L177)) -> 611954999.2 | D177: =SUM(D164:D175) -> 294267613.4 | E177: 87927330.72 | F177: =SUM(F164:F175) -> 0 | G177: 140999428.6 | H177: =SUM(H164:H175) -> 0 | I177: 42460652.65 | J177: =SUM(J164:J175) -> 22430308.43 | K177: 16533168.76 | L177: 7336496.642
C178: =SUM(D178:L178) -> 0 | D178: =ROUND(D38*D84/100,2) -> 0 | E178: =ROUND(E38*E84/100,2) -> 0 | F178: =ROUND(F38*F84/100,2) -> 0 | G178: =ROUND(G38*G84/100,2) -> 0 | H178: =ROUND(H38*H84/100,2) -> 0 | I178: =ROUND(I38*I80/100,2) -> 0 | J178: =ROUND(J38*J80/100,2) -> 0 | K178: =ROUND(K38*K84/100,2) -> 0 | L178: 0
B180: SUBTOTAL | C180: =SUM(D180:L180) -> 611954999.2 | D180: =D177+D178 -> 294267613.4 | E180: 87927330.72 | F180: =F177+F178 -> 0 | G180: 140999428.6 | H180: =H177+H178 -> 0 | I180: 42460652.65 | J180: =J177+J178 -> 22430308.43 | K180: 16533168.76 | L180: 7336496.642
B181: ADJUST TO ACTUAL | C181: =SUM(D181:L181) -> 0 | D181: =ROUND(D41*D84/100,2) -> 0 | E181: 0 | F181: =ROUND(F41*F84/100,2) -> 0 | G181: 0 | H181: =ROUND(H41*H84/100,2) -> 0 | I181: 0 | J181: =ROUND(J41*J84/100,2) -> 0 | K181: 0 | L181: 0
B183: ="SUBTOTAL "&UPPER(CHOOSE(Base1_Billing2,$Q$9,$Q$10))&" REVENUE" -> SUBTOTAL BASE TARIFF REVENUE | C183: =IF(ROUND(SUM(D183:L183),3)<>ROUND(SUM(C180:C181),3),#VALUE!,SUM(D183:L183)) -> 611954999.2 | D183: =D180+D181 -> 294267613.4 | E183: 87927330.72 | F183: =F180+F181 -> 0 | G183: 140999428.6 | H183: =H180+H181 -> 0 | I183: 42460652.65 | J183: =J180+J181 -> 22430308.43 | K183: 16533168.76 | L183: 7336496.642
B185: ADJUSTMENT REVENUE
B186: UNBILLED REVENUE ADJUSTMENT
B187: UNBILLED LOAD KWHS | C187: =SUM(D187:L187) -> -16518266 | D187: =D134 -> -11415002 | E187: =E134 -> -962561 | F187: =F134 -> 0 | G187: =G134 -> -3149769 | H187: =H134 -> 0 | K187: =K134 -> -990934
B188: UNBILLED LOAD RATE | D188: =D84 -> 10.49805762 | E188: =E84 -> 11.63441931 | F188: =F84 -> 0 | G188: =G84 -> 8.073579029 | H188: =H84 -> 0 | K188: =K84 -> 9.677012671
B189: UNBILLED LOAD REVENUE | C189: =SUM(D189:L189) -> -1660533.77 | D189: =ROUND(D187*D188/100,2) -> -1198353.49 | E189: =ROUND(E187*E188/100,2) -> -111988.38 | F189: =ROUND(F187*F188/100,2) -> 0 | G189: =ROUND(G187*G188/100,2) -> -254299.09 | H189: =ROUND(H187*H188/100,2) -> 0 | K189: =ROUND(K187*K188/100,2) -> -95892.81
B191: WEATHER-SENSITIVE KWHS | C191: =SUM(D191:L191) -> 0 | D191: =D138 -> 0 | E191: =E138 -> 0 | F191: =F138 -> 0 | G191: =G138 -> 0 | H191: =H138 -> 0
B192: WEATHER-SENSITIVE RATE | D192: =I235 -> 11.65482186 | E192: =I253 -> 9.338 | F192: =J253 -> 0 | G192: =G286 -> 7.746607086 | H192: =H286 -> 0
B193: WEATHER-SENSITIVE REVENUE | C193: =SUM(D193:L193) -> 0 | D193: =ROUND(D191*D192/100,2) -> 0 | E193: =ROUND(E191*E192/100,2) -> 0 | F193: =ROUND(F191*F192/100,2) -> 0 | G193: =ROUND(G191*G192/100,2) -> 0 | H193: =ROUND(H191*H192/100,2) -> 0
B195: TOTAL UNBILLED KWH ADJUST | C195: =IF(ROUND(C187+C191,3)<>ROUND(SUM(D195:L195),3),#VALUE!,SUM(D195:L195)) -> -16518266 | D195: =D187+D191 -> -11415002 | E195: =E187+E191 -> -962561 | F195: =F187+F191 -> 0 | G195: =G187+G191 -> -3149769 | H195: =H187+H191 -> 0 | K195: =K187+K191 -> -990934
B196: TOTAL UNBILLED REVENUE ADJ | C196: =IF(ROUND(C189+C193,3)<>ROUND(SUM(D196:L196),3),#VALUE!,SUM(D196:L196)) -> -1660533.77 | D196: =D189+D193 -> -1198353.49 | E196: =E189+E193 -> -111988.38 | F196: =F189+F193 -> 0 | G196: =G189+G193 -> -254299.09 | H196: =H189+H193 -> 0 | K196: =K189+K193 -> -95892.81
B197: WEATHER NORMALIZATION ADJ
B198: WEATHER-SENSITIVE KWHS | C198: =SUM(D198:L198) -> -89970709 | D198: =D145 -> -62358999 | E198: =E145 -> -11368591 | F198: =F145 -> 0 | G198: =G145 -> -16243119 | H198: =H145 -> 0
B199: WEATHER-SENSITIVE RATE | D199: =I235 -> 11.65482186 | E199: =I253 -> 9.338 | F199: =J253 -> 0 | G199: =G286 -> 7.746607086 | H199: =H286 -> 0
B200: WEATHER-SENSITIVE REVENUE | C200: =SUM(D200:L200) -> -9587719.89 | D200: =ROUND(D198*D199/100,2) -> -7267830.25 | E200: =ROUND(E198*E199/100,2) -> -1061599.03 | F200: =ROUND(F198*F199/100,2) -> 0 | G200: =ROUND(G198*G199/100,2) -> -1258290.61 | H200: =ROUND(H198*H199/100,2) -> 0
B202: TOTAL ADJUSTMENT REVENUE | C202: =IF(ROUND(SUM(D202:L202),3)<>ROUND(C196+C200,3),#VALUE!,SUM(D202:L202)) -> -11248253.66 | D202: =D200+D196 -> -8466183.74 | E202: =E200+E196 -> -1173587.41 | F202: =F200+F196 -> 0 | G202: =G200+G196 -> -1512589.7 | H202: =H200+H196 -> 0 | K202: =K200+K196 -> -95892.81
B203: ="TOTAL "&UPPER(CHOOSE(Base1_Billing2,$Q$9,$Q$10))&" REVENUE" -> TOTAL BASE TARIFF REVENUE | C203: =SUM(D203:L203) -> 611954999.2 | D203: =D183 -> 294267613.4 | E203: 87927330.72 | F203: =F183 -> 0 | G203: 140999428.6 | H203: =H183 -> 0 | I203: 42460652.65 | J203: =J183 -> 22430308.43 | K203: 16533168.76 | L203: 7336496.642
B204: TOTAL PROPOSED REVENUE | C204: =IF(ROUND(SUM(D204:L204),3)<>ROUND(SUM(C202:C203),3),#VALUE!,SUM(D204:L204)) -> 600706745.5 | D204: =D202+D203 -> 285801429.6 | E204: =E202+E203 -> 86753743.31 | F204: =F202+F203 -> 0 | G204: 139486838.9 | H204: =H202+H203 -> 0 | I204: =I202+I203 -> 42460652.65 | J204: =J202+J203 -> 22430308.43 | K204: 16437275.95 | L204: 7336496.642
B205: TOTAL PRESENT REVENUE | C205: =SUM(D205:L205) -> 588206069.3 | D205: =D152 -> 279484405.9 | E205: 84834439.71 | F205: =F152 -> 0 | G205: 136399731.3 | H205: =H152 -> 0 | I205: =I152 -> 42040705.59 | J205: =J152 -> 22208111.51 | K205: 16075172.79 | L205: 7163502.482
B207: TOTAL REVENUE INCREASE | C207: =SUM(D207:L207) -> 12500676.22 | D207: =D204-D205 -> 6317023.67 | E207: 1919303.604 | F207: =F204-F205 -> 0 | G207: 3087107.656 | H207: =H204-H205 -> 0 | I207: 419947.0544 | J207: =J204-J205 -> 222196.917 | K207: 362103.16 | L207: 172994.16
B208: PERCENT REVENUE INCREASE | C208: =C207/C205 -> 0.02125220543 | D208: =D207/D205 -> 0.02260241908 | E208: 0.02262410892 | F208: =F207/F205 ->  | G208: 0.02263279867 | H208: =H207/H205 ->  | I208: 0.009989058187 | J208: =J207/J205 -> 0.0100052144 | K208: 0.02252561542 | L208: =L207/L205 -> 0.02414938229
B209: =IF(Base1_Billing2=2,"Pres and Prop Revenues may be incorrect due to Sch 59--for example all of Sch 11 gets benefit of Sch 59 but it s/only be Sch 12; see Billing Rev on Exhibit page for fix","") -> 
D216: TOTAL | E216: TOTAL | F216: BASELOAD | G216: BASELOAD | H216: WTHR-SENS. | I216: WTHR-SENS.
C217: RATES | D217: KWHS | E217: REVENUE | F217: KWHS | G217: REVENUE | H217: KWHS | I217: REVENUE
B219: PRESENT BASELOAD AND WEATHER-SENSITIVE RATES
B220: SCHEDULE 1
B221: 0-800 KWHS | C221: =D62 -> 9.486 | D221: =D8 -> 1699114426 | E221: =C221*D221/100 -> 161177994.4 | F221: =MIN(D221,F225) -> 1539210848 | G221: =F221*C221/100 -> 146009541 | H221: =D221-F221 -> 159903577.5 | I221: =H221*C221/100 -> 15168453.37 | L221: =H221/$H$225 -> 0.1546506301 | N221: =L221*$D$145 -> -9643858.485 | O221: =N221*(C221/100) -> -914816.4159
B222: 801-1500 KWHS | C222: =D63 -> 11.035 | D222: =D9 -> 560062332.6 | E222: =C222*D222/100 -> 61802878.4 | F222: =MIN(F225-F221,D222) -> 0 | G222: =F222*C222/100 -> 0 | H222: =D222-F222 -> 560062332.6 | I222: =H222*C222/100 -> 61802878.4 | L222: =H222/$H$225 -> 0.5416638823 | N222: =L222*$D$145 -> -33777617.49 | O222: =N222*(C222/100) -> -3727360.09
B223: OVER 100 KWHS | C223: =D64 -> 12.94 | D223: =D10 -> 314000634.3 | E223: =C223*D223/100 -> 40631682.08 | F223: =MIN(F225-F221-F222,D223) -> 0 | G223: =F223*C223/100 -> 0 | H223: =D223-F223 -> 314000634.3 | I223: =H223*C223/100 -> 40631682.08 | L223: =H223/$H$225 -> 0.3036854877 | N223: =L223*$D$145 -> -18937523.02 | O223: =N223*(C223/100) -> -2450515.479
N224: =SUM(N221:N223) -> -62358999 | O224: =SUM(O221:O223) -> -7092691.985
B225: TOTAL | D225: =D221+D222+D223 -> 2573177392 | E225: 263612554.9 | F225: =574*D25 -> 1539210848 | G225: 146009541 | H225: 1033966544 | I225: 117603013.8
B226: AVERAGE RATE | E226: =E225/D225*100 -> 10.24463201 | G226: =G225/F225*100 -> 9.486 | I226: =I225/H225*100 -> 11.37396703
B228: PROPOSED BASELOAD AND WEATHER-SENSITIVE RATES
B229: SCHEDULE 1
B230: 0-800 KWHS | C230: =D79 -> 9.721 | D230: =D221 -> 1699114426 | E230: =C230*D230/100 -> 165170913.3 | F230: =MIN(D230,F234) -> 1539210848 | G230: =F230*C230/100 -> 149626686.5 | H230: =H221 -> 159903577.5 | I230: =H230*C230/100 -> 15544226.77
B231: 801-1500 KWHS | C231: =D80 -> 11.307 | D231: =D222 -> 560062332.6 | E231: =C231*D231/100 -> 63326247.94 | F231: =MIN(F234-F230,D231) -> 0 | G231: =F231*C231/100 -> 0 | H231: =H222 -> 560062332.6 | I231: =H231*C231/100 -> 63326247.94
B232: OVER 1500 KWHS | C232: =D81 -> 13.26 | D232: =D223 -> 314000634.3 | E232: =C232*D232/100 -> 41636484.11 | F232: =MIN(F234-F230-F231,D232) -> 0 | G232: =F232*C232/100 -> 0 | H232: =H223 -> 314000634.3 | I232: =H232*C232/100 -> 41636484.11
B234: TOTAL | D234: =D230+D231+D232 -> 2573177392 | E234: 270133645.4 | F234: =F225 -> 1539210848 | G234: 149626686.5 | H234: 1033966544 | I234: 120506958.8
B235: AVERAGE RATE | E235: =E234/D234*100 -> 10.49805762 | G235: =G234/F234*100 -> 9.721 | I235: =I234/H234*100 -> 11.65482186
B239: PRESENT BASELOAD AND WEATHER-SENSITIVE RATES
B240: SCHEDULE 11
B241: 0-3650 KWHS | C241: =E62 -> 12.379 | D241: =E8 -> 440976955.8 | E241: =C241*D241/100 -> 54588537.36 | F241: =MIN(D241,F244) -> 440976955.8 | G241: =F241*C241/100 -> 54588537.36 | H241: =D241-F241 -> 0 | I241: =H241*C241/100 -> 0
B242: over 3650 KWHS | C242: =E63 -> 9.096 | D242: =E9 -> 206157623.5 | E242: =C242*D242/100 -> 18752097.43 | F242: =MIN(F244-F241,D242) -> 138240824.2 | G242: =F242*C242/100 -> 12574385.37 | H242: =D242-F242 -> 67916799.27 | I242: =H242*C242/100 -> 6177712.061
B244: TOTAL | D244: =D241+D242 -> 647134579.3 | E244: 73340634.79 | F244: =1436*E25 -> 579217780 | G244: 67162922.73 | H244: 67916799.27 | I244: 6177712.061
B245: AVERAGE RATE | E245: =E244/D244*100 -> 11.33313489 | G245: =G244/F244*100 -> 11.59545253 | I245: =I244/H244*100 -> 9.096
B247: PROPOSED BASELOAD AND WEATHER-SENSITIVE RATES
B248: SCHEDULE 11
B249: 0-3650 KWHS | C249: =E79 -> 12.708 | D249: =E31 -> 440976955.8 | E249: =C249*D249/100 -> 56039351.54 | F249: =MIN(D249,F252) -> 440976955.8 | G249: =F249*C249/100 -> 56039351.54 | H249: =D249-F249 -> 0 | I249: =H249*C249/100 -> 0
B250: over 3650 KWHS | C250: =E80 -> 9.338 | D250: =E32 -> 206157623.5 | E250: =C250*D250/100 -> 19250998.88 | F250: =MIN(F252-F249,D250) -> 138240824.2 | G250: =F250*C250/100 -> 12908928.16 | H250: =D250-F250 -> 67916799.27 | I250: =H250*C250/100 -> 6342070.716
B252: TOTAL | D252: =D249+D250 -> 647134579.3 | E252: 75290350.42 | F252: =F244 -> 579217780 | G252: 68948279.71 | H252: 67916799.27 | I252: 6342070.716
B253: AVERAGE RATE | E253: =E252/D252*100 -> 11.63441931 | G253: =G252/F252*100 -> 11.9036884 | I253: =I252/H252*100 -> 9.338
B261: Note: Total Base Load for Sch. 1 = Base Load per bill times total billings (base load per bill on JDM-E-18) =
B262: ="574 X "&TEXT(D25,"#,##0")&" = "&TEXT(F225,"#,##0") -> 574 X 2,681,552 = 1,539,210,848
B263: ="Total Base Load for Sch. 11 = 1,436 X "&TEXT(E25,"#,##0")&" = "&TEXT(F244,"#,##0") -> Total Base Load for Sch. 11 = 1,436 X 403,355 = 579,217,780
B264: =IF(Base1_Billing2=2,"Pres and Prop Revenues may be incorrect due to Sch 59--for example all of Sch 11 gets benefit of Sch 59 but it s/only be Sch 12; see Billing Rev on Exhibit page for fix","") -> 
D269: TOTAL | E269: TOTAL | F269: BASELOAD | G269: BASELOAD | H269: WTHR-SENS. | I269: WTHR-SENS.
C270: RATES | D270: KWHS | E270: REVENUE | F270: KWHS | G270: REVENUE | H270: KWHS | I270: REVENUE
B272: PRESENT BASELOAD AND WEATHER-SENSITIVE RATES
B273: SCHEDULE 21
B274: 0-250000 KWHS | C274: =G62 -> 7.927 | D274: =G8 -> 1176388254 | E274: =C274*D274/100 -> 93252296.92 | F274: =MIN(D274,F277) -> 1176388254 | G274: =F274*C274/100 -> 93252296.92 | H274: =D274-F274 -> 0 | I274: =H274*C274/100 -> 0
B275: OVER 250000 KWHS | C275: =G63 -> 7.092 | D275: =G9 -> 143363345.5 | E275: =C275*D275/100 -> 10167328.46 | F275: =MIN(F277-F274,D275) -> 143363345.5 | G275: =F275*C275/100 -> 10167328.46 | H275: =D275-F275 -> 0 | I275: =H275*C275/100 -> 0
B277: TOTAL | D277: =D274+D275 -> 1319751600 | E277: =E274+E275 -> 103419625.4 | F277: =62686*G25 -> 1375456212 | G277: =G274+G275 -> 103419625.4 | H277: =H274+H275 -> 0 | I277: =I274+I275 -> 0
B278: AVERAGE RATE | E278: =E277/D277*100 -> 7.836294754 | G278: =G277/F277*100 -> 7.51893259 | I278: =I277/H277*100 -> 
B280: PROPOSED BASELOAD AND WEATHER-SENSITIVE RATES
B281: SCHEDULE 21
B282: 0-250000 KWHS | C282: =G79 -> 8.167 | D282: =D274 -> 1176388254 | E282: =C282*D282/100 -> 96075628.73 | F282: =MIN(D282,F285) -> 1176388254 | G282: =F282*C282/100 -> 96075628.73 | H282: =H274 -> 0 | I282: =H282*C282/100 -> 0
B283: OVER 250000 KWHS | C283: =G80 -> 7.307 | D283: =D275 -> 143363345.5 | E283: =C283*D283/100 -> 10475559.66 | F283: =MIN(F285-F282,D283) -> 143363345.5 | G283: =F283*C283/100 -> 10475559.66 | H283: =H275 -> 0 | I283: =H283*C283/100 -> 0
B285: TOTAL | D285: =D282+D283 -> 1319751600 | E285: =E282+E283 -> 106551188.4 | F285: =F277 -> 1375456212 | G285: =G282+G283 -> 106551188.4 | H285: =H282+H283 -> 0 | I285: =I282+I283 -> 0
B286: AVERAGE RATE | G286: =G285/F285*100 -> 7.746607086 | I286: =I285/H285*100 -> 
B294: Note: Total Base Load for Sch. 21 = Base Load per bill times total billings (base load per bill on JDM-E-18) =
B295: ="62,686 X "&TEXT(G25,"#,##0")&" = "&TEXT(F277,"#,##0") -> 62,686 X 21,942 = 1,375,456,212
D299: =D207/D48 -> 2.355734168 | E299: =E207/E48 -> 4.758348363 | F299: =G207/G48 -> 140.6939958 | G299: =I207/I48 -> 1666.456565 | H299: =K207/K48 -> 11.93838515
D300: =D23/D25 -> 932.0734378 | E300: =E23/E25 -> 1573.808251 | F300: =G23/G25 -> 59263.45419 | G300: =I23/I25 -> 2228141.727 | H300: =K23/K25 -> 5383.168575
D301: =D300*-#REF! ->  | E301: =E300*-#REF! ->  | F301: =F300*-#REF! ->  | G301: =G300*-#REF! ->  | H301: =H300*-#REF! -> 
D302: =(800*((D79-D62)/100))+(118*((D80-D63)/100))+(D76-D59) -> 2.20096
D305: =D299+D301 ->  | E305: =E299+E301 ->  | F305: =F299+F301 ->  | G305: =G299+G301 ->  | H305: =H299+H301 -> 

Sheet Rate Design
A1: PRESENT RATES | D1: 1 | E1: 2 | F1: 3 | G1: 4 | H1: 5 | I1: 6 | J1: 7 | K1: 8 | L1: 9 | Q1: Tiers - used for bill comparisons
C2: TOTAL | D2: SCH. 1,2 | E2: SCH. 11,12 | F2: SCH. 13 | G2: SCH. 21,22 | H2: SCH. 23 | I2: SCH. 25 | J2: SCH. 25I | K2: SCH. 30, 31, 32 | O2: Range Name | Q2: SCHEDULE 1,2 | R2: SCH. 11,12 | S2: SCH. 13 | T2: SCH. 21,22 | U2: SCH. 23 | V2: SCHEDULE 25 | W2: SCHEDULE 25I | X2: SCH. 30, 31, 32
B3: Base Tariff Rates
A4: 1 | B4: BASIC CHARGE | D4: 9 | E4: 21 | F4: 21 | G4: 0 | H4: 600 | I4: 0 | J4: 0 | K4: 21
A5: 2 | B5: BLOCK 1 PER KWH | D5: 9.486 | E5: 12.379 | F5: 21.89 | G5: 7.927 | H5: 16.784 | I5: 5.906 | J5: 4.782 | K5: 11.763 | Q5: 800 | R5: 3650 | S5: 3650 | T5: 250000 | U5: 250000 | V5: 500000 | W5: 500000
A6: 3 | B6: BLOCK 2 PER KWH | D6: 11.035 | E6: 9.096 | F6: 8.906 | G6: 7.092 | H6: 6.928 | I6: 5.313 | J6: 4.303 | K6: 8.401 | Q6: 1500 | R6: 9999999 | S6: 9999999 | T6: 9999999 | U6: 9999999 | V6: 9999999 | W6: 9999999
A7: 4 | B7: BLOCK 3 PER KWH | D7: 12.94 | E7: 0 | F7: 0 | G7: 0 | H7: 0 | I7: 4.352 | J7: 3.679 | K7: 0 | O7: Rates_Base_Present | Q7: 9999999 | R7: 9999999 | S7: 9999999 | T7: 9999999 | U7: 9999999 | V7: 9999999 | W7: 9999999
A8: 5 | B8: BLOCK 4 PER KWH
A9: 6 | B9: DEMAND CHARGE | D9: 0 | E9: 0 | F9: 0 | G9: 600 | H9: 0 | I9: 30650 | J9: 30650 | K9: 0
A10: 7 | B10: DEMAND BLOCK 1 | D10: 0 | E10: 7.5 | F10: 0 | G10: 7.5 | H10: 0 | I10: 8.3 | J10: 8.3 | K10: 0 | Q10: 0 | R10: 20 | S10: 20 | T10: 50 | U10: 50 | V10: 3000 | W10: 3000
B12: Billing Rates | D12: =IF(D13<>'Pres & Prop Rev'!D$5,#VALUE!,"") ->  | E12: =IF(E13<>'Pres & Prop Rev'!E$5,#VALUE!,"") ->  | F12: =IF(F13<>'Pres & Prop Rev'!F$5,#VALUE!,"") ->  | G12: =IF(G13<>'Pres & Prop Rev'!G$5,#VALUE!,"") ->  | H12: =IF(H13<>'Pres & Prop Rev'!H$5,#VALUE!,"") ->  | I12: =IF(I13<>'Pres & Prop Rev'!I$5,#VALUE!,"") ->  | J12: =IF(J13<>'Pres & Prop Rev'!J$5,#VALUE!,"") ->  | K12: =IF(K13<>'Pres & Prop Rev'!K$5,#VALUE!,"") -> 
D13: SCHEDULE 1,2 | E13: SCH. 11,12 | F13: SCH. 13 | G13: SCH. 21,22 | H13: SCH. 23 | I13: SCHEDULE 25 | J13: SCHEDULE 25I | K13: SCH. 30, 31, 32
A14: 1 | B14: BASIC CHARGE | D14: =D4 -> 9 | E14: 21 | F14: 21 | G14: 0 | H14: 600 | I14: 0 | J14: 0 | K14: 21
A15: 2 | B15: BLOCK 1 PER KWH | D15: =D5-0.417-0.045-0.428+0.255+0.153-0.015-0.509 -> 8.48 | E15: =E5+0.679-0.267+0.321+0.222-0.015 -> 13.319 | F15: =F5+0.679-0.267+0.321+0.222-0.015 -> 22.83 | G15: =G5+0.679-0.192+0.273+0.16-0.016 -> 8.831 | H15: =H5+0.679-0.192+0.273+0.16-0.016 -> 17.688 | I15: =I5-0.25+0.182+0.101-0.016 -> 5.923 | J15: =J5-0.25+0.182+0.101-0.016 -> 4.799 | K15: =K5+0.679-0.365+0.236+0.139-0.016-0.448 -> 11.988 | Q15: =Q5 -> 800 | R15: 3650 | S15: 3650 | T15: 250000 | U15: 250000 | V15: 500000 | W15: 500000
A16: 3 | B16: BLOCK 2 PER KWH | D16: =D6-0.417-0.045-0.496+0.255+0.153-0.015-0.509 -> 9.961 | E16: =E6+0.679-0.2+0.321+0.222-0.015 -> 10.103 | F16: =F6+0.679-0.2+0.321+0.222-0.015 -> 9.913 | G16: =G6+0.679-0.173+0.273+0.16-0.016 -> 8.015 | H16: =H6+0.679-0.173+0.273+0.16-0.016 -> 7.851 | I16: =I6-0.225+0.182+0.101-0.016 -> 5.355 | J16: =J6-0.225+0.182+0.101-0.016 -> 4.345 | K16: =K6+0.679-0.264+0.236+0.139-0.016-0.448 -> 8.727 | Q16: =Q6 -> 1500 | R16: 9999999 | S16: =S6 -> 9999999 | T16: 9999999 | U16: =U6 -> 9999999 | V16: 9999999 | W16: =W6 -> 9999999
A17: 4 | B17: BLOCK 3 PER KWH | D17: =D7-0.417-0.045-0.58+0.255+0.153-0.015-0.509 -> 11.782 | I17: =I7+0.182-0.016 -> 4.518 | J17: =J7+0.182-0.016 -> 3.845 | O17: Rates_Billing_Present | Q17: 9999999 | R17: 9999999 | S17: =S7 -> 9999999 | T17: 9999999 | U17: =U7 -> 9999999 | V17: 9999999 | W17: =W7 -> 9999999
A18: 5 | B18: BLOCK 4 PER KWH
A19: 6 | B19: DEMAND CHARGE | G19: =G9 -> 600 | H19: 0 | I19: 30650 | J19: 30650
A20: 7 | B20: DEMAND BLOCK 1 | E20: =E10 -> 7.5 | F20: =F10 -> 0 | G20: 7.5 | H20: 0 | I20: 8.3 | J20: 8.3 | Q20: =Q10 -> 0 | R20: 20 | S20: 20 | T20: 50 | U20: 50 | V20: 3000 | W20: 3000
A22: PROPOSED RATES
B24: Base Tariff Rates | D24: =IF(D25<>'Pres & Prop Rev'!D$5,#VALUE!,"") ->  | E24: =IF(E25<>'Pres & Prop Rev'!E$5,#VALUE!,"") ->  | F24: =IF(F25<>'Pres & Prop Rev'!F$5,#VALUE!,"") ->  | G24: =IF(G25<>'Pres & Prop Rev'!G$5,#VALUE!,"") ->  | H24: =IF(H25<>'Pres & Prop Rev'!H$5,#VALUE!,"") ->  | I24: =IF(I25<>'Pres & Prop Rev'!I$5,#VALUE!,"") ->  | J24: =IF(J25<>'Pres & Prop Rev'!J$5,#VALUE!,"") ->  | K24: =IF(K25<>'Pres & Prop Rev'!K$5,#VALUE!,"") -> 
D25: SCHEDULE 1,2 | E25: SCH. 11,12 | F25: SCH. 13 | G25: SCH. 21,22 | H25: SCH. 23 | I25: SCHEDULE 25 | J25: SCHEDULE 25I | K25: SCH. 30, 31, 32 | Z25: Rounding
A26: 1 | B26: BASIC CHARGE | D26: =ROUND(D62,$Z26) -> 9 | E26: 21 | F26: 21 | G26: 0 | H26: 600 | I26: 0 | J26: 0 | K26: 21 | Z26: 2 | AA26: 2
A27: 2 | B27: BLOCK 1 PER KWH | D27: =ROUND(D85,$Z27) -> 9.721 | E27: =ROUND(E85,$Z27) -> 12.708 | F27: =ROUND(F85,$Z27) -> 22.472 | G27: 8.167 | H27: =ROUND(H85,$Z27) -> 17.292 | I27: 5.987 | J27: =ROUND(J85,$Z27) -> 4.843 | K27: 12.039 | Q27: 800 | R27: 3650 | S27: 3650 | T27: 250000 | U27: 250000 | V27: 500000 | W27: 500000 | Z27: 3 | AA27: 3
A28: 3 | B28: BLOCK 2 PER KWH | D28: 11.307 | E28: =ROUND(E86,$Z28) -> 9.338 | F28: =ROUND(F86,$Z28) -> 9.143 | G28: 7.307 | H28: =ROUND(H86,$Z28) -> 7.138 | I28: 5.386 | J28: =ROUND(J86,$Z28) -> 4.358 | K28: 8.598 | Q28: 1500 | R28: 9999999 | S28: 9999999 | T28: 9999999 | U28: 9999999 | V28: 6000000 | W28: 6000000 | Z28: 3 | AA28: 3
A29: 4 | B29: BLOCK 3 PER KWH | D29: 13.26 | E29: 0 | F29: =ROUND(F87,$Z29) -> 0 | G29: 0 | H29: =ROUND(H87,$Z29) -> 0 | I29: 4.412 | J29: =ROUND(J87,$Z29) -> 3.726 | K29: 0 | O29: Rates_Base_Proposed | Q29: 9999999 | R29: 9999999 | S29: 9999999 | T29: 9999999 | U29: 9999999 | V29: 99999999 | W29: 99999999 | Z29: 3 | AA29: 3
A30: 5 | B30: BLOCK 4 PER KWH | Z30: 3 | AA30: 3
A31: 6 | B31: DEMAND CHARGE | D31: =ROUND(D66,$Z31) -> 0 | E31: 0 | F31: 0 | G31: 600 | H31: 0 | I31: 30650 | J31: 30650 | K31: 0 | Z31: 2 | AA31: 2
A32: 7 | B32: DEMAND BLOCK 1 | D32: =ROUND(D69,$Z32) -> 0 | E32: 7.5 | F32: 0 | G32: 7.5 | H32: 0 | I32: 8.3 | J32: 8.3 | K32: 0 | Q32: 0 | R32: 20 | S32: 20 | T32: 50 | U32: 50 | V32: 3000 | W32: 3000 | Z32: 2 | AA32: 2
B34: Billing Rates | D34: =IF(D35<>'Pres & Prop Rev'!D$5,#VALUE!,"") ->  | E34: =IF(E35<>'Pres & Prop Rev'!E$5,#VALUE!,"") ->  | F34: =IF(F35<>'Pres & Prop Rev'!F$5,#VALUE!,"") ->  | G34: =IF(G35<>'Pres & Prop Rev'!G$5,#VALUE!,"") ->  | H34: =IF(H35<>'Pres & Prop Rev'!H$5,#VALUE!,"") ->  | I34: =IF(I35<>'Pres & Prop Rev'!I$5,#VALUE!,"") ->  | J34: =IF(J35<>'Pres & Prop Rev'!J$5,#VALUE!,"") ->  | K34: =IF(K35<>'Pres & Prop Rev'!K$5,#VALUE!,"") -> 
D35: SCHEDULE 1,2 | E35: SCH. 11,12 | F35: SCH. 13 | G35: SCH. 21,22 | H35: SCH. 23 | I35: SCHEDULE 25 | J35: SCHEDULE 25I | K35: SCH. 30, 31, 32 | Y35: LIRAP/DSM increase
A36: 1 | B36: BASIC CHARGE | D36: =D26 -> 9 | E36: 21 | F36: 21 | G36: 0 | H36: =H26 -> 600 | I36: 0 | J36: 0 | K36: 21 | Y36: 1 | Z36: 11 | AA36: 21 | AB36: 25 | AC36: 31
A37: 2 | B37: BLOCK 1 PER KWH | D37: =D27-0.417-0.045-0.428+0.255+0.153-0.015-0.509 -> 8.715 | E37: =E27+0.679-0.267+0.321+0.222-0.015 -> 13.648 | F37: =F27+0.679-0.267+0.321+0.222-0.015 -> 23.412 | G37: =G27+0.679-0.192+0.273+0.16-0.016 -> 9.071 | H37: =H27+0.679-0.192+0.273+0.16-0.016 -> 18.196 | I37: =I27-0.25+0.182+0.101-0.016 -> 6.004 | J37: =J27-0.25+0.182+0.101-0.016 -> 4.86 | K37: =K27+0.679-0.365+0.236+0.139-0.016-0.448 -> 12.264 | Q37: =Q27 -> 800 | R37: 3650 | S37: =S27 -> 3650 | T37: 250000 | U37: =U27 -> 250000 | V37: 500000 | W37: =W27 -> 500000 | Y37: 0 | Z37: 0 | AA37: 0 | AB37: 0 | AC37: 0
A38: 3 | B38: BLOCK 2 PER KWH | D38: =D28-0.417-0.045-0.496+0.255+0.153-0.015-0.509 -> 10.233 | E38: =E28+0.679-0.2+0.321+0.222-0.015 -> 10.345 | F38: =F28+0.679-0.2+0.321+0.222-0.015 -> 10.15 | G38: =G28+0.679-0.173+0.273+0.16-0.016 -> 8.23 | H38: =H28+0.679-0.173+0.273+0.16-0.016 -> 8.061 | I38: =I28-0.225+0.182+0.101-0.016 -> 5.428 | J38: =J28-0.225+0.182+0.101-0.016 -> 4.4 | K38: =K28+0.679-0.264+0.236+0.139-0.016-0.448 -> 8.924 | Q38: 1500 | R38: 9999999 | S38: =S28 -> 9999999 | T38: 9999999 | U38: =U28 -> 9999999 | V38: 6000000 | W38: =W28 -> 6000000 | Y38: =Y$37 -> 0 | Z38: =Z$37 -> 0 | AA38: =AA$37 -> 0 | AB38: =AB$37 -> 0 | AC38: =AC$37 -> 0
A39: 4 | B39: BLOCK 3 PER KWH | D39: =D29-0.417-0.045-0.58+0.255+0.153-0.015-0.509 -> 12.102 | I39: =I29+0.182-0.016 -> 4.578 | J39: =J29+0.182-0.016 -> 3.892 | O39: Rates_Billing_Proposed | Q39: 9999999 | R39: 9999999 | S39: =S29 -> 9999999 | T39: 9999999 | U39: =U29 -> 9999999 | V39: 99999999 | W39: =W29 -> 99999999 | Y39: =Y$37 -> 0 | Z39: 0 | AA39: 0 | AB39: 0 | AC39: 0
A40: 5 | B40: BLOCK 4 PER KWH | Y40: 0 | Z40: 0 | AA40: 0 | AB40: 0 | AC40: 0
A41: 6 | B41: DEMAND CHARGE | G41: =G31 -> 600 | H41: 0 | I41: 30650 | J41: 30650
A42: 7 | B42: DEMAND BLOCK 1 | E42: =E32 -> 7.5 | F42: =F32 -> 0 | G42: 7.5 | H42: 0 | I42: 8.3 | J42: 8.3 | Q42: =Q32 -> 0 | R42: 20 | S42: 20 | T42: 50 | U42: 50 | V42: 3000 | W42: 3000
D45: 0 | E45: 0) ERM=0; 1) ERM as is
B47: Proposed Rate Workup - from Pres & Prop Rev tab
B49: KILOWATT HOURS (KWHS)
B50: BLOCK 1 | C50: =SUM(D50:K50) -> 3499716214 | D50: ='Pres & Prop Rev'!D31 -> 1699114426 | E50: ='Pres & Prop Rev'!E31 -> 440976955.8 | F50: ='Pres & Prop Rev'!F31 -> 0 | G50: ='Pres & Prop Rev'!G31 -> 1176388254 | H50: ='Pres & Prop Rev'!H31 -> 0 | I50: ='Pres & Prop Rev'!I31 -> 125726244.4 | J50: ='Pres & Prop Rev'!J31 -> 6000000 | K50: ='Pres & Prop Rev'!K31 -> 51510333.79
B51: BLOCK 2 | C51: =SUM(D51:K51) -> 1524106259 | D51: ='Pres & Prop Rev'!D32 -> 560062332.6 | E51: ='Pres & Prop Rev'!E32 -> 206157623.5 | F51: ='Pres & Prop Rev'!F32 -> 0 | G51: ='Pres & Prop Rev'!G32 -> 143363345.5 | H51: ='Pres & Prop Rev'!H32 -> 0 | I51: ='Pres & Prop Rev'!I32 -> 435765470.9 | J51: ='Pres & Prop Rev'!J32 -> 66000000 | K51: ='Pres & Prop Rev'!K32 -> 112757486.3
B52: BLOCK 3 | C52: =SUM(D52:K52) -> 701738754.3 | D52: ='Pres & Prop Rev'!D33 -> 314000634.3 | E52: ='Pres & Prop Rev'!E33 -> 0 | F52: ='Pres & Prop Rev'!F33 -> 0 | G52: ='Pres & Prop Rev'!G33 -> 0 | H52: ='Pres & Prop Rev'!H33 -> 0 | I52: ='Pres & Prop Rev'!I33 -> 0 | J52: ='Pres & Prop Rev'!J33 -> 387738120 | K52: ='Pres & Prop Rev'!K33 -> 0
B53: ADJ. TO ACTUAL/EE ADJ | C53: =SUM(D53:K53) -> 0 | D53: ='Pres & Prop Rev'!D41+'Pres & Prop Rev'!D38 -> 0 | E53: ='Pres & Prop Rev'!E41+'Pres & Prop Rev'!E38 -> 0 | F53: ='Pres & Prop Rev'!F41+'Pres & Prop Rev'!F38 -> 0 | G53: ='Pres & Prop Rev'!G41+'Pres & Prop Rev'!G38 -> 0 | H53: ='Pres & Prop Rev'!H41+'Pres & Prop Rev'!H38 -> 0 | I53: ='Pres & Prop Rev'!I41+'Pres & Prop Rev'!I38 -> 0 | J53: ='Pres & Prop Rev'!J41+'Pres & Prop Rev'!J38 -> 0 | K53: ='Pres & Prop Rev'!K41+'Pres & Prop Rev'!K38 -> 0
B54: WEATHER & U/B KWHS | C54: =SUM(D54:K54) -> -106488975 | D54: ='Pres & Prop Rev'!D44 -> -73774001 | E54: ='Pres & Prop Rev'!E44 -> -12331152 | F54: ='Pres & Prop Rev'!F44 -> 0 | G54: ='Pres & Prop Rev'!G44 -> -19392888 | H54: ='Pres & Prop Rev'!H44 -> 0 | I54: ='Pres & Prop Rev'!I44 -> 0 | J54: ='Pres & Prop Rev'!J44 -> 0 | K54: ='Pres & Prop Rev'!K44 -> -990934
B55: TOTAL PROFORMA KWHS | C55: =IF(ROUND(SUM(D55:L55),3)<>ROUND(SUM(C50:C54),3),#VALUE!,SUM(D55:L55)) -> 5619072252 | D55: =SUM(D50:D54) -> 2499403391 | E55: 634803427.3 | F55: 0 | G55: 1300358712 | H55: 0 | I55: 561491715.3 | J55: 459738120 | K55: 163276886
B56: TOTAL BILLS | D56: ='Pres & Prop Rev'!D48 -> 2681552 | E56: ='Pres & Prop Rev'!E48 -> 403355 | F56: ='Pres & Prop Rev'!F48 -> 0 | G56: ='Pres & Prop Rev'!G48 -> 21942 | H56: ='Pres & Prop Rev'!H48 -> 0 | I56: ='Pres & Prop Rev'!I48 -> 252 | J56: ='Pres & Prop Rev'!J48 -> 12 | K56: ='Pres & Prop Rev'!K48 -> 30331
B57: EXCESS DEMAND | D57: ='Pres & Prop Rev'!D50 -> 0 | E57: ='Pres & Prop Rev'!E50 -> 555536.7062 | F57: ='Pres & Prop Rev'!F50 -> 0 | G57: ='Pres & Prop Rev'!G50 -> 2822572.714 | H57: ='Pres & Prop Rev'!H50 -> 0 | I57: ='Pres & Prop Rev'!I50 -> 475862.632 | J57: ='Pres & Prop Rev'!J50 -> 703831.31 | K57: ='Pres & Prop Rev'!K50 -> 0
M58: Proposed rates: | N58: Formulas to copy
B59: Proposed Revenue | C59: =SUM(D59:L59) -> 593378710.8 | D59: ='Rate Spread GRC'!H15*1000 -> 285809196.5 | E59: ='Rate Spread GRC'!H17*1000 -> 86753893.56 | F59: ='Rate Spread GRC'!H19*1000 -> 0 | G59: ='Rate Spread GRC'!H21*1000 -> 139486069 | H59: ='Rate Spread GRC'!H23*1000 -> 0 | I59: ='Rate Spread GRC'!H25*1000 -> 42460823.95 | J59: ='Rate Spread GRC'!H27*1000 -> 22430279.79 | K59: ='Rate Spread GRC'!H29*1000 -> 16438447.95 | M59: same as current | N59: FLOOR | O59: CEILING | P59: OTHER
B60: Targeted Rate Increase | C60: ='Rate Spread GRC'!F33 -> 0.02125104857 | D60: ='Rate Spread GRC'!F15 -> 0.02263020924 | E60: ='Rate Spread GRC'!F17 -> 0.02262587999 | F60: ='Rate Spread GRC'!F19 -> 0 | G60: ='Rate Spread GRC'!F21 -> 0.0226271537 | H60: ='Rate Spread GRC'!F23 -> 0 | I60: ='Rate Spread GRC'!F25 -> 0.009997937841 | J60: ='Rate Spread GRC'!F27 -> 0.01000392477 | K60: ='Rate Spread GRC'!F31 -> 0.0226208588 | M60: diff than current
B61: Present Basic Charge | D61: =D4 -> 9 | E61: 21 | F61: 21 | G61: 0 | H61: 600 | I61: 0 | J61: 0 | K61: =K4 -> 21
B62: BASIC CHARGE | D62: 9 | E62: 21 | F62: 21 | G62: 0 | H62: 600 | I62: 0 | J62: 0 | K62: 21 | N62: =FLOOR(N61*(1+N$60),$N63) -> 0 | O62: =CEILING(O61*(1+O$60),$O63) -> 0 | P62: =P61*(1+P$60) -> 0
B63: % D in Basic Charge | D63: =IF(D61,D62/D61-1,0) -> 0 | E63: 0 | F63: 0 | G63: 0 | H63: 0 | I63: 0 | J63: 0 | K63: 0 | N63: 0.05 | O63: 0.05
B64: Basic Charge Revenue | C64: =SUM(D64:L64) -> 33241374 | D64: =D56*D62 -> 24133968 | E64: 8470455 | F64: 0 | G64: 0 | H64: 0 | I64: 0 | J64: 0 | K64: 636951
B65: Present Demand Block 1 | D65: =D9 -> 0 | E65: 0 | F65: 0 | G65: 600 | H65: 0 | I65: 30650 | J65: 30650 | K65: 0
B66: DEMAND BLOCK 1 | G66: 600 | I66: 30650 | J66: 30650 | N66: =FLOOR(N65*(1+N$60),$N67) -> 0 | O66: =CEILING(O65*(1+O$60),$O67) -> 0 | P66: =P65*(1+P$60) -> 0
B67: % D in Demand Block 1 | D67: =IF(D65,D66/D65-1,0) -> 0 | E67: 0 | F67: 0 | G67: 0 | H67: 0 | I67: 0 | J67: 0 | K67: 0 | N67: 5 | O67: 10
B68: Present Demand Block 2 | D68: =D10 -> 0 | E68: =E10 -> 7.5 | F68: 0 | G68: =G10 -> 7.5 | H68: 0 | I68: 8.3 | J68: 8.3 | K68: =K10 -> 0
B69: DEMAND BLOCK 2 | E69: 7.5 | G69: 7.5 | I69: 8.3 | J69: 8.3 | K69: 0 | N69: =FLOOR(N68*(1+N$60),$N70) -> 0 | O69: =CEILING(O68*(1+O$60),$O70) -> 0 | P69: =P68*(1+P$60) -> 0
B70: % D in Demand Block 2 | D70: =IF(D68,D69/D68-1,0) -> 0 | E70: 0 | F70: 0 | G70: 0 | H70: 0 | I70: 0 | J70: 0 | K70: 0 | N70: 0.05 | O70: 0.05
B71: Demand Revenue | C71: =SUM(D71:L71) -> 56384080.37 | D71: =D56*D66+D57*D69 -> 0 | E71: 4166525.296 | F71: 0 | G71: 34334495.35 | H71: 0 | I71: 11673459.85 | J71: 6209599.873 | K71: 0
B72: Pwr Fctr/Prim Voltg Disc | C72: =SUM(D72:L72) -> -1489894.604 | D72: ='Pres & Prop Rev'!D172+'Pres & Prop Rev'!D173 -> 0 | E72: ='Pres & Prop Rev'!E172+'Pres & Prop Rev'!E173 -> 0 | F72: ='Pres & Prop Rev'!F172+'Pres & Prop Rev'!F173 -> 0 | G72: ='Pres & Prop Rev'!G172+'Pres & Prop Rev'!G173 -> 113744.9 | H72: ='Pres & Prop Rev'!H172+'Pres & Prop Rev'!H173 -> 0 | I72: ='Pres & Prop Rev'!I172+'Pres & Prop Rev'!I173 -> -210365.7126 | J72: ='Pres & Prop Rev'!J172+'Pres & Prop Rev'!J173 -> -1393273.792 | K72: ='Pres & Prop Rev'!K172+'Pres & Prop Rev'!K173 -> 0
B74: Present Block 1 Base Rate | D74: =D5 -> 9.486 | E74: 12.379 | F74: 21.89 | G74: 7.927 | H74: 16.784 | I74: 5.906 | J74: 4.782 | K74: 11.763
B75: Present Block 2 Base Rate | D75: =D6 -> 11.035 | E75: 9.096 | F75: =F6 -> 8.906 | G75: 7.092 | H75: =H6 -> 6.928 | I75: 5.313 | J75: =J6 -> 4.303 | K75: 8.401
B76: Present Block 3 Base Rate | D76: 12.94 | E76: 0 | F76: =F7 -> 0 | G76: 0 | H76: =H7 -> 0 | I76: 4.352 | J76: =J7 -> 3.679 | K76: 0
B78: 1) Flat Rate Increase | D78: 1 | E78: 1 | F78: 1 | G78: 1 | H78: 1 | I78: 1 | J78: 1 | K78: 1
B79: 2) % Rate Increase | D79: 0.02475007089 | E79: 0.02656660986 | F79: =E79 -> 0.02656660986 | G79: 0.03025011296 | H79: =G79 -> 0.03025011296 | I79: 0.01372899906 | J79: 0.01276464662 | K79: 0.02351335808 | P79: =P$60 -> 0
B80: Method ---> | D80: 2 | E80: 2 | F80: 2 | G80: 2 | H80: 2 | I80: 2 | J80: 2 | K80: 2
A82: Calculated | B82: BLOCK 1 PER KWH | D82: =CHOOSE(D$80,D74+D$78,D74*(1+D$79)) -> 9.720779172 | E82: =CHOOSE(E$80,E74+E$78,E74*(1+E$79)) -> 12.70786806 | F82: =CHOOSE(F$80,F74+F$78,F74*(1+F$79)) -> 22.47154309 | G82: 8.166792645 | H82: 17.2917179 | I82: 5.987083468 | J82: 4.84304054 | K82: =CHOOSE(K$80,K74+K$78,K74*(1+K$79)) -> 12.03958763
B83: BLOCK 2 PER KWH | D83: =CHOOSE(D$80,D75+D$78,D75*(1+D$79)) -> 11.30811703 | E83: =CHOOSE(E$80,E75+E$78,E75*(1+E$79)) -> 9.337649883 | F83: =CHOOSE(F$80,F75+F$78,F75*(1+F$79)) -> 9.142602227 | G83: 7.306533801 | H83: =CHOOSE(H$80,H75+H$78,H75*(1+H$79)) -> 7.137572783 | I83: =CHOOSE(I$80,I75+I$78,I75*(1+I$79)) -> 5.385942172 | J83: =CHOOSE(J$80,J75+J$78,J75*(1+J$79)) -> 4.357926274 | K83: =CHOOSE(K$80,K75+K$78,K75*(1+K$79)) -> 8.598535721 | P83: =0.75*P82 -> 0
B84: BLOCK 3 PER KWH | D84: =CHOOSE(D$80,D76+D$78,D76*(1+D$79)) -> 13.26026592 | E84: 0 | F84: =CHOOSE(F$80,F76+F$78,F76*(1+F$79)) -> 0 | G84: 0 | H84: =CHOOSE(H$80,H76+H$78,H76*(1+H$79)) -> 0 | I84: =CHOOSE(I$80,I76+I$78,I76*(1+I$79)) -> 4.411748604 | J84: =CHOOSE(J$80,J76+J$78,J76*(1+J$79)) -> 3.725961135 | K84: 0
A85: Input | B85: BLOCK 1 PER KWH | D85: =D82 -> 9.720779172 | E85: =E82 -> 12.70786806 | F85: =F82 -> 22.47154309 | G85: =G82 -> 8.166792645 | H85: 17.2917179 | I85: =I82 -> 5.987083468 | J85: 4.84304054 | K85: =K82-0.001 -> 12.03858763 | P85: =P82 -> 0
B86: BLOCK 2 PER KWH | D86: =D83-0.001 -> 11.30711703 | E86: =E83 -> 9.337649883 | F86: =F83 -> 9.142602227 | G86: =G83 -> 7.306533801 | H86: 7.137572783 | I86: 5.385942172 | J86: 4.357926274 | K86: =K83-0.001 -> 8.597535721 | M86: =I86-I85 -> -0.6011412964 | P86: =P83 -> 0 | Q86: =0.75*(Q85-Q74)+Q75 -> 0
B87: BLOCK 3 PER KWH | D87: =D84 -> 13.26026592 | E87: =E84 -> 0 | F87: =F84 -> 0 | G87: 0 | H87: =H84 -> 0 | I87: 4.411748604 | J87: =J84 -> 3.725961135 | K87: 0 | M87: =I87-I86 -> -0.9741935681 | P87: =P84 -> 0
B88: Blocks 1-3 Revenue | C88: =SUM(D88:L88) -> 516475189.9 | D88: =SUMPRODUCT(D50:D52,D85:D87)/100 -> 270131383.7 | E88: =SUMPRODUCT(E50:E52,E85:E87)/100 -> 75289046.82 | F88: 0 | G88: 106548080.7 | H88: 0 | I88: 30997411.46 | J88: 17613785.43 | K88: 15895481.83
B89: Adj. to Actual Revenue | C89: =SUM(D89:L89) -> 0 | D89: ='Pres & Prop Rev'!D181+'Pres & Prop Rev'!D178 -> 0 | E89: ='Pres & Prop Rev'!E181+'Pres & Prop Rev'!E178 -> 0 | F89: ='Pres & Prop Rev'!F181+'Pres & Prop Rev'!F178 -> 0 | G89: ='Pres & Prop Rev'!G181+'Pres & Prop Rev'!G178 -> 0 | H89: ='Pres & Prop Rev'!H181+'Pres & Prop Rev'!H178 -> 0 | I89: ='Pres & Prop Rev'!I181+'Pres & Prop Rev'!I178+'Pres & Prop Rev'!I174 -> 0 | J89: ='Pres & Prop Rev'!J181+'Pres & Prop Rev'!J178+'Pres & Prop Rev'!J174 -> 0 | K89: ='Pres & Prop Rev'!K181+'Pres & Prop Rev'!K178 -> 0
B90: Weather & U/B Revenue | C90: =SUM(D90:L90) -> -11248253.66 | D90: ='Pres & Prop Rev'!D202 -> -8466183.74 | E90: ='Pres & Prop Rev'!E202 -> -1173587.41 | F90: ='Pres & Prop Rev'!F202 -> 0 | G90: ='Pres & Prop Rev'!G202 -> -1512589.7 | H90: ='Pres & Prop Rev'!H202 -> 0 | I90: ='Pres & Prop Rev'!I202 -> 0 | J90: ='Pres & Prop Rev'!J202 -> 0 | K90: ='Pres & Prop Rev'!K202 -> -95892.81
B92: Revenue Remaining | C92: =IF(ROUND(C59-C64-C71-C72-SUM(C88:C90),3)<>ROUND(SUM(D92:L92),3),#VALUE!,SUM(D92:L92)) -> 16214.69799 | D92: =D59-D64-D71-D72-SUM(D88:D90) -> 10028.5992 | E92: =E59-E64-E71-E72-SUM(E88:E90) -> 1453.851851 | F92: 0 | G92: 2337.684625 | H92: =H59-H64-H71-H72-SUM(H88:H90) -> 0 | I92: 318.3617193 | J92: 168.2769088 | K92: 1907.923686 | M92: there will be some remainder in Schs. 21 & 25 because some components of their revenue don't change w/a rate change.
B93: Revenue Remaining - ¢/kWh | C93: =C92/C55*100 -> 0.0002885653941 | D93: =D92/D55*100 -> 0.0004012397211 | E93: 0.0002290239449 | F93: =F92/F55*100 ->  | G93: 0.0001797722892 | H93: =H92/H55*100 ->  | I93: 5.669927278e-05 | J93: =J92/J55*100 -> 3.660277481e-05 | K93: 0.001168520378
B94: check - < $6k is rounding | C94: =SUM(D94:L94) -> -7752.842926 | D94: =D59-'Pres & Prop Rev'!D204-D92 -> -2261.683326 | E94: =E59-'Pres & Prop Rev'!E204-E92 -> -1303.603846 | F94: =F59-'Pres & Prop Rev'!F204-F92 -> 0 | G94: =G59-'Pres & Prop Rev'!G204-G92 -> -3107.656154 | H94: =H59-'Pres & Prop Rev'!H204-H92 -> 0 | I94: =I59-'Pres & Prop Rev'!I204-I92 -> -147.0544 | J94: =J59-'Pres & Prop Rev'!J204-J92 -> -196.917 | K94: =K59-'Pres & Prop Rev'!K204-K92 -> -735.9282005
A95: =IF(Base1_Billing2=2,"MAKE SURE TO CHANGE Base1_Billing2 to '1' before designing Base Rates","") -> 
B96: Proposed Target | C96: =SUM(D96:L96) -> 593378710.8 | D96: =D59 -> 285809196.5 | E96: =E59 -> 86753893.56 | F96: 0 | G96: 139486069 | H96: 0 | I96: 42460823.95 | J96: =J59 -> 22430279.79 | K96: 16438447.95
B97: Proposed Actual | C97: =SUM(D97:L97) -> 593370248.9 | D97: ='Pres & Prop Rev'!D204 -> 285801429.6 | E97: ='Pres & Prop Rev'!E204 -> 86753743.31 | F97: ='Pres & Prop Rev'!F204 -> 0 | G97: ='Pres & Prop Rev'!G204 -> 139486838.9 | H97: ='Pres & Prop Rev'!H204 -> 0 | I97: ='Pres & Prop Rev'!I204 -> 42460652.65 | J97: ='Pres & Prop Rev'!J204 -> 22430308.43 | K97: ='Pres & Prop Rev'!K204 -> 16437275.95
C98: =SUM(D98:K98) -> -8461.855061 | D98: =D97-D96 -> -7766.915871 | E98: -150.2480053 | F98: 0 | G98: 769.9715293 | H98: 0 | I98: -171.3073193 | J98: 28.64009123 | K98: -1171.995486
B99: Rate D Check
B100: Basic Charge | C100: ='Pres & Prop Rev'!C164/'Pres & Prop Rev'!C111-1 -> 0 | D100: ='Pres & Prop Rev'!D164/'Pres & Prop Rev'!D111-1 -> 0 | E100: ='Pres & Prop Rev'!E164/'Pres & Prop Rev'!E111-1 -> 0 | F100: ='Pres & Prop Rev'!F164/'Pres & Prop Rev'!F111-1 ->  | G100: ='Pres & Prop Rev'!G164/'Pres & Prop Rev'!G111-1 ->  | H100: ='Pres & Prop Rev'!H164/'Pres & Prop Rev'!H111-1 ->  | I100: ='Pres & Prop Rev'!I164/'Pres & Prop Rev'!I111-1 ->  | J100: ='Pres & Prop Rev'!J164/'Pres & Prop Rev'!J111-1 ->  | K100: ='Pres & Prop Rev'!K164/'Pres & Prop Rev'!K111-1 -> 0
B101: Demand Charge | C101: =SUM('Pres & Prop Rev'!C170:C171)/SUM('Pres & Prop Rev'!C117:C118)-1 -> 2.48299159e-11 | D101: =SUM('Pres & Prop Rev'!D170:D171)/SUM('Pres & Prop Rev'!D117:D118)-1 ->  | E101: =SUM('Pres & Prop Rev'!E170:E171)/SUM('Pres & Prop Rev'!E117:E118)-1 -> 9.231082565e-10 | F101: =SUM('Pres & Prop Rev'!F170:F171)/SUM('Pres & Prop Rev'!F117:F118)-1 ->  | G101: =SUM('Pres & Prop Rev'!G170:G171)/SUM('Pres & Prop Rev'!G117:G118)-1 -> -1.120198379e-10 | H101: =SUM('Pres & Prop Rev'!H170:H171)/SUM('Pres & Prop Rev'!H117:H118)-1 ->  | I101: =SUM('Pres & Prop Rev'!I170:I171)/SUM('Pres & Prop Rev'!I117:I118)-1 -> 3.769233814e-10 | J101: =SUM('Pres & Prop Rev'!J170:J171)/SUM('Pres & Prop Rev'!J117:J118)-1 -> -4.83122875e-10 | K101: =SUM('Pres & Prop Rev'!K170:K171)/SUM('Pres & Prop Rev'!K117:K118)-1 -> 
B102: Adj. to Actual Revenue | C102: ='Pres & Prop Rev'!C181/'Pres & Prop Rev'!C128-1 ->  | D102: ='Pres & Prop Rev'!D181/'Pres & Prop Rev'!D128-1 ->  | E102: ='Pres & Prop Rev'!E181/'Pres & Prop Rev'!E128-1 ->  | F102: ='Pres & Prop Rev'!F181/'Pres & Prop Rev'!F128-1 ->  | G102: ='Pres & Prop Rev'!G181/'Pres & Prop Rev'!G128-1 ->  | H102: ='Pres & Prop Rev'!H181/'Pres & Prop Rev'!H128-1 ->  | I102: ='Pres & Prop Rev'!I181/'Pres & Prop Rev'!I128-1 ->  | J102: ='Pres & Prop Rev'!J181/'Pres & Prop Rev'!J128-1 ->  | K102: ='Pres & Prop Rev'!K181/'Pres & Prop Rev'!K128-1 -> 
B103: Weather & U/B Revenue | C103: ='Pres & Prop Rev'!C202/'Pres & Prop Rev'!C149-1 -> 0.02563405455 | D103: ='Pres & Prop Rev'!D202/'Pres & Prop Rev'!D149-1 -> 0.02469909364 | E103: ='Pres & Prop Rev'!E202/'Pres & Prop Rev'!E149-1 -> 0.02660311841 | F103: ='Pres & Prop Rev'!F202/'Pres & Prop Rev'!F149-1 ->  | G103: ='Pres & Prop Rev'!G202/'Pres & Prop Rev'!G149-1 -> 0.03028016475 | H103: ='Pres & Prop Rev'!H202/'Pres & Prop Rev'!H149-1 ->  | I103: ='Pres & Prop Rev'!I202/'Pres & Prop Rev'!I149-1 ->  | J103: ='Pres & Prop Rev'!J202/'Pres & Prop Rev'!J149-1 ->  | K103: ='Pres & Prop Rev'!K202/'Pres & Prop Rev'!K149-1 -> 0.02345499273
B104: Block Energy Charges | C104: =SUM('Pres & Prop Rev'!C166:C169)/SUM('Pres & Prop Rev'!C113:C116)-1 -> 0.02502373735 | D104: =SUM('Pres & Prop Rev'!D166:D169)/SUM('Pres & Prop Rev'!D113:D116)-1 -> 0.02473740476 | E104: =SUM('Pres & Prop Rev'!E166:E169)/SUM('Pres & Prop Rev'!E113:E116)-1 -> 0.02658438444 | F104: =SUM('Pres & Prop Rev'!F166:F169)/SUM('Pres & Prop Rev'!F113:F116)-1 ->  | G104: =SUM('Pres & Prop Rev'!G166:G169)/SUM('Pres & Prop Rev'!G113:G116)-1 -> 0.030280162 | H104: =SUM('Pres & Prop Rev'!H166:H169)/SUM('Pres & Prop Rev'!H113:H116)-1 ->  | I104: =SUM('Pres & Prop Rev'!I166:I169)/SUM('Pres & Prop Rev'!I113:I116)-1 -> 0.01373380817 | J104: =SUM('Pres & Prop Rev'!J166:J169)/SUM('Pres & Prop Rev'!J113:J116)-1 -> 0.01277596949 | K104: =SUM('Pres & Prop Rev'!K166:K169)/SUM('Pres & Prop Rev'!K113:K116)-1 -> 0.02345497858
B105: Overall Revenue | C105: ='Pres & Prop Rev'!C208 -> 0.02125220543 | D105: ='Pres & Prop Rev'!D208 -> 0.02260241908 | E105: ='Pres & Prop Rev'!E208 -> 0.02262410892 | F105: ='Pres & Prop Rev'!F208 ->  | G105: ='Pres & Prop Rev'!G208 -> 0.02263279867 | H105: ='Pres & Prop Rev'!H208 ->  | I105: ='Pres & Prop Rev'!I208 -> 0.009989058187 | J105: ='Pres & Prop Rev'!J208 -> 0.0100052144 | K105: ='Pres & Prop Rev'!K208 -> 0.02252561542
B107: Avg. Usage | D107: =D55/D56 -> 932.0734378 | E107: 1573.808251 | G107: 59263.45419 | I107: 2228141.727 | J107: 38311510 | K107: 5383.168575
B108: Bill Compare: | C108: =INDEX($D$2:$L$2,N108) -> SCH. 1,2 | F108: =INDEX($D$2:$L$2,O108) -> SCH. 11,12 | N108: 1 | O108: 2
B109: =IF(Base1_Billing2=2,"BILLING RATES","BASE RATES") -> BASE RATES | C109: Pres | D109: Prop | E109: % Incr | F109: Pres | G109: Prop | H109: % Incr
B110: 100
B111: 200
B112: 300
B113: 400
B114: 500
B115: 600
B116: 700
B117: 800
B118: 900
B119: 1000 | C119: =ROUND(D14+600*D15/100+400*D16/100,2) -> 99.72 | D119: =ROUND(D36+600*D37/100+400*D38/100,2) -> 102.22 | E119: =D119/C119-1 -> 0.02507019655 | F119: =D119-C119 -> 2.5
B120: 1100
B121: 1200
B122: 1300
B123: 1400
B124: 1500
D125: 2425727000 | E125: =395341000+52692000 -> 448033000
D126: =205474*12 -> 2465688 | E126: =(19967+8691)*12 -> 343896
D127: =D125/D126 -> 983.7931644 | E127: =E125/E126 -> 1302.815386

Sheet Att A pg 1
A1: AVISTA UTILITIES
A2: WASHINGTON ELECTRIC
A3: PROPOSED INCREASE BY SERVICE SCHEDULE
A4: 12 MONTHS ENDED SEPTEMBER 30, 2021
A5: (000s of Dollars)
A6: Rate Year 1
D8: Base Tariff | F8: Base Tariff | G8: Base | H8: Base Tariff | I8: Total Billed | K8: Adjusted Billed | L8: Base | M8: Sch 78 | O8: Percent | S8: Percent
D9: Revenue | E9: Proposed | F9: Revenue | G9: Tariff | H9: Percent | I9: Revenue | J9: Misc | K9: Revenue | L9: Rate | M9: Tax | N9: Total | O9: Increase | P9: Sch. 98 | Q9: Sch. 93 | R9: Proposed | S9: Increase
B10: Type of | C10: Schedule | D10: Under Present | E10: General | F10: Under Proposed | G10: Percent | H10: Change | I10: at Present | J10: Rate Adjustment | K10: at Present | L10: General | M10: Rate | N10: Net | O10: on Billed | P10: REC Revenue | Q10: ERM | R10: General | S10: on Billed
A11: No. | B11: Service | C11: Number | D11: Rates(1) | E11: Increase | F11: Rates(1) | G11: Increase | H11: from Sp Ct | I11: Rates (2) | J11: Change | K11: Rates (2) | L11: Increase | M11: Credit | N11: Impact | O11: Revenue | P11: Decrease | Q11: Increase | R11: Increase | S11: Revenue
B12: (a) | C12: (b) | D12: (c) | E12: (d) | F12: (e) | G12: (f) | H12: (i) | I12: (g) | J12: (h) | K12: (h) | L12: (h) | M12: (i) | N12: (j) | O12: (k) | P12: (j) | Q12: (k) | R12: (j) | S12: (k)
D13: =IF(Base1_Billing2<>1,"ERROR","") -> 
A14: 1 | B14: Residential | C14: 1/2 | D14: 253459.0899 | E14: 26025.31605 | F14: 279484.4059 | G14: 0.1026805393 | H14: 0.09311902738 | I14: 240021.7457 | J14: 0 | K14: 240021.7457 | L14: 26025.31605 | M14: -12722 | N14: 13303.31605 | O14: 0.05542546161 | P14: 0 | Q14: 0 | R14: 26025.31605 | S14: =L14/I14 -> 0.1084289925 | V14: =G14*2 -> 0.2053610787 | W14: LIRAP Increase
A16: 2 | B16: General Service | C16: 11/12 | D16: 81570.42638 | E16: 3263.813327 | F16: 84833.83971 | G16: 0.04001221364 | H16: 0.03847301193 | I16: 87406.54088 | J16: 0 | K16: 87406.54088 | L16: 3263.813327 | M16: 0 | N16: 3263.813327 | O16: 0.0373406074 | P16: 0 | Q16: 0 | R16: 3263.813327 | S16: =L16/I16 -> 0.0373406074
A18: 3 | B18: Transportation - General Service | C18: 13 | D18: 0 | E18: 0 | F18: 0 | G18: 0 | H18: 0.03847301193 | I18: 0 | J18: 0 | K18: 0 | L18: 0 | M18: 0 | N18: 0 | O18: 0 | Q18: 0 | R18: 0
R19: 0
A20: 3 | B20: Large General Service | C20: 21/22 | D20: 131152.6852 | E20: 5247.046103 | F20: 136399.7313 | G20: 0.04000715728 | H20: 0.03846815572 | I20: 142808.5055 | J20: 0 | K20: 142808.5055 | L20: 5247.046103 | M20: 0 | N20: 5247.046103 | O20: 0.03674183191 | P20: 0 | Q20: 0 | R20: 5247.046103 | S20: 0.03674183191
A22: 5 | B22: Transportation - Large General Service | C22: 23 | D22: 0 | E22: 0 | F22: 0 | G22: 0 | H22: 0.03846815572 | I22: 0 | J22: 0 | K22: 0 | L22: 0 | M22: 0 | N22: 0 | O22: 0 | Q22: 0 | R22: 0
R23: 0
A24: 4 | B24: Extra Large General Service | C24: 25 | D24: 41217.65624 | E24: 823.0493544 | F24: 42040.7056 | G24: 0.01996836864 | H24: 0.01957743912 | I24: 41422.0512 | J24: 0 | K24: 41422.0512 | L24: 823.0493544 | M24: 0 | N24: 823.0493544 | O24: 0.01986983576 | P24: 0 | Q24: 0 | R24: 823.0493544 | S24: 0.01986983576
A26: 5 | B26: Extra Large General Service - Special Contract | C26: 25I | D26: 21772.91244 | E26: 435.199067 | F26: 22208.11151 | G26: 0.01998809613 | H26: 0.01959640138 | I26: 22445.29772 | J26: 0 | K26: 22445.29772 | L26: 435.199067 | M26: 0 | N26: 435.199067 | O26: 0.01938932031 | P26: 0 | Q26: 0 | R26: 435.199067 | S26: 0.01938932031
A28: 6 | B28: Pumping Service | C28: 30/31/32 | D28: 14578.56552 | E28: 1496.60727 | F28: =16075.17279+0.4 -> 16075.57279 | G28: 0.1026580611 | H28: 0.09310054017 | I28: 15745.31949 | J28: 0 | K28: 15745.31949 | L28: 1496.60727 | M28: -732 | N28: 764.60727 | O28: 0.04856092443 | P28: 0 | Q28: 0 | R28: 1496.60727 | S28: 0.09505093057
A30: 7 | B30: Street & Area Lights | C30: 41-48 | D30: 6900.605642 | E30: 708.7722 | F30: =7609.377842328+0.2 -> 7609.577842 | G30: 0.1027115933 | H30: 0.09314456644 | I30: 7097.80042 | J30: 0 | K30: 7097.80042 | L30: 708.7722 | M30: -346 | N30: 362.7722 | O30: 0.05111051009 | P30: 0 | Q30: 0 | R30: 708.7722 | S30: 0.09985800643
A32: 8 | B32: Total | D32: 550651.9413 | E32: 37999.80337 | F32: 588651.7447 | G32: 0.06900875221 | I32: 556947.2609 | J32: 0 | K32: 556947.2609 | L32: 37999.80337 | M32: -13799.7 | N32: 24200.10337 | O32: 0.04345133745 | P32: 0 | Q32: 0 | R32: 37999.80337 | S32: 0.06822872836
A34: (1) Excludes all present rate adjustments: Schedule 59 (BPA Residential Exchange), Schedule 75 (Decoupling), Schedule 76 (Tax Credit)
A35: Scheduke 89 (Low Income Discount), Schedule 91 (DSM), Schedule 92 (LIRAP), Schedule 93 (ERM) and Schedule 98 (REC Revenue).
A37: (2) Includes all present rate adjustments: Schedule 59 (BPA Residential Exchange), Schedule 75 (Decoupling), Schedule 76 (Tax Credit)
A38: Scheduke 89 (Low Income Discount), Schedule 91 (DSM), Schedule 92 (LIRAP), Schedule 93 (ERM) and Schedule 98 (REC Revenue).
A40: Rate Year 2
D41: Base Tariff | F41: Base Tariff | G41: Base | H41: Base Tariff | I41: Total Billed | K41: Adjusted Billed | L41: Base | M41: Sch 78 | O41: Percent | S41: Percent | W41: Percent | X41: Total Billed
D42: Revenue | E42: Proposed | F42: Revenue | G42: Tariff | H42: Percent | I42: Revenue | J42: Misc | K42: Revenue | L42: Rate | M42: Tax | N42: Total | O42: Increase | P42: Sch. 98 | Q42: Sch. 93 | R42: Proposed | S42: Increase | W42: Increase | X42: Revenue
B43: Type of | C43: Schedule | D43: Under Present | E43: General | F43: Under Proposed | G43: Percent | H43: Change | I43: at Present | J43: Rate Adjustment | K43: at Present | L43: General | M43: Rate | N43: Net | O43: on Billed | P43: REC Revenue | Q43: ERM | R43: General | S43: on Billed | W43: on Base | X43: at Proposed
A44: No. | B44: Service | C44: Number | D44: Rates(1) | E44: Increase | F44: Rates(1) | G44: Increase | H44: from Sp Ct | I44: Rates (2) | J44: Change | K44: Rates (2) | L44: Increase | M44: Credit | N44: Impact | O44: Revenue | P44: Decrease | Q44: Increase | R44: Increase | S44: Revenue | W44: Revenue | X44: Rates (2) | Z44: GRC | AA44: Tax | AB44: LIRAP
B45: (a) | C45: (b) | D45: (c) | E45: (d) | F45: (e) | G45: (f) | H45: (i) | I45: (g) | J45: (h) | K45: (h) | L45: (h) | M45: (i) | N45: (j) | O45: (k) | P45: (j) | Q45: (k) | R45: (j) | S45: (k) | U45: ="col (m) source" -> col (m) source
D46: =IF(Base1_Billing2<>1,"ERROR","") -> 
A47: 1 | B47: Residential | C47: 1/2 | D47: ='Pres & Prop Rev'!$D$152/1000 -> 279484.4059 | E47: ='Pres & Prop Rev'!D207/1000+0.5 -> 6317.52367 | F47: =D47+E47 -> 285801.9296 | G47: =E47/D47 -> 0.02260420809 | H47: =E47/F47 -> 0.02210455219 | I47: =I14+N14 -> 253325.0617 | J47: 0 | K47: =I47+J47 -> 253325.0617 | L47: =E47 -> 6317.52367 | M47: 0 | N47: =L47+M47 -> 6317.52367 | O47: =(L47+M47)/K47 -> 0.0249384077 | P47: 0 | Q47: =('Pres & Prop Rev'!D23*(0))/1000 -> 0 | R47: =E47+Q47 -> 6317.52367 | S47: =(R47)/I47 -> 0.0249384077 | U47: from Pres & Prop Rev tab | W47: =(L47)/D47 -> 0.02260420809 | X47: =I47+L47+M47 -> 259642.5854 | Z47: =L47/I47 -> 0.0249384077 | AA47: =M47/I47 -> 0 | AB47: 0
A49: 2 | B49: General Service | C49: 11/12 | D49: ='Pres & Prop Rev'!$E$152/1000-0.2 -> 84834.23971 | E49: ='Pres & Prop Rev'!E207/1000 -> 1919.303604 | F49: =D49+E49-0.2 -> 86753.34331 | G49: =E49/D49 -> 0.02262416225 | H49: =E49/F49 -> 0.02212368458 | I49: =I16+N16 -> 90670.35421 | J49: 0 | K49: =I49+J49 -> 90670.35421 | L49: =E49 -> 1919.303604 | M49: 0 | N49: =L49+M49 -> 1919.303604 | O49: =(L49+M49)/K49 -> 0.02116792882 | P49: 0 | Q49: =('Pres & Prop Rev'!E23*(0))/1000 -> 0 | R49: =E49+Q49 -> 1919.303604 | S49: =(R49)/I49 -> 0.02116792882 | U49: from below | W49: =(L49)/D49 -> 0.02262416225 | X49: =I49+L49+M49 -> 92589.65782 | Z49: =L49/I49 -> 0.02116792882 | AA49: =M49/I49 -> 0 | AB49: 0
A51: 3 | B51: Transportation - General Service | C51: 13 | D51: ='Pres & Prop Rev'!$F$152/1000 -> 0 | E51: ='Pres & Prop Rev'!F207/1000 -> 0 | F51: =D51+E51 -> 0 | G51: 0 | H51: =IF(F51=0,H49,E51/F51) -> 0.02212368458 | I51: =I18+N18 -> 0 | J51: 0 | K51: =I51+J51 -> 0 | L51: =E51 -> 0 | M51: 0 | N51: =L51+M51 -> 0 | O51: 0 | P51: =#REF!/1000 ->  | Q51: =('Pres & Prop Rev'!G21*(0))/1000 -> 0 | R51: 0 | S51: =IF(I51=0,0,(R51)/I51) -> 0 | U51: from below | X51: 0 | AB51: =IF(K51=0,0,M51/K51) -> 0
I52: =I19+N19 -> 0 | R52: 0 | X52: 0
A53: 3 | B53: Large General Service | C53: 21/22 | D53: ='Pres & Prop Rev'!$G$152/1000 -> 136399.7313 | E53: ='Pres & Prop Rev'!G207/1000 -> 3087.107656 | F53: =D53+E53+0.2 -> 139487.0389 | G53: =E53/D53 -> 0.02263279867 | H53: =E53/F53 -> 0.02213186028 | I53: =I20+N20 -> 148055.5516 | J53: 0 | K53: 148055.5516 | L53: =E53 -> 3087.107656 | M53: 0 | N53: =L53+M53 -> 3087.107656 | O53: =(L53+M53)/K53 -> 0.02085100912 | P53: 0 | Q53: =('Pres & Prop Rev'!G23*(0))/1000 -> 0 | R53: 3087.107656 | S53: =(R53)/I53 -> 0.02085100912 | U53: from below | W53: 0.02263279867 | X53: 151142.6592 | Z53: 0.02085100912 | AA53: 0 | AB53: 0
A55: 5 | B55: Transportation - Large General Service | C55: 23 | D55: ='Pres & Prop Rev'!$H$152/1000 -> 0 | E55: ='Pres & Prop Rev'!H207/1000 -> 0 | F55: =D55+E55 -> 0 | G55: 0 | H55: =IF(F55=0,H53,E55/F55) -> 0.02213186028 | I55: =I22+N22 -> 0 | J55: 0 | K55: =I55+J55 -> 0 | L55: =E55 -> 0 | M55: 0 | N55: =L55+M55 -> 0 | O55: 0 | P55: =#REF!/1000 ->  | Q55: =('Pres & Prop Rev'!G25*(0))/1000 -> 0 | R55: 0 | S55: =IF(I55=0,0,(R55)/I55) -> 0 | U55: from below | X55: 0 | AB55: =IF(K55=0,0,M55/K55) -> 0
I56: =I23+N23 -> 0 | R56: 0 | X56: 0
A57: 4 | B57: Extra Large General Service | C57: 25 | D57: ='Pres & Prop Rev'!$I$152/1000 -> 42040.70559 | E57: ='Pres & Prop Rev'!I207/1000 -> 419.9470544 | F57: =D57+E57+0.2 -> 42460.85265 | G57: =E57/D57 -> 0.009989058187 | H57: =E57/F57 -> 0.009890217182 | I57: =I24+N24 -> 42245.10056 | J57: 0 | K57: 42245.10056 | L57: =E57 -> 419.9470544 | M57: 0 | N57: =L57+M57 -> 419.9470544 | O57: =(L57+M57)/K57 -> 0.00994072801 | P57: 0 | Q57: =('Pres & Prop Rev'!I23*(0))/1000 -> 0 | R57: 419.9470544 | S57: =(R57)/I57 -> 0.00994072801 | U57: from Pres & Prop Rev tab | W57: 0.009989058187 | X57: 42665.04761 | Z57: 0.00994072801 | AA57: 0 | AB57: 0
A59: 5 | B59: Extra Large General Service - Special Contract | C59: 25I | D59: ='Pres & Prop Rev'!$J$152/1000 -> 22208.11151 | E59: ='Pres & Prop Rev'!J207/1000-0.6 -> 221.596917 | F59: =D59+E59+0.2 -> 22429.90843 | G59: =E59/D59 -> 0.009978197241 | H59: =E59/F59 -> 0.009879528385 | I59: =I26+N26 -> 22880.49679 | J59: 0 | K59: =I59+J59 -> 22880.49679 | L59: =E59 -> 221.596917 | M59: 0 | N59: =L59+M59 -> 221.596917 | O59: =(L59+M59)/K59 -> 0.009684969651 | P59: 0 | Q59: =('Pres & Prop Rev'!I25*(0))/1000 -> 0 | R59: 221.596917 | S59: =IF(I59=0,0,(R59)/I59) -> 0.009684969651 | U59: from Pres & Prop Rev tab | W59: 0.009978197241 | X59: 23102.09371 | Z59: 0.009684969651 | AA59: 0 | AB59: 0
A61: 6 | B61: Pumping Service | C61: 30/31/32 | D61: ='Pres & Prop Rev'!$K$152/1000+0.4 -> 16075.57279 | E61: ='Pres & Prop Rev'!K207/1000 -> 362.10316 | F61: =D61+E61 -> 16437.67595 | G61: =E61/D61 -> 0.02252505492 | H61: =E61/F61 -> 0.02202885378 | I61: =I28+N28 -> 16509.92676 | J61: 0 | K61: 16509.92676 | L61: =E61 -> 362.10316 | M61: 0 | N61: =L61+M61 -> 362.10316 | O61: =(L61+M61)/K61 -> 0.02193245101 | P61: 0 | Q61: =('Pres & Prop Rev'!K23*(0))/1000 -> 0 | R61: 362.10316 | S61: =(R61)/I61 -> 0.02193245101 | U61: from below | W61: 0.02252505492 | X61: 16872.02992 | Z61: 0.02193245101 | AA61: 0 | AB61: 0
A63: 7 | B63: Street & Area Lights | C63: 41-48 | D63: ='Pres & Prop Rev'!$L$152/1000+0.2 -> 7163.702482 | E63: ='Pres & Prop Rev'!L207/1000-0.1 -> 172.89416 | F63: =D63+E63 -> 7336.596642 | G63: =E63/D63 -> 0.02413474882 | H63: =E63/F63 -> 0.02356598958 | I63: =I30+N30 -> 7460.57262 | J63: 0 | K63: =I63+J63 -> 7460.57262 | L63: =E63 -> 172.89416 | M63: 0 | N63: =L63+M63 -> 172.89416 | O63: =(L63+M63)/K63 -> 0.02317438202 | P63: 0 | Q63: =('Pres & Prop Rev'!L23*(0))/1000 -> 0 | R63: 172.89416 | S63: =(R63)/I63 -> 0.02317438202 | U63: from Pres & Prop Rev tab | W63: 0.02413474882 | X63: 7633.46678 | Z63: 0.02317438202 | AA63: 0 | AB63: 0
A65: 8 | B65: Total | D65: =SUM(D47:D63)-0.3 -> 588206.1693 | E65: =SUM(E47:E63) -> 12500.47622 | F65: =SUM(F47:F63)-0.4 -> 600706.9455 | G65: =E65/D65 -> 0.0212518618 | I65: =SUM(I47:I63) -> 581147.0642 | J65: =SUM(J47:J63) -> 0 | K65: 581147.0642 | L65: =E65 -> 12500.47622 | M65: =SUM(M47:M63) -> 0 | N65: =L65+M65 -> 12500.47622 | O65: =(L65+M65)/K65 -> 0.02151000494 | P65: 0 | Q65: =SUM(Q47:Q63) -> 0 | R65: 12500.47622 | S65: =(R65)/I65 -> 0.02151000494 | U65: from below | W65: 0.0212518618 | X65: 593647.5405 | Z65: 0.02151000494 | AA65: 0 | AB65: 0
A68: (1) Excludes all present rate adjustments: Schedule 59 (BPA Residential Exchange), Schedule 75 (Decoupling), Schedule 76 (Tax Credit)
A69: Scheduke 89 (Low Income Discount), Schedule 91 (DSM), Schedule 92 (LIRAP), Schedule 93 (ERM) and Schedule 98 (REC Revenue).
A71: (2) Includes all present rate adjustments: Schedule 59 (BPA Residential Exchange), Schedule 75 (Decoupling), Schedule 76 (Tax Credit)
A72: Scheduke 89 (Low Income Discount), Schedule 91 (DSM), Schedule 92 (LIRAP), Schedule 93 (ERM) and Schedule 98 (REC Revenue).
S74: Street and Area Light Reconciliation
B75: reduce billed revenue for BPA ResEx (already accounted for in Schs 1 & 48) | S75: 7610000 | T75: Rate Year 1 Final
F76: Billing | I76: Billed Revenue | S76: -445000 | T76: Colstrip Schedule 99
F77: Determinants | I77: Impact | S77: =SUM(S75:S76) -> 7165000 | T77: Rate Year 1 Revised
B78: Schedule 12 only | F78: ='REVRUNS 12ME0921'!P119 -> 62671685.55 | I78: =F78*-0.00417/1000 -> -261.3409287 | L78: Manually deducted in Column K
B79: Schedule 22 only | F79: ='REVRUNS 12ME0921'!P164 -> 31707816.12 | I79: =F79*-0.00417/1000 -> -132.2215932 | L79: Manually deducted in Column K | S79: 7610000 | T79: Rate Year 1 Final
B80: Schedule 32 only | F80: ='REVRUNS 12ME0921'!P249 -> 10862713.72 | I80: =F80*-0.00417/1000 -> -45.29751619 | L80: Manually deducted in Column K | S80: -445000 | T80: Colstrip Schedule 99
B81: Schedule 48 only | F81: ='REVRUNS 12ME0921'!P313 -> 2284668.126 | I81: =F81*-0.00417/1000 -> -9.527066084 | S81: 172000 | T81: Rate Year 2 Stip Increase
B82: Total | F82: =SUM(F78:F81) -> 107526883.5 | I82: =SUM(I78:I81) -> -448.3871042 | S82: =SUM(S79:S81) -> 7337000 | T82: Rate Year 2 Revised
B84: Schedule 98 (REC Revenue Rebate) | S84: 7782000 | T84: Rate Year 2 Stip
B85: Schedule 41-48 only | F85: ='REVRUNS 12ME0921'!P341 -> 16979796.48 | I85: =F85*-0.00018/1000 -> -3.056363367 | S85: =S80 -> -445000 | T85: Colstrip
S86: =SUM(S84:S85) -> 7337000 | T86: Rate Year 2 Revised
B87: Schedule 92 (LIRAP)
B88: Schedule 41-48 only | F88: ='Lighting summary'!D19 -> 7163502.482 | I88: =F88*0.0179/1000 -> 128.2266944
B90: Schedule 93 (ERM)
B91: Schedule 41-48 only | F91: ='REVRUNS 12ME0921'!P341 -> 16979796.48 | I91: =F91*-0.0061/1000 -> -103.5767585
B93: Schedule 94 (Remand)
B94: Schedule 41-48 only | F94: ='REVRUNS 12ME0921'!P341 -> 16979796.48 | I94: =F94*0 -> 0
B96: Schedule 91 (DSM)
B97: Schedule 41-48 only | F97: ='REVRUNS 12ME0921'!P341 -> 16979796.48 | I97: =F97*0.01118/1000 -> 189.8341247
P98: ERM Reduction Calc
B100: Schedule 2 only | F100: ='REVRUNS 12ME0921'!P89 -> 6943426.9 | I100: =F100*-0.03064/1000 -> -212.7466002 | L100: Manually deducted in Column K
B104: Schedule 41-48 only Total | I104: =I81+I85+I97+I94+I91+I88 -> 201.9006311 | L104: Manually deducted in Column K
N108: 0 | O108: 1 | P108: =-D47*$N$109 -> 0 | R108: =0/'Pres & Prop Rev'!D23 -> 0 | S108: =(D47/$D$65)*$P$114 -> 0
N109: =N108/D65 -> 0 | O109: 11 | P109: =-D49*N109 -> 0 | S109: =(D49/$D$65)*$P$114 -> 0
O110: 21 | P110: =-D53*N109 -> 0 | S110: =(D53/$D$65)*$P$114 -> 0
O111: 25 | P111: =-D57*N109 -> 0 | S111: =(D57/$D$65)*$P$114 -> 0
O112: 31 | P112: =-D61*N109 -> 0 | S112: =(D61/$D$65)*$P$114 -> 0
O113: 41-48 | P113: =-D63*N109 -> 0 | S113: =(D63/$D$65)*$P$114 -> 0
P114: =SUM(P108:P113) -> 0 | S114: =SUM(S108:S113) -> 0

Sheet Att A pg 3
A1: AVISTA UTILITIES | W1: This worksheet uses Base & Billing rates from 'Rate Design' tab.
A2: WASHINGTON ELECTRIC
A3: PRESENT AND PROPOSED RATE COMPONENTS BY SCHEDULE
A4: RATE YEAR 2
G6: Misc | J6: General | K6: Sch. 92 | L6: Sch. 78 | M6: Proposed | N6: Proposed | O6: Sch. 98 | P6: Sch. 93/94 | Q6: Proposed Billing | R6: Sch. 99 | S6: Revised
D7: Base Tariff | E7: Present | F7: Present | G7: Rate | H7: Adjusted | J7: Rate | K7: LIRAP Rate | L7: Tax | M7: Billing | N7: Base Tariff | O7: REC Revenue | P7: ERM/BPA | Q7: Rate With | R7: Colstrip | S7: Base Tariff
A8: Type of Service | D8: Sch. Rate | E8: Other Adj.(1) | F8: Billing Rate | G8: Adjustment | H8: Billing Rate | J8: Inc/Dec | K8: Increase | L8: Credit | M8: Rate | N8: Rate | O8: Decrease | P8: Increase | Q8: ERM Decrease (2) | R8: Rates | S8: Rate | V8: non-printing | Y8: Present | Z8: Proposed | AA8: Proposed
B9: (a) | D9: (b) | E9: (c) | F9: (d) | G9: (e) | H9: (e) | J9: (e) | K9: (f) | L9: (f) | M9: (g) | N9: (h) | O9: (h) | P9: (i) | Q9: (j) | R9: (i) | S9: (j) | V9: Base | W9: Billing | Y9: Billing | Z9: Base | AA9: Billing
A10: Residential Service - Schedule 1
A11: Basic Charge | D11: ='Rate Design'!D4 -> 9 | E11: =F11-D11 -> 0 | F11: ='Rate Design'!D14 -> 9 | J11: =IF(ROUND(M11-F11,5)<>ROUND(N11-D11,5),#VALUE!,N11-D11) -> 0 | M11: ='Rate Design'!D36 -> 9 | N11: ='Rate Design'!D26 -> 9 | Q11: =N11 -> 9 | S11: =Q11 -> 9 | V11: =J11/D11 -> 0 | W11: =J11/F11 -> 0
A12: Energy Charge:
A13: ="First "&TEXT('Rate Design'!Q5,"#,##0")&" kWhs" -> First 800 kWhs | D13: ='Rate Design'!D5/100 -> 0.09486 | E13: =F13-D13 -> -0.01006 | F13: ='Rate Design'!D15/100 -> 0.0848 | H13: =F13+G13 -> 0.0848 | J13: =N13-D13 -> 0.00235 | K13: 0 | L13: 0 | M13: =F13+J13+K13+L13 -> 0.08715 | N13: ='Rate Design'!D27/100 -> 0.09721 | O13: =#REF! ->  | P13: =0.00164+0.00083 -> 0.00247 | Q13: =M13+O13+P13 ->  | R13: -0.006536506189 | S13: =N13+R13 -> 0.09067349381 | T13: =S13-R13-N13 -> 0 | V13: =J13/D13 -> 0.0247733502 | W13: =(J13+L13)/F13 -> 0.02771226415 | Y13: =D13+E13-F13 -> 0 | Z13: =D13+J13-N13 -> 0 | AA13: =F13+G13+J13+K13+L13-M13 -> 0
A14: =TEXT('Rate Design'!Q5,"#,##0")&" - "&TEXT('Rate Design'!Q6,"#,##0")&" kWhs" -> 800 - 1,500 kWhs | D14: ='Rate Design'!D6/100 -> 0.11035 | E14: =F14-D14 -> -0.01074 | F14: ='Rate Design'!D16/100 -> 0.09961 | H14: =F14+G14 -> 0.09961 | J14: =N14-D14 -> 0.00272 | K14: =K13 -> 0 | L14: =L13 -> 0 | M14: =F14+J14+K14+L14 -> 0.10233 | N14: ='Rate Design'!D28/100 -> 0.11307 | O14: =O13 ->  | P14: =P13 -> 0.00247 | Q14: =M14+O14 ->  | R14: -0.006536506189 | S14: =N14+R14 -> 0.1065334938 | T14: =S14-R14-N14 -> 0 | V14: =J14/D14 -> 0.02464884459 | W14: =(J14+L14)/F14 -> 0.02730649533 | Y14: =D14+E14-F14 -> 0 | Z14: =D14+J14-N14 -> 0 | AA14: =F14+G14+J14+K14+L14-M14 -> 0
A15: ="All over "&TEXT('Rate Design'!Q6,"#,##0")&" kWhs" -> All over 1,500 kWhs | D15: ='Rate Design'!D7/100 -> 0.1294 | E15: =F15-D15 -> -0.01158 | F15: ='Rate Design'!D17/100 -> 0.11782 | H15: =F15+G15 -> 0.11782 | J15: =N15-D15 -> 0.0032 | K15: =K13 -> 0 | L15: =L13 -> 0 | M15: =F15+J15+K15+L15 -> 0.12102 | N15: ='Rate Design'!D29/100 -> 0.1326 | O15: =O13 ->  | P15: =P13 -> 0.00247 | Q15: =M15+O15 ->  | R15: -0.006536506189 | S15: 0.1260634938 | T15: =S15-R15-N15 -> 0 | V15: =J15/D15 -> 0.02472952087 | W15: 0.02716007469 | Y15: =D15+E15-F15 -> 0 | Z15: =D15+J15-N15 -> 0 | AA15: =F15+G15+J15+K15+L15-M15 -> 0
A17: General Services - Schedule 11
A18: Basic Charge | D18: ='Rate Design'!E4 -> 21 | E18: =F18-D18 -> 0 | F18: ='Rate Design'!E14 -> 21 | J18: =IF(ROUND(M18-F18,5)<>ROUND(N18-D18,5),#VALUE!,N18-D18) -> 0 | M18: ='Rate Design'!E36 -> 21 | N18: ='Rate Design'!E26 -> 21 | Q18: =N18 -> 21 | S18: =Q18 -> 21 | T18: =S18-R18-N18 -> 0 | V18: =J18/D18 -> 0 | W18: =J18/F18 -> 0
A19: Energy Charge:
A20: ="First "&TEXT('Rate Design'!R5,"#,##0")&" kWhs" -> First 3,650 kWhs | D20: ='Rate Design'!E5/100 -> 0.12379 | E20: =F20-D20 -> 0.0094 | F20: ='Rate Design'!E15/100 -> 0.13319 | H20: =F20+G20 -> 0.13319 | J20: =N20-D20 -> 0.00329 | K20: 0 | L20: 0 | M20: =F20+J20+K20+L20 -> 0.13648 | N20: ='Rate Design'!E27/100 -> 0.12708 | O20: =O13 ->  | P20: =P13 -> 0.00247 | Q20: =M20+O20 ->  | R20: -0.003227543229 | S20: =N20+R20 -> 0.1238524568 | T20: =S20-R20-N20 -> 0 | V20: =J20/D20 -> 0.02657726795 | W20: =(J20+L20)/F20 -> 0.02470155417 | Y20: =D20+E20-F20 -> 0 | Z20: =D20+J20-N20 -> 0 | AA20: =F20+G20+J20+K20+L20-M20 -> 0
A21: ="All over "&TEXT('Rate Design'!R5,"#,##0")&" kWhs" -> All over 3,650 kWhs | D21: ='Rate Design'!E6/100 -> 0.09096 | E21: =F21-D21 -> 0.01007 | F21: ='Rate Design'!E16/100 -> 0.10103 | H21: =F21+G21 -> 0.10103 | J21: =N21-D21 -> 0.00242 | K21: =K20 -> 0 | L21: =L20 -> 0 | M21: =F21+J21+K21+L21 -> 0.10345 | N21: ='Rate Design'!E28/100 -> 0.09338 | O21: =O20 ->  | P21: =P20 -> 0.00247 | Q21: =M21+O21 ->  | R21: -0.003227543229 | S21: =N21+R21 -> 0.09015245677 | T21: =S21-R21-N21 -> 0 | V21: =J21/D21 -> 0.02660510114 | W21: =(J21+L21)/F21 -> 0.0239532812 | Y21: =D21+E21-F21 -> 0 | Z21: =D21+J21-N21 -> 0 | AA21: =F21+G21+J21+K21+L21-M21 -> 0
A22: Demand Charge:
A23: =TEXT('Rate Design'!R10,"#,##0")&" kW or less" -> 20 kW or less | D23: no charge | F23: no charge | J23: no charge | N23: no charge | Q23: no charge | S23: no charge
A24: ="Over "&TEXT('Rate Design'!R10,"#,##0")&" kW" -> Over 20 kW | D24: ='Rate Design'!E10 -> 7.5 | E24: =F24-D24 -> 0 | F24: ='Rate Design'!E20 -> 7.5 | J24: =IF(ROUND(M24-F24,5)<>ROUND(N24-D24,5),#VALUE!,N24-D24) -> 0 | M24: ='Rate Design'!E42 -> 7.5 | N24: ='Rate Design'!E32 -> 7.5 | Q24: ='Rate Design'!E32 -> 7.5 | S24: =N24 -> 7.5 | V24: =J24/D24 -> 0 | W24: =J24/F24 -> 0
A25: Minimums: | D25: $21.00 Single Phase Service | M25: $21.00 Single Phase Service
D26: $28.35 Three Phase Service | M26: $28.35 Three Phase Service
A28: Transportation General Services - Schedule 13
A29: Basic Charge | D29: ='Rate Design'!F4 -> 21 | E29: =F29-D29 -> 0 | F29: ='Rate Design'!F14 -> 21 | J29: =IF(ROUND(M29-F29,5)<>ROUND(N29-D29,5),#VALUE!,N29-D29) -> 0 | M29: ='Rate Design'!F36 -> 21 | N29: ='Rate Design'!F26 -> 21 | Q29: =N29 -> 21 | S29: =Q29 -> 21 | T29: =S29-R29-N29 -> 0 | V29: =J29/D29 -> 0 | W29: =J29/F29 -> 0
A30: Energy Charge:
A31: On-Peak | D31: ='Rate Design'!F5/100 -> 0.2189 | E31: =F31-D31 -> 0.0094 | F31: ='Rate Design'!F15/100 -> 0.2283 | H31: =F31+G31 -> 0.2283 | J31: =N31-D31 -> 0.00582 | K31: 0 | L31: 0 | M31: =F31+J31+K31+L31 -> 0.23412 | N31: ='Rate Design'!F27/100 -> 0.22472 | O31: =O24 -> 0 | P31: =P24 -> 0 | Q31: =M31+O31 -> 0.23412 | R31: -0.003227543229 | S31: =N31+R31 -> 0.2214924568 | T31: =S31-R31-N31 -> 0 | V31: =J31/D31 -> 0.02658748287 | W31: =(J31+L31)/F31 -> 0.02549277267 | Y31: =D31+E31-F31 -> 0 | Z31: =D31+J31-N31 -> 0 | AA31: =F31+G31+J31+K31+L31-M31 -> 0
A32: Off-Peak | D32: ='Rate Design'!F6/100 -> 0.08906 | E32: =F32-D32 -> 0.01007 | F32: ='Rate Design'!F16/100 -> 0.09913 | H32: =F32+G32 -> 0.09913 | J32: =N32-D32 -> 0.00237 | K32: =K31 -> 0 | L32: =L31 -> 0 | M32: =F32+J32+K32+L32 -> 0.1015 | N32: ='Rate Design'!F28/100 -> 0.09143 | O32: =O31 -> 0 | P32: =P31 -> 0 | Q32: =M32+O32 -> 0.1015 | R32: -0.003227543229 | S32: =N32+R32 -> 0.08820245677 | T32: =S32-R32-N32 -> 0 | V32: =J32/D32 -> 0.0266112733 | W32: =(J32+L32)/F32 -> 0.0239079996 | Y32: =D32+E32-F32 -> 0 | Z32: =D32+J32-N32 -> 0 | AA32: =F32+G32+J32+K32+L32-M32 -> 0
A33: Minimums: | D33: $21.00 Single Phase Service | M33: $21.00 Single Phase Service
D34: $28.35 Three Phase Service | M34: $28.35 Three Phase Service
A36: Large General Service - Schedule 21
A37: Energy Charge:
A38: ="First "&TEXT('Rate Design'!T5,"#,##0")&" kWhs" -> First 250,000 kWhs | D38: ='Rate Design'!G5/100 -> 0.07927 | E38: =F38-D38 -> 0.00904 | F38: ='Rate Design'!G15/100 -> 0.08831 | H38: =F38+G38 -> 0.08831 | J38: =N38-D38 -> 0.0024 | K38: 0 | L38: 0 | M38: =F38+J38+K38+L38 -> 0.09071 | N38: ='Rate Design'!G27/100 -> 0.08167 | O38: =O13 ->  | P38: =P13 -> 0.00247 | Q38: =M38+O38 ->  | R38: -0.002533014803 | S38: =N38+R38 -> 0.0791369852 | T38: =S38-R38-N38 -> 0 | V38: =J38/D38 -> 0.03027627097 | W38: =(J38+L38)/F38 -> 0.02717699015 | Y38: =D38+E38-F38 -> 0 | Z38: =D38+J38-N38 -> 0 | AA38: =F38+G38+J38+K38+L38-M38 -> 0
A39: ="All over "&TEXT('Rate Design'!T5,"#,##0")&" kWhs" -> All over 250,000 kWhs | D39: ='Rate Design'!G6/100 -> 0.07092 | E39: =F39-D39 -> 0.00923 | F39: ='Rate Design'!G16/100 -> 0.08015 | H39: =F39+G39 -> 0.08015 | J39: =N39-D39 -> 0.00215 | K39: =K38 -> 0 | L39: =L38 -> 0 | M39: =F39+J39+K39+L39 -> 0.0823 | N39: ='Rate Design'!G28/100 -> 0.07307 | O39: =O38 ->  | P39: =P38 -> 0.00247 | Q39: =M39+O39 ->  | R39: -0.002533014803 | S39: =N39+R39 -> 0.0705369852 | T39: =S39-R39-N39 -> 0 | V39: =J39/D39 -> 0.03031584884 | W39: =(J39+L39)/F39 -> 0.02682470368 | Y39: =D39+E39-F39 -> 0 | Z39: =D39+J39-N39 -> 0 | AA39: =F39+G39+J39+K39+L39-M39 -> 0
A40: Demand Charge:
A41: =TEXT('Rate Design'!T10,"#,##0")&" kW or less" -> 50 kW or less | D41: ='Rate Design'!G9 -> 600 | E41: =F41-D41 -> 0 | F41: ='Rate Design'!G19 -> 600 | J41: =IF(ROUND(M41-F41,5)<>ROUND(N41-D41,5),#VALUE!,N41-D41) -> 0 | M41: ='Rate Design'!G41 -> 600 | N41: ='Rate Design'!G31 -> 600 | Q41: =N41 -> 600 | S41: =Q41 -> 600 | T41: =S41-R41-N41 -> 0 | V41: =J41/D41 -> 0 | W41: =J41/F41 -> 0
A42: ="Over "&TEXT('Rate Design'!T10,"#,##0")&" kW" -> Over 50 kW | D42: ='Rate Design'!G10 -> 7.5 | E42: =F42-D42 -> 0 | F42: ='Rate Design'!G20 -> 7.5 | J42: =IF(ROUND(M42-F42,5)<>ROUND(N42-D42,5),#VALUE!,N42-D42) -> 0 | M42: ='Rate Design'!G42 -> 7.5 | N42: ='Rate Design'!G32 -> 7.5 | Q42: ='Rate Design'!G32 -> 7.5 | S42: =N42 -> 7.5 | T42: =S42-R42-N42 -> 0 | V42: =J42/D42 -> 0 | W42: =J42/F42 -> 0
A43: Primary Voltage Discount | D43: 0.2 | E43: =F43-D43 -> 0 | F43: 0.2 | J43: =IF(ROUND(M43-F43,5)<>ROUND(N43-D43,5),#VALUE!,N43-D43) -> 0 | M43: 0.2 | N43: 0.2 | Q43: 0.2 | S43: 0.2 | T43: =S43-R43-N43 -> 0 | V43: =J43/D43 -> 0 | W43: =J43/F43 -> 0
A45: Transportation Large General Service - Schedule 23
A46: Basic Charge | D46: ='Rate Design'!H4 -> 600 | E46: =F46-D46 -> 0 | F46: ='Rate Design'!H14 -> 600 | J46: =IF(ROUND(M46-F46,5)<>ROUND(N46-D46,5),#VALUE!,N46-D46) -> 0 | M46: ='Rate Design'!H36 -> 600 | N46: ='Rate Design'!H26 -> 600 | Q46: =N46 -> 600 | S46: =Q46 -> 600 | T46: =S46-R46-N46 -> 0 | V46: =J46/D46 -> 0 | W46: =J46/F46 -> 0
A47: Energy Charge:
A48: On-Peak | D48: ='Rate Design'!H5/100 -> 0.16784 | E48: =F48-D48 -> 0.00904 | F48: ='Rate Design'!H15/100 -> 0.17688 | H48: =F48+G48 -> 0.17688 | J48: =N48-D48 -> 0.00508 | K48: 0 | L48: 0 | M48: =F48+J48+K48+L48 -> 0.18196 | N48: ='Rate Design'!H27/100 -> 0.17292 | O48: =O22 -> 0 | P48: =P22 -> 0 | Q48: =M48+O48 -> 0.18196 | R48: -0.002533014803 | S48: =N48+R48 -> 0.1703869852 | T48: =S48-R48-N48 -> 0 | V48: =J48/D48 -> 0.03026692088 | W48: =(J48+L48)/F48 -> 0.02872003618 | Y48: =D48+E48-F48 -> 0 | Z48: =D48+J48-N48 -> 0 | AA48: =F48+G48+J48+K48+L48-M48 -> 0
A49: Off-Peak | D49: ='Rate Design'!H6/100 -> 0.06928 | E49: =F49-D49 -> 0.00923 | F49: ='Rate Design'!H16/100 -> 0.07851 | H49: =F49+G49 -> 0.07851 | J49: =N49-D49 -> 0.0021 | K49: =K48 -> 0 | L49: 0 | M49: =F49+J49+K49+L49 -> 0.08061 | N49: ='Rate Design'!H28/100 -> 0.07138 | O49: =O48 -> 0 | P49: =P48 -> 0 | Q49: =M49+O49 -> 0.08061 | R49: -0.002533014803 | S49: =N49+R49 -> 0.0688469852 | T49: =S49-R49-N49 -> 0 | V49: =J49/D49 -> 0.03031177829 | W49: =(J49+L49)/F49 -> 0.02674818494 | Y49: =D49+E49-F49 -> 0 | Z49: =D49+J49-N49 -> 0 | AA49: =F49+G49+J49+K49+L49-M49 -> 0
A50: Primary Voltage Discount | D50: 0.2 | E50: =F50-D50 -> 0 | F50: 0.2 | J50: =IF(ROUND(M50-F50,5)<>ROUND(N50-D50,5),#VALUE!,N50-D50) -> 0 | M50: 0.2 | N50: 0.2 | Q50: 0.2 | S50: 0.2 | T50: =S50-R50-N50 -> 0 | V50: =J50/D50 -> 0 | W50: =J50/F50 -> 0
A52: Extra Large General Service - Schedule 25
A53: Energy Charge:
A54: ="First "&TEXT('Rate Design'!V5,"#,##0")&" kWhs" -> First 500,000 kWhs | D54: ='Rate Design'!I5/100 -> 0.05906 | E54: =F54-D54 -> 0.00017 | F54: ='Rate Design'!I15/100 -> 0.05923 | H54: =F54+G54 -> 0.05923 | J54: =N54-D54 -> 0.00081 | K54: 0 | L54: 0 | M54: =F54+J54+K54+L54 -> 0.06004 | N54: ='Rate Design'!I27/100 -> 0.05987 | O54: =O13 ->  | P54: =P13 -> 0.00247 | Q54: =M54+O54 ->  | R54: -0.0009201710067 | S54: =N54+R54 -> 0.05894982899 | T54: =S54-R54-N54 -> 0 | V54: =J54/D54 -> 0.01371486624 | W54: =(J54+L54)/F54 -> 0.01367550228 | Y54: =D54+E54-F54 -> 0 | Z54: =D54+J54-N54 -> 0 | AA54: =F54+G54+J54+K54+L54-M54 -> 0
A55: =TEXT('Rate Design'!V27,"#,##0")&" - "&TEXT('Rate Design'!V28,"#,##0")&" kWhs" -> 500,000 - 6,000,000 kWhs | D55: ='Rate Design'!I6/100 -> 0.05313 | E55: =F55-D55 -> 0.00042 | F55: ='Rate Design'!I16/100 -> 0.05355 | H55: =F55+G55 -> 0.05355 | J55: =N55-D55 -> 0.00073 | K55: =K54 -> 0 | L55: =L54 -> 0 | M55: =F55+J55+K55+L55 -> 0.05428 | N55: ='Rate Design'!I28/100 -> 0.05386 | O55: =O54 ->  | P55: =P54 -> 0.00247 | Q55: =M55+O55 ->  | R55: -0.0009201710067 | S55: =N55+R55 -> 0.05293982899 | T55: =S55-R55-N55 -> 0 | V55: =J55/D55 -> 0.01373988331 | W55: =(J55+L55)/F55 -> 0.01363211951 | Y55: =D55+E55-F55 -> 0 | Z55: =D55+J55-N55 -> 0 | AA55: =F55+G55+J55+K55+L55-M55 -> 0
A56: ="All over "&TEXT('Rate Design'!V28,"#,##0")&" kWhs" -> All over 6,000,000 kWhs | D56: ='Rate Design'!I7/100 -> 0.04352 | E56: =F56-D56 -> 0.00166 | F56: ='Rate Design'!I17/100 -> 0.04518 | H56: =F56+G56 -> 0.04518 | J56: =N56-D56 -> 0.0006 | K56: 0 | L56: =L54 -> 0 | M56: 0.04578 | N56: ='Rate Design'!I29/100 -> 0.04412 | O56: =O54 ->  | P56: =P54 -> 0.00247 | Q56: =M56+O56 ->  | R56: -0.0009201710067 | S56: 0.04319982899 | T56: =S56-R56-N56 -> 0 | V56: =J56/D56 -> 0.01378676471 | W56: 0.01328021248 | Y56: =D56+E56-F56 -> 0 | Z56: =D56+J56-N56 -> 0 | AA56: =F56+G56+J56+K56+L56-M56 -> 0
A57: Demand Charge:
A58: =TEXT('Rate Design'!V10,"#,##0")&" kva or less" -> 3,000 kva or less | D58: ='Rate Design'!I9 -> 30650 | E58: =F58-D58 -> 0 | F58: ='Rate Design'!I19 -> 30650 | J58: =IF(ROUND(M58-F58,5)<>ROUND(N58-D58,5),#VALUE!,N58-D58) -> 0 | M58: ='Rate Design'!I41 -> 30650 | N58: ='Rate Design'!I31 -> 30650 | Q58: ='Rate Design'!I31 -> 30650 | S58: =N58 -> 30650 | T58: =S58-R58-N58 -> 0 | V58: =J58/D58 -> 0 | W58: =J58/F58 -> 0
A59: ="Over "&TEXT('Rate Design'!V10,"#,##0")&" kva" -> Over 3,000 kva | D59: ='Rate Design'!I10 -> 8.3 | E59: =F59-D59 -> 0 | F59: ='Rate Design'!I20 -> 8.3 | J59: =IF(ROUND(M59-F59,5)<>ROUND(N59-D59,5),#VALUE!,N59-D59) -> 0 | M59: ='Rate Design'!I42 -> 8.3 | N59: ='Rate Design'!I32 -> 8.3 | Q59: ='Rate Design'!I32 -> 8.3 | S59: =N59 -> 8.3 | T59: =S59-R59-N59 -> 0 | V59: =J59/D59 -> 0 | W59: =J59/F59 -> 0
A60: Primary Volt. Discount
A61: 11 - 60 kv | D61: 0.2 | E61: =F61-D61 -> 0 | F61: 0.2 | J61: =IF(ROUND(M61-F61,5)<>ROUND(N61-D61,5),#VALUE!,N61-D61) -> 0 | M61: 0.2 | N61: 0.2 | Q61: =N61 -> 0.2 | S61: =Q61 -> 0.2 | T61: =S61-R61-N61 -> 0 | V61: =J61/D61 -> 0 | W61: =J61/F61 -> 0
A62: 60 - 115 kv | D62: 1.52 | E62: =F62-D62 -> 0 | F62: 1.52 | J62: =IF(ROUND(M62-F62,5)<>ROUND(N62-D62,5),#VALUE!,N62-D62) -> 0 | M62: 1.52 | N62: 1.52 | Q62: =N62 -> 1.52 | S62: =Q62 -> 1.52 | T62: =S62-R62-N62 -> 0 | V62: =J62/D62 -> 0 | W62: =J62/F62 -> 0
A63: 115 or higher kv | D63: 1.93 | E63: =F63-D63 -> 0 | F63: 1.93 | J63: =IF(ROUND(M63-F63,5)<>ROUND(N63-D63,5),#VALUE!,N63-D63) -> 0 | M63: 1.93 | N63: 1.93 | Q63: =N63 -> 1.93 | S63: =Q63 -> 1.93 | T63: =S63-R63-N63 -> 0 | V63: =J63/D63 -> 0 | W63: =J63/F63 -> 0
A64: Annual Minimum | D64: Present: | E64: 987810 | L64: Proposed: | M64: =6000000*N54+5000000*N55+12*N58 -> 996320 | Q64: =M64 -> 996320 | S64: =M64 -> 996320 | T64: =S64-R64-N64 -> 996320 | V64: =M64/E64-1 -> 0.008615017058
A66: Extra Large General Service Specific Contract - Schedule 25I
A67: Energy Charge:
A68: ="First "&TEXT('Rate Design'!V19,"#,##0")&" kWhs" -> First 0 kWhs | D68: ='Rate Design'!J5/100 -> 0.04782 | E68: =F68-D68 -> 0.00017 | F68: ='Rate Design'!J15/100 -> 0.04799 | H68: =F68+G68 -> 0.04799 | J68: =N68-D68 -> 0.00061 | K68: 0 | L68: 0 | M68: =F68+J68+K68+L68 -> 0.0486 | N68: ='Rate Design'!J27/100 -> 0.04843 | O68: =O27 -> 0 | P68: =P27 -> 0 | Q68: =M68+O68 -> 0.0486 | R68: -0.0005942421582 | S68: =N68+R68 -> 0.04783575784 | T68: =S68-R68-N68 -> 0 | V68: =J68/D68 -> 0.01275616897 | W68: =(J68+L68)/F68 -> 0.01271098145 | Y68: =D68+E68-F68 -> 0 | Z68: =D68+J68-N68 -> 0 | AA68: =F68+G68+J68+K68+L68-M68 -> 0
A69: =TEXT('Rate Design'!V41,"#,##0")&" - "&TEXT('Rate Design'!V42,"#,##0")&" kWhs" -> 0 - 3,000 kWhs | D69: ='Rate Design'!J6/100 -> 0.04303 | E69: =F69-D69 -> 0.00042 | F69: ='Rate Design'!J16/100 -> 0.04345 | H69: =F69+G69 -> 0.04345 | J69: =N69-D69 -> 0.00055 | K69: =K68 -> 0 | L69: =L68 -> 0 | M69: =F69+J69+K69+L69 -> 0.044 | N69: ='Rate Design'!J28/100 -> 0.04358 | O69: =O68 -> 0 | P69: =P68 -> 0 | Q69: =M69+O69 -> 0.044 | R69: -0.0005942421582 | S69: =N69+R69 -> 0.04298575784 | T69: =S69-R69-N69 -> 0 | V69: =J69/D69 -> 0.01278178015 | W69: =(J69+L69)/F69 -> 0.01265822785 | Y69: =D69+E69-F69 -> 0 | Z69: =D69+J69-N69 -> 0 | AA69: =F69+G69+J69+K69+L69-M69 -> 0
A70: ="All over "&TEXT('Rate Design'!V42,"#,##0")&" kWhs" -> All over 3,000 kWhs | D70: ='Rate Design'!J7/100 -> 0.03679 | E70: =F70-D70 -> 0.00166 | F70: ='Rate Design'!J17/100 -> 0.03845 | H70: =F70+G70 -> 0.03845 | J70: =N70-D70 -> 0.00047 | M70: 0.03892 | N70: ='Rate Design'!J29/100 -> 0.03726 | O70: =O68 -> 0 | P70: =P68 -> 0 | Q70: =M70+O70 -> 0.03892 | R70: -0.0005942421582 | S70: 0.03666575784 | T70: =S70-R70-N70 -> 0 | V70: =J70/D70 -> 0.01277521066 | W70: 0.0122236671 | Y70: =D70+E70-F70 -> 0 | Z70: =D70+J70-N70 -> 0 | AA70: =F70+G70+J70+K70+L70-M70 -> 0
A71: Demand Charge:
A72: =TEXT('Rate Design'!V24,"#,##0")&" kva or less" -> 0 kva or less | D72: ='Rate Design'!J9 -> 30650 | E72: =F72-D72 -> 0 | F72: ='Rate Design'!J19 -> 30650 | J72: =IF(ROUND(M72-F72,5)<>ROUND(N72-D72,5),#VALUE!,N72-D72) -> 0 | M72: ='Rate Design'!J41 -> 30650 | N72: ='Rate Design'!J31 -> 30650 | Q72: ='Rate Design'!I45 -> 0 | S72: =N72 -> 30650 | T72: =S72-R72-N72 -> 0 | V72: =J72/D72 -> 0 | W72: =J72/F72 -> 0
A73: ="Over "&TEXT('Rate Design'!V24,"#,##0")&" kva" -> Over 0 kva | D73: ='Rate Design'!J10 -> 8.3 | E73: =F73-D73 -> 0 | F73: ='Rate Design'!J20 -> 8.3 | J73: =IF(ROUND(M73-F73,5)<>ROUND(N73-D73,5),#VALUE!,N73-D73) -> 0 | M73: ='Rate Design'!J42 -> 8.3 | N73: ='Rate Design'!J32 -> 8.3 | Q73: ='Rate Design'!I46 -> 0 | S73: =N73 -> 8.3 | T73: =S73-R73-N73 -> 0 | V73: =J73/D73 -> 0 | W73: =J73/F73 -> 0
A74: Primary Volt. Discount
A75: 11 - 60 kv | D75: 0.2 | E75: =F75-D75 -> 0 | F75: 0.2 | J75: =IF(ROUND(M75-F75,5)<>ROUND(N75-D75,5),#VALUE!,N75-D75) -> 0 | M75: 0.2 | N75: 0.2 | Q75: =N75 -> 0.2 | S75: =Q75 -> 0.2 | T75: =S75-R75-N75 -> 0 | V75: =J75/D75 -> 0 | W75: =J75/F75 -> 0
A76: 60 - 115 kv | D76: 1.52 | E76: =F76-D76 -> 0 | F76: 1.52 | J76: =IF(ROUND(M76-F76,5)<>ROUND(N76-D76,5),#VALUE!,N76-D76) -> 0 | M76: 1.52 | N76: 1.52 | Q76: =N76 -> 1.52 | S76: =Q76 -> 1.52 | T76: =S76-R76-N76 -> 0 | V76: =J76/D76 -> 0 | W76: =J76/F76 -> 0
A77: 115 or higher kv | D77: 1.93 | E77: =F77-D77 -> 0 | F77: 1.93 | J77: =IF(ROUND(M77-F77,5)<>ROUND(N77-D77,5),#VALUE!,N77-D77) -> 0 | M77: 1.93 | N77: 1.93 | Q77: =N77 -> 1.93 | S77: =Q77 -> 1.93 | T77: =S77-R77-N77 -> 0 | V77: =J77/D77 -> 0 | W77: =J77/F77 -> 0
A79: Pumping Service - Schedule 31
A80: Basic Charge | D80: ='Rate Design'!K4 -> 21 | E80: =F80-D80 -> 0 | F80: ='Rate Design'!K14 -> 21 | J80: =IF(ROUND(M80-F80,5)<>ROUND(N80-D80,5),#VALUE!,N80-D80) -> 0 | M80: ='Rate Design'!K36 -> 21 | N80: ='Rate Design'!K26 -> 21 | Q80: =N80 -> 21 | S80: =Q80 -> 21 | T80: =S80-R80-N80 -> 0 | V80: =J80/D80 -> 0 | W80: =J80/F80 -> 0
A81: Energy Charge:
A82: First 85 kW/kWh | D82: ='Rate Design'!K5/100 -> 0.11763 | E82: =F82-D82 -> 0.00225 | F82: ='Rate Design'!K15/100 -> 0.11988 | H82: =F82+G82 -> 0.11988 | J82: =N82-D82 -> 0.00276 | K82: 0 | L82: 0 | M82: =F82+J82+K82+L82 -> 0.12264 | N82: ='Rate Design'!K27/100 -> 0.12039 | O82: =O13 ->  | P82: =P13 -> 0.00247 | Q82: =M82+O82 ->  | R82: -0.005753990767 | S82: =N82+R82 -> 0.1146360092 | T82: =S82-R82-N82 -> 0 | V82: =J82/D82 -> 0.02346340219 | W82: =(J82+L82)/F82 -> 0.02302302302 | Y82: =D82+E82-F82 -> 0 | Z82: =D82+J82-N82 -> 0 | AA82: =F82+G82+J82+K82+L82-M82 -> 0
A83: Next 80 kW/kWh | D83: ='Rate Design'!K5/100 -> 0.11763 | E83: =F82-D82 -> 0.00225 | F83: ='Rate Design'!K15/100 -> 0.11988 | H83: =F83+G83 -> 0.11988 | J83: =N82-D82 -> 0.00276 | K83: =K82 -> 0 | L83: =L82 -> 0 | M83: =F83+J83+K83+L83 -> 0.12264 | N83: ='Rate Design'!K27/100 -> 0.12039 | R83: -0.005753990767 | S83: =N83+R83 -> 0.1146360092 | T83: =S83-R83-N83 -> 0 | V83: =J83/D83 -> 0.02346340219 | W83: =(J83+L83)/F83 -> 0.02302302302 | Y83: =D83+E83-F83 -> 0 | Z83: =D83+J83-N83 -> 0 | AA83: =F83+G83+J83+K83+L83-M83 -> 0
A84: All additional kWhs | D84: ='Rate Design'!K6/100 -> 0.08401 | E84: =F84-D84 -> 0.00326 | F84: ='Rate Design'!K16/100 -> 0.08727 | H84: =F84+G84 -> 0.08727 | J84: =N84-D84 -> 0.00197 | K84: =K82 -> 0 | L84: =L82 -> 0 | M84: 0.08924 | N84: ='Rate Design'!K28/100 -> 0.08598 | O84: =O82 ->  | P84: =P82 -> 0.00247 | Q84: =M84+O84 ->  | R84: -0.005753990767 | S84: 0.08022600923 | T84: =S84-R84-N84 -> 0 | V84: =J84/D84 -> 0.02344958933 | W84: 0.02257362209 | Y84: =D84+E84-F84 -> 0 | Z84: =D84+J84-N84 -> 0 | AA84: =F84+G84+J84+K84+L84-M84 -> 0
A87: (1) Includes all present rate adjustments: Schedule 59 (BPA Residential Exchange),
A88: Schedule 75 (Decoupling), Schedule 76 (Tax Customer Credit), Schedule 78 (Residual Tax Customer Credit),
A89: Schedule 91 (DSM), Schedule 92 (LIRAP), Schedule 93 (ERM), and Schedule 98 (REC Revenue).

Sheet Colstrip
A1: AVISTA UTILITIES
A2: WASHINGTON ELECTRIC
A3: PROPOSED INCREASE BY SERVICE SCHEDULE
A4: 12 MONTHS ENDED SEPTEMBER 30, 2021
A5: (000s of Dollars)
B7: Schedule 99 - Colstrip
H9: Colstrip
D10: Base Tariff | F10: Base Tariff | G10: Proportional | H10: Base | I10: Base Tariff | J10: Schedule 99 | K10: Total | L10: Percent
D11: Revenue | E11: Proposed | F11: Revenue | G11: Allocation of RY1 | H11: Rate | I11: Revenue | J11: Colstrip | K11: Colstrip | L11: Change | O11: Base | P11: Schedule 99
B12: Type of | C12: Schedule | D12: Under Present | E12: General | F12: Under Proposed | G12: Base Revenue | H12: Revenue | I12: Under Proposed | J12: Rate | K12: Net | L12: on | N12: Billing | O12: Rate | P12: Colstrip
A13: No. | B13: Service | C13: Number | D13: Rates(1) | E13: Increase | F13: Rates(1) | G13: Spread | H13: Reduction | I13: Rates(1) | J13: Revenue | K13: Impact | L13: Revenue | N13: Determinants | O13: Reduction | P13: Rate
B14: (a) | C14: (b) | D14: (c) | E14: (d) | F14: (e) | G14: (f) | H14: (g) | I14: (h) | J14: (i) | K14: (j) | L14: (k)
D15: =IF(Base1_Billing2<>1,"ERROR","") -> 
A16: 1 | B16: Residential | C16: 1/2 | D16: 253459.0899 | E16: 26025.31605 | F16: 279484.4059 | G16: =E16/$E$30 -> 0.684880282 | H16: =-$H$41*G16 -> -16337.36574 | I16: =F16+H16 -> 263147.0402 | J16: =-H16 -> 16337.36574 | K16: =H16+J16 -> 0 | L16: =(H16+J16)/F16 -> 0 | N16: 2499403391 | O16: =H16*1000/N16 -> -0.006536506189 | P16: =-O16 -> 0.006536506189
A18: 2 | B18: General Service | C18: 11/12 | D18: 81570.42638 | E18: 3263.813327 | F18: 84833.83971 | G18: =E18/$E$30 -> 0.08589026883 | H18: =-$H$41*G18 -> -2048.855503 | I18: =F18+H18 -> 82784.98421 | J18: =-H18 -> 2048.855503 | K18: =H18+J18 -> 0 | L18: =(H18+J18)/F18 -> 0 | N18: 634803427.3 | O18: =H18*1000/N18 -> -0.003227543229 | P18: =-O18 -> 0.003227543229
A20: 3 | B20: Large General Service | C20: 21/22 | D20: 131152.6852 | E20: 5247.046103 | F20: 136399.7313 | G20: =E20/$E$30 -> 0.1380808751 | H20: =-$H$41*G20 -> -3293.827866 | I20: =F20+H20 -> 133105.9034 | J20: 3293.827866 | K20: =H20+J20 -> 0 | L20: =(H20+J20)/F20 -> 0 | N20: 1300358712 | O20: =H20*1000/N20 -> -0.002533014803 | P20: 0.002533014803
A22: 4 | B22: Extra Large General Service | C22: 25 | D22: 41217.65624 | E22: 823.0493544 | F22: 42040.7056 | G22: =E22/$E$30 -> 0.02165930561 | H22: =-$H$41*G22 -> -516.6683969 | I22: =F22+H22 -> 41524.0372 | J22: 516.6683969 | K22: =H22+J22 -> 0 | L22: =(H22+J22)/F22 -> 0 | N22: 561491715.3 | O22: =H22*1000/N22 -> -0.0009201710067 | P22: 0.0009201710067
A24: 5 | B24: Extra Large General Service - Special Contract | C24: 25I | D24: 21772.91244 | E24: 435.199067 | F24: 22208.11151 | G24: =E24/$E$30 -> 0.01145266629 | H24: =-$H$41*G24 -> -273.1957726 | I24: =F24+H24 -> 21934.91574 | J24: 273.1957726 | K24: =H24+J24 -> 0 | L24: =(H24+J24)/F24 -> 0 | N24: 459738120 | O24: =H24*1000/N24 -> -0.0005942421582 | P24: 0.0005942421582
A26: 6 | B26: Pumping Service | C26: 30/31/32 | D26: 14578.56552 | E26: 1496.60727 | F26: 16075.57279 | G26: =E26/$E$30 -> 0.03938460564 | H26: =-$H$41*G26 -> -939.4936948 | I26: =F26+H26 -> 15136.0791 | J26: 939.4936948 | K26: =H26+J26 -> 0 | L26: =(H26+J26)/F26 -> 0 | N26: 163276886 | O26: =H26*1000/N26 -> -0.005753990767 | P26: 0.005753990767
A28: 7 | B28: Street & Area Lights | C28: 41-48 | D28: 6900.605642 | E28: 708.7722 | F28: 7609.577842 | G28: =E28/$E$30 -> 0.01865199651 | H28: =-$H$41*G28 -> -444.9310292 | I28: =F28+H28 -> 7164.646813 | J28: 444.9310292 | K28: =H28+J28 -> 0 | L28: =(H28+J28)/F28 -> 0 | N28: 16979796.48 | O28: =H28/F28 -> -0.05846987026 | P28: =J28*1000/N28 -> 0.0262035549 | R28: =F28+H28 -> 7164.646813
R29: =J28 -> 444.9310292
A30: 8 | B30: Total | D30: =SUM(D16:D28) -> 550651.9413 | E30: =SUM(E16:E28) -> 37999.80337 | F30: =SUM(F16:F28)+0.4 -> 588652.3447 | G30: =SUM(G16:G28) -> 1 | H30: =SUM(H16:H28) -> -23854.338 | I30: =F30+H30 -> 564798.0067 | J30: =SUM(J16:J28) -> 23854.338 | K30: =H30+J30 -> 0 | L30: =(H30+J30)/F30 -> 0 | N30: =SUM(N16:N28) -> 5636052048 | R30: =SUM(R28:R29) -> 7609.577842
D31: =ROUND(D30-'[1]Pres & Prop Rev'!C205/1000,0) -> 0 | R31: =R29/R28 -> 0.06210090194
A35: (1) Excludes all present rate adjustments: Schedule 59 (BPA Residential Exchange), Schedule 75 (Decoupling), Schedule 76 (Tax Credit)
A36: Scheduke 89 (Low Income Discount), Schedule 91 (DSM), Schedule 92 (LIRAP), Schedule 93 (ERM) and Schedule 98 (REC Revenue).
G41: Colstrip Rev Req | H41: 23854.338
B48: The Settling Parties agreed that the costs removed from base rates would be allocated to the rate schedules through separate Tariff Schedule 99 using a proportional allocation of the Rate Year 1 base revenue spread. For rate design, revenue would be recovered through the volumetric charges on a uniform cent per kWh basis.

Sheet Rate Spread GRC
A3: Avista
A4: Electric
A5: Rate Spread
D9: Base Tariff | F9: Base | J9: Adjusted Billed | M9: Percent
D10: Revenue | E10: Percentage | F10: Tariff | G10: Proposed | H10: Proposed | J10: Revenue | K10: LIRAP | L10: Tax | M10: Increase | O10: Total
B11: Type of | C11: Schedule | D11: Under Present | E11: of Base | F11: Percent | G11: General | H11: Base Tariff | J11: at Present | K11: Rate | L11: Customer | M11: on Billed | O11: Base
A12: No. | B12: Service | C12: Number | D12: Rates(1) | E12: Increase | F12: Increase | G12: Increase | H12: Revenue | J12: Rates (2) | K12: Change | L12: Credit | M12: Revenue | O12: Change | P12: GRC | Q12: Tax
B13: (a) | C13: (b) | D13: (e) | E13: (f) | F13: (g) | G13: (h) | H13: (i) | J13: (j) | K13: (k) | L13: (l) | M13: (m)
A15: 1 | B15: Residential | C15: 1/2 | D15: ='Pres & Prop Rev'!$D$152/1000 -> 279484.4059 | E15: 1.064898476 | F15: =E15*$E$36 -> 0.02263020924 | G15: =F15*D15 -> 6324.790586 | H15: =D15+G15 -> 285809.1965 | J15: ='Att A pg 1'!I47+'Att A pg 1'!J47 -> 253325.0617 | K15: 0 | L15: ='Att A pg 1'!M47 -> 0 | M15: =IF(J15=0,0,(G15+K15+L15)/J15) -> 0.02496709383 | N15: =+G15+K15+L15 -> 6324.790586 | O15: =(G15)/D15 -> 0.02263020924 | P15: =(G15)/J15 -> 0.02496709383 | Q15: =L15/J15 -> 0
A17: 2 | B17: General Service | C17: 11/12 | D17: ='Pres & Prop Rev'!$E$152/1000 -> 84834.43971 | E17: 1.064694757 | F17: =E17*$E$36 -> 0.02262587999 | G17: =F17*D17 -> 1919.453852 | H17: =D17+G17 -> 86753.89356 | J17: ='Att A pg 1'!I49+'Att A pg 1'!J49 -> 90670.35421 | K17: 0 | L17: ='Att A pg 1'!M49 -> 0 | M17: =IF(J17=0,0,(G17+K17+L17)/J17) -> 0.0211695859 | N17: =+G17+K17+L17 -> 1919.453852 | O17: =(G17)/D17 -> 0.02262587999 | P17: =(G17)/J17 -> 0.0211695859 | Q17: =L17/J17 -> 0
A19: 3 | B19: Transportation - General Service | C19: 13 | D19: ='Pres & Prop Rev'!$F$152/1000 -> 0 | E19: 0 | F19: =E19*$E$36 -> 0 | G19: =F19*D19 -> 0 | H19: =D19+G19 -> 0 | J19: ='Att A pg 1'!I51+'Att A pg 1'!J51 -> 0 | L19: ='Att A pg 1'!M51 -> 0 | M19: 0 | N19: 0 | Q19: =IF(J19=0,0,L19/J19) -> 0
L20: ='Att A pg 1'!M52 -> 0 | M20: 0 | N20: 0
A21: 3 | B21: Large General Service | C21: 21/22 | D21: ='Pres & Prop Rev'!$G$152/1000 -> 136399.7313 | E21: 1.064754693 | F21: =E21*$E$36 -> 0.0226271537 | G21: =F21*D21 -> 3086.337685 | H21: =D21+G21 -> 139486.069 | J21: ='Att A pg 1'!I53+'Att A pg 1'!J53 -> 148055.5516 | K21: 0 | L21: ='Att A pg 1'!M53 -> 0 | M21: 0.02084580856 | N21: 3086.337685 | O21: 0.0226271537 | P21: 0.02084580856 | Q21: 0
A23: 5 | B23: Transportation - Large General Service | C23: 23 | D23: ='Pres & Prop Rev'!$H$152/1000 -> 0 | E23: 0 | F23: =E23*$E$36 -> 0 | G23: =F23*D23 -> 0 | H23: =D23+G23 -> 0 | J23: ='Att A pg 1'!I55+'Att A pg 1'!J55 -> 0 | L23: ='Att A pg 1'!M55 -> 0 | M23: 0 | N23: 0 | Q23: =IF(J23=0,0,L23/J23) -> 0
L24: ='Att A pg 1'!M56 -> 0 | M24: 0 | N24: 0
A25: 4 | B25: Extra Large General Service | C25: 25 | D25: ='Pres & Prop Rev'!$I$152/1000-0.2 -> 42040.50559 | E25: 0.4704679775 | F25: =E25*$E$36 -> 0.009997937841 | G25: =F25*D25 -> 420.3183617 | H25: =D25+G25 -> 42460.82395 | J25: ='Att A pg 1'!I57+'Att A pg 1'!J57 -> 42245.10056 | K25: 0 | L25: ='Att A pg 1'!M57 -> 0 | M25: 0.009949517368 | N25: 420.3183617 | O25: 0.009997937841 | P25: 0.009949517368 | Q25: 0
A27: 5 | B27: Extra Large General Service - Specific Contract | C27: 25I | D27: ='Pres & Prop Rev'!$J$152/1000 -> 22208.11151 | E27: 0.4707497015 | F27: =E27*$E$36 -> 0.01000392477 | G27: =F27*D27 -> 222.1682769 | H27: =D27+G27 -> 22430.27979 | J27: ='Att A pg 1'!I59+'Att A pg 1'!J59 -> 22880.49679 | K27: 0 | L27: ='Att A pg 1'!M59 -> 0 | M27: 0.009709941133 | N27: 222.1682769 | O27: 0.01000392477 | P27: 0.009709941133 | Q27: =IF(J27=0,0,L27/J27) -> 0
A29: 6 | B29: Pumping Service | C29: 30/31/32 | D29: ='Pres & Prop Rev'!$K$152/1000 -> 16075.17279 | E29: 1.063407413 | F29: =E29*$E$36 -> 0.02259852259 | G29: =F29*D29 -> 363.2751555 | H29: =D29+G29 -> 16438.44795 | J29: ='Att A pg 1'!I61+'Att A pg 1'!J61 -> 16509.92676 | K29: 0 | L29: ='Att A pg 1'!M61 -> 0 | M29: 0.02200343834 | N29: 363.2751555 | O29: 0.02259852259 | P29: 0.02200343834 | Q29: 0
N30: 0
A31: 7 | B31: Street & Area Lights | C31: 41-48 | D31: ='Pres & Prop Rev'!$L$152/1000 -> 7163.502482 | E31: 1.064458477 | F31: =E31*$E$36 -> 0.0226208588 | G31: =F31*D31 -> 162.0445782 | H31: =D31+G31 -> 7325.54706 | J31: ='Att A pg 1'!I63+'Att A pg 1'!J63 -> 7460.57262 | K31: 0 | L31: ='Att A pg 1'!M63 -> 0 | M31: 0.02172012611 | O31: 0.0226208588 | P31: 0.02172012611 | Q31: 0
A33: 8 | B33: Total | D33: =SUM(D15:D31)+0.4 -> 588206.2693 | F33: =G36/$D$33 -> 0.02125104857 | G33: =SUM(G15:G31) -> 12498.38849 | H33: =D33+G33+0.3 -> 600704.9578 | J33: ='Att A pg 1'!I65+'Att A pg 1'!J65 -> 581147.0642 | K33: 0 | L33: =SUM(L15:L31) -> 0 | M33: =IF(J33=0,0,(G33+K33+L33)/J33) -> 0.02150641251 | N33: 12498.38849 | O33: 0.02124830888 | P33: 0.02150641251 | Q33: 0
B36: Revenue Requirement | E36: =G36/(D33) -> 0.02125104857 | G36: 12500
O42: LIRAP Change
M43: LIRAP
D44: Schedule 25 | O44: =O15 -> 0.02263020924
E45: Increase | O45: x 2
D46: Base Increase | E46: =ROUND(G25*1000,-3) -> 420000 | O46: =O44*2 -> 0.04526041848
D47: MWh | E47: ='Pres & Prop Rev'!I23/1000 -> 561491.7153
D49: $ Per MWh Change | E49: =E46/E47 -> 0.7480074747
E50: =E46/E49 -> 561491.7153
D55: Special Contract Rate Spread
E57: Rate Calculation
D58: Schedule 25
D60: $ Per MWh Change | E60: =E49 -> 0.7480074747
D61: IEP Rate Factor | E61: =0.6509 -> 0.6509
E62: =E60*E61 -> 0.4868780653
D64: IEP MWh's | E64: ='Pres & Prop Rev'!J37/1000 -> 459738.12
D66: IEP Increase | E66: =(E60*E61)*E64 -> 223836.4064 | F66: =(E66/1000)/D27 -> 0.0100790383
D70: Rate Factor Calculation for future Special Contract Rate Changes
D71: UE-190334
F73: Rate Year Revenue | H73: MWh | J73: Rate Factor
D74: Schedule 25 | F74: 45108846.98 | H74: 620117.6859 | J74: =F74/H74 -> 72.74239714
D76: Special Contract | F76: 21357310.44 | H76: 451099.448 | J76: =F76/H76 -> 47.34501567
J79: =J76/J74 -> 0.6508586125

Sheet Bill Determ
A1: AVISTA UTILITIES
A2: WASHINGTON ELECTRIC
A3: ACTUAL / PRO FORMA BILLING DETERMINANTS BY RATE SCHEDULE
A4: 12 MONTHS ENDED SEPTEMBER 30, 2021
A8: Schedule 1, 2 | B8: 0-800 kWhs | C8: 801-1500 kWhs | D8: over 1500 kWhs | E8: Total kWhs | F8: Total Billings(2)
A9: kWhs per billing run | B9: ='Block Data'!O21 -> 1699114426 | C9: ='Block Data'!O22 -> 560062332.6 | D9: ='Block Data'!O23 -> 314000634.3 | E9: =B9+C9+D9 -> 2573177392 | F9: ='REVRUNS 12ME0921'!P39 -> 2681552
A10: Total kWhs per Rev. Run | E10: ='Block Data'!O13 -> 2573177392
A11: Adjust. kWhs to Actual | E11: =E10-E9 -> 0
A14: Schedule 11,12, 13 | B14: 0-3,650 kWhs | C14: over 3,650 kWhs | D14: Total kWhs | E14: kw over 20(1) | F14: Total Billings(2) | G14: kvar billed(1)
A15: kWhs per Revenue Run | B15: ='Block Data'!O38 -> 440976955.8 | C15: ='Block Data'!O39 -> 206157623.5 | D15: =B15+C15 -> 647134579.3 | E15: ='Block Data'!O45 -> 555536.7062 | F15: ='REVRUNS 12ME0921'!P40+'REVRUNS 12ME0921'!P41 -> 403355 | G15: ='Block Data'!O49 -> 0
A16: Schedule Shifting | B16: 0 | C16: 0 | D16: =SUM(B16:C16) -> 0 | E16: 0 | F16: 0 | G16: 0
A17: Total by Block | B17: =SUM(B15:B16) -> 440976955.8 | C17: 206157623.5 | D17: 647134579.3 | E17: 555536.7062 | F17: 403355 | G17: 0
A18: Total kWhs per Rev. Run | D18: ='Block Data'!O31 -> 647134579.3
A19: Schedule Shifting | D19: =D16 -> 0
A20: Total Adjusted kWhs | D20: =D18+D19 -> 647134579.3
A21: Adjust. kWhs to Actual | D21: =D20-D17 -> 0
A24: Not Used | B24: 0-3,650 kWhs | C24: over 3,650 kWhs | D24: Total kWhs | E24: kw over 20(1) | F24: Total Billings(2) | G24: kvar billed(1)
A25: kWhs per Revenue Run | B25: ='Block Data'!O64 -> 0 | C25: ='Block Data'!O65 -> 0 | D25: =B25+C25 -> 0 | E25: ='Block Data'!O71 -> 0 | F25: 0 | G25: ='Block Data'!O75 -> 0
A26: Schedule Shifting | B26: 0 | C26: 0 | D26: =SUM(B26:C26) -> 0 | E26: 0 | F26: 0 | G26: 0
A27: Total by Block | B27: =SUM(B25:B26) -> 0 | C27: 0 | D27: 0 | E27: 0 | F27: 0 | G27: 0
A28: Total kWhs per Rev. Run | D28: ='Block Data'!O57 -> 0
A29: Schedule Shifting | D29: =D26 -> 0
A30: Total Adjusted kWhs | D30: =D28+D29 -> 0
A31: Adjust. kWhs to Actual | D31: =D30-D27 -> 0
A34: Schedule 21,22, 23 | B34: 0-250,000 kWhs | C34: over 250,000 kWhs | D34: Total kWhs | E34: kw over 50(1) | F34: Total Billings(2) | G34: kvar billed(1)
A35: kWhs per Revenue Run | B35: ='Block Data'!O90 -> 1174888254 | C35: ='Block Data'!O91 -> 139885749.1 | D35: =B35+C35 -> 1314774003 | E35: ='Block Data'!O97 -> 2804857.714 | F35: ='REVRUNS 12ME0921'!P42+'REVRUNS 12ME0921'!P43 -> 21936 | G35: ='Block Data'!O101 -> 349155.54
A36: Schedule 25 to 21 | B36: =6*250000 -> 1500000 | C36: =-SUM('WA Sch 25'!P34)-B36 -> 3477596.4 | D36: =SUM(B36:C36) -> 4977596.4 | E36: 17715 | F36: 6 | G36: 0
A37: Schedule Shifting | B37: 0 | C37: 0 | D37: =SUM(B37:C37) -> 0 | E37: 0 | F37: 0 | G37: 0
A38: Total | B38: =SUM(B35:B37) -> 1176388254 | C38: =SUM(C35:C37) -> 143363345.5 | D38: =SUM(B38:C38) -> 1319751600 | E38: =SUM(E35:E37) -> 2822572.714 | F38: =SUM(F35:F37) -> 21942 | G38: =SUM(G35:G37) -> 349155.54
A39: Total kWhs per Rev. Run | D39: ='Block Data'!O83 -> 1314774003
A40: Schedule Shifting | D40: =D36 -> 4977596.4
A41: Schedule Shifting | D41: =D37 -> 0
A42: Total adjusted kWhs | D42: =D39+D40+D41 -> 1319751600
A43: Adjust. kWhs to Actual | D43: =D42-D38 -> 0
A46: Not Used | B46: 0-250,000 kWhs | C46: over 250,000 kWhs | D46: Total kWhs | E46: kw over 50(1) | F46: Total Billings(2) | G46: kvar billed(1)
A47: kWhs per Revenue Run | B47: ='Block Data'!O116 -> 0 | C47: ='Block Data'!O117 -> 0 | D47: =B47+C47 -> 0 | E47: ='Block Data'!O123 -> 0 | F47: 0 | G47: ='Block Data'!O127 -> 0
A48: Schedule Shifting | B48: 0 | C48: 0 | D48: =SUM(B48:C48) -> 0 | E48: 0 | F48: 0 | G48: 0
A49: Total | B49: =SUM(B47:B48) -> 0 | C49: =SUM(C47:C48) -> 0 | D49: =SUM(B49:C49) -> 0 | E49: =SUM(E47:E48) -> 0 | F49: =SUM(F47:F48) -> 0 | G49: =SUM(G47:G48) -> 0
A50: Total kWhs per Rev. Run | D50: ='Block Data'!O94 -> 0
A51: Schedule Shifting | D51: =D47 -> 0
A52: Schedule Shifting | D52: =D48 -> 0
A53: Total adjusted kWhs | D53: =D50+D51+D52 -> 0
A54: Adjust. kWhs to Actual | D54: =D53-D49 -> 0
A57: Schedule 25(3) | B57: 0-500,000 kWhs | C57: 500,001-6M kWhs | D57: > 6M kWhs | E57: Total kWhs | F57: kva over 3,000 | G57: Total Billings(2)
A58: Total | B58: ='WA Sch 25'!Q27 -> 125726244.4 | C58: ='WA Sch 25'!R27 -> 435765470.9 | D58: ='WA Sch 25'!S27 -> 0 | E58: =SUM(B58:D58) -> 561491715.3 | F58: ='WA Sch 25'!P97 -> 475862.632 | G58: =(21*12) -> 252
A61: Schedule 25I | B61: 0-500,000 kWhs | C61: 500,001-6M kWhs | D61: > 6M kWhs | E61: Total kWhs | F61: kva over 3,000 | G61: Total Billings(2)
A62: Total | B62: ='WA Sch 25'!Q42 -> 6000000 | C62: ='WA Sch 25'!R42 -> 66000000 | D62: ='WA Sch 25'!S42 -> 387738120 | E62: =SUM(B62:D62) -> 459738120 | F62: ='WA Sch 25'!P101 -> 703831.31 | G62: 12
A65: Schedule 30, 31, & 32 | B65: Block 1 kWhs | C65: Block 2 kWhs | D65: Block 3 kWhs | E65: Total kWhs | F65: Total Billings(2) | G65: kvar billed(1)
A66: kWhs per billing run (30,31& 32) | B66: ='Block Data'!O144 -> 38920078.25 | C66: ='Block Data'!O145 -> 12590255.55 | D66: ='Block Data'!O146 -> 112757486.3 | E66: =B66+C66+D66 -> 164267820 | F66: ='REVRUNS 12ME0921'!P46 -> 30331 | G66: ='Block Data'!O151 -> 0
A67: Schedule Shifting | B67: 0 | C67: 0 | D67: =-B67-C67 -> 0 | E67: =SUM(B67:D67) -> 0
A68: Total Schs. 30,31&32 | B68: =B66+B67 -> 38920078.25 | C68: =C66+C67 -> 12590255.55 | D68: =D66+D67 -> 112757486.3 | E68: =E66+E67 -> 164267820
A69: Total kWhs per Rev. Run | E69: ='Block Data'!O136 -> 164267820
A70: Adjust kWhs to Actual | E70: =E69-E68 -> 0
A87: Revenue Runs from this sheet | B87: =E10+D18+D39+E69+E58 -> 5260845510
A89: actual Revenue Runs | B89: ='REVRUNS 12ME0921'!P342 -> 5740382366
A90: less:
A91: Sch 25 Adj | B91: ='REVRUNS 12ME0921'!P338-'Bill Determ'!E58 -> 462557058.8 | C91: rev. runs too high
A93: Sch shifting | B93: =D36 -> 4977596.4 | C93: not shown on this sheet
A94: Schs 41-48 St & Area Lt | B94: ='REVRUNS 12ME0921'!P341 -> 16979796.48 | C94: not shown on this sheet
B95: =B89-SUM(B91:B94) -> 5255867914
A96: Diff | B96: =B87-B95 -> 4977596.4
A98: from Present Rev tab | B98: ='Pres & Prop Rev'!C20-'Pres & Prop Rev'!C15 -> 5742541023
A99: this sheet + SAL | B99: =B87+B94+B93 -> 5282802903
A100: Diff | B100: =B98-B99 -> 459738120
A103: Rev. Run customers | B103: ='REVRUNS 12ME0921'!P48 -> 3143223
A104: less:
A105: normalize Sch 25 | B105: ='REVRUNS 12ME0921'!P44-G58 -> 19 | C105: rev. runs too low
A106: Sch Shifting | B106: =-F36 -> -6 | C106: not shown on this sheet
A107: Schs 41-48 St & Area Lt | B107: ='REVRUNS 12ME0921'!P47 -> 5778 | C107: not shown on this sheet
B108: =B103-SUM(B104:B107) -> 3137432
A110: from Present Rev tab | B110: =SUM('Pres & Prop Rev'!D25:L25) -> 3137444
A111: Diff | B111: =B108-B110 -> -12

Sheet Sp Cnt Exh B
A1: Inland Empire Paper
A2: Exhibit B - Rate Design
D5: Schedule 25 | H5: Special Contract
D6: Present | E6: 2019 | F6: Present | H6: Proposed | I6: 2019 | J6: Proposed | M6: Revised Base
D7: Base Tariff | E7: Billing | F7: Base | H7: Special Contract | I7: Billing | J7: Special Contract | L7: Schedule 99 | M7: Rate With | P7: LIRAP | Q7: DSM | U7: Rate Factor Calculation for future IEP Special Contract Rate Changes from UE-200900
D8: Sch. Rate | E8: Determinants | F8: Revenue | H8: Rate | I8: Determinants | J8: Rate | L8: Colstrip Rates | M8: Colstrip
A9: IEP Special Contract
A10: Energy Charge: | W10: Rate Year Revenue | Y10: MWh | AA10: Rate Factor
A11: First 500,000 kWhs | D11: 0.04782 | E11: 6000000 | F11: =D11*E11 -> 286920 | H11: ='Att A pg 3'!N68 -> 0.04843 | I11: =E11 -> 6000000 | J11: =H11*I11 -> 290580 | L11: ='Att A pg 3'!R68 -> -0.0005942421582 | M11: =H11+L11 -> 0.04783575784 | P11: =0.00093*I11 -> 5580 | Q11: =0.00182*I11 -> 10920 | U11: Schedule 25 | W11: 45108846.98 | Y11: 620117.6859 | AA11: =W11/Y11 -> 72.74239714
A12: 500,000 - 6,000,000 kWhs | D12: 0.04303 | E12: 66000000 | F12: =D12*E12 -> 2839980 | H12: ='Att A pg 3'!N69 -> 0.04358 | I12: =E12 -> 66000000 | J12: =H12*I12 -> 2876280 | L12: =L11 -> -0.0005942421582 | M12: =H12+L12 -> 0.04298575784 | P12: =0.00093*I12 -> 61380 | Q12: =0.00182*I12 -> 120120
A13: All over 6,000,000 kWhs | D13: 0.03679 | E13: 387738120 | F13: 14264885.43 | H13: ='Att A pg 3'!N70 -> 0.03726 | I13: 387738120 | J13: =H13*I13 -> 14447122.35 | L13: =L11 -> -0.0005942421582 | M13: =H13+L13 -> 0.03666575784 | Q13: 705683.3784 | U13: Special Contract | W13: 21357310.44 | Y13: 451099.448 | AA13: =W13/Y13 -> 47.34501567
E14: 0 | P14: =SUM(P11:P13) -> 66960 | Q14: =SUM(Q11:Q13) -> 836723.3784
A15: Demand Charge:
A16: 3,000 kva or less | D16: 30650 | E16: 12 | F16: 367800 | H16: 30650 | I16: =E16 -> 12 | J16: =H16*I16 -> 367800 | M16: =H16 -> 30650 | AA16: =AA13/AA11 -> 0.6508586125
A17: Over 3,000 kva | D17: 8.3 | E17: 703831.31 | F17: =D17*E17 -> 5841799.873 | H17: 8.3 | I17: =E17 -> 703831.31 | J17: =H17*I17 -> 5841799.873 | M17: =H17 -> 8.3
E18: 0
A19: Primary Volt. Discount
A20: 11 - 60 kv | D20: 0.2 | E20: 0 | F20: 0 | H20: 0.2 | I20: =E20 -> 0 | J20: =H20*I20 -> 0 | M20: =H20 -> 0.2
A21: 60 - 115 kv | D21: 1.52 | E21: 119510.1332 | F21: =-D21*E21 -> -181655.4024 | H21: 1.52 | I21: =E21 -> 119510.1332 | J21: =-H21*I21 -> -181655.4024 | M21: =H21 -> 1.52
A22: 115 or higher kv | D22: 1.93 | E22: 627781.5488 | F22: =-D22*E22 -> -1211618.389 | H22: 1.93 | I22: 627781.5488 | J22: =-H22*I22 -> -1211618.389 | M22: =H22 -> 1.93
D24: Total Present Revenue | E24: 0 | F24: =SUM(F11:F22) -> 22208111.52 | H24: Total Proposed Revenue | J24: =SUM(J11:J22) -> 22430308.43 | O24: =J24-F24 -> 222196.9164

Sheet Bill Impact
A3: Schedule 001 Bill Impact
A7: Schedule 001 Present | G7: Schedule 001 Proposed
B8: Basic Charge | C8: Block 1 | D8: Block 2 | E8: Total Bill | G8: Basic Charge | H8: Block 1 | I8: Block 2 | J8: Total Bill | L8: Bill Impact | M8: % Change
B9: ='Att A pg 3'!D11 -> 9 | C9: ='Att A pg 3'!H13 -> 0.0848 | D9: ='Att A pg 3'!H14 -> 0.09961 | G9: ='Att A pg 3'!M11 -> 9 | H9: ='Att A pg 3'!M13 -> 0.08715 | I9: ='Att A pg 3'!M14 -> 0.10233
A10: 100 | B10: =$B$9 -> 9 | C10: =A10*$C$9 -> 8.48 | E10: =SUM(B10:D10) -> 17.48 | G10: =$G$9 -> 9 | H10: =A10*$H$9 -> 8.715 | J10: =SUM(G10:I10) -> 17.715 | L10: =J10-E10 -> 0.235 | M10: =L10/E10 -> 0.01344393593
A11: 200 | B11: =$B$9 -> 9 | C11: 16.96 | E11: =SUM(B11:D11) -> 25.96 | G11: =$G$9 -> 9 | H11: 17.43 | J11: =SUM(G11:I11) -> 26.43 | L11: =J11-E11 -> 0.47 | M11: =L11/E11 -> 0.01810477658
A12: 300 | B12: =$B$9 -> 9 | C12: 25.44 | E12: =SUM(B12:D12) -> 34.44 | G12: =$G$9 -> 9 | H12: 26.145 | J12: =SUM(G12:I12) -> 35.145 | L12: 0.705 | M12: =L12/E12 -> 0.02047038328
A13: 400 | B13: =$B$9 -> 9 | C13: 33.92 | E13: =SUM(B13:D13) -> 42.92 | G13: =$G$9 -> 9 | H13: 34.86 | J13: =SUM(G13:I13) -> 43.86 | L13: 0.94 | M13: =L13/E13 -> 0.02190121156
A14: 500 | B14: =$B$9 -> 9 | C14: 42.4 | E14: =SUM(B14:D14) -> 51.4 | G14: =$G$9 -> 9 | H14: 43.575 | J14: =SUM(G14:I14) -> 52.575 | L14: 1.175 | M14: =L14/E14 -> 0.02285992218
A15: 600 | B15: =$B$9 -> 9 | C15: 50.88 | E15: =SUM(B15:D15) -> 59.88 | G15: =$G$9 -> 9 | H15: 52.29 | J15: =SUM(G15:I15) -> 61.29 | L15: 1.41 | M15: =L15/E15 -> 0.02354709419
A16: 700 | B16: 9 | C16: 59.36 | E16: =SUM(B16:D16) -> 68.36 | G16: 9 | H16: 61.005 | J16: =SUM(G16:I16) -> 70.005 | L16: 1.645 | M16: =L16/E16 -> 0.02406377999
A17: 800 | B17: 9 | C17: 67.84 | E17: 76.84 | G17: 9 | H17: =A17*$H$9 -> 69.72 | J17: 78.72 | L17: 1.88 | M17: 0.02446642374
A18: =ROUND('Pres & Prop Rev'!D46/'Pres & Prop Rev'!D48,0) -> 932 | B18: 9 | C18: =ROUND($C$17,2) -> 67.84 | D18: =ROUND((A18-$A$17)*$D$9,2) -> 13.15 | E18: 89.99 | G18: 9 | H18: =ROUND($H$17,2) -> 69.72 | I18: =ROUND((A18-$A$17)*$I$9,2) -> 13.51 | J18: =SUM(G18:I18) -> 92.23 | L18: 2.24 | M18: =L18/E18 -> 0.02489165463
A19: 1000 | B19: 9 | C19: =ROUND($C$17,2) -> 67.84 | D19: =ROUND((A19-$A$17)*$D$9,2) -> 19.92 | E19: 96.76 | G19: 9 | H19: =ROUND($H$17,2) -> 69.72 | I19: =ROUND((A19-$A$17)*$I$9,2) -> 20.47 | J19: 99.19 | L19: 2.43 | M19: 0.02511368334
A20: 1100 | B20: 9 | C20: =$C$17 -> 67.84 | D20: =(A20-$A$17)*$D$9 -> 29.883 | E20: =SUM(B20:D20) -> 106.723 | G20: 9 | H20: =$H$17 -> 69.72 | I20: =(A20-$A$17)*$I$9 -> 30.699 | J20: =SUM(G20:I20) -> 109.419 | L20: 2.696 | M20: =L20/E20 -> 0.02526165869
A21: 1200 | B21: 9 | C21: =$C$17 -> 67.84 | D21: =(A21-$A$17)*$D$9 -> 39.844 | E21: 116.684 | G21: 9 | H21: =$H$17 -> 69.72 | I21: =(A21-$A$17)*$I$9 -> 40.932 | J21: 119.652 | L21: 2.968 | M21: 0.0254362209
A22: 1300 | B22: 9 | C22: =$C$17 -> 67.84 | D22: =(A22-$A$17)*$D$9 -> 49.805 | E22: =SUM(B22:D22) -> 126.645 | G22: 9 | H22: =$H$17 -> 69.72 | I22: =(A22-$A$17)*$I$9 -> 51.165 | J22: =SUM(G22:I22) -> 129.885 | L22: 3.24 | M22: =L22/E22 -> 0.02558332346
A23: 1400 | B23: 9 | C23: =$C$17 -> 67.84 | D23: =(A23-$A$17)*$D$9 -> 59.766 | E23: =SUM(B23:D23) -> 136.606 | G23: 9 | H23: =$H$17 -> 69.72 | I23: =(A23-$A$17)*$I$9 -> 61.398 | J23: =SUM(G23:I23) -> 140.118 | L23: 3.512 | M23: =L23/E23 -> 0.02570897325
A24: 1500 | B24: 9 | C24: =$C$17 -> 67.84 | D24: =(A24-$A$17)*$D$9 -> 69.727 | E24: 146.567 | G24: 9 | H24: =$H$17 -> 69.72 | I24: =(A24-$A$17)*$I$9 -> 71.631 | J24: 150.351 | L24: 3.784 | M24: 0.02581754419
G28: =(G9-B9) -> 0 | H28: =(H9-C9)*800 -> 1.88 | I28: =(I9-D9)*132 -> 0.35904

Sheet WA Sch 25
A1: Washington Schedule 25 Billing Determinants | Q1: 1st | R1: =Q2 -> 500000 | S1: =R2 -> 6000000
P2: 12-mo Ended | Q2: 500000 | R2: 6000000 | S2: 99999999
A3: KWHs | C3: Acct No. | D3: 2020-10-31 | E3: =EOMONTH(D3,1) -> 2020-11-30 | F3: 2020-12-31 | G3: 2021-01-31 | H3: 2021-02-28 | I3: 2021-03-31 | J3: 2021-04-30 | K3: 2021-05-31 | L3: 2021-06-30 | M3: 2021-07-31 | N3: 2021-08-31 | O3: 2021-09-30 | P3: Total | Q3: kwhs/mo | R3: kwhs/mo | S3: kwhs/mo
A4: 1 | B4: Goodrich - North 2311008572 | C4: 2311008572 | D4: 2458068.9 | E4: 1544554.2 | F4: 1189675.2 | G4: 1511697.6 | H4: 1882095.6 | I4: 2261666.4 | J4: 1799479.5 | K4: 2309876.1 | L4: 2695404.6 | M4: 2647274.7 | N4: 2478096.6 | O4: 3166680.3 | P4: =SUM(D4:O4) -> 25944569.7 | Q4: =Q$2*12-SUMPRODUCT(--($D4:$O4<=Q$2),Q$2-$D4:$O4) -> 6000000 | R4: =R$2*12-SUM($Q4:Q4)-SUMPRODUCT(--($D4:$O4<=R$2),R$2-$D4:$O4) -> 19944569.7 | S4: =S$2*12-SUM($Q4:R4)-SUMPRODUCT(--($D4:$O4<=S$2),S$2-$D4:$O4) -> 0
A5: 2 | B5: Boise Cascade Plywood | C5: 8920023327 | D5: 3024031.5 | E5: 2843954.4 | F5: 2473554.3 | G5: 2885658.3 | H5: 2744878.5 | I5: 2980838.7 | J5: 2910555.9 | K5: 2901796.8 | L5: 2761634.4 | M5: 2818435.2 | N5: 2414878.2 | O5: 2830543.8 | P5: 33590760 | Q5: =Q$2*12-SUMPRODUCT(--($D5:$O5<=Q$2),Q$2-$D5:$O5) -> 6000000 | R5: =R$2*12-SUM($Q5:Q5)-SUMPRODUCT(--($D5:$O5<=R$2),R$2-$D5:$O5) -> 27590760 | S5: =S$2*12-SUM($Q5:R5)-SUMPRODUCT(--($D5:$O5<=S$2),S$2-$D5:$O5) -> 0
A6: 3 | B6: Boise Cascade Sawmill | C6: 9920023116 | D6: 1281416.5 | E6: 1231090.7 | F6: 1371597.5 | G6: 1378001.1 | H6: 1276487.1 | I6: 1360394 | J6: 1246655.2 | K6: 1204011.2 | L6: 1244033.7 | M6: 1159707.5 | N6: 1143046.8 | O6: 1107361.5 | P6: 15003802.8 | Q6: 6000000 | R6: =R$2*12-SUM($Q6:Q6)-SUMPRODUCT(--($D6:$O6<=R$2),R$2-$D6:$O6) -> 9003802.8 | S6: =S$2*12-SUM($Q6:R6)-SUMPRODUCT(--($D6:$O6<=S$2),S$2-$D6:$O6) -> 0
A7: 4 | B7: City of Spokane | C7: 8970099313 | D7: 1273549.2 | E7: 1311429 | F7: 1427570.55 | G7: 1480744.65 | H7: 1399653.15 | I7: 1642623.15 | J7: 1599610.95 | K7: 1655249.4 | L7: 1732733.1 | M7: 1807320.9 | N7: 1615553.1 | O7: 1391827.5 | P7: 18337864.65 | Q7: 6000000 | R7: =R$2*12-SUM($Q7:Q7)-SUMPRODUCT(--($D7:$O7<=R$2),R$2-$D7:$O7) -> 12337864.65 | S7: =S$2*12-SUM($Q7:R7)-SUMPRODUCT(--($D7:$O7<=S$2),S$2-$D7:$O7) -> 0
A8: 5 | B8: Empire Health Services | C8: 0080095044 | D8: 1565237.1 | E8: 1501969.35 | F8: 1579521.3 | G8: 1563613.8 | H8: 1462822.2 | I8: 1593162.9 | J8: 1625069.25 | K8: 1785898.8 | L8: 1999167.45 | M8: 2213329.65 | N8: 2118270 | O8: 1807545.6 | P8: 20815607.4 | Q8: 6000000 | R8: =R$2*12-SUM($Q8:Q8)-SUMPRODUCT(--($D8:$O8<=R$2),R$2-$D8:$O8) -> 14815607.4 | S8: =S$2*12-SUM($Q8:R8)-SUMPRODUCT(--($D8:$O8<=S$2),S$2-$D8:$O8) -> 0
A9: 6 | B9: Gonzaga University | C9: 1420028876 | D9: 1943260.2 | E9: 1995587.3 | F9: 1999254.6 | G9: 2129810.2 | H9: 2099549.2 | I9: 2016858.2 | J9: 1782077.5 | K9: 1438536.4 | L9: 1704057.6 | M9: 1870433.6 | N9: 1812687.8 | O9: 1940272.6 | P9: 22732385.2 | Q9: 6000000 | R9: =R$2*12-SUM($Q9:Q9)-SUMPRODUCT(--($D9:$O9<=R$2),R$2-$D9:$O9) -> 16732385.2 | S9: =S$2*12-SUM($Q9:R9)-SUMPRODUCT(--($D9:$O9<=S$2),S$2-$D9:$O9) -> 0
A10: 7 | B10: Honeywell Electronics | C10: 0170122152 | D10: 1313485.6 | E10: 1266305.6 | F10: 1310813.7 | G10: 1312558.8 | H10: 1225321.3 | I10: 1312726.1 | J10: 1295624.4 | K10: 1371136.9 | L10: 1504815.9 | M10: 1596914.9 | N10: 1557619.7 | O10: 1419316.5 | P10: 16486639.4 | Q10: 6000000 | R10: =R$2*12-SUM($Q10:Q10)-SUMPRODUCT(--($D10:$O10<=R$2),R$2-$D10:$O10) -> 10486639.4 | S10: =S$2*12-SUM($Q10:R10)-SUMPRODUCT(--($D10:$O10<=S$2),S$2-$D10:$O10) -> 0
A11: 8 | B11: Huntwood Industries | C11: 8640841982 | D11: 983448.9 | E11: 872745.3 | F11: 973484.4 | G11: 955497.9 | H11: 914768.4 | I11: 1072692.6 | J11: 1100330.7 | K11: 1063473.6 | L11: 1203917.4 | M11: 1309969.5 | N11: 1190796.6 | O11: 1071226.8 | P11: 12712352.1 | Q11: 6000000 | R11: =R$2*12-SUM($Q11:Q11)-SUMPRODUCT(--($D11:$O11<=R$2),R$2-$D11:$O11) -> 6712352.1 | S11: =S$2*12-SUM($Q11:R11)-SUMPRODUCT(--($D11:$O11<=S$2),S$2-$D11:$O11) -> 0
P12: 0 | Q12: 0 | R12: =R$2*12-SUM($Q12:Q12)-SUMPRODUCT(--($D12:$O12<=R$2),R$2-$D12:$O12) -> 0 | S12: =S$2*12-SUM($Q12:R12)-SUMPRODUCT(--($D12:$O12<=S$2),S$2-$D12:$O12) -> 0 | V12: =P12*0.00205 -> 0 | W12: Sch 91
A13: 9 | B13: Simplot - Othello | C13: 4250473907 | D13: 5681671.8 | E13: 4277807.1 | F13: 4873619.1 | G13: 5149987.5 | H13: 4659759.3 | I13: 5590407.9 | J13: 5534106.9 | K13: 5645045.7 | L13: 5697176.1 | M13: 5806479 | N13: 5842979.1 | O13: 5400992.1 | P13: 64160031.6 | Q13: 6000000 | R13: =R$2*12-SUM($Q13:Q13)-SUMPRODUCT(--($D13:$O13<=R$2),R$2-$D13:$O13) -> 58160031.6 | S13: =S$2*12-SUM($Q13:R13)-SUMPRODUCT(--($D13:$O13<=S$2),S$2-$D13:$O13) -> 0
A14: 10 | B14: McCaine Foods Inc | C14: 9060132009 | D14: 5108659.223 | E14: 4901879.5 | F14: 4318007.4 | G14: 3850310.8 | H14: 4488337.7 | I14: 5030074.7 | J14: 4611767.3 | K14: 5244211.7 | L14: 4995937.8 | M14: 3964338.7 | N14: 5541515 | O14: 5633071.5 | P14: 57688111.32 | Q14: 6000000 | R14: =R$2*12-SUM($Q14:Q14)-SUMPRODUCT(--($D14:$O14<=R$2),R$2-$D14:$O14) -> 51688111.32 | S14: =S$2*12-SUM($Q14:R14)-SUMPRODUCT(--($D14:$O14<=S$2),S$2-$D14:$O14) -> 0
A15: 11 | B15: Sacred Heart Medical Center | C15: 0030019644 | D15: 3221788.5 | E15: 2928910.95 | F15: 3036522.3 | G15: 2999695.65 | H15: 2730817.95 | I15: 3012507.75 | J15: 3024783.3 | K15: 3270666 | L15: 3789981.3 | M15: 4103871.45 | N15: 3847194.75 | O15: 3259788 | P15: 39226527.9 | Q15: 6000000 | R15: =R$2*12-SUM($Q15:Q15)-SUMPRODUCT(--($D15:$O15<=R$2),R$2-$D15:$O15) -> 33226527.9 | S15: =S$2*12-SUM($Q15:R15)-SUMPRODUCT(--($D15:$O15<=S$2),S$2-$D15:$O15) -> 0
A16: 12 | B16: Spokane County Combined Master | C16: 1080099801 | D16: 978952.8 | E16: 848800.05 | F16: 888017.55 | G16: 878007.9 | H16: 807562.35 | I16: 883466.85 | J16: 909089.475 | K16: 984245.85 | L16: 1146591.6 | M16: 1307596.5 | N16: 1222100.25 | O16: 1011286.5 | P16: 11865717.67 | Q16: 6000000 | R16: =R$2*12-SUM($Q16:Q16)-SUMPRODUCT(--($D16:$O16<=R$2),R$2-$D16:$O16) -> 5865717.675 | S16: =S$2*12-SUM($Q16:R16)-SUMPRODUCT(--($D16:$O16<=S$2),S$2-$D16:$O16) -> 0
A17: 13 | B17: Spokane Industries | C17: 0070121063 | D17: 532618.8 | E17: 527129.4 | F17: 577367.7 | G17: 774896.4 | H17: 863699.1 | I17: 941076 | J17: 872875.8 | K17: 859198.8 | L17: 875872.8 | M17: 863790 | N17: 720480 | O17: 896113.2 | P17: 9305118 | Q17: 6000000 | R17: =R$2*12-SUM($Q17:Q17)-SUMPRODUCT(--($D17:$O17<=R$2),R$2-$D17:$O17) -> 3305118 | S17: =S$2*12-SUM($Q17:R17)-SUMPRODUCT(--($D17:$O17<=S$2),S$2-$D17:$O17) -> 0
P18: 0 | Q18: =Q$2*12-SUMPRODUCT(--($D18:$O18<=Q$2),Q$2-$D18:$O18) -> 0 | R18: =R$2*12-SUM($Q18:Q18)-SUMPRODUCT(--($D18:$O18<=R$2),R$2-$D18:$O18) -> 0 | S18: =S$2*12-SUM($Q18:R18)-SUMPRODUCT(--($D18:$O18<=S$2),S$2-$D18:$O18) -> 0
A19: 14 | B19: Vaagen Brothers Lumber | C19: 2470070232 | D19: 2080783.6 | E19: 2194726.8 | F19: 2375410.8 | G19: 2265866.4 | H19: 2154124 | I19: 2215161.2 | J19: 2035479.6 | K19: 1818572 | L19: 1707647.2 | M19: 1593020.8 | N19: 1721078.8 | O19: 1662900.4 | P19: 23824771.6 | Q19: 6000000 | R19: =R$2*12-SUM($Q19:Q19)-SUMPRODUCT(--($D19:$O19<=R$2),R$2-$D19:$O19) -> 17824771.6 | S19: =S$2*12-SUM($Q19:R19)-SUMPRODUCT(--($D19:$O19<=S$2),S$2-$D19:$O19) -> 0
A20: 15 | B20: WSU - MP-A South Campus Feeder | C20: 3730460787 | D20: 2119429.2 | E20: 2110371.2 | F20: 2175661.6 | G20: 2177000 | H20: 2071521.2 | I20: 2213257.2 | J20: 2102864.4 | K20: 2137346.4 | L20: 2145421.6 | M20: 2178472.8 | N20: 2250592.4 | O20: 2226266 | P20: 25908204 | Q20: 6000000 | R20: =R$2*12-SUM($Q20:Q20)-SUMPRODUCT(--($D20:$O20<=R$2),R$2-$D20:$O20) -> 19908204 | S20: =S$2*12-SUM($Q20:R20)-SUMPRODUCT(--($D20:$O20<=S$2),S$2-$D20:$O20) -> 0
A21: 16 | B21: WSU - MP-B East Campus EA | C21: 6030021572 | D21: 3925595.48 | E21: 3903967.98 | F21: 4071661.93 | G21: 3705349.37 | H21: 3432820.27 | I21: 3553735.59 | J21: 3322993.19 | K21: 3643222.21 | L21: 4681372.18 | M21: 5246385.99 | N21: 5272778.24 | O21: 4403257.28 | P21: 49163139.71 | Q21: 6000000 | R21: =R$2*12-SUM($Q21:Q21)-SUMPRODUCT(--($D21:$O21<=R$2),R$2-$D21:$O21) -> 43163139.71 | S21: =S$2*12-SUM($Q21:R21)-SUMPRODUCT(--($D21:$O21<=S$2),S$2-$D21:$O21) -> 0
A22: 17 | B22: WSU - MP-C East Campus EB | C22: 6100609210 | D22: 2912242.2 | E22: 2990796.9 | F22: 3143271.6 | G22: 3099198.9 | H22: 2927685.6 | I22: 3034063.2 | J22: 2611944.3 | K22: 2740319.4 | L22: 2751098.7 | M22: 2812162.5 | N22: 2843326.5 | O22: 2835726.6 | P22: 34701836.4 | Q22: 6000000 | R22: =R$2*12-SUM($Q22:Q22)-SUMPRODUCT(--($D22:$O22<=R$2),R$2-$D22:$O22) -> 28701836.4 | S22: =S$2*12-SUM($Q22:R22)-SUMPRODUCT(--($D22:$O22<=S$2),S$2-$D22:$O22) -> 0
A23: 18 | B23: WSU - MP-D Casp East (no PVD) | C23: 5030019646 | D23: 2169680 | E23: 2202376 | F23: 2303120 | G23: 2565732 | H23: 2548396 | I23: 2578436 | J23: 2568960 | K23: 2396772 | L23: 2242924 | M23: 2364692 | N23: 2552876 | O23: 2135364 | P23: 28629328 | Q23: 6000000 | R23: =R$2*12-SUM($Q23:Q23)-SUMPRODUCT(--($D23:$O23<=R$2),R$2-$D23:$O23) -> 22629328 | S23: =S$2*12-SUM($Q23:R23)-SUMPRODUCT(--($D23:$O23<=S$2),S$2-$D23:$O23) -> 0
A24: 19 | B24: WSU - MP-E Casp West (no PVD) | C24: 7030024549 | D24: 2053567.6 | E24: 1556279.2 | F24: 1602062 | G24: 1632859.2 | H24: 1615776.4 | I24: 1618803.2 | J24: 1825381.6 | K24: 1894648 | L24: 2566603.2 | M24: 3180343.6 | N24: 2686943 | O24: 2714675.6 | P24: 24947942.6 | Q24: 6000000 | R24: =R$2*12-SUM($Q24:Q24)-SUMPRODUCT(--($D24:$O24<=R$2),R$2-$D24:$O24) -> 18947942.6 | S24: =S$2*12-SUM($Q24:R24)-SUMPRODUCT(--($D24:$O24<=S$2),S$2-$D24:$O24) -> 0
A25: 20 | B25: Goodrich - South 2311155858 (No PVD) | C25: 2311155858 | D25: 1098339.2 | E25: 457528.4 | F25: 268716 | G25: 1068314.8 | H25: 1275747.2 | I25: 1496706.4 | J25: 1457517.6 | K25: 1753113.6 | L25: 1824138.4 | M25: 1883439.6 | N25: 2028602.8 | O25: 2428722.8 | P25: =SUM(D25:O25) -> 17040886.8 | Q25: =Q$2*12-SUMPRODUCT(--($D25:$O25<=Q$2),Q$2-$D25:$O25) -> 5726244.4 | R25: =R$2*12-SUM($Q25:Q25)-SUMPRODUCT(--($D25:$O25<=R$2),R$2-$D25:$O25) -> 11314642.4 | S25: =S$2*12-SUM($Q25:R25)-SUMPRODUCT(--($D25:$O25<=S$2),S$2-$D25:$O25) -> 0
A26: 21 | B26: Boise Cascade LLC Inland Region | C26: 7600951015 | D26: 777054.6 | E26: 787443.3 | F26: 856989 | G26: 891842.7 | H26: 853939.8 | I26: 874538.702 | J26: 773734.5 | K26: 686616 | L26: 747684 | M26: 708966.3 | N26: 713080.2 | O26: 734229.3 | P26: =SUM(D26:O26) -> 9406118.402 | Q26: =Q$2*12-SUMPRODUCT(--($D26:$O26<=Q$2),Q$2-$D26:$O26) -> 6000000 | R26: =R$2*12-SUM($Q26:Q26)-SUMPRODUCT(--($D26:$O26<=R$2),R$2-$D26:$O26) -> 3406118.402 | S26: =S$2*12-SUM($Q26:R26)-SUMPRODUCT(--($D26:$O26<=S$2),S$2-$D26:$O26) -> 0
B27: Schedule 25 Total | D27: =SUM(D4:D26) -> 46502880.9 | E27: =SUM(E4:E26) -> 42255652.63 | F27: 42815898.53 | G27: 44276643.97 | H27: 43435762.32 | I27: 47283196.74 | J27: 45010901.37 | K27: 46803956.86 | L27: 50018213.03 | M27: 51436945.19 | N27: 51574495.84 | O27: 50077167.88 | P27: =IF(ROUND(SUM(P4:P26),0)<>ROUND(SUM(D27:O27),0),#VALUE!,SUM(P4:P26)) -> 561491715.3 | Q27: =SUM(Q4:Q26) -> 125726244.4 | R27: =SUM(R4:R26) -> 435765470.9 | S27: =SUM(S4:S26) -> 0
S28: =SUM(Q27:S27) -> 561491715.3
B29: Revenue Run Total | D29: 86063755.54 | E29: 86495234.5 | F29: 81011134.03 | G29: 83424071.43 | H29: 84550821.57 | I29: 79534755.62 | J29: 88913578.34 | K29: 83737853.37 | L29: 81398172.86 | M29: 87645833.03 | N29: 89295175.19 | O29: 91978388.57 | P29: =SUM(D29:O29) -> 1024048774
B30: Booked Unbilled Reversal | D30: -85477326 | E30: -86330392 | F30: -80668735 | G30: -83626479 | H30: -83625209 | I30: -79439138 | J30: -88665576 | K30: -84356951 | L30: -80807475 | M30: -87774134 | N30: -89259226 | O30: -92631840 | P30: =SUM(D30:O30) -> -1022662481
B31: Gross Booked Unbilled | D31: 86330392 | E31: 80668735 | F31: 83626479 | G31: 83625209 | H31: 79439138 | I31: 88665576 | J31: 84356951 | K31: 80807475 | L31: 87774134 | M31: 89259226 | N31: 92631840 | O31: 88547307 | P31: 1025732462
B32: Gross Unbilled True-up | D32: =D27-D29-D30-D31-D33-D34-D35 -> 164842.503 | E32: 342399.03 | F32: -202407.57 | G32: 925612.57 | H32: 95617.62 | I32: 248002.342 | J32: -619097.635 | K32: 590697.86 | L32: -128300.97 | M32: 35949.19 | N32: -733148.16 | O32: -245197.12 | P32: =SUM(D32:O32) -> 474969.66
B33: Unbilled Reversal True-up | D33: =-(D29+D30) -> -586429.542 | E33: -164842.503 | F33: -342399.03 | G33: 202407.57 | H33: -925612.57 | I33: -95617.62 | J33: -248002.342 | K33: 619097.635 | L33: -590697.86 | M33: 128300.97 | N33: -35949.19 | O33: 653451.432 | P33: -1386293.05
B34: Less Customer Closing (Cust 15) | D34: -919707.6 | E34: -800339.4 | F34: -766308.9 | G34: -838521.6 | H34: -806805.3 | I34: -845913.6 | P34: -4977596.4
B35: Less transfer from 25 to 25I (Cust 9) | D35: -39072646 | E35: -37955142 | F35: -39841864 | G35: -39435656 | H35: -35292188 | I35: -40784468 | J35: -38726952 | K35: -34594216 | L35: -37627620 | M35: -37858230 | N35: -40324196 | O35: -38224942 | P35: -459738120
B36: Adj Revenue Runs, Sch 25 | D36: =SUM(D29:D35) -> 46502880.9 | E36: =SUM(E29:E35) -> 42255652.63 | F36: 42815898.53 | G36: =SUM(G29:G35) -> 44276643.97 | H36: 43435762.32 | I36: 47283196.74 | J36: 45010901.37 | K36: =SUM(K29:K35) -> 46803956.86 | L36: =SUM(L29:L35) -> 50018213.03 | M36: =SUM(M29:M35) -> 51436945.19 | N36: =SUM(N29:N35) -> 51574495.84 | O36: =SUM(O29:O35) -> 50077167.88 | P36: =IF(ROUND(SUM(P29:P35),0)<>ROUND(SUM(D36:O36),0),#VALUE!,SUM(P29:P35)) -> 561491715.3
D37: =D36-D27 -> 0 | E37: =E36-E27 -> 0 | F37: 0 | G37: =G36-G27 -> 0 | H37: 0 | I37: 0 | J37: 0 | K37: 0 | L37: 0 | M37: 0 | N37: 0 | O37: 0 | P37: 0
A39: Schedule 25I KWH
A40: 1 | B40: Inland Empire Paper | C40: 0160126924 | D40: 39072646 | E40: 37955142 | F40: 39841864 | G40: 39435656 | H40: 35292188 | I40: 40784468 | J40: 38726952 | K40: 34594216 | L40: 37627620 | M40: 37858230 | N40: 40324196 | O40: 38224942 | P40: =SUM(D40:O40) -> 459738120 | Q40: =Q$2*12-SUMPRODUCT(--($D40:$O40<=Q$2),Q$2-$D40:$O40) -> 6000000 | R40: =R$2*12-SUM($Q40:Q40)-SUMPRODUCT(--($D40:$O40<=R$2),R$2-$D40:$O40) -> 66000000 | S40: =S$2*12-SUM($Q40:R40)-SUMPRODUCT(--($D40:$O40<=S$2),S$2-$D40:$O40) -> 387738120
P41: =SUM(D41:O41) -> 0 | Q41: 0 | R41: =R$2*12-SUM($Q41:Q41)-SUMPRODUCT(--($D41:$O41<=R$2),R$2-$D41:$O41) -> 0 | S41: =S$2*12-SUM($Q41:R41)-SUMPRODUCT(--($D41:$O41<=S$2),S$2-$D41:$O41) -> 0
B42: Schedule 25I Total | P42: =SUM(P40:P41) -> 459738120 | Q42: =SUM(Q40:Q41) -> 6000000 | R42: =SUM(R40:R41) -> 66000000 | S42: =SUM(S40:S41) -> 387738120
P43: ='REVRUNS 12ME0921'!P339 -> 0
B44: Revenue Run Total
B46: KVA | D46: =D$3 -> 2020-10-31 | E46: =E$3 -> 2020-11-30 | F46: 2020-12-31 | G46: 2021-01-31 | H46: 2021-02-28 | I46: 2021-03-31 | J46: 2021-04-30 | K46: 2021-05-31 | L46: 2021-06-30 | M46: 2021-07-31 | N46: 2021-08-31 | O46: 2021-09-30 | P46: Total | Q46: Peak | R46: Month
A47: 1 | B47: =B4 -> Goodrich - North 2311008572 | C47: 2311008572 | D47: 5260.104 | E47: 3141.659 | F47: 2525.262 | G47: 3380.217 | H47: 4143.074 | I47: 4652.851 | J47: 4035.625 | K47: 4345.896 | L47: 5453.577 | M47: 5576.249 | N47: 5202.856 | O47: 6112.182 | P47: =SUM(D47:O47) -> 53829.552 | Q47: =MAX(D47:O47) -> 6112.182 | R47: =INDEX($D$46:$O$46,MATCH(Q47,$D47:$O47,0)) -> 2021-09-30
A48: 2 | B48: Boise Cascade Plywood | C48: 8920023327 | D48: 5283.401 | E48: 5252.765 | F48: 5340.263 | G48: 5293.408 | H48: 5236.996 | I48: 5209.226 | J48: 5240.289 | K48: 5236.967 | L48: 5179.634 | M48: 5125.034 | N48: 5329.025 | O48: 5453.561 | P48: 63180.569 | Q48: =MAX(D48:O48) -> 5453.561 | R48: =INDEX($D$46:$O$46,MATCH(Q48,$D48:$O48,0)) -> 2021-09-30
A49: 3 | B49: Boise Cascade Sawmill | C49: 9920023116 | D49: 2800.821 | E49: 2732.265 | F49: 2982.678 | G49: 2978.114 | H49: 2898.47 | I49: 2861.596 | J49: 2750.031 | K49: 2696.469 | L49: 2667.03 | M49: 2554.242 | N49: 2481.912 | O49: 2602.556 | P49: 33006.184 | Q49: =MAX(D49:O49) -> 2982.678 | R49: 2020-12-31
A50: 4 | B50: City of Spokane | C50: 8970099313 | D50: 2698.435 | E50: 2852.623 | F50: 2766.651 | G50: 2681.368 | H50: 2838.569 | I50: 3476.18 | J50: 3425.133 | K50: 3513.361 | L50: 3796.104 | M50: 3482.692 | N50: 3366.412 | O50: 3646.889 | P50: 38544.417 | Q50: 3796.104 | R50: 2021-06-30
A51: 5 | B51: Empire Health Services | C51: 0080095044 | D51: 2629.322 | E51: 2623.116 | F51: 2669.669 | G51: 2699.529 | H51: 2745.877 | I51: 2631.96 | J51: 3270.271 | K51: 3582.778 | L51: 4008.44 | M51: 3845.478 | N51: 3862.64 | O51: 3436.373 | P51: 38005.453 | Q51: 4008.44 | R51: 2021-06-30
A52: 6 | B52: Gonzaga University | C52: 1420028876 | D52: 4533.978 | E52: 4186.861 | F52: 3923.124 | G52: 4276.12 | H52: 4344.323 | I52: 3915.354 | J52: 4170.6 | K52: 4208.982 | L52: 5115.64 | M52: 4863.806 | N52: 4732.263 | O52: 5091.654 | P52: 53362.705 | Q52: 5115.64 | R52: 2021-06-30
A53: 7 | B53: Honeywell Electronics | C53: 0170122152 | D53: 3063.733 | E53: 3184.972 | F53: 3021.739 | G53: 3048.921 | H53: 3097.51 | I53: 3008.321 | J53: 3030.349 | K53: 3044.38 | L53: 3866.43 | M53: 3713.792 | N53: 3633.108 | O53: 3443.072 | P53: 39156.327 | Q53: 3866.43 | R53: 2021-06-30
A54: 8 | B54: Huntwood Industries | C54: 8640841982 | D54: 4226.21 | E54: 4182.597 | F54: 4286.332 | G54: 4212.047 | H54: 4246.95 | I54: 4260.069 | J54: 4246.721 | K54: 4176.897 | L54: 4739.394 | M54: 4743.548 | N54: 4479.652 | O54: 4338.541 | P54: 52138.958 | Q54: 4743.548 | R54: 2021-07-31
B55: 0 | C55: 0 | P55: 0 | Q55: 0
A56: 9 | B56: =B13 -> Simplot - Othello | C56: 4250473907 | D56: 8544.53 | E56: 8419.141 | F56: 8590.273 | G56: 8548.543 | H56: 8751.552 | I56: 8758.128 | J56: 8617.256 | K56: 8602.57 | L56: 8715.546 | M56: 8855.817 | N56: 8849.311 | O56: 8603.963 | P56: 103856.63 | Q56: 8855.817 | R56: 2021-07-31
A57: 10 | B57: McCaine Foods Inc | C57: 9060132009 | D57: 11775.164 | E57: 8587.057 | F57: 8656.494 | G57: 8364.085 | H57: 8288.275 | I57: 8087.875 | J57: 8680.181 | K57: 8421.233 | L57: 8627 | M57: 9036.309 | N57: 9743.635 | O57: 11806.96 | P57: 110074.268 | Q57: 11806.96 | R57: 2021-09-30
A58: 11 | B58: Sacred Heart Medical Center | C58: 0030019644 | D58: 6616.068 | E58: 4813.089 | F58: 4716.359 | G58: 4746.584 | H58: 4720.189 | I58: 5199.564 | J58: 6127.94 | K58: 6347.467 | L58: 8158.896 | M58: 7256.43 | N58: 7214.428 | O58: 6230.443 | P58: 72147.457 | Q58: 8158.896 | R58: 2021-06-30
A59: 12 | B59: Spokane County Combined Master | C59: 1080099801 | D59: 2320.782 | E59: 1677.018 | F59: 1653.186 | G59: 1712.644 | H59: 1687.595 | I59: 1955.631 | J59: 2101.757 | K59: 2296.909 | L59: 2801.769 | M59: 2649.069 | N59: 2660.233 | O59: 2406.321 | P59: 25922.914 | Q59: 2801.769 | R59: 2021-06-30
A60: 13 | B60: Spokane Industries | C60: 0070121063 | D60: 5936.924 | E60: 4183.757 | F60: 5325.476 | G60: 5994.727 | H60: 5891.478 | I60: 6147.6 | J60: 5688.14 | K60: 6045.376 | L60: 5808.813 | M60: 5867.069 | N60: 6243.78 | O60: 5716.582 | P60: 68849.722 | Q60: 6243.78 | R60: 2021-08-31
B61: 0 | C61: 0 | P61: 0 | Q61: 0
A62: 14 | B62: =B19 -> Vaagen Brothers Lumber | C62: 2470070232 | D62: 4530.009 | E62: 4614.009 | F62: 4789.834 | G62: 4799.122 | H62: 4953.345 | I62: 4711.331 | J62: 4352.598 | K62: 4040.597 | L62: 4140.627 | M62: 3937.676 | N62: 3948.397 | O62: 4225.273 | P62: 53042.818 | Q62: 4953.345 | R62: 2021-02-28
A63: 15 | B63: WSU - MP-A South Campus Feeder | C63: 3730460787 | D63: 3739.064 | E63: 3415.766 | F63: 3694.455 | G63: 3504.41 | H63: 3547.488 | I63: 3591.294 | J63: 3536.168 | K63: 3506.459 | L63: 3790.509 | M63: 3772.896 | N63: 3840.477 | O63: 4052.532 | P63: 43991.518 | Q63: 4052.532 | R63: 2021-09-30
A64: 16 | B64: WSU - MP-B East Campus EA | C64: 6030021572 | D64: 8239 | E64: 6913.38 | F64: 6926.19 | G64: 6587.53 | H64: 6657.21 | I64: 6082.3 | J64: 6718.87 | K64: 8354.08 | L64: 10613.44 | M64: 10208.21 | N64: 10897.51 | O64: 9374.42 | P64: 97572.14 | Q64: 10897.51 | R64: 2021-08-31
A65: 17 | B65: WSU - MP-C East Campus EB | C65: 6100609210 | D65: 5242.963 | E65: 5501.944 | F65: 5510.376 | G65: 5019.044 | H65: 5648.68 | I65: 5222.776 | J65: 4847.581 | K65: 4558.136 | L65: 4561.287 | M65: 4468.581 | N65: 4669.012 | O65: 5106.532 | P65: 60356.912 | Q65: 5648.68 | R65: 2021-02-28
A66: 18 | B66: WSU - MP-D Casp East (no PVD) | C66: 5030019646 | D66: 4112.381 | E66: 4321.874 | F66: 4276.709 | G66: 4651.331 | H66: 4844.857 | I66: 4697.553 | J66: 4683.308 | K66: 4565.562 | L66: 4275.991 | M66: 4322.614 | N66: 8442.491 | O66: 3952.648 | P66: 57147.319 | Q66: 8442.491 | R66: 2021-08-31
A67: 19 | B67: WSU - MP-E Casp West (no PVD) | C67: 7030024549 | D67: 5296.999 | E67: 2720.43 | F67: 2861.732 | G67: 3107.011 | H67: 3080.764 | I67: 2825.648 | J67: 4208.496 | K67: 4049.358 | L67: 5421 | M67: 5303.389 | N67: 5836.952 | O67: 6618.662 | P67: 51330.441 | Q67: 6618.662 | R67: 2021-09-30
A68: 20 | B68: =B25 -> Goodrich - South 2311155858 (No PVD) | D68: 4145.4 | E68: 1621.652 | F68: 1261.182 | G68: 3374.25 | H68: 4130.736 | I68: 4188.879 | J68: 3688.704 | K68: 4110.949 | L68: 8565.248 | M68: 4370.017 | N68: 5719.179 | O68: 5962.236 | P68: 51138.432 | Q68: =MAX(D68:O68) -> 8565.248 | R68: =INDEX($D$46:$O$46,MATCH(Q68,$D68:$O68,0)) -> 2021-06-30
A69: 21 | B69: =B26 -> Boise Cascade LLC Inland Region | D69: 3565.135 | E69: 3777.631 | F69: 3766.166 | G69: 4033.002 | H69: 4033.813 | I69: 3769.104 | J69: 3776.136 | K69: 3671.867 | L69: 3653.614 | M69: 3484.687 | N69: 3639.229 | O69: 3619.635 | P69: 44790.019 | Q69: 4033.813 | R69: 2021-02-28
B70: Schedule 25 Total | D70: =SUM(D47:D69) -> 104560.423 | E70: 88723.606 | F70: 89544.15 | G70: 93012.007 | H70: 95787.751 | I70: 95253.24 | J70: 97196.154 | K70: 99376.293 | L70: 113959.989 | M70: 107437.605 | N70: 114792.502 | O70: 111801.035 | P70: =IF(ROUND(SUM(P47:P69),0)<>ROUND(SUM(D70:O70),0),#VALUE!,SUM(P47:P69)) -> 1211444.755
P72: =P$2 -> 12-mo Ended
B73: KVA in excess of 3,000 | D73: =D$3 -> 2020-10-31 | E73: =E$3 -> 2020-11-30 | F73: 2020-12-31 | G73: 2021-01-31 | H73: 2021-02-28 | I73: 2021-03-31 | J73: 2021-04-30 | K73: 2021-05-31 | L73: 2021-06-30 | M73: 2021-07-31 | N73: 2021-08-31 | O73: 2021-09-30 | P73: Total
A74: 1 | B74: =B4 -> Goodrich - North 2311008572 | C74: 2311008572 | D74: =IF(D47>3000,D47-3000,0) -> 2260.104 | E74: 141.659 | F74: 0 | G74: =MAX(0,G47-3000) -> 380.217 | H74: 1143.074 | I74: 1652.851 | J74: 1035.625 | K74: 1345.896 | L74: 2453.577 | M74: 2576.249 | N74: 2202.856 | O74: 3112.182 | P74: =SUM(D74:O74) -> 18304.29
A75: 2 | B75: Boise Cascade Plywood | C75: 8920023327 | D75: 2283.401 | E75: 2252.765 | F75: 2340.263 | G75: =MAX(0,G48-3000) -> 2293.408 | H75: 2236.996 | I75: 2209.226 | J75: 2240.289 | K75: 2236.967 | L75: 2179.634 | M75: 2125.034 | N75: 2329.025 | O75: 2453.561 | P75: 27180.569
A76: 3 | B76: Boise Cascade Sawmill | C76: 9920023116 | D76: 0 | E76: 0 | F76: 0 | G76: =MAX(0,G49-3000) -> 0 | H76: 0 | I76: 0 | J76: 0 | K76: 0 | L76: 0 | M76: 0 | N76: 0 | O76: 0 | P76: 0
A77: 4 | B77: City of Spokane | C77: 8970099313 | D77: 0 | E77: 0 | F77: 0 | G77: =MAX(0,G50-3000) -> 0 | H77: 0 | I77: 476.18 | J77: 425.133 | K77: 513.361 | L77: 796.104 | M77: 482.692 | N77: 366.412 | O77: 646.889 | P77: 3706.771
A78: 5 | B78: Empire Health Services | C78: 0080095044 | D78: 0 | E78: 0 | F78: 0 | G78: =MAX(0,G51-3000) -> 0 | H78: 0 | I78: 0 | J78: 270.271 | K78: 582.778 | L78: 1008.44 | M78: 845.478 | N78: 862.64 | O78: 436.373 | P78: 4005.98
A79: 6 | B79: Gonzaga University | C79: 1420028876 | D79: 1533.978 | E79: 1186.861 | F79: 923.124 | G79: =MAX(0,G52-3000) -> 1276.12 | H79: 1344.323 | I79: 915.354 | J79: 1170.6 | K79: 1208.982 | L79: 2115.64 | M79: 1863.806 | N79: 1732.263 | O79: 2091.654 | P79: 17362.705
A80: 7 | B80: Honeywell Electronics | C80: 0170122152 | D80: 63.733 | E80: 184.972 | F80: 21.739 | G80: =MAX(0,G53-3000) -> 48.921 | H80: 97.51 | I80: 8.321 | J80: 30.349 | K80: 44.38 | L80: 866.43 | M80: 713.792 | N80: 633.108 | O80: 443.072 | P80: 3156.327
A81: 8 | B81: =B11 -> Huntwood Industries | C81: 610074869 | D81: 1226.21 | E81: 1182.597 | F81: 1286.332 | G81: =MAX(0,G54-3000) -> 1212.047 | H81: 1246.95 | I81: 1260.069 | J81: 1246.721 | K81: 1176.897 | L81: 1739.394 | M81: 1743.548 | N81: 1479.652 | O81: 1338.541 | P81: 16138.958
B82: 0 | C82: =C12 -> 0 | D82: =MAX(0,D55-3000) -> 0 | E82: =MAX(0,E55-3000) -> 0 | F82: =MAX(0,F55-3000) -> 0 | G82: =MAX(0,G55-3000) -> 0 | H82: 0 | I82: 0 | J82: 0 | K82: 0 | L82: 0 | M82: 0 | N82: 0 | O82: 0 | P82: 0
A83: 9 | B83: Simplot - Othello | C83: 4250473907 | D83: =IF(D56>3000,D56-3000,0) -> 5544.53 | E83: 5419.141 | F83: 5590.273 | G83: =MAX(0,G56-3000) -> 5548.543 | H83: 5751.552 | I83: 5758.128 | J83: 5617.256 | K83: 5602.57 | L83: 5715.546 | M83: 5855.817 | N83: 5849.311 | O83: 5603.963 | P83: 67856.63
A84: 10 | B84: McCaine Foods Inc | C84: 9060132009 | D84: 8775.164 | E84: 5587.057 | F84: 5656.494 | G84: =MAX(0,G57-3000) -> 5364.085 | H84: 5288.275 | I84: 5087.875 | J84: 5680.181 | K84: 5421.233 | L84: 5627 | M84: 6036.309 | N84: 6743.635 | O84: 8806.96 | P84: 74074.268
A85: 11 | B85: Sacred Heart Medical Center | C85: 0030019644 | D85: 3616.068 | E85: 1813.089 | F85: 1716.359 | G85: =MAX(0,G58-3000) -> 1746.584 | H85: 1720.189 | I85: 2199.564 | J85: 3127.94 | K85: 3347.467 | L85: 5158.896 | M85: 4256.43 | N85: 4214.428 | O85: 3230.443 | P85: 36147.457
A86: 12 | B86: Spokane County Combined Master | C86: 1080099801 | D86: 0 | E86: 0 | F86: 0 | G86: =MAX(0,G59-3000) -> 0 | H86: 0 | I86: 0 | J86: 0 | K86: 0 | L86: 0 | M86: 0 | N86: 0 | O86: 0 | P86: 0
A87: 13 | B87: Spokane Industries | C87: 0070121063 | D87: 2936.924 | E87: 1183.757 | F87: 2325.476 | G87: =MAX(0,G60-3000) -> 2994.727 | H87: 2891.478 | I87: 3147.6 | J87: 2688.14 | K87: 3045.376 | L87: 2808.813 | M87: 2867.069 | N87: 3243.78 | O87: 2716.582 | P87: 32849.722
B88: 0 | C88: 0 | D88: 0 | E88: 0 | F88: 0 | G88: =MAX(0,G61-3000) -> 0 | H88: 0 | I88: 0 | J88: 0 | K88: 0 | L88: 0 | M88: 0 | N88: 0 | O88: 0 | P88: 0
A89: 14 | B89: Vaagen Brothers Lumber | C89: 2470070232 | D89: 1530.009 | E89: 1614.009 | F89: 1789.834 | G89: =MAX(0,G62-3000) -> 1799.122 | H89: 1953.345 | I89: 1711.331 | J89: 1352.598 | K89: 1040.597 | L89: 1140.627 | M89: 937.676 | N89: 948.397 | O89: 1225.273 | P89: 17042.818
A90: 15 | B90: WSU - MP-A South Campus Feeder | C90: 3730460787 | D90: 739.064 | E90: 415.766 | F90: 694.455 | G90: =MAX(0,G63-3000) -> 504.41 | H90: 547.488 | I90: 591.294 | J90: 536.168 | K90: 506.459 | L90: 790.509 | M90: 772.896 | N90: 840.477 | O90: 1052.532 | P90: 7991.518
A91: 16 | B91: WSU - MP-B East Campus EA | C91: 6030021572 | D91: 5239 | E91: 3913.38 | F91: 3926.19 | G91: =MAX(0,G64-3000) -> 3587.53 | H91: 3657.21 | I91: 3082.3 | J91: 3718.87 | K91: 5354.08 | L91: 7613.44 | M91: 7208.21 | N91: 7897.51 | O91: 6374.42 | P91: 61572.14
A92: 17 | B92: WSU - MP-C East Campus EB | C92: 6100609210 | D92: 2242.963 | E92: 2501.944 | F92: 2510.376 | G92: =MAX(0,G65-3000) -> 2019.044 | H92: 2648.68 | I92: 2222.776 | J92: 1847.581 | K92: 1558.136 | L92: 1561.287 | M92: 1468.581 | N92: 1669.012 | O92: 2106.532 | P92: 24356.912
A93: 18 | B93: WSU - MP-D Casp East (no PVD) | C93: 5030019646 | D93: 1112.381 | E93: 1321.874 | F93: 1276.709 | G93: =MAX(0,G66-3000) -> 1651.331 | H93: 1844.857 | I93: 1697.553 | J93: 1683.308 | K93: 1565.562 | L93: 1275.991 | M93: 1322.614 | N93: 5442.491 | O93: 952.648 | P93: 21147.319
A94: 19 | B94: WSU - MP-E Casp West (no PVD) | C94: 7030024549 | D94: 2296.999 | E94: 0 | F94: 0 | G94: =MAX(0,G67-3000) -> 107.011 | H94: 80.764 | I94: 0 | J94: 1208.496 | K94: 1049.358 | L94: 2421 | M94: 2303.389 | N94: 2836.952 | O94: 3618.662 | P94: 15922.631
A95: 20 | B95: Goodrich - South 2311155858 (No PVD) | D95: 1145.4 | E95: 0 | F95: 0 | G95: =MAX(0,G68-3000) -> 374.25 | H95: 1130.736 | I95: 1188.879 | J95: 688.704 | K95: 1110.949 | L95: 5565.248 | M95: 1370.017 | N95: 2719.179 | O95: 2962.236 | P95: =SUM(D95:O95) -> 18255.598
A96: 21 | B96: Boise Cascade LLC Inland Region | D96: 565.135 | E96: 777.631 | F96: 766.166 | G96: =MAX(0,G69-3000) -> 1033.002 | H96: 1033.813 | I96: 769.104 | J96: 776.136 | K96: 671.867 | L96: 653.614 | M96: 484.687 | N96: 639.229 | O96: 619.635 | P96: 8790.019
B97: Schedule 25 Total | D97: =SUM(D74:D96) -> 43111.063 | E97: 29496.502 | F97: 30823.79 | G97: 31940.352 | H97: 34617.24 | I97: 33978.405 | J97: 35344.366 | K97: 37382.915 | L97: 51491.19 | M97: 45234.294 | N97: 52650.357 | O97: 49792.158 | P97: =IF(ROUND(SUM(P74:P96),0)<>ROUND(SUM(D97:O97),0),#VALUE!,SUM(P74:P96)) -> 475862.632
A99: Schedule 25I kVA
B100: Customer Total | D100: 61982.28 | E100: 60622.5 | F100: 61249.43 | G100: 64327.03 | H100: 59202.77 | I100: 60056.83 | J100: 62541.79 | K100: 60383.79 | L100: 62411.86 | M100: 62805.35 | N100: 62232.46 | O100: 62015.22 | P100: =SUM(D100:O100) -> 739831.31
B101: in excess of 3,000 kVA | D101: =MAX(0,D100-3000) -> 58982.28 | E101: 57622.5 | F101: 58249.43 | G101: 61327.03 | H101: 56202.77 | I101: 57056.83 | J101: 59541.79 | K101: 57383.79 | L101: 59411.86 | M101: 59805.35 | N101: 59232.46 | O101: 59015.22 | P101: =SUM(D101:O101) -> 703831.31
A104: Sch 25 Present Primary Voltage Discount
B105: >11 and <60 | C105: -0.2 | D105: =(D70-D66-D67-D55-D68)*$C105 -> -18201.1286 | E105: -16011.93 | F105: -16228.9054 | G105: -16375.883 | H105: -16746.2788 | I105: -16708.232 | J105: -16923.1292 | K105: -17330.0848 | L105: -19139.55 | M105: -18688.317 | N105: -18958.776 | O105: -19053.4978 | P105: =SUM(D105:O105) -> -210365.7126
B106: >60 and <115 | C106: =-1.52 -> -1.52 | D106: 0 | E106: 0 | F106: 0 | G106: 0 | H106: 0 | I106: 0 | J106: 0 | K106: 0 | L106: 0 | M106: 0 | N106: 0 | O106: 0 | P106: =SUM(D106:O106) -> 0
B107: >115 | C107: -1.93 | D107: 0 | E107: 0 | F107: 0 | G107: 0 | H107: 0 | I107: 0 | J107: 0 | K107: 0 | L107: 0 | M107: 0 | N107: 0 | O107: 0 | P107: =SUM(D107:O107) -> 0
D108: =SUM(D105:D107) -> -18201.1286 | E108: -16011.93 | F108: -16228.9054 | G108: -16375.883 | H108: -16746.2788 | I108: -16708.232 | J108: -16923.1292 | K108: -17330.0848 | L108: -19139.55 | M108: -18688.317 | N108: -18958.776 | O108: -19053.4978 | P108: -210365.7126
A109: Sch 25 Proposed Primary Voltage Discount
B110: >11 and <60 | C110: -0.2 | D110: =(D70-D66-D67-D55-D68)*$C110 -> -18201.1286 | E110: -16011.93 | F110: -16228.9054 | G110: -16375.883 | H110: -16746.2788 | I110: -16708.232 | J110: -16923.1292 | K110: -17330.0848 | L110: -19139.55 | M110: -18688.317 | N110: -18958.776 | O110: -19053.4978 | P110: =SUM(D110:O110) -> -210365.7126
B111: >60 and <115 | C111: -1.52 | D111: 0 | E111: 0 | F111: 0 | G111: 0 | H111: 0 | I111: 0 | J111: 0 | K111: 0 | L111: 0 | M111: 0 | N111: 0 | O111: 0 | P111: =SUM(D111:O111) -> 0
B112: >115 | C112: -1.93 | D112: 0 | E112: 0 | F112: 0 | G112: 0 | H112: 0 | I112: 0 | J112: 0 | K112: 0 | L112: 0 | M112: 0 | N112: 0 | O112: 0 | P112: =SUM(D112:O112) -> 0
D113: =SUM(D110:D112) -> -18201.1286 | E113: -16011.93 | F113: -16228.9054 | G113: -16375.883 | H113: -16746.2788 | I113: -16708.232 | J113: -16923.1292 | K113: -17330.0848 | L113: -19139.55 | M113: -18688.317 | N113: -18958.776 | O113: -19053.4978 | P113: -210365.7126
A115: Sch 25I Present Primary Voltage Discount
B116: >11 and <60 | C116: -0.2 | D116: 0 | E116: 0 | F116: 0 | G116: 0 | H116: 0 | I116: 0 | J116: 0 | K116: 0 | L116: 0 | M116: 0 | N116: 0 | O116: 0 | P116: =SUM(D116:O116) -> 0
B117: >60 and <115 | C117: =-1.52 -> -1.52 | D117: =$C117*D$127 -> -13465.35 | E117: -13565.82 | F117: -16362.37 | G117: -13516.28 | H117: -14817.9 | I117: -13962.51 | J117: -18562.98 | K117: -14632.25 | L117: -14450.34 | M117: -15074.34 | N117: -15103.12 | O117: -18142.1424 | P117: =SUM(D117:O117) -> -181655.4024
B118: >115 | C118: -1.93 | D118: =$C118*D$129 -> -100907.54 | E118: -102233.01 | F118: -99857.33 | G118: -109461.32 | H118: -97401.45 | I118: -98184.25 | J118: -101391.78 | K118: -98322.92 | L118: -101995.13 | M118: -102171.52 | N118: -101587.46 | O118: -98104.6792 | P118: =SUM(D118:O118) -> -1211618.389
D119: =SUM(D116:D118) -> -114372.89 | E119: -115798.83 | F119: -116219.7 | G119: -122977.6 | H119: -112219.35 | I119: -112146.76 | J119: -119954.76 | K119: -112955.17 | L119: -116445.47 | M119: -117245.86 | N119: -116690.58 | O119: -116246.8216 | P119: -1393273.792
A120: Sch 25I Proposed Primary Voltage Discount
B121: >11 and <60 | C121: -0.2 | D121: 0 | E121: 0 | F121: 0 | G121: 0 | H121: 0 | I121: 0 | J121: 0 | K121: 0 | L121: 0 | M121: 0 | N121: 0 | O121: 0 | P121: =SUM(D121:O121) -> 0
B122: >60 and <115 | C122: -1.52 | D122: =$C122*D$127 -> -13465.35 | E122: -13565.82 | F122: -16362.37 | G122: -13516.28 | H122: -14817.9 | I122: -13962.51 | J122: -18562.98 | K122: -14632.25 | L122: -14450.34 | M122: -15074.34 | N122: -15103.12 | O122: -18142.1424 | P122: =SUM(D122:O122) -> -181655.4024
B123: >115 | C123: -1.93 | D123: =$C123*D$129 -> -100907.54 | E123: -102233.01 | F123: -99857.33 | G123: -109461.32 | H123: -97401.45 | I123: -98184.25 | J123: -101391.78 | K123: -98322.92 | L123: -101995.13 | M123: -102171.52 | N123: -101587.46 | O123: -98104.6792 | P123: =SUM(D123:O123) -> -1211618.389
D124: =SUM(D121:D123) -> -114372.89 | E124: -115798.83 | F124: -116219.7 | G124: -122977.6 | H124: -112219.35 | I124: -112146.76 | J124: -119954.76 | K124: -112955.17 | L124: -116445.47 | M124: -117245.86 | N124: -116690.58 | O124: -116246.8216 | P124: -1393273.792
A126: 25I KVA
B127: 60 KV | D127: ='REVRUNS 12ME0921'!E462/'REVRUNS 12ME0921'!E466 -> 8858.782895 | E127: ='REVRUNS 12ME0921'!F462/'REVRUNS 12ME0921'!F466 -> 8924.881579 | F127: ='REVRUNS 12ME0921'!G462/'REVRUNS 12ME0921'!G466 -> 10764.71711 | G127: ='REVRUNS 12ME0921'!H462/'REVRUNS 12ME0921'!H466 -> 8892.289474 | H127: ='REVRUNS 12ME0921'!I462/'REVRUNS 12ME0921'!I466 -> 9748.618421 | I127: ='REVRUNS 12ME0921'!J462/'REVRUNS 12ME0921'!J466 -> 9185.861842 | J127: ='REVRUNS 12ME0921'!K462/'REVRUNS 12ME0921'!K466 -> 12212.48684 | K127: ='REVRUNS 12ME0921'!L462/'REVRUNS 12ME0921'!L466 -> 9626.480263 | L127: ='REVRUNS 12ME0921'!M462/'REVRUNS 12ME0921'!M466 -> 9506.802632 | M127: ='REVRUNS 12ME0921'!N462/'REVRUNS 12ME0921'!N466 -> 9917.328947 | N127: ='REVRUNS 12ME0921'!O462/'REVRUNS 12ME0921'!O466 -> 9936.263158 | O127: 11935.62 | P127: =SUM(D127:O127) -> 119510.1332 | T127: =24000 -> 24000
B128: 4.16 KV | D128: 0 | E128: 0 | F128: 0 | G128: 0 | H128: 0 | I128: 0 | J128: 0 | K128: 0 | L128: 0 | M128: 0 | N128: 0 | O128: 0 | P128: =SUM(D128:O128) -> 0 | T128: 0
B129: 115 KV | D129: ='REVRUNS 12ME0921'!E463/'REVRUNS 12ME0921'!E467 -> 52283.69948 | E129: ='REVRUNS 12ME0921'!F463/'REVRUNS 12ME0921'!F467 -> 52970.4715 | F129: ='REVRUNS 12ME0921'!G463/'REVRUNS 12ME0921'!G467 -> 51739.54922 | G129: ='REVRUNS 12ME0921'!H463/'REVRUNS 12ME0921'!H467 -> 56715.70984 | H129: ='REVRUNS 12ME0921'!I463/'REVRUNS 12ME0921'!I467 -> 50467.07254 | I129: ='REVRUNS 12ME0921'!J463/'REVRUNS 12ME0921'!J467 -> 50872.66839 | J129: ='REVRUNS 12ME0921'!K463/'REVRUNS 12ME0921'!K467 -> 52534.60104 | K129: ='REVRUNS 12ME0921'!L463/'REVRUNS 12ME0921'!L467 -> 50944.51813 | L129: ='REVRUNS 12ME0921'!M463/'REVRUNS 12ME0921'!M467 -> 52847.21762 | M129: ='REVRUNS 12ME0921'!N463/'REVRUNS 12ME0921'!N467 -> 52938.6114 | N129: ='REVRUNS 12ME0921'!O463/'REVRUNS 12ME0921'!O467 -> 52635.98964 | O129: 50831.44 | P129: =SUM(D129:O129) -> 627781.5488 | T129: =L101*6.5 -> 386177.09
A130: * | B130: Total | D130: =SUM(D127:D129) -> 61142.48238 | E130: 61895.35308 | F130: 62504.26633 | G130: 65607.99932 | H130: 60215.69096 | I130: 60058.53024 | J130: 64747.08788 | K130: 60570.9984 | L130: 62354.02025 | M130: 62855.94035 | N130: 62572.2528 | O130: 62767.06 | P130: 747291.682 | T130: =500000*0.05762 -> 28810
D131: =D100 -> 61982.28 | E131: 60622.5 | F131: 61249.43 | G131: 64327.03 | H131: 59202.77 | I131: 60056.83 | J131: 62541.79 | K131: 60383.79 | L131: 62411.86 | M131: 62805.35 | N131: 62232.46 | O131: 62015.22 | P131: =SUM(D131:O131) -> 739831.31 | T131: =MIN(5500000,L40-500000)*0.0521 -> 286550
T132: =MAX(0,L40-6000000)*0.04416 -> 1396675.699
B133: Calc Revenue for 25I | D133: =500000*0.05317+MIN(5500000,D40-500000)*0.04765+MAX(0,D40-6000000)*0.03954+30650+D101*8.3-D127*1.52-D129*1.93 -> 2002182.457 | E133: 1945284.235 | F133: 2024667.872 | G133: 2027392.587 | H133: 1831786.755 | I133: 2056112.794 | J133: =500000*0.05471+MIN(5500000,J40-500000)*0.04919+MAX(0,J40-6000000)*0.04108+30650+J101*8.3-J127*1.52-J129*1.93 -> 2047215.285 | K133: =500000*0.05471+MIN(5500000,K40-500000)*0.04919+MAX(0,K40-6000000)*0.04108+30650+K101*8.3-K127*1.52-K129*1.93 -> 1866530.68 | L133: =500000*0.05471+MIN(5500000,L40-500000)*0.04919+MAX(0,L40-6000000)*0.04108+30650+L101*8.3-L127*1.52-L129*1.93 -> 2004485.598 | M133: =500000*0.05486+MIN(5500000,M40-500000)*0.04934+MAX(0,M40-6000000)*0.04123+30650+M101*8.3-M127*1.52-M129*1.93 -> 2022103.368 | N133: =500000*0.05463+MIN(5500000,N40-500000)*0.04911+MAX(0,N40-6000000)*0.041+30650+N101*8.3-N127*1.52-N129*1.93 -> 2110300.874 | O133: =500000*0.05463+MIN(5500000,O40-500000)*0.04911+MAX(0,O40-6000000)*0.041+30650+O101*8.3-O127*1.52-O129*1.93 -> 2022872.126 | P133: =SUM(D133:O133) -> 23960934.63 | T133: =-L127*1.1 -> -10457.48289
B134: Revenue for 25I per Bill (less city tax) | N134: =2241466.9-14475.44-101587.46-15103.12 -> 2110300.88 | O134: =2153023.22-13904.27-98104.68-18142.14 -> 2022872.13 | P134: =SUM(D134:O134) -> 4133173.01 | T134: =-L129*1.4 -> -73986.10466
D135: =D133-D134 -> 2002182.457 | E135: 1945284.235 | F135: 2024667.872 | G135: 2027392.587 | H135: 1831786.755 | I135: 2056112.794 | J135: 2047215.285 | K135: 1866530.68 | L135: =L133-L134 -> 2004485.598 | M135: =M133-M134 -> 2022103.368 | N135: -0.006000000052 | O135: =O133-O134 -> -0.003600000171 | T135: =SUM(T127:T134) -> 2037769.202
B137: Base Revenues | T137: Annual Minimum
A138: 1 | B138: =B4 -> Goodrich - North 2311008572 | C138: 770037736 | D138: =500000*('Rate Design'!$I$5/100)+MIN(5500000,D4-500000)*('Rate Design'!$I$6/100)+MAX(0,D4-6000000)*('Rate Design'!$I$7/100)+'Rate Design'!$I$9+D74*'Rate Design'!$I$10-0.2*D47 -> 181919.0431 | E138: =500000*('Rate Design'!$I$5/100)+MIN(5500000,E4-500000)*('Rate Design'!$I$6/100)+MAX(0,E4-6000000)*('Rate Design'!$I$7/100)+'Rate Design'!$I$9+E74*'Rate Design'!$I$10-0.2*E47 -> 116224.6025 | F138: =500000*('Rate Design'!$I$5/100)+MIN(5500000,F4-500000)*('Rate Design'!$I$6/100)+MAX(0,F4-6000000)*('Rate Design'!$I$7/100)+'Rate Design'!$I$9+F74*'Rate Design'!$I$10-0.2*F47 -> 96317.39098 | G138: =500000*('Rate Design'!$I$5/100)+MIN(5500000,G4-500000)*('Rate Design'!$I$6/100)+MAX(0,G4-6000000)*('Rate Design'!$I$7/100)+'Rate Design'!$I$9+G74*'Rate Design'!$I$10-0.2*G47 -> 116411.2512 | H138: =500000*('Rate Design'!$I$5/100)+MIN(5500000,H4-500000)*('Rate Design'!$I$6/100)+MAX(0,H4-6000000)*('Rate Design'!$I$7/100)+'Rate Design'!$I$9+H74*'Rate Design'!$I$10-0.2*H47 -> 142269.6386 | I138: =500000*('Rate Design'!$I$5/100)+MIN(5500000,I4-500000)*('Rate Design'!$I$6/100)+MAX(0,I4-6000000)*('Rate Design'!$I$7/100)+'Rate Design'!$I$9+I74*'Rate Design'!$I$10-0.2*I47 -> 166565.4289 | J138: =500000*('Rate Design'!$I$5/100)+MIN(5500000,J4-500000)*('Rate Design'!$I$6/100)+MAX(0,J4-6000000)*('Rate Design'!$I$7/100)+'Rate Design'!$I$9+J74*'Rate Design'!$I$10-0.2*J47 -> 137009.9083 | K138: =500000*('Rate Design'!$I$5/100)+MIN(5500000,K4-500000)*('Rate Design'!$I$6/100)+MAX(0,K4-6000000)*('Rate Design'!$I$7/100)+'Rate Design'!$I$9+K74*'Rate Design'!$I$10-0.2*K47 -> 166640.4748 | L138: =500000*('Rate Design'!$I$5/100)+MIN(5500000,L4-500000)*('Rate Design'!$I$6/100)+MAX(0,L4-6000000)*('Rate Design'!$I$7/100)+'Rate Design'!$I$9+L74*'Rate Design'!$I$10-0.2*L47 -> 196095.8201 | M138: =500000*('Rate Design'!$I$5/100)+MIN(5500000,M4-500000)*('Rate Design'!$I$6/100)+MAX(0,M4-6000000)*('Rate Design'!$I$7/100)+'Rate Design'!$I$9+M74*'Rate Design'!$I$10-0.2*M47 -> 194532.3217 | N138: =500000*('Rate Design'!$I$5/100)+MIN(5500000,N4-500000)*('Rate Design'!$I$6/100)+MAX(0,N4-6000000)*('Rate Design'!$I$7/100)+'Rate Design'!$I$9+N74*'Rate Design'!$I$10-0.2*N47 -> 182519.406 | O138: =500000*('Rate Design'!$I$5/100)+MIN(5500000,O4-500000)*('Rate Design'!$I$6/100)+MAX(0,O4-6000000)*('Rate Design'!$I$7/100)+'Rate Design'!$I$9+O74*'Rate Design'!$I$10-0.2*O47 -> 226469.3985 | P138: =SUM(D138:O138) -> 1922974.685 | T138: =IF(P138<945750,945750-P138,0) -> 0
A139: 2 | B139: Boise Cascade Plywood | C139: 500017 | D139: =500000*('Rate Design'!$I$5/100)+MIN(5500000,D5-500000)*('Rate Design'!$I$6/100)+MAX(0,D5-6000000)*('Rate Design'!$I$7/100)+'Rate Design'!$I$9+D75*'Rate Design'!$I$10-0.2*D48 -> 212177.3417 | E139: =500000*('Rate Design'!$I$5/100)+MIN(5500000,E5-500000)*('Rate Design'!$I$6/100)+MAX(0,E5-6000000)*('Rate Design'!$I$7/100)+'Rate Design'!$I$9+E75*'Rate Design'!$I$10-0.2*E48 -> 202361.6938 | F139: =500000*('Rate Design'!$I$5/100)+MIN(5500000,F5-500000)*('Rate Design'!$I$6/100)+MAX(0,F5-6000000)*('Rate Design'!$I$7/100)+'Rate Design'!$I$9+F75*'Rate Design'!$I$10-0.2*F48 -> 183391.0703 | G139: =500000*('Rate Design'!$I$5/100)+MIN(5500000,G5-500000)*('Rate Design'!$I$6/100)+MAX(0,G5-6000000)*('Rate Design'!$I$7/100)+'Rate Design'!$I$9+G75*'Rate Design'!$I$10-0.2*G48 -> 204906.6303 | H139: =500000*('Rate Design'!$I$5/100)+MIN(5500000,H5-500000)*('Rate Design'!$I$6/100)+MAX(0,H5-6000000)*('Rate Design'!$I$7/100)+'Rate Design'!$I$9+H75*'Rate Design'!$I$10-0.2*H48 -> 196970.0623 | I139: =500000*('Rate Design'!$I$5/100)+MIN(5500000,I5-500000)*('Rate Design'!$I$6/100)+MAX(0,I5-6000000)*('Rate Design'!$I$7/100)+'Rate Design'!$I$9+I75*'Rate Design'!$I$10-0.2*I48 -> 209281.6907 | J139: =500000*('Rate Design'!$I$5/100)+MIN(5500000,J5-500000)*('Rate Design'!$I$6/100)+MAX(0,J5-6000000)*('Rate Design'!$I$7/100)+'Rate Design'!$I$9+J75*'Rate Design'!$I$10-0.2*J48 -> 205799.1759 | K139: =500000*('Rate Design'!$I$5/100)+MIN(5500000,K5-500000)*('Rate Design'!$I$6/100)+MAX(0,K5-6000000)*('Rate Design'!$I$7/100)+'Rate Design'!$I$9+K75*'Rate Design'!$I$10-0.2*K48 -> 205306.8967 | L139: =500000*('Rate Design'!$I$5/100)+MIN(5500000,L5-500000)*('Rate Design'!$I$6/100)+MAX(0,L5-6000000)*('Rate Design'!$I$7/100)+'Rate Design'!$I$9+L75*'Rate Design'!$I$10-0.2*L48 -> 197395.6711 | M139: =500000*('Rate Design'!$I$5/100)+MIN(5500000,M5-500000)*('Rate Design'!$I$6/100)+MAX(0,M5-6000000)*('Rate Design'!$I$7/100)+'Rate Design'!$I$9+M75*'Rate Design'!$I$10-0.2*M48 -> 199971.2376 | N139: =500000*('Rate Design'!$I$5/100)+MIN(5500000,N5-500000)*('Rate Design'!$I$6/100)+MAX(0,N5-6000000)*('Rate Design'!$I$7/100)+'Rate Design'!$I$9+N75*'Rate Design'!$I$10-0.2*N48 -> 180182.5813 | O139: =500000*('Rate Design'!$I$5/100)+MIN(5500000,O5-500000)*('Rate Design'!$I$6/100)+MAX(0,O5-6000000)*('Rate Design'!$I$7/100)+'Rate Design'!$I$9+O75*'Rate Design'!$I$10-0.2*O48 -> 203275.6362 | P139: =SUM(D139:O139) -> 2401019.688 | T139: =IF(P139<945750,945750-P139,0) -> 0
A140: 3 | B140: Boise Cascade Sawmill | C140: 500018 | D140: =500000*('Rate Design'!$I$5/100)+MIN(5500000,D6-500000)*('Rate Design'!$I$6/100)+MAX(0,D6-6000000)*('Rate Design'!$I$7/100)+'Rate Design'!$I$9+D76*'Rate Design'!$I$10-0.2*D49 -> 101136.4944 | E140: =500000*('Rate Design'!$I$5/100)+MIN(5500000,E6-500000)*('Rate Design'!$I$6/100)+MAX(0,E6-6000000)*('Rate Design'!$I$7/100)+'Rate Design'!$I$9+E76*'Rate Design'!$I$10-0.2*E49 -> 98476.39589 | F140: =500000*('Rate Design'!$I$5/100)+MIN(5500000,F6-500000)*('Rate Design'!$I$6/100)+MAX(0,F6-6000000)*('Rate Design'!$I$7/100)+'Rate Design'!$I$9+F76*'Rate Design'!$I$10-0.2*F49 -> 105891.4396 | G140: =500000*('Rate Design'!$I$5/100)+MIN(5500000,G6-500000)*('Rate Design'!$I$6/100)+MAX(0,G6-6000000)*('Rate Design'!$I$7/100)+'Rate Design'!$I$9+G76*'Rate Design'!$I$10-0.2*G49 -> 106232.5756 | H140: =500000*('Rate Design'!$I$5/100)+MIN(5500000,H6-500000)*('Rate Design'!$I$6/100)+MAX(0,H6-6000000)*('Rate Design'!$I$7/100)+'Rate Design'!$I$9+H76*'Rate Design'!$I$10-0.2*H49 -> 100855.0656 | I140: =500000*('Rate Design'!$I$5/100)+MIN(5500000,I6-500000)*('Rate Design'!$I$6/100)+MAX(0,I6-6000000)*('Rate Design'!$I$7/100)+'Rate Design'!$I$9+I76*'Rate Design'!$I$10-0.2*I49 -> 105320.414 | J140: =500000*('Rate Design'!$I$5/100)+MIN(5500000,J6-500000)*('Rate Design'!$I$6/100)+MAX(0,J6-6000000)*('Rate Design'!$I$7/100)+'Rate Design'!$I$9+J76*'Rate Design'!$I$10-0.2*J49 -> 99299.78458 | K140: =500000*('Rate Design'!$I$5/100)+MIN(5500000,K6-500000)*('Rate Design'!$I$6/100)+MAX(0,K6-6000000)*('Rate Design'!$I$7/100)+'Rate Design'!$I$9+K76*'Rate Design'!$I$10-0.2*K49 -> 97044.82126 | L140: =500000*('Rate Design'!$I$5/100)+MIN(5500000,L6-500000)*('Rate Design'!$I$6/100)+MAX(0,L6-6000000)*('Rate Design'!$I$7/100)+'Rate Design'!$I$9+L76*'Rate Design'!$I$10-0.2*L49 -> 99177.10448 | M140: =500000*('Rate Design'!$I$5/100)+MIN(5500000,M6-500000)*('Rate Design'!$I$6/100)+MAX(0,M6-6000000)*('Rate Design'!$I$7/100)+'Rate Design'!$I$9+M76*'Rate Design'!$I$10-0.2*M49 -> 94719.41107 | N140: =500000*('Rate Design'!$I$5/100)+MIN(5500000,N6-500000)*('Rate Design'!$I$6/100)+MAX(0,N6-6000000)*('Rate Design'!$I$7/100)+'Rate Design'!$I$9+N76*'Rate Design'!$I$10-0.2*N49 -> 93848.69408 | O140: =500000*('Rate Design'!$I$5/100)+MIN(5500000,O6-500000)*('Rate Design'!$I$6/100)+MAX(0,O6-6000000)*('Rate Design'!$I$7/100)+'Rate Design'!$I$9+O76*'Rate Design'!$I$10-0.2*O49 -> 91928.6053 | P140: 1193930.806 | T140: 0
A141: 4 | B141: City of Spokane | C141: 1900002 | D141: =500000*('Rate Design'!$I$5/100)+MIN(5500000,D7-500000)*('Rate Design'!$I$6/100)+MAX(0,D7-6000000)*('Rate Design'!$I$7/100)+'Rate Design'!$I$9+D77*'Rate Design'!$I$10-0.2*D50 -> 100738.982 | E141: =500000*('Rate Design'!$I$5/100)+MIN(5500000,E7-500000)*('Rate Design'!$I$6/100)+MAX(0,E7-6000000)*('Rate Design'!$I$7/100)+'Rate Design'!$I$9+E77*'Rate Design'!$I$10-0.2*E50 -> 102720.6982 | F141: =500000*('Rate Design'!$I$5/100)+MIN(5500000,F7-500000)*('Rate Design'!$I$6/100)+MAX(0,F7-6000000)*('Rate Design'!$I$7/100)+'Rate Design'!$I$9+F77*'Rate Design'!$I$10-0.2*F50 -> 108908.4931 | G141: =500000*('Rate Design'!$I$5/100)+MIN(5500000,G7-500000)*('Rate Design'!$I$6/100)+MAX(0,G7-6000000)*('Rate Design'!$I$7/100)+'Rate Design'!$I$9+G77*'Rate Design'!$I$10-0.2*G50 -> 111750.6897 | H141: =500000*('Rate Design'!$I$5/100)+MIN(5500000,H7-500000)*('Rate Design'!$I$6/100)+MAX(0,H7-6000000)*('Rate Design'!$I$7/100)+'Rate Design'!$I$9+H77*'Rate Design'!$I$10-0.2*H50 -> 107410.8581 | I141: =500000*('Rate Design'!$I$5/100)+MIN(5500000,I7-500000)*('Rate Design'!$I$6/100)+MAX(0,I7-6000000)*('Rate Design'!$I$7/100)+'Rate Design'!$I$9+I77*'Rate Design'!$I$10-0.2*I50 -> 124144.626 | J141: =500000*('Rate Design'!$I$5/100)+MIN(5500000,J7-500000)*('Rate Design'!$I$6/100)+MAX(0,J7-6000000)*('Rate Design'!$I$7/100)+'Rate Design'!$I$9+J77*'Rate Design'!$I$10-0.2*J50 -> 121445.9071 | K141: =500000*('Rate Design'!$I$5/100)+MIN(5500000,K7-500000)*('Rate Design'!$I$6/100)+MAX(0,K7-6000000)*('Rate Design'!$I$7/100)+'Rate Design'!$I$9+K77*'Rate Design'!$I$10-0.2*K50 -> 125116.6247 | L141: =500000*('Rate Design'!$I$5/100)+MIN(5500000,L7-500000)*('Rate Design'!$I$6/100)+MAX(0,L7-6000000)*('Rate Design'!$I$7/100)+'Rate Design'!$I$9+L77*'Rate Design'!$I$10-0.2*L50 -> 131523.552 | M141: =500000*('Rate Design'!$I$5/100)+MIN(5500000,M7-500000)*('Rate Design'!$I$6/100)+MAX(0,M7-6000000)*('Rate Design'!$I$7/100)+'Rate Design'!$I$9+M77*'Rate Design'!$I$10-0.2*M50 -> 132947.7646 | N141: =500000*('Rate Design'!$I$5/100)+MIN(5500000,N7-500000)*('Rate Design'!$I$6/100)+MAX(0,N7-6000000)*('Rate Design'!$I$7/100)+'Rate Design'!$I$9+N77*'Rate Design'!$I$10-0.2*N50 -> 121817.2734 | O141: =500000*('Rate Design'!$I$5/100)+MIN(5500000,O7-500000)*('Rate Design'!$I$6/100)+MAX(0,O7-6000000)*('Rate Design'!$I$7/100)+'Rate Design'!$I$9+O77*'Rate Design'!$I$10-0.2*O50 -> 112202.596 | P141: 1400728.065 | T141: 0
A142: 5 | B142: Empire Health Services | C142: 1900011 | D142: =500000*('Rate Design'!$I$5/100)+MIN(5500000,D8-500000)*('Rate Design'!$I$6/100)+MAX(0,D8-6000000)*('Rate Design'!$I$7/100)+'Rate Design'!$I$9+D78*'Rate Design'!$I$10-0.2*D51 -> 116250.1827 | E142: =500000*('Rate Design'!$I$5/100)+MIN(5500000,E8-500000)*('Rate Design'!$I$6/100)+MAX(0,E8-6000000)*('Rate Design'!$I$7/100)+'Rate Design'!$I$9+E78*'Rate Design'!$I$10-0.2*E51 -> 112890.0084 | F142: =500000*('Rate Design'!$I$5/100)+MIN(5500000,F8-500000)*('Rate Design'!$I$6/100)+MAX(0,F8-6000000)*('Rate Design'!$I$7/100)+'Rate Design'!$I$9+F78*'Rate Design'!$I$10-0.2*F51 -> 117001.0329 | G142: =500000*('Rate Design'!$I$5/100)+MIN(5500000,G8-500000)*('Rate Design'!$I$6/100)+MAX(0,G8-6000000)*('Rate Design'!$I$7/100)+'Rate Design'!$I$9+G78*'Rate Design'!$I$10-0.2*G51 -> 116149.8954 | H142: =500000*('Rate Design'!$I$5/100)+MIN(5500000,H8-500000)*('Rate Design'!$I$6/100)+MAX(0,H8-6000000)*('Rate Design'!$I$7/100)+'Rate Design'!$I$9+H78*'Rate Design'!$I$10-0.2*H51 -> 110785.5681 | I142: =500000*('Rate Design'!$I$5/100)+MIN(5500000,I8-500000)*('Rate Design'!$I$6/100)+MAX(0,I8-6000000)*('Rate Design'!$I$7/100)+'Rate Design'!$I$9+I78*'Rate Design'!$I$10-0.2*I51 -> 117733.3529 | J142: =500000*('Rate Design'!$I$5/100)+MIN(5500000,J8-500000)*('Rate Design'!$I$6/100)+MAX(0,J8-6000000)*('Rate Design'!$I$7/100)+'Rate Design'!$I$9+J78*'Rate Design'!$I$10-0.2*J51 -> 121544.1244 | K142: =500000*('Rate Design'!$I$5/100)+MIN(5500000,K8-500000)*('Rate Design'!$I$6/100)+MAX(0,K8-6000000)*('Rate Design'!$I$7/100)+'Rate Design'!$I$9+K78*'Rate Design'!$I$10-0.2*K51 -> 132620.305 | L142: =500000*('Rate Design'!$I$5/100)+MIN(5500000,L8-500000)*('Rate Design'!$I$6/100)+MAX(0,L8-6000000)*('Rate Design'!$I$7/100)+'Rate Design'!$I$9+L78*'Rate Design'!$I$10-0.2*L51 -> 147399.1306 | M142: =500000*('Rate Design'!$I$5/100)+MIN(5500000,M8-500000)*('Rate Design'!$I$6/100)+MAX(0,M8-6000000)*('Rate Design'!$I$7/100)+'Rate Design'!$I$9+M78*'Rate Design'!$I$10-0.2*M51 -> 157457.5761 | N142: =500000*('Rate Design'!$I$5/100)+MIN(5500000,N8-500000)*('Rate Design'!$I$6/100)+MAX(0,N8-6000000)*('Rate Design'!$I$7/100)+'Rate Design'!$I$9+N78*'Rate Design'!$I$10-0.2*N51 -> 152546.0691 | O142: =500000*('Rate Design'!$I$5/100)+MIN(5500000,O8-500000)*('Rate Design'!$I$6/100)+MAX(0,O8-6000000)*('Rate Design'!$I$7/100)+'Rate Design'!$I$9+O78*'Rate Design'!$I$10-0.2*O51 -> 132584.519 | P142: 1534961.765 | T142: 0
A143: 6 | B143: Gonzaga University | C143: 622922 | D143: =500000*('Rate Design'!$I$5/100)+MIN(5500000,D9-500000)*('Rate Design'!$I$6/100)+MAX(0,D9-6000000)*('Rate Design'!$I$7/100)+'Rate Design'!$I$9+D79*'Rate Design'!$I$10-0.2*D52 -> 148685.6362 | E143: =500000*('Rate Design'!$I$5/100)+MIN(5500000,E9-500000)*('Rate Design'!$I$6/100)+MAX(0,E9-6000000)*('Rate Design'!$I$7/100)+'Rate Design'!$I$9+E79*'Rate Design'!$I$10-0.2*E52 -> 148654.1273 | F143: =500000*('Rate Design'!$I$5/100)+MIN(5500000,F9-500000)*('Rate Design'!$I$6/100)+MAX(0,F9-6000000)*('Rate Design'!$I$7/100)+'Rate Design'!$I$9+F79*'Rate Design'!$I$10-0.2*F52 -> 146712.7013 | G143: =500000*('Rate Design'!$I$5/100)+MIN(5500000,G9-500000)*('Rate Design'!$I$6/100)+MAX(0,G9-6000000)*('Rate Design'!$I$7/100)+'Rate Design'!$I$9+G79*'Rate Design'!$I$10-0.2*G52 -> 156508.3879 | H143: =500000*('Rate Design'!$I$5/100)+MIN(5500000,H9-500000)*('Rate Design'!$I$6/100)+MAX(0,H9-6000000)*('Rate Design'!$I$7/100)+'Rate Design'!$I$9+H79*'Rate Design'!$I$10-0.2*H52 -> 155453.0653 | I143: =500000*('Rate Design'!$I$5/100)+MIN(5500000,I9-500000)*('Rate Design'!$I$6/100)+MAX(0,I9-6000000)*('Rate Design'!$I$7/100)+'Rate Design'!$I$9+I79*'Rate Design'!$I$10-0.2*I52 -> 147585.0436 | J143: =500000*('Rate Design'!$I$5/100)+MIN(5500000,J9-500000)*('Rate Design'!$I$6/100)+MAX(0,J9-6000000)*('Rate Design'!$I$7/100)+'Rate Design'!$I$9+J79*'Rate Design'!$I$10-0.2*J52 -> 137178.6376 | K143: =500000*('Rate Design'!$I$5/100)+MIN(5500000,K9-500000)*('Rate Design'!$I$6/100)+MAX(0,K9-6000000)*('Rate Design'!$I$7/100)+'Rate Design'!$I$9+K79*'Rate Design'!$I$10-0.2*K52 -> 119237.1931 | L143: =500000*('Rate Design'!$I$5/100)+MIN(5500000,L9-500000)*('Rate Design'!$I$6/100)+MAX(0,L9-6000000)*('Rate Design'!$I$7/100)+'Rate Design'!$I$9+L79*'Rate Design'!$I$10-0.2*L52 -> 140688.2643 | M143: =500000*('Rate Design'!$I$5/100)+MIN(5500000,M9-500000)*('Rate Design'!$I$6/100)+MAX(0,M9-6000000)*('Rate Design'!$I$7/100)+'Rate Design'!$I$9+M79*'Rate Design'!$I$10-0.2*M52 -> 147487.9658 | N143: =500000*('Rate Design'!$I$5/100)+MIN(5500000,N9-500000)*('Rate Design'!$I$6/100)+MAX(0,N9-6000000)*('Rate Design'!$I$7/100)+'Rate Design'!$I$9+N79*'Rate Design'!$I$10-0.2*N52 -> 143354.4331 | O143: =500000*('Rate Design'!$I$5/100)+MIN(5500000,O9-500000)*('Rate Design'!$I$6/100)+MAX(0,O9-6000000)*('Rate Design'!$I$7/100)+'Rate Design'!$I$9+O79*'Rate Design'!$I$10-0.2*O52 -> 153044.0806 | P143: 1744589.536 | T143: 0
A144: 7 | B144: Honeywell Electronics | C144: 2304636 | D144: =500000*('Rate Design'!$I$5/100)+MIN(5500000,D10-500000)*('Rate Design'!$I$6/100)+MAX(0,D10-6000000)*('Rate Design'!$I$7/100)+'Rate Design'!$I$9+D80*'Rate Design'!$I$10-0.2*D53 -> 103316.7272 | E144: =500000*('Rate Design'!$I$5/100)+MIN(5500000,E10-500000)*('Rate Design'!$I$6/100)+MAX(0,E10-6000000)*('Rate Design'!$I$7/100)+'Rate Design'!$I$9+E80*'Rate Design'!$I$10-0.2*E53 -> 101792.0897 | F144: =500000*('Rate Design'!$I$5/100)+MIN(5500000,F10-500000)*('Rate Design'!$I$6/100)+MAX(0,F10-6000000)*('Rate Design'!$I$7/100)+'Rate Design'!$I$9+F80*'Rate Design'!$I$10-0.2*F53 -> 102834.6178 | G144: =500000*('Rate Design'!$I$5/100)+MIN(5500000,G10-500000)*('Rate Design'!$I$6/100)+MAX(0,G10-6000000)*('Rate Design'!$I$7/100)+'Rate Design'!$I$9+G80*'Rate Design'!$I$10-0.2*G53 -> 103147.5091 | H144: =500000*('Rate Design'!$I$5/100)+MIN(5500000,H10-500000)*('Rate Design'!$I$6/100)+MAX(0,H10-6000000)*('Rate Design'!$I$7/100)+'Rate Design'!$I$9+H80*'Rate Design'!$I$10-0.2*H53 -> 98906.15167 | I144: =500000*('Rate Design'!$I$5/100)+MIN(5500000,I10-500000)*('Rate Design'!$I$6/100)+MAX(0,I10-6000000)*('Rate Design'!$I$7/100)+'Rate Design'!$I$9+I80*'Rate Design'!$I$10-0.2*I53 -> 102827.5378 | J144: =500000*('Rate Design'!$I$5/100)+MIN(5500000,J10-500000)*('Rate Design'!$I$6/100)+MAX(0,J10-6000000)*('Rate Design'!$I$7/100)+'Rate Design'!$I$9+J80*'Rate Design'!$I$10-0.2*J53 -> 102097.3513 | K144: =500000*('Rate Design'!$I$5/100)+MIN(5500000,K10-500000)*('Rate Design'!$I$6/100)+MAX(0,K10-6000000)*('Rate Design'!$I$7/100)+'Rate Design'!$I$9+K80*'Rate Design'!$I$10-0.2*K53 -> 106222.9815 | L144: =500000*('Rate Design'!$I$5/100)+MIN(5500000,L10-500000)*('Rate Design'!$I$6/100)+MAX(0,L10-6000000)*('Rate Design'!$I$7/100)+'Rate Design'!$I$9+L80*'Rate Design'!$I$10-0.2*L53 -> 119983.9518 | M144: =500000*('Rate Design'!$I$5/100)+MIN(5500000,M10-500000)*('Rate Design'!$I$6/100)+MAX(0,M10-6000000)*('Rate Design'!$I$7/100)+'Rate Design'!$I$9+M80*'Rate Design'!$I$10-0.2*M53 -> 123640.8038 | N144: =500000*('Rate Design'!$I$5/100)+MIN(5500000,N10-500000)*('Rate Design'!$I$6/100)+MAX(0,N10-6000000)*('Rate Design'!$I$7/100)+'Rate Design'!$I$9+N80*'Rate Design'!$I$10-0.2*N53 -> 120899.5095 | O144: =500000*('Rate Design'!$I$5/100)+MIN(5500000,O10-500000)*('Rate Design'!$I$6/100)+MAX(0,O10-6000000)*('Rate Design'!$I$7/100)+'Rate Design'!$I$9+O80*'Rate Design'!$I$10-0.2*O53 -> 112012.1688 | P144: 1297681.4 | T144: 0
A145: 8 | B145: Huntwood Industries | C145: 610074869 | D145: =500000*('Rate Design'!$I$5/100)+MIN(5500000,D11-500000)*('Rate Design'!$I$6/100)+MAX(0,D11-6000000)*('Rate Design'!$I$7/100)+'Rate Design'!$I$9+D81*'Rate Design'!$I$10-0.2*D54 -> 95197.94106 | E145: =500000*('Rate Design'!$I$5/100)+MIN(5500000,E11-500000)*('Rate Design'!$I$6/100)+MAX(0,E11-6000000)*('Rate Design'!$I$7/100)+'Rate Design'!$I$9+E81*'Rate Design'!$I$10-0.2*E54 -> 88962.99349 | F145: =500000*('Rate Design'!$I$5/100)+MIN(5500000,F11-500000)*('Rate Design'!$I$6/100)+MAX(0,F11-6000000)*('Rate Design'!$I$7/100)+'Rate Design'!$I$9+F81*'Rate Design'!$I$10-0.2*F54 -> 95155.51537 | G145: =500000*('Rate Design'!$I$5/100)+MIN(5500000,G11-500000)*('Rate Design'!$I$6/100)+MAX(0,G11-6000000)*('Rate Design'!$I$7/100)+'Rate Design'!$I$9+G81*'Rate Design'!$I$10-0.2*G54 -> 93598.18413 | H145: =500000*('Rate Design'!$I$5/100)+MIN(5500000,H11-500000)*('Rate Design'!$I$6/100)+MAX(0,H11-6000000)*('Rate Design'!$I$7/100)+'Rate Design'!$I$9+H81*'Rate Design'!$I$10-0.2*H54 -> 91716.94009 | I145: =500000*('Rate Design'!$I$5/100)+MIN(5500000,I11-500000)*('Rate Design'!$I$6/100)+MAX(0,I11-6000000)*('Rate Design'!$I$7/100)+'Rate Design'!$I$9+I81*'Rate Design'!$I$10-0.2*I54 -> 100213.7167 | J145: =500000*('Rate Design'!$I$5/100)+MIN(5500000,J11-500000)*('Rate Design'!$I$6/100)+MAX(0,J11-6000000)*('Rate Design'!$I$7/100)+'Rate Design'!$I$9+J81*'Rate Design'!$I$10-0.2*J54 -> 101574.0102 | K145: =500000*('Rate Design'!$I$5/100)+MIN(5500000,K11-500000)*('Rate Design'!$I$6/100)+MAX(0,K11-6000000)*('Rate Design'!$I$7/100)+'Rate Design'!$I$9+K81*'Rate Design'!$I$10-0.2*K54 -> 99050.21807 | L145: =500000*('Rate Design'!$I$5/100)+MIN(5500000,L11-500000)*('Rate Design'!$I$6/100)+MAX(0,L11-6000000)*('Rate Design'!$I$7/100)+'Rate Design'!$I$9+L81*'Rate Design'!$I$10-0.2*L54 -> 111068.2229 | M145: =500000*('Rate Design'!$I$5/100)+MIN(5500000,M11-500000)*('Rate Design'!$I$6/100)+MAX(0,M11-6000000)*('Rate Design'!$I$7/100)+'Rate Design'!$I$9+M81*'Rate Design'!$I$10-0.2*M54 -> 116736.4183 | N145: =500000*('Rate Design'!$I$5/100)+MIN(5500000,N11-500000)*('Rate Design'!$I$6/100)+MAX(0,N11-6000000)*('Rate Design'!$I$7/100)+'Rate Design'!$I$9+N81*'Rate Design'!$I$10-0.2*N54 -> 108267.2046 | O145: =500000*('Rate Design'!$I$5/100)+MIN(5500000,O11-500000)*('Rate Design'!$I$6/100)+MAX(0,O11-6000000)*('Rate Design'!$I$7/100)+'Rate Design'!$I$9+O81*'Rate Design'!$I$10-0.2*O54 -> 100771.462 | P145: 1202312.827 | T145: 0
B146: 0 | C146: 2500004 | D146: 0 | E146: 0 | F146: 0 | G146: 0 | H146: 0 | I146: 0 | J146: 0 | K146: 0 | L146: 0 | M146: 0 | N146: 0 | O146: 0 | P146: 0 | T146: 0
A147: 9 | B147: Simplot - Othello | C147: 290048778 | D147: =500000*('Rate Design'!$I$5/100)+MIN(5500000,D13-500000)*('Rate Design'!$I$6/100)+MAX(0,D13-6000000)*('Rate Design'!$I$7/100)+'Rate Design'!$I$9+D83*'Rate Design'!$I$10-0.2*D56 -> 379792.9157 | E147: =500000*('Rate Design'!$I$5/100)+MIN(5500000,E13-500000)*('Rate Design'!$I$6/100)+MAX(0,E13-6000000)*('Rate Design'!$I$7/100)+'Rate Design'!$I$9+E83*'Rate Design'!$I$10-0.2*E56 -> 304189.9333 | F147: =500000*('Rate Design'!$I$5/100)+MIN(5500000,F13-500000)*('Rate Design'!$I$6/100)+MAX(0,F13-6000000)*('Rate Design'!$I$7/100)+'Rate Design'!$I$9+F83*'Rate Design'!$I$10-0.2*F56 -> 337231.5941 | G147: =500000*('Rate Design'!$I$5/100)+MIN(5500000,G13-500000)*('Rate Design'!$I$6/100)+MAX(0,G13-6000000)*('Rate Design'!$I$7/100)+'Rate Design'!$I$9+G83*'Rate Design'!$I$10-0.2*G56 -> 351577.0342 | H147: =500000*('Rate Design'!$I$5/100)+MIN(5500000,H13-500000)*('Rate Design'!$I$6/100)+MAX(0,H13-6000000)*('Rate Design'!$I$7/100)+'Rate Design'!$I$9+H83*'Rate Design'!$I$10-0.2*H56 -> 327175.5828 | I147: =500000*('Rate Design'!$I$5/100)+MIN(5500000,I13-500000)*('Rate Design'!$I$6/100)+MAX(0,I13-6000000)*('Rate Design'!$I$7/100)+'Rate Design'!$I$9+I83*'Rate Design'!$I$10-0.2*I56 -> 376674.2085 | J147: =500000*('Rate Design'!$I$5/100)+MIN(5500000,J13-500000)*('Rate Design'!$I$6/100)+MAX(0,J13-6000000)*('Rate Design'!$I$7/100)+'Rate Design'!$I$9+J83*'Rate Design'!$I$10-0.2*J56 -> 372541.8732 | K147: =500000*('Rate Design'!$I$5/100)+MIN(5500000,K13-500000)*('Rate Design'!$I$6/100)+MAX(0,K13-6000000)*('Rate Design'!$I$7/100)+'Rate Design'!$I$9+K83*'Rate Design'!$I$10-0.2*K56 -> 378317.095 | L147: =500000*('Rate Design'!$I$5/100)+MIN(5500000,L13-500000)*('Rate Design'!$I$6/100)+MAX(0,L13-6000000)*('Rate Design'!$I$7/100)+'Rate Design'!$I$9+L83*'Rate Design'!$I$10-0.2*L56 -> 382001.8888 | M147: =500000*('Rate Design'!$I$5/100)+MIN(5500000,M13-500000)*('Rate Design'!$I$6/100)+MAX(0,M13-6000000)*('Rate Design'!$I$7/100)+'Rate Design'!$I$9+M83*'Rate Design'!$I$10-0.2*M56 -> 388945.347 | N147: =500000*('Rate Design'!$I$5/100)+MIN(5500000,N13-500000)*('Rate Design'!$I$6/100)+MAX(0,N13-6000000)*('Rate Design'!$I$7/100)+'Rate Design'!$I$9+N83*'Rate Design'!$I$10-0.2*N56 -> 390831.8987 | O147: =500000*('Rate Design'!$I$5/100)+MIN(5500000,O13-500000)*('Rate Design'!$I$6/100)+MAX(0,O13-6000000)*('Rate Design'!$I$7/100)+'Rate Design'!$I$9+O83*'Rate Design'!$I$10-0.2*O56 -> 365361.8106 | P147: 4354641.182 | T147: 0
A148: 10 | B148: McCaine Foods Inc | C148: 2500003 | D148: =500000*('Rate Design'!$I$5/100)+MIN(5500000,D14-500000)*('Rate Design'!$I$6/100)+MAX(0,D14-6000000)*('Rate Design'!$I$7/100)+'Rate Design'!$I$9+D84*'Rate Design'!$I$10-0.2*D57 -> 375516.8929 | E148: =500000*('Rate Design'!$I$5/100)+MIN(5500000,E14-500000)*('Rate Design'!$I$6/100)+MAX(0,E14-6000000)*('Rate Design'!$I$7/100)+'Rate Design'!$I$9+E84*'Rate Design'!$I$10-0.2*E57 -> 338707.0195 | F148: =500000*('Rate Design'!$I$5/100)+MIN(5500000,F14-500000)*('Rate Design'!$I$6/100)+MAX(0,F14-6000000)*('Rate Design'!$I$7/100)+'Rate Design'!$I$9+F84*'Rate Design'!$I$10-0.2*F57 -> 308248.3346 | G148: =500000*('Rate Design'!$I$5/100)+MIN(5500000,G14-500000)*('Rate Design'!$I$6/100)+MAX(0,G14-6000000)*('Rate Design'!$I$7/100)+'Rate Design'!$I$9+G84*'Rate Design'!$I$10-0.2*G57 -> 281031.1013 | H148: =500000*('Rate Design'!$I$5/100)+MIN(5500000,H14-500000)*('Rate Design'!$I$6/100)+MAX(0,H14-6000000)*('Rate Design'!$I$7/100)+'Rate Design'!$I$9+H84*'Rate Design'!$I$10-0.2*H57 -> 314315.4095 | I148: =500000*('Rate Design'!$I$5/100)+MIN(5500000,I14-500000)*('Rate Design'!$I$6/100)+MAX(0,I14-6000000)*('Rate Design'!$I$7/100)+'Rate Design'!$I$9+I84*'Rate Design'!$I$10-0.2*I57 -> 341474.6563 | J148: =500000*('Rate Design'!$I$5/100)+MIN(5500000,J14-500000)*('Rate Design'!$I$6/100)+MAX(0,J14-6000000)*('Rate Design'!$I$7/100)+'Rate Design'!$I$9+J84*'Rate Design'!$I$10-0.2*J57 -> 324047.6627 | K148: =500000*('Rate Design'!$I$5/100)+MIN(5500000,K14-500000)*('Rate Design'!$I$6/100)+MAX(0,K14-6000000)*('Rate Design'!$I$7/100)+'Rate Design'!$I$9+K84*'Rate Design'!$I$10-0.2*K57 -> 355551.9549 | L148: =500000*('Rate Design'!$I$5/100)+MIN(5500000,L14-500000)*('Rate Design'!$I$6/100)+MAX(0,L14-6000000)*('Rate Design'!$I$7/100)+'Rate Design'!$I$9+L84*'Rate Design'!$I$10-0.2*L57 -> 344027.8753 | M148: =500000*('Rate Design'!$I$5/100)+MIN(5500000,M14-500000)*('Rate Design'!$I$6/100)+MAX(0,M14-6000000)*('Rate Design'!$I$7/100)+'Rate Design'!$I$9+M84*'Rate Design'!$I$10-0.2*M57 -> 292534.418 | N148: =500000*('Rate Design'!$I$5/100)+MIN(5500000,N14-500000)*('Rate Design'!$I$6/100)+MAX(0,N14-6000000)*('Rate Design'!$I$7/100)+'Rate Design'!$I$9+N84*'Rate Design'!$I$10-0.2*N57 -> 382059.1355 | O148: =500000*('Rate Design'!$I$5/100)+MIN(5500000,O14-500000)*('Rate Design'!$I$6/100)+MAX(0,O14-6000000)*('Rate Design'!$I$7/100)+'Rate Design'!$I$9+O84*'Rate Design'!$I$10-0.2*O57 -> 403636.4648 | P148: 4061150.925 | T148: 0
A149: 11 | B149: Sacred Heart Medical Center | C149: 500020 | D149: =500000*('Rate Design'!$I$5/100)+MIN(5500000,D15-500000)*('Rate Design'!$I$6/100)+MAX(0,D15-6000000)*('Rate Design'!$I$7/100)+'Rate Design'!$I$9+D85*'Rate Design'!$I$10-0.2*D58 -> 233478.7738 | E149: =500000*('Rate Design'!$I$5/100)+MIN(5500000,E15-500000)*('Rate Design'!$I$6/100)+MAX(0,E15-6000000)*('Rate Design'!$I$7/100)+'Rate Design'!$I$9+E85*'Rate Design'!$I$10-0.2*E58 -> 203314.0597 | F149: =500000*('Rate Design'!$I$5/100)+MIN(5500000,F15-500000)*('Rate Design'!$I$6/100)+MAX(0,F15-6000000)*('Rate Design'!$I$7/100)+'Rate Design'!$I$9+F85*'Rate Design'!$I$10-0.2*F58 -> 208247.9377 | G149: =500000*('Rate Design'!$I$5/100)+MIN(5500000,G15-500000)*('Rate Design'!$I$6/100)+MAX(0,G15-6000000)*('Rate Design'!$I$7/100)+'Rate Design'!$I$9+G85*'Rate Design'!$I$10-0.2*G58 -> 206536.1603 | H149: =500000*('Rate Design'!$I$5/100)+MIN(5500000,H15-500000)*('Rate Design'!$I$6/100)+MAX(0,H15-6000000)*('Rate Design'!$I$7/100)+'Rate Design'!$I$9+H85*'Rate Design'!$I$10-0.2*H58 -> 192036.8886 | I149: =500000*('Rate Design'!$I$5/100)+MIN(5500000,I15-500000)*('Rate Design'!$I$6/100)+MAX(0,I15-6000000)*('Rate Design'!$I$7/100)+'Rate Design'!$I$9+I85*'Rate Design'!$I$10-0.2*I58 -> 210886.0052 | J149: =500000*('Rate Design'!$I$5/100)+MIN(5500000,J15-500000)*('Rate Design'!$I$6/100)+MAX(0,J15-6000000)*('Rate Design'!$I$7/100)+'Rate Design'!$I$9+J85*'Rate Design'!$I$10-0.2*J58 -> 219058.0507 | K149: =500000*('Rate Design'!$I$5/100)+MIN(5500000,K15-500000)*('Rate Design'!$I$6/100)+MAX(0,K15-6000000)*('Rate Design'!$I$7/100)+'Rate Design'!$I$9+K85*'Rate Design'!$I$10-0.2*K58 -> 233899.9673 | L149: =500000*('Rate Design'!$I$5/100)+MIN(5500000,L15-500000)*('Rate Design'!$I$6/100)+MAX(0,L15-6000000)*('Rate Design'!$I$7/100)+'Rate Design'!$I$9+L85*'Rate Design'!$I$10-0.2*L58 -> 276163.7641 | M149: =500000*('Rate Design'!$I$5/100)+MIN(5500000,M15-500000)*('Rate Design'!$I$6/100)+MAX(0,M15-6000000)*('Rate Design'!$I$7/100)+'Rate Design'!$I$9+M85*'Rate Design'!$I$10-0.2*M58 -> 285530.7731 | N149: =500000*('Rate Design'!$I$5/100)+MIN(5500000,N15-500000)*('Rate Design'!$I$6/100)+MAX(0,N15-6000000)*('Rate Design'!$I$7/100)+'Rate Design'!$I$9+N85*'Rate Design'!$I$10-0.2*N58 -> 271553.3239 | O149: =500000*('Rate Design'!$I$5/100)+MIN(5500000,O15-500000)*('Rate Design'!$I$6/100)+MAX(0,O15-6000000)*('Rate Design'!$I$7/100)+'Rate Design'!$I$9+O85*'Rate Design'!$I$10-0.2*O58 -> 232374.1247 | P149: 2773079.829 | T149: 0
A150: 12 | B150: Spokane County Combined Master | C150: 1900012 | D150: =500000*('Rate Design'!$I$5/100)+MIN(5500000,D16-500000)*('Rate Design'!$I$6/100)+MAX(0,D16-6000000)*('Rate Design'!$I$7/100)+'Rate Design'!$I$9+D86*'Rate Design'!$I$10-0.2*D59 -> 85162.60586 | E150: =500000*('Rate Design'!$I$5/100)+MIN(5500000,E16-500000)*('Rate Design'!$I$6/100)+MAX(0,E16-6000000)*('Rate Design'!$I$7/100)+'Rate Design'!$I$9+E86*'Rate Design'!$I$10-0.2*E59 -> 78376.34306 | F150: =500000*('Rate Design'!$I$5/100)+MIN(5500000,F16-500000)*('Rate Design'!$I$6/100)+MAX(0,F16-6000000)*('Rate Design'!$I$7/100)+'Rate Design'!$I$9+F86*'Rate Design'!$I$10-0.2*F59 -> 80464.73523 | G150: =500000*('Rate Design'!$I$5/100)+MIN(5500000,G16-500000)*('Rate Design'!$I$6/100)+MAX(0,G16-6000000)*('Rate Design'!$I$7/100)+'Rate Design'!$I$9+G86*'Rate Design'!$I$10-0.2*G59 -> 79921.03093 | H150: =500000*('Rate Design'!$I$5/100)+MIN(5500000,H16-500000)*('Rate Design'!$I$6/100)+MAX(0,H16-6000000)*('Rate Design'!$I$7/100)+'Rate Design'!$I$9+H86*'Rate Design'!$I$10-0.2*H59 -> 76183.26866 | I150: =500000*('Rate Design'!$I$5/100)+MIN(5500000,I16-500000)*('Rate Design'!$I$6/100)+MAX(0,I16-6000000)*('Rate Design'!$I$7/100)+'Rate Design'!$I$9+I86*'Rate Design'!$I$10-0.2*I59 -> 80162.46754 | J150: =500000*('Rate Design'!$I$5/100)+MIN(5500000,J16-500000)*('Rate Design'!$I$6/100)+MAX(0,J16-6000000)*('Rate Design'!$I$7/100)+'Rate Design'!$I$9+J86*'Rate Design'!$I$10-0.2*J59 -> 81494.57241 | K150: =500000*('Rate Design'!$I$5/100)+MIN(5500000,K16-500000)*('Rate Design'!$I$6/100)+MAX(0,K16-6000000)*('Rate Design'!$I$7/100)+'Rate Design'!$I$9+K86*'Rate Design'!$I$10-0.2*K59 -> 85448.60021 | L150: =500000*('Rate Design'!$I$5/100)+MIN(5500000,L16-500000)*('Rate Design'!$I$6/100)+MAX(0,L16-6000000)*('Rate Design'!$I$7/100)+'Rate Design'!$I$9+L86*'Rate Design'!$I$10-0.2*L59 -> 93973.05791 | M150: =500000*('Rate Design'!$I$5/100)+MIN(5500000,M16-500000)*('Rate Design'!$I$6/100)+MAX(0,M16-6000000)*('Rate Design'!$I$7/100)+'Rate Design'!$I$9+M86*'Rate Design'!$I$10-0.2*M59 -> 102557.7882 | N150: =500000*('Rate Design'!$I$5/100)+MIN(5500000,N16-500000)*('Rate Design'!$I$6/100)+MAX(0,N16-6000000)*('Rate Design'!$I$7/100)+'Rate Design'!$I$9+N86*'Rate Design'!$I$10-0.2*N59 -> 98013.13968 | O150: =500000*('Rate Design'!$I$5/100)+MIN(5500000,O16-500000)*('Rate Design'!$I$6/100)+MAX(0,O16-6000000)*('Rate Design'!$I$7/100)+'Rate Design'!$I$9+O86*'Rate Design'!$I$10-0.2*O59 -> 86863.38754 | P150: 1028620.997 | T150: 0
A151: 13 | B151: Spokane Industries | C151: 2400169 | D151: =500000*('Rate Design'!$I$5/100)+MIN(5500000,D17-500000)*('Rate Design'!$I$6/100)+MAX(0,D17-6000000)*('Rate Design'!$I$7/100)+'Rate Design'!$I$9+D87*'Rate Design'!$I$10-0.2*D60 -> 85102.12124 | E151: =500000*('Rate Design'!$I$5/100)+MIN(5500000,E17-500000)*('Rate Design'!$I$6/100)+MAX(0,E17-6000000)*('Rate Design'!$I$7/100)+'Rate Design'!$I$9+E87*'Rate Design'!$I$10-0.2*E60 -> 70609.81672 | F151: =500000*('Rate Design'!$I$5/100)+MIN(5500000,F17-500000)*('Rate Design'!$I$6/100)+MAX(0,F17-6000000)*('Rate Design'!$I$7/100)+'Rate Design'!$I$9+F87*'Rate Design'!$I$10-0.2*F60 -> 82526.9015 | G151: =500000*('Rate Design'!$I$5/100)+MIN(5500000,G17-500000)*('Rate Design'!$I$6/100)+MAX(0,G17-6000000)*('Rate Design'!$I$7/100)+'Rate Design'!$I$9+G87*'Rate Design'!$I$10-0.2*G60 -> 98442.53443 | H151: =500000*('Rate Design'!$I$5/100)+MIN(5500000,H17-500000)*('Rate Design'!$I$6/100)+MAX(0,H17-6000000)*('Rate Design'!$I$7/100)+'Rate Design'!$I$9+H87*'Rate Design'!$I$10-0.2*H60 -> 102324.305 | I151: =500000*('Rate Design'!$I$5/100)+MIN(5500000,I17-500000)*('Rate Design'!$I$6/100)+MAX(0,I17-6000000)*('Rate Design'!$I$7/100)+'Rate Design'!$I$9+I87*'Rate Design'!$I$10-0.2*I60 -> 108509.9279 | J151: =500000*('Rate Design'!$I$5/100)+MIN(5500000,J17-500000)*('Rate Design'!$I$6/100)+MAX(0,J17-6000000)*('Rate Design'!$I$7/100)+'Rate Design'!$I$9+J87*'Rate Design'!$I$10-0.2*J60 -> 101164.8253 | K151: =500000*('Rate Design'!$I$5/100)+MIN(5500000,K17-500000)*('Rate Design'!$I$6/100)+MAX(0,K17-6000000)*('Rate Design'!$I$7/100)+'Rate Design'!$I$9+K87*'Rate Design'!$I$10-0.2*K60 -> 103331.7778 | L151: =500000*('Rate Design'!$I$5/100)+MIN(5500000,L17-500000)*('Rate Design'!$I$6/100)+MAX(0,L17-6000000)*('Rate Design'!$I$7/100)+'Rate Design'!$I$9+L87*'Rate Design'!$I$10-0.2*L60 -> 102301.5072 | M151: =500000*('Rate Design'!$I$5/100)+MIN(5500000,M17-500000)*('Rate Design'!$I$6/100)+MAX(0,M17-6000000)*('Rate Design'!$I$7/100)+'Rate Design'!$I$9+M87*'Rate Design'!$I$10-0.2*M60 -> 102131.4216 | N151: =500000*('Rate Design'!$I$5/100)+MIN(5500000,N17-500000)*('Rate Design'!$I$6/100)+MAX(0,N17-6000000)*('Rate Design'!$I$7/100)+'Rate Design'!$I$9+N87*'Rate Design'!$I$10-0.2*N60 -> 97568.7204 | O151: =500000*('Rate Design'!$I$5/100)+MIN(5500000,O17-500000)*('Rate Design'!$I$6/100)+MAX(0,O17-6000000)*('Rate Design'!$I$7/100)+'Rate Design'!$I$9+O87*'Rate Design'!$I$10-0.2*O60 -> 102629.8085 | P151: 1156643.668 | T151: 0
B152: 0 | C152: 610018682 | D152: 0 | E152: 0 | F152: 0 | G152: 0 | H152: 0 | I152: 0 | J152: 0 | K152: 0 | L152: 0 | M152: 0 | N152: 0 | O152: 0 | P152: 0 | T152: 0
A153: 14 | B153: Vaagen Brothers Lumber | C153: 690067830 | D153: =500000*('Rate Design'!$I$5/100)+MIN(5500000,D19-500000)*('Rate Design'!$I$6/100)+MAX(0,D19-6000000)*('Rate Design'!$I$7/100)+'Rate Design'!$I$9+D89*'Rate Design'!$I$10-0.2*D62 -> 155960.1056 | E153: =500000*('Rate Design'!$I$5/100)+MIN(5500000,E19-500000)*('Rate Design'!$I$6/100)+MAX(0,E19-6000000)*('Rate Design'!$I$7/100)+'Rate Design'!$I$9+E89*'Rate Design'!$I$10-0.2*E62 -> 162694.3078 | F153: =500000*('Rate Design'!$I$5/100)+MIN(5500000,F19-500000)*('Rate Design'!$I$6/100)+MAX(0,F19-6000000)*('Rate Design'!$I$7/100)+'Rate Design'!$I$9+F89*'Rate Design'!$I$10-0.2*F62 -> 173718.2312 | G153: =500000*('Rate Design'!$I$5/100)+MIN(5500000,G19-500000)*('Rate Design'!$I$6/100)+MAX(0,G19-6000000)*('Rate Design'!$I$7/100)+'Rate Design'!$I$9+G89*'Rate Design'!$I$10-0.2*G62 -> 167973.37 | H153: =500000*('Rate Design'!$I$5/100)+MIN(5500000,H19-500000)*('Rate Design'!$I$6/100)+MAX(0,H19-6000000)*('Rate Design'!$I$7/100)+'Rate Design'!$I$9+H89*'Rate Design'!$I$10-0.2*H62 -> 163285.7026 | I153: =500000*('Rate Design'!$I$5/100)+MIN(5500000,I19-500000)*('Rate Design'!$I$6/100)+MAX(0,I19-6000000)*('Rate Design'!$I$7/100)+'Rate Design'!$I$9+I89*'Rate Design'!$I$10-0.2*I62 -> 164568.2957 | J153: =500000*('Rate Design'!$I$5/100)+MIN(5500000,J19-500000)*('Rate Design'!$I$6/100)+MAX(0,J19-6000000)*('Rate Design'!$I$7/100)+'Rate Design'!$I$9+J89*'Rate Design'!$I$10-0.2*J62 -> 152116.0749 | K153: =500000*('Rate Design'!$I$5/100)+MIN(5500000,K19-500000)*('Rate Design'!$I$6/100)+MAX(0,K19-6000000)*('Rate Design'!$I$7/100)+'Rate Design'!$I$9+K89*'Rate Design'!$I$10-0.2*K62 -> 138064.5661 | L153: =500000*('Rate Design'!$I$5/100)+MIN(5500000,L19-500000)*('Rate Design'!$I$6/100)+MAX(0,L19-6000000)*('Rate Design'!$I$7/100)+'Rate Design'!$I$9+L89*'Rate Design'!$I$10-0.2*L62 -> 132981.3744 | M153: =500000*('Rate Design'!$I$5/100)+MIN(5500000,M19-500000)*('Rate Design'!$I$6/100)+MAX(0,M19-6000000)*('Rate Design'!$I$7/100)+'Rate Design'!$I$9+M89*'Rate Design'!$I$10-0.2*M62 -> 125247.3707 | N153: =500000*('Rate Design'!$I$5/100)+MIN(5500000,N19-500000)*('Rate Design'!$I$6/100)+MAX(0,N19-6000000)*('Rate Design'!$I$7/100)+'Rate Design'!$I$9+N89*'Rate Design'!$I$10-0.2*N62 -> 132137.9323 | O153: =500000*('Rate Design'!$I$5/100)+MIN(5500000,O19-500000)*('Rate Design'!$I$6/100)+MAX(0,O19-6000000)*('Rate Design'!$I$7/100)+'Rate Design'!$I$9+O89*'Rate Design'!$I$10-0.2*O62 -> 131289.6096 | P153: 1800036.941 | T153: 0
A154: 15 | B154: WSU - MP-A South Campus Feeder | C154: 1300001 | D154: =500000*('Rate Design'!$I$5/100)+MIN(5500000,D20-500000)*('Rate Design'!$I$6/100)+MAX(0,D20-6000000)*('Rate Design'!$I$7/100)+'Rate Design'!$I$9+D90*'Rate Design'!$I$10-0.2*D63 -> 151606.6918 | E154: =500000*('Rate Design'!$I$5/100)+MIN(5500000,E20-500000)*('Rate Design'!$I$6/100)+MAX(0,E20-6000000)*('Rate Design'!$I$7/100)+'Rate Design'!$I$9+E90*'Rate Design'!$I$10-0.2*E63 -> 148506.7265 | F154: =500000*('Rate Design'!$I$5/100)+MIN(5500000,F20-500000)*('Rate Design'!$I$6/100)+MAX(0,F20-6000000)*('Rate Design'!$I$7/100)+'Rate Design'!$I$9+F90*'Rate Design'!$I$10-0.2*F63 -> 154232.9863 | G154: =500000*('Rate Design'!$I$5/100)+MIN(5500000,G20-500000)*('Rate Design'!$I$6/100)+MAX(0,G20-6000000)*('Rate Design'!$I$7/100)+'Rate Design'!$I$9+G90*'Rate Design'!$I$10-0.2*G63 -> 152764.731 | H154: =500000*('Rate Design'!$I$5/100)+MIN(5500000,H20-500000)*('Rate Design'!$I$6/100)+MAX(0,H20-6000000)*('Rate Design'!$I$7/100)+'Rate Design'!$I$9+H90*'Rate Design'!$I$10-0.2*H63 -> 147509.5742 | I154: =500000*('Rate Design'!$I$5/100)+MIN(5500000,I20-500000)*('Rate Design'!$I$6/100)+MAX(0,I20-6000000)*('Rate Design'!$I$7/100)+'Rate Design'!$I$9+I90*'Rate Design'!$I$10-0.2*I63 -> 155394.8364 | J154: =500000*('Rate Design'!$I$5/100)+MIN(5500000,J20-500000)*('Rate Design'!$I$6/100)+MAX(0,J20-6000000)*('Rate Design'!$I$7/100)+'Rate Design'!$I$9+J90*'Rate Design'!$I$10-0.2*J63 -> 149083.1464 | K154: =500000*('Rate Design'!$I$5/100)+MIN(5500000,K20-500000)*('Rate Design'!$I$6/100)+MAX(0,K20-6000000)*('Rate Design'!$I$7/100)+'Rate Design'!$I$9+K90*'Rate Design'!$I$10-0.2*K63 -> 150674.5321 | L154: =500000*('Rate Design'!$I$5/100)+MIN(5500000,L20-500000)*('Rate Design'!$I$6/100)+MAX(0,L20-6000000)*('Rate Design'!$I$7/100)+'Rate Design'!$I$9+L90*'Rate Design'!$I$10-0.2*L63 -> 153404.3725 | M154: =500000*('Rate Design'!$I$5/100)+MIN(5500000,M20-500000)*('Rate Design'!$I$6/100)+MAX(0,M20-6000000)*('Rate Design'!$I$7/100)+'Rate Design'!$I$9+M90*'Rate Design'!$I$10-0.2*M63 -> 155017.7175 | N154: =500000*('Rate Design'!$I$5/100)+MIN(5500000,N20-500000)*('Rate Design'!$I$6/100)+MAX(0,N20-6000000)*('Rate Design'!$I$7/100)+'Rate Design'!$I$9+N90*'Rate Design'!$I$10-0.2*N63 -> 159396.8379 | O154: =500000*('Rate Design'!$I$5/100)+MIN(5500000,O20-500000)*('Rate Design'!$I$6/100)+MAX(0,O20-6000000)*('Rate Design'!$I$7/100)+'Rate Design'!$I$9+O90*'Rate Design'!$I$10-0.2*O63 -> 159822.0218 | P154: 1837414.174 | T154: 0
A155: 16 | B155: WSU - MP-B East Campus EA | C155: 290081951 | D155: =500000*('Rate Design'!$I$5/100)+MIN(5500000,D21-500000)*('Rate Design'!$I$6/100)+MAX(0,D21-6000000)*('Rate Design'!$I$7/100)+'Rate Design'!$I$9+D91*'Rate Design'!$I$10-0.2*D64 -> 284017.7879 | E155: =500000*('Rate Design'!$I$5/100)+MIN(5500000,E21-500000)*('Rate Design'!$I$6/100)+MAX(0,E21-6000000)*('Rate Design'!$I$7/100)+'Rate Design'!$I$9+E91*'Rate Design'!$I$10-0.2*E64 -> 272131.1968 | F155: =500000*('Rate Design'!$I$5/100)+MIN(5500000,F21-500000)*('Rate Design'!$I$6/100)+MAX(0,F21-6000000)*('Rate Design'!$I$7/100)+'Rate Design'!$I$9+F91*'Rate Design'!$I$10-0.2*F64 -> 281144.5373 | G155: =500000*('Rate Design'!$I$5/100)+MIN(5500000,G21-500000)*('Rate Design'!$I$6/100)+MAX(0,G21-6000000)*('Rate Design'!$I$7/100)+'Rate Design'!$I$9+G91*'Rate Design'!$I$10-0.2*G64 -> 258939.205 | H155: =500000*('Rate Design'!$I$5/100)+MIN(5500000,H21-500000)*('Rate Design'!$I$6/100)+MAX(0,H21-6000000)*('Rate Design'!$I$7/100)+'Rate Design'!$I$9+H91*'Rate Design'!$I$10-0.2*H64 -> 245024.1419 | I155: =500000*('Rate Design'!$I$5/100)+MIN(5500000,I21-500000)*('Rate Design'!$I$6/100)+MAX(0,I21-6000000)*('Rate Design'!$I$7/100)+'Rate Design'!$I$9+I91*'Rate Design'!$I$10-0.2*I64 -> 246791.6019 | J155: =500000*('Rate Design'!$I$5/100)+MIN(5500000,J21-500000)*('Rate Design'!$I$6/100)+MAX(0,J21-6000000)*('Rate Design'!$I$7/100)+'Rate Design'!$I$9+J91*'Rate Design'!$I$10-0.2*J64 -> 239688.4752 | K155: =500000*('Rate Design'!$I$5/100)+MIN(5500000,K21-500000)*('Rate Design'!$I$6/100)+MAX(0,K21-6000000)*('Rate Design'!$I$7/100)+'Rate Design'!$I$9+K91*'Rate Design'!$I$10-0.2*K64 -> 269947.444 | L155: =500000*('Rate Design'!$I$5/100)+MIN(5500000,L21-500000)*('Rate Design'!$I$6/100)+MAX(0,L21-6000000)*('Rate Design'!$I$7/100)+'Rate Design'!$I$9+L91*'Rate Design'!$I$10-0.2*L64 -> 343405.1679 | M155: =500000*('Rate Design'!$I$5/100)+MIN(5500000,M21-500000)*('Rate Design'!$I$6/100)+MAX(0,M21-6000000)*('Rate Design'!$I$7/100)+'Rate Design'!$I$9+M91*'Rate Design'!$I$10-0.2*M64 -> 370141.9886 | N155: =500000*('Rate Design'!$I$5/100)+MIN(5500000,N21-500000)*('Rate Design'!$I$6/100)+MAX(0,N21-6000000)*('Rate Design'!$I$7/100)+'Rate Design'!$I$9+N91*'Rate Design'!$I$10-0.2*N64 -> 377127.5389 | O155: =500000*('Rate Design'!$I$5/100)+MIN(5500000,O21-500000)*('Rate Design'!$I$6/100)+MAX(0,O21-6000000)*('Rate Design'!$I$7/100)+'Rate Design'!$I$9+O91*'Rate Design'!$I$10-0.2*O64 -> 318592.8613 | P155: 3506951.947 | T155: 0
A156: 17 | B156: WSU - MP-C East Campus EB | C156: 500033 | D156: =500000*('Rate Design'!$I$5/100)+MIN(5500000,D22-500000)*('Rate Design'!$I$6/100)+MAX(0,D22-6000000)*('Rate Design'!$I$7/100)+'Rate Design'!$I$9+D92*'Rate Design'!$I$10-0.2*D65 -> 205910.4284 | E156: =500000*('Rate Design'!$I$5/100)+MIN(5500000,E22-500000)*('Rate Design'!$I$6/100)+MAX(0,E22-6000000)*('Rate Design'!$I$7/100)+'Rate Design'!$I$9+E92*'Rate Design'!$I$10-0.2*E65 -> 212181.7857 | F156: =500000*('Rate Design'!$I$5/100)+MIN(5500000,F22-500000)*('Rate Design'!$I$6/100)+MAX(0,F22-6000000)*('Rate Design'!$I$7/100)+'Rate Design'!$I$9+F92*'Rate Design'!$I$10-0.2*F65 -> 220351.0657 | G156: =500000*('Rate Design'!$I$5/100)+MIN(5500000,G22-500000)*('Rate Design'!$I$6/100)+MAX(0,G22-6000000)*('Rate Design'!$I$7/100)+'Rate Design'!$I$9+G92*'Rate Design'!$I$10-0.2*G65 -> 214029.694 | H156: =500000*('Rate Design'!$I$5/100)+MIN(5500000,H22-500000)*('Rate Design'!$I$6/100)+MAX(0,H22-6000000)*('Rate Design'!$I$7/100)+'Rate Design'!$I$9+H92*'Rate Design'!$I$10-0.2*H65 -> 210017.2439 | I156: =500000*('Rate Design'!$I$5/100)+MIN(5500000,I22-500000)*('Rate Design'!$I$6/100)+MAX(0,I22-6000000)*('Rate Design'!$I$7/100)+'Rate Design'!$I$9+I92*'Rate Design'!$I$10-0.2*I65 -> 212219.2634 | J156: =500000*('Rate Design'!$I$5/100)+MIN(5500000,J22-500000)*('Rate Design'!$I$6/100)+MAX(0,J22-6000000)*('Rate Design'!$I$7/100)+'Rate Design'!$I$9+J92*'Rate Design'!$I$10-0.2*J65 -> 186753.0068 | K156: =500000*('Rate Design'!$I$5/100)+MIN(5500000,K22-500000)*('Rate Design'!$I$6/100)+MAX(0,K22-6000000)*('Rate Design'!$I$7/100)+'Rate Design'!$I$9+K92*'Rate Design'!$I$10-0.2*K65 -> 191229.0713 | L156: =500000*('Rate Design'!$I$5/100)+MIN(5500000,L22-500000)*('Rate Design'!$I$6/100)+MAX(0,L22-6000000)*('Rate Design'!$I$7/100)+'Rate Design'!$I$9+L92*'Rate Design'!$I$10-0.2*L65 -> 191827.2986 | M156: =500000*('Rate Design'!$I$5/100)+MIN(5500000,M22-500000)*('Rate Design'!$I$6/100)+MAX(0,M22-6000000)*('Rate Design'!$I$7/100)+'Rate Design'!$I$9+M92*'Rate Design'!$I$10-0.2*M65 -> 194320.6997 | N156: =500000*('Rate Design'!$I$5/100)+MIN(5500000,N22-500000)*('Rate Design'!$I$6/100)+MAX(0,N22-6000000)*('Rate Design'!$I$7/100)+'Rate Design'!$I$9+N92*'Rate Design'!$I$10-0.2*N65 -> 197599.9341 | O156: =500000*('Rate Design'!$I$5/100)+MIN(5500000,O22-500000)*('Rate Design'!$I$6/100)+MAX(0,O22-6000000)*('Rate Design'!$I$7/100)+'Rate Design'!$I$9+O92*'Rate Design'!$I$10-0.2*O65 -> 200740.0635 | P156: 2437179.555 | T156: 0
A157: 18 | B157: WSU - MP-D Casp East (no PVD) | C157: 410031282 | D157: =500000*('Rate Design'!$I$5/100)+MIN(5500000,D23-500000)*('Rate Design'!$I$6/100)+MAX(0,D23-6000000)*('Rate Design'!$I$7/100)+'Rate Design'!$I$9+D93*'Rate Design'!$I$10 -> 158122.8607 | E157: =500000*('Rate Design'!$I$5/100)+MIN(5500000,E23-500000)*('Rate Design'!$I$6/100)+MAX(0,E23-6000000)*('Rate Design'!$I$7/100)+'Rate Design'!$I$9+E93*'Rate Design'!$I$10 -> 161598.7911 | F157: =500000*('Rate Design'!$I$5/100)+MIN(5500000,F23-500000)*('Rate Design'!$I$6/100)+MAX(0,F23-6000000)*('Rate Design'!$I$7/100)+'Rate Design'!$I$9+F93*'Rate Design'!$I$10 -> 166576.4503 | G157: =500000*('Rate Design'!$I$5/100)+MIN(5500000,G23-500000)*('Rate Design'!$I$6/100)+MAX(0,G23-6000000)*('Rate Design'!$I$7/100)+'Rate Design'!$I$9+G93*'Rate Design'!$I$10 -> 183638.3885 | H157: =500000*('Rate Design'!$I$5/100)+MIN(5500000,H23-500000)*('Rate Design'!$I$6/100)+MAX(0,H23-6000000)*('Rate Design'!$I$7/100)+'Rate Design'!$I$9+H93*'Rate Design'!$I$10 -> 184323.5926 | I157: =500000*('Rate Design'!$I$5/100)+MIN(5500000,I23-500000)*('Rate Design'!$I$6/100)+MAX(0,I23-6000000)*('Rate Design'!$I$7/100)+'Rate Design'!$I$9+I93*'Rate Design'!$I$10 -> 184696.9946 | J157: =500000*('Rate Design'!$I$5/100)+MIN(5500000,J23-500000)*('Rate Design'!$I$6/100)+MAX(0,J23-6000000)*('Rate Design'!$I$7/100)+'Rate Design'!$I$9+J93*'Rate Design'!$I$10 -> 184075.3012 | K157: =500000*('Rate Design'!$I$5/100)+MIN(5500000,K23-500000)*('Rate Design'!$I$6/100)+MAX(0,K23-6000000)*('Rate Design'!$I$7/100)+'Rate Design'!$I$9+K93*'Rate Design'!$I$10 -> 173949.661 | L157: =500000*('Rate Design'!$I$5/100)+MIN(5500000,L23-500000)*('Rate Design'!$I$6/100)+MAX(0,L23-6000000)*('Rate Design'!$I$7/100)+'Rate Design'!$I$9+L93*'Rate Design'!$I$10 -> 163372.2774 | M157: =500000*('Rate Design'!$I$5/100)+MIN(5500000,M23-500000)*('Rate Design'!$I$6/100)+MAX(0,M23-6000000)*('Rate Design'!$I$7/100)+'Rate Design'!$I$9+M93*'Rate Design'!$I$10 -> 170228.7822 | N157: =500000*('Rate Design'!$I$5/100)+MIN(5500000,N23-500000)*('Rate Design'!$I$6/100)+MAX(0,N23-6000000)*('Rate Design'!$I$7/100)+'Rate Design'!$I$9+N93*'Rate Design'!$I$10 -> 214421.9772 | O157: =500000*('Rate Design'!$I$5/100)+MIN(5500000,O23-500000)*('Rate Design'!$I$6/100)+MAX(0,O23-6000000)*('Rate Design'!$I$7/100)+'Rate Design'!$I$9+O93*'Rate Design'!$I$10 -> 154973.8677 | P157: 2099978.944 | T157: 0
A158: 19 | B158: WSU - MP-E Casp West (no PVD) | C158: 500032 | D158: =500000*('Rate Design'!$I$5/100)+MIN(5500000,D24-500000)*('Rate Design'!$I$6/100)+MAX(0,D24-6000000)*('Rate Design'!$I$7/100)+'Rate Design'!$I$9+D94*'Rate Design'!$I$10 -> 161786.1383 | E158: =500000*('Rate Design'!$I$5/100)+MIN(5500000,E24-500000)*('Rate Design'!$I$6/100)+MAX(0,E24-6000000)*('Rate Design'!$I$7/100)+'Rate Design'!$I$9+E94*'Rate Design'!$I$10 -> 116300.1139 | F158: =500000*('Rate Design'!$I$5/100)+MIN(5500000,F24-500000)*('Rate Design'!$I$6/100)+MAX(0,F24-6000000)*('Rate Design'!$I$7/100)+'Rate Design'!$I$9+F94*'Rate Design'!$I$10 -> 118732.5541 | G158: =500000*('Rate Design'!$I$5/100)+MIN(5500000,G24-500000)*('Rate Design'!$I$6/100)+MAX(0,G24-6000000)*('Rate Design'!$I$7/100)+'Rate Design'!$I$9+G94*'Rate Design'!$I$10 -> 121257.0006 | H158: =500000*('Rate Design'!$I$5/100)+MIN(5500000,H24-500000)*('Rate Design'!$I$6/100)+MAX(0,H24-6000000)*('Rate Design'!$I$7/100)+'Rate Design'!$I$9+H94*'Rate Design'!$I$10 -> 120131.5413 | I158: =500000*('Rate Design'!$I$5/100)+MIN(5500000,I24-500000)*('Rate Design'!$I$6/100)+MAX(0,I24-6000000)*('Rate Design'!$I$7/100)+'Rate Design'!$I$9+I94*'Rate Design'!$I$10 -> 119622.014 | J158: =500000*('Rate Design'!$I$5/100)+MIN(5500000,J24-500000)*('Rate Design'!$I$6/100)+MAX(0,J24-6000000)*('Rate Design'!$I$7/100)+'Rate Design'!$I$9+J94*'Rate Design'!$I$10 -> 140628.0412 | K158: =500000*('Rate Design'!$I$5/100)+MIN(5500000,K24-500000)*('Rate Design'!$I$6/100)+MAX(0,K24-6000000)*('Rate Design'!$I$7/100)+'Rate Design'!$I$9+K94*'Rate Design'!$I$10 -> 142987.3196 | L158: =500000*('Rate Design'!$I$5/100)+MIN(5500000,L24-500000)*('Rate Design'!$I$6/100)+MAX(0,L24-6000000)*('Rate Design'!$I$7/100)+'Rate Design'!$I$9+L94*'Rate Design'!$I$10 -> 190072.928 | M158: =500000*('Rate Design'!$I$5/100)+MIN(5500000,M24-500000)*('Rate Design'!$I$6/100)+MAX(0,M24-6000000)*('Rate Design'!$I$7/100)+'Rate Design'!$I$9+M94*'Rate Design'!$I$10 -> 221704.7842 | N158: =500000*('Rate Design'!$I$5/100)+MIN(5500000,N24-500000)*('Rate Design'!$I$6/100)+MAX(0,N24-6000000)*('Rate Design'!$I$7/100)+'Rate Design'!$I$9+N94*'Rate Design'!$I$10 -> 199918.9832 | O158: =500000*('Rate Design'!$I$5/100)+MIN(5500000,O24-500000)*('Rate Design'!$I$6/100)+MAX(0,O24-6000000)*('Rate Design'!$I$7/100)+'Rate Design'!$I$9+O94*'Rate Design'!$I$10 -> 207880.6092 | P158: 1861022.028 | T158: 0
A159: 20 | B159: Goodrich - South 2311155858 (No PVD) | D159: =500000*('Rate Design'!$I$5/100)+MIN(5500000,D25-500000)*('Rate Design'!$I$6/100)+MAX(0,D25-6000000)*('Rate Design'!$I$7/100)+'Rate Design'!$I$9+D95*'Rate Design'!$I$10 -> 101476.5817 | E159: =500000*('Rate Design'!$I$5/100)+MIN(5500000,E25-500000)*('Rate Design'!$I$6/100)+MAX(0,E25-6000000)*('Rate Design'!$I$7/100)+'Rate Design'!$I$9+E95*'Rate Design'!$I$10 -> 57923.48389 | F159: =500000*('Rate Design'!$I$5/100)+MIN(5500000,F25-500000)*('Rate Design'!$I$6/100)+MAX(0,F25-6000000)*('Rate Design'!$I$7/100)+'Rate Design'!$I$9+F95*'Rate Design'!$I$10 -> 47891.88108 | G159: =500000*('Rate Design'!$I$5/100)+MIN(5500000,G25-500000)*('Rate Design'!$I$6/100)+MAX(0,G25-6000000)*('Rate Design'!$I$7/100)+'Rate Design'!$I$9+G95*'Rate Design'!$I$10 -> 93480.84032 | H159: =500000*('Rate Design'!$I$5/100)+MIN(5500000,H25-500000)*('Rate Design'!$I$6/100)+MAX(0,H25-6000000)*('Rate Design'!$I$7/100)+'Rate Design'!$I$9+H95*'Rate Design'!$I$10 -> 110780.5575 | I159: =500000*('Rate Design'!$I$5/100)+MIN(5500000,I25-500000)*('Rate Design'!$I$6/100)+MAX(0,I25-6000000)*('Rate Design'!$I$7/100)+'Rate Design'!$I$9+I95*'Rate Design'!$I$10 -> 123002.7067 | J159: =500000*('Rate Design'!$I$5/100)+MIN(5500000,J25-500000)*('Rate Design'!$I$6/100)+MAX(0,J25-6000000)*('Rate Design'!$I$7/100)+'Rate Design'!$I$9+J95*'Rate Design'!$I$10 -> 116769.1533 | K159: =500000*('Rate Design'!$I$5/100)+MIN(5500000,K25-500000)*('Rate Design'!$I$6/100)+MAX(0,K25-6000000)*('Rate Design'!$I$7/100)+'Rate Design'!$I$9+K95*'Rate Design'!$I$10 -> 135978.8023 | L159: =500000*('Rate Design'!$I$5/100)+MIN(5500000,L25-500000)*('Rate Design'!$I$6/100)+MAX(0,L25-6000000)*('Rate Design'!$I$7/100)+'Rate Design'!$I$9+L95*'Rate Design'!$I$10 -> 176723.0316 | M159: =500000*('Rate Design'!$I$5/100)+MIN(5500000,M25-500000)*('Rate Design'!$I$6/100)+MAX(0,M25-6000000)*('Rate Design'!$I$7/100)+'Rate Design'!$I$9+M95*'Rate Design'!$I$10 -> 145053.287 | N159: =500000*('Rate Design'!$I$5/100)+MIN(5500000,N25-500000)*('Rate Design'!$I$6/100)+MAX(0,N25-6000000)*('Rate Design'!$I$7/100)+'Rate Design'!$I$9+N95*'Rate Design'!$I$10 -> 163963.8525 | O159: =500000*('Rate Design'!$I$5/100)+MIN(5500000,O25-500000)*('Rate Design'!$I$6/100)+MAX(0,O25-6000000)*('Rate Design'!$I$7/100)+'Rate Design'!$I$9+O95*'Rate Design'!$I$10 -> 187239.6012 | P159: =SUM(D159:O159) -> 1460283.779 | T159: 0
A160: 21 | B160: Boise Cascade LLC Inland Region | D160: =500000*('Rate Design'!$I$5/100)+MIN(5500000,D26-500000)*('Rate Design'!$I$6/100)+MAX(0,D26-6000000)*('Rate Design'!$I$7/100)+'Rate Design'!$I$9+D96*'Rate Design'!$I$10-0.2*D69 -> 78877.5044 | E160: =500000*('Rate Design'!$I$5/100)+MIN(5500000,E26-500000)*('Rate Design'!$I$6/100)+MAX(0,E26-6000000)*('Rate Design'!$I$7/100)+'Rate Design'!$I$9+E96*'Rate Design'!$I$10-0.2*E69 -> 81150.67363 | F160: =500000*('Rate Design'!$I$5/100)+MIN(5500000,F26-500000)*('Rate Design'!$I$6/100)+MAX(0,F26-6000000)*('Rate Design'!$I$7/100)+'Rate Design'!$I$9+F96*'Rate Design'!$I$10-0.2*F69 -> 84752.77017 | G160: =500000*('Rate Design'!$I$5/100)+MIN(5500000,G26-500000)*('Rate Design'!$I$6/100)+MAX(0,G26-6000000)*('Rate Design'!$I$7/100)+'Rate Design'!$I$9+G96*'Rate Design'!$I$10-0.2*G69 -> 88765.91885 | H160: =500000*('Rate Design'!$I$5/100)+MIN(5500000,H26-500000)*('Rate Design'!$I$6/100)+MAX(0,H26-6000000)*('Rate Design'!$I$7/100)+'Rate Design'!$I$9+H96*'Rate Design'!$I$10-0.2*H69 -> 86758.70687 | I160: =500000*('Rate Design'!$I$5/100)+MIN(5500000,I26-500000)*('Rate Design'!$I$6/100)+MAX(0,I26-6000000)*('Rate Design'!$I$7/100)+'Rate Design'!$I$9+I96*'Rate Design'!$I$10-0.2*I69 -> 85708.98364 | J160: =500000*('Rate Design'!$I$5/100)+MIN(5500000,J26-500000)*('Rate Design'!$I$6/100)+MAX(0,J26-6000000)*('Rate Design'!$I$7/100)+'Rate Design'!$I$9+J96*'Rate Design'!$I$10-0.2*J69 -> 80410.21558 | K160: =500000*('Rate Design'!$I$5/100)+MIN(5500000,K26-500000)*('Rate Design'!$I$6/100)+MAX(0,K26-6000000)*('Rate Design'!$I$7/100)+'Rate Design'!$I$9+K96*'Rate Design'!$I$10-0.2*K69 -> 74937.03078 | L160: =500000*('Rate Design'!$I$5/100)+MIN(5500000,L26-500000)*('Rate Design'!$I$6/100)+MAX(0,L26-6000000)*('Rate Design'!$I$7/100)+'Rate Design'!$I$9+L96*'Rate Design'!$I$10-0.2*L69 -> 78033.72432 | M160: =500000*('Rate Design'!$I$5/100)+MIN(5500000,M26-500000)*('Rate Design'!$I$6/100)+MAX(0,M26-6000000)*('Rate Design'!$I$7/100)+'Rate Design'!$I$9+M96*'Rate Design'!$I$10-0.2*M69 -> 74608.34422 | N160: =500000*('Rate Design'!$I$5/100)+MIN(5500000,N26-500000)*('Rate Design'!$I$6/100)+MAX(0,N26-6000000)*('Rate Design'!$I$7/100)+'Rate Design'!$I$9+N96*'Rate Design'!$I$10-0.2*N69 -> 76078.70593 | O160: =500000*('Rate Design'!$I$5/100)+MIN(5500000,O26-500000)*('Rate Design'!$I$6/100)+MAX(0,O26-6000000)*('Rate Design'!$I$7/100)+'Rate Design'!$I$9+O96*'Rate Design'!$I$10-0.2*O69 -> 77043.64621 | P160: =SUM(D160:O160) -> 967126.2246 | T160: =IF(P160<945750,945750-P160,0) -> 0
B161: Schedule 25 Total | P161: =SUM(P138:P160) -> 42042328.96 | Q161: =P161-'Pres & Prop Rev'!I152 -> 1623.371764 | T161: =SUM(T138:T160) -> 0
D163: 24 | E163: 24 | F163: 24 | G163: 24 | H163: 24 | I163: 24 | J163: 24 | K163: 24 | L163: 24 | M163: 24 | N163: 24 | O163: 24
D164: 31 | E164: 30 | F164: 31 | G164: 31 | H164: 28 | I164: 31 | J164: 30 | K164: 31 | L164: 30 | M164: 31 | N164: 31 | O164: 30 | P164: =SUM(D164:O164) -> 365
D165: =D163*D164 -> 744 | E165: =E163*E164 -> 720 | F165: =F163*F164 -> 744 | G165: 744 | H165: 672 | I165: 744 | J165: 720 | K165: 744 | L165: 720 | M165: 744 | N165: 744 | O165: 720 | P165: =SUM(D165:O165) -> 8760
B166: Load Factor | D166: =D3 -> 2020-10-31 | E166: 2020-11-30 | F166: 2020-12-31 | G166: 2021-01-31 | H166: 2021-02-28 | I166: 2021-03-31 | J166: 2021-04-30 | K166: 2021-05-31 | L166: 2021-06-30 | M166: 2021-07-31 | N166: 2021-08-31 | O166: 2021-09-30 | P166: Monthly Average | Q166: Annual Peak
A167: 1 | B167: =B4 -> Goodrich - North 2311008572 | D167: =(D4/D$165)/D47 -> 0.6280970963 | E167: 0.6828284568 | F167: 0.6332118435 | G167: 0.6011009391 | H167: 0.6760047009 | I167: 0.6533358136 | J167: 0.6193035982 | K167: 0.7143917336 | L167: 0.6864517545 | M167: 0.6380929043 | N167: 0.6401820462 | O167: 0.7195739727 | P167: =AVERAGE(D167:O167) -> 0.6577145716 | Q167: =(P4/8760)/Q47 -> 0.4845583574
A168: 2 | B168: Boise Cascade Plywood | D168: =(D5/D$165)/D48 -> 0.7693072072 | E168: 0.7519728499 | F168: 0.622566671 | G168: 0.7327175581 | H168: 0.7799587063 | I168: 0.7691168763 | J168: 0.7714152311 | K168: 0.7447563668 | L168: 0.7405162862 | M168: 0.7391598485 | N168: 0.6090802787 | O168: 0.7208704245 | P168: =AVERAGE(D168:O168) -> 0.7292865254 | Q168: 0.7031298713
A169: 3 | B169: Boise Cascade Sawmill | D169: =(D6/D$165)/D49 -> 0.6149389787 | E169: 0.6257988132 | F169: 0.618083825 | G169: 0.6219211273 | H169: 0.6553576111 | I169: 0.6389743902 | J169: 0.6296167409 | K169: 0.6001532462 | L169: 0.6478459497 | M169: 0.6102580099 | N169: 0.619020024 | O169: 0.5909583053 | P169: 0.6227439185 | Q169: 0.574236601
A170: 4 | B170: City of Spokane | D170: =(D7/D$165)/D50 -> 0.6343527554 | E170: 0.6385102997 | F170: 0.6935380071 | G170: 0.7422510396 | H170: 0.7337560537 | I170: 0.6351301758 | J170: 0.6486410528 | K170: 0.6332391066 | L170: 0.6339588562 | M170: 0.6975049066 | N170: 0.6450316654 | O170: 0.530066517 | P170: 0.6554983696 | Q170: 0.5514505252
A171: 5 | B171: Empire Health Services | D171: =(D8/D$165)/D51 -> 0.8001352845 | E171: 0.7952635498 | F171: 0.795234353 | G171: 0.7785178272 | H171: 0.7927590165 | I171: 0.8135944254 | J171: 0.6901692933 | K171: 0.6699833517 | L171: 0.6926937807 | M171: 0.7736113543 | N171: 0.7370961562 | O171: 0.7305609723 | P171: 0.7558016137 | Q171: 0.5928019106
A172: 6 | B172: Gonzaga University | D172: =(D9/D$165)/D52 -> 0.5760744474 | E172: 0.6619873523 | F172: 0.6849567236 | G172: 0.6694499028 | H172: 0.7191751549 | I172: 0.6923590853 | J172: 0.5934656018 | K172: 0.459378697 | L172: 0.462649183 | M172: 0.516884032 | N172: 0.5148505764 | O172: 0.5292628006 | P172: 0.5900411298 | Q172: 0.5072720406
A173: 7 | B173: Honeywell Electronics | D173: =(D10/D$165)/D53 -> 0.5762374314 | E173: 0.5522050988 | F173: 0.5830570976 | G173: 0.578628287 | H173: 0.588664699 | I173: 0.5865121445 | J173: 0.5938188418 | K173: 0.6053534516 | L173: 0.5405560383 | M173: 0.5779513216 | N173: 0.5762490038 | O173: 0.5725331671 | P173: 0.5776472152 | Q173: 0.4867633608
A174: 8 | B174: Huntwood Industries | D174: =(D11/D$165)/D54 -> 0.3127719445 | E174: 0.2898070864 | F174: 0.3052602491 | G174: 0.3049043306 | H174: 0.3205270841 | I174: 0.33844314 | J174: 0.3598628408 | K174: 0.3422157645 | L174: 0.3528104015 | M174: 0.3711803261 | N174: 0.3572895985 | O174: 0.3429298006 | P174: 0.3331668806 | Q174: 0.3059274928
B175: 0 | D175: 0 | E175: 0 | F175: 0 | G175: 0 | H175: 0 | I175: 0 | J175: 0 | K175: 0 | L175: 0 | M175: 0 | N175: 0 | O175: 0 | P175: 0 | Q175: 0
A176: 9 | B176: Simplot - Othello | D176: =(D13/D$165)/D56 -> 0.8937478884 | E176: 0.7057013002 | F176: 0.7625558939 | G176: 0.8097316946 | H176: 0.7923355337 | I176: 0.8579446559 | J176: 0.8919613835 | K176: 0.8819953823 | L176: 0.9078885687 | M176: 0.8812746761 | N176: 0.8874664403 | O176: 0.8718514848 | P176: 0.8453712419 | Q176: =(P13/8760)/Q56 -> 0.8270501209
A177: 10 | B177: McCaine Foods Inc | D177: =(D14/D$165)/D57 -> 0.5831322137 | E177: 0.7928404309 | F177: 0.6704531173 | G177: 0.6187346165 | H177: 0.8058460848 | I177: 0.8359245279 | J177: 0.7379146081 | K177: 0.8370118295 | L177: 0.8043123334 | M177: 0.5896668907 | N177: 0.7644244524 | O177: 0.6626354639 | P177: 0.7252413808 | Q177: =(P14/8760)/Q57 -> 0.5577558352
A178: 11 | B178: Sacred Heart Medical Center | D178: =(D15/D$165)/D58 -> 0.6545218228 | E178: 0.8451811041 | F178: 0.8653597356 | G178: 0.849421182 | H178: 0.8609225579 | I178: 0.7787325161 | J178: 0.6855628346 | K178: 0.6925686186 | L178: 0.6451685273 | M178: 0.7601473796 | N178: 0.7167526913 | O178: 0.7266711746 | P178: 0.7567508454 | Q178: =(P15/8760)/Q58 -> 0.5488382428
A179: 12 | B179: Spokane County Combined Master | D179: =(D16/D$165)/D59 -> 0.5669626765 | E179: 0.7029673852 | F179: 0.7219828717 | G179: 0.6890621432 | H179: 0.7120960227 | I179: 0.6071981082 | J179: 0.6007470278 | K179: 0.5759527647 | L179: 0.5683867347 | M179: 0.6634489994 | N179: 0.6174676665 | O179: 0.5836979286 | P179: 0.6341641941 | Q179: =(P16/8760)/Q59 -> 0.4834566951
A180: 13 | B180: Spokane Industries | D180: =(D17/D$165)/D60 -> 0.1205818845 | E180: 0.1749920387 | F180: 0.1457206557 | G180: 0.1737405922 | H180: 0.21815689 | I180: 0.2057529925 | J180: 0.2131325003 | K180: 0.1910281671 | L180: 0.2094214429 | M180: 0.197885531 | N180: 0.1550962873 | O180: 0.2177178018 | P180: 0.1852688987 | Q180: =(P17/8760)/Q60 -> 0.1701258023
B181: 0 | D181: 0 | E181: 0 | F181: 0 | G181: 0 | H181: 0 | I181: 0 | J181: 0 | K181: 0 | L181: 0 | M181: 0 | N181: 0 | O181: 0 | P181: 0 | Q181: 0
A182: 14 | B182: Vaagen Brothers Lumber | D182: =(D19/D$165)/D62 -> 0.6173833541 | E182: 0.6606471003 | F182: 0.6665693324 | G182: 0.6345992777 | H182: 0.6471468607 | I182: 0.6319588253 | J182: 0.649509787 | K182: 0.6049396177 | L182: 0.5727954298 | M182: 0.5437615968 | N182: 0.5858777517 | O182: 0.5466117548 | P182: 0.6134833907 | Q182: =(P19/8760)/Q62 -> 0.5490679097
A183: 15 | B183: WSU - MP-A South Campus Feeder | D183: =(D20/D$165)/D63 -> 0.7618738704 | E183: 0.8581006753 | F183: 0.791531185 | G183: 0.8349694439 | H183: 0.8689587768 | I183: 0.8283387727 | J183: 0.8259350234 | K183: 0.8192816227 | L183: 0.7861087316 | M183: 0.7760762127 | N183: 0.7876599144 | O183: 0.7629886972 | P183: 0.8084852438 | Q183: 0.7298048564
A184: 16 | B184: WSU - MP-B East Campus EA | D184: =(D21/D$165)/D64 -> 0.6404100025 | E184: 0.7843019984 | F184: 0.7901405945 | G184: 0.7560205863 | H184: 0.7673430006 | I184: 0.7853158066 | J184: 0.6869113883 | K184: 0.5861571885 | L184: 0.6126105961 | M184: 0.6907767447 | N184: 0.6503382449 | O184: 0.6523747721 | P184: 0.700225077 | Q184: 0.5150011847
A185: 17 | B185: WSU - MP-C East Campus EB | D185: =(D22/D$165)/D65 -> 0.7465824253 | E185: 0.7549848896 | F185: 0.7667040179 | G185: 0.8299568442 | H185: 0.7712731116 | I185: 0.7808188472 | J185: 0.7483527179 | K185: 0.8080550909 | L185: 0.8376956803 | M185: 0.8458587427 | N185: 0.8185190792 | O185: 0.7712688703 | P185: 0.7900058598 | Q185: 0.7012960283
A186: 18 | B186: WSU - MP-D Casp East (no PVD) | D186: =(D23/D$165)/D66 -> 0.7091357924 | E186: 0.7077613914 | F186: 0.7238255859 | G186: 0.7414145577 | H186: 0.7827384693 | I186: 0.7377542701 | J186: 0.7618546549 | K186: 0.7056015759 | L186: 0.7285263749 | M186: 0.7352841272 | N186: 0.4064303943 | O186: 0.7503282188 | P186: 0.7075546177 | Q186: 0.3871118285
A187: 19 | B187: WSU - MP-E Casp West (no PVD) | D187: =(D24/D$165)/D67 -> 0.521082127 | E187: 0.7945431012 | F187: 0.7524496144 | G187: 0.7063712442 | H187: 0.7804652244 | I187: 0.7700218685 | J187: 0.6024128863 | K187: 0.628882379 | L187: 0.6575773228 | M187: 0.8060233515 | N187: 0.6187274672 | O187: 0.5696593628 | P187: 0.6840179958 | Q187: 0.4302891813
A188: 20 | B188: Goodrich - South 2311155858 (No PVD) | D188: =(D25/D$165)/D68 -> 0.3561206073 | E188: 0.3918572611 | F188: 0.2863800937 | G188: 0.4255484891 | H188: 0.4595871858 | I188: 0.4802483315 | J188: 0.5487916623 | K188: 0.5731852874 | L188: 0.2957912667 | M188: 0.5792894716 | N188: 0.476749664 | O188: 0.5657652785 | P188: =AVERAGE(D188:O188) -> 0.4532762166 | Q188: 0.2271162157
A189: 21 | B189: Boise Cascade LLC Inland Region | D189: =(D26/D$165)/D69 -> 0.2929561506 | E189: 0.2895124616 | F189: 0.3058460343 | G189: 0.297226063 | H189: 0.3150229696 | I189: 0.3118659619 | J189: 0.2845848905 | K189: 0.2513356197 | L189: 0.2842254272 | M189: 0.2734568969 | N189: 0.2633637864 | O189: 0.2817308697 | P189: 0.2875939276 | Q189: 0.2661892875

Sheet Lighting summary
B1: AVISTA UTILITIES
B2: WASHINGTON ELECTRIC
B3: STREET & AREA LIGHT REVENUE UNDER PRESENT & PROPOSED RATES
B4: 12 MONTHS ENDED SEPTEMBER 30, 2021
C7: ="Present "&IF(Base1_Billing2=2,"Billing ","")&"Rates(1)" -> Present Rates(1) | D7: ="Present "&IF(Base1_Billing2=2,"Billing","")&" Rates" -> Present Rates | F7: ="Proposed "&IF(Base1_Billing2=2,"Billing ","")&"Rates(2)" -> Proposed Rates(2) | G7: ="Proposed "&IF(Base1_Billing2=2,"Billing ","")&"Rates" -> Proposed Rates | I7: % Revenue Change
C8: Monthly | D8: Annual | F8: Monthly | G8: Annual | L8: Target Base | N8: Annual | O8: Present | P8: Proposed
C9: Revenue | D9: Revenue | F9: Revenue | G9: Revenue | I9: Base Rates | J9: Billing Rates | L9: % Change | N9: kWh's | O9: kWh Rate | P9: kWh Rate
B11: Schedule 41 | C11: ='St Lts'!Y$106*IF(Base1_Billing2=2,(1+$I$39),1) -> 194.43 | D11: =C11*12 -> 2333.16 | F11: ='St Lts'!AQ$106*IF(Base1_Billing2=2,1+$D$39,1) -> 199.04 | G11: =F11*12 -> 2388.48 | I11: =G11/D11-1 -> 0.02371033277 | J11: 0 | L11: 0.0238 | N11: ='REVRUNS 12ME0921'!P258 -> 14833.298
B12: Schedule 42 | C12: ='St Lts'!Z$106*IF(Base1_Billing2=2,1+$I$39,1) -> 379269.46 | D12: =C12*12 -> 4551233.52 | F12: ='St Lts'!AR$106*IF(Base1_Billing2=2,1+$D$39,1) -> 388507.18 | G12: =F12*12 -> 4662086.16 | I12: =G12/D12-1 -> 0.02435661442 | J12: 0 | L12: 0.0225 | N12: ='REVRUNS 12ME0921'!P267 -> 8956623.877
B13: Schedule 44 | C13: ='St Lts'!AA$106*IF(Base1_Billing2=2,1+$I$39,1) -> 2045.34 | D13: 24544.08 | F13: ='St Lts'!AS$106*IF(Base1_Billing2=2,1+$D$39,1) -> 2094.2 | G13: 25130.4 | I13: =G13/D13-1 -> 0.02388844886 | J13: 0 | L13: =L11 -> 0.0238 | N13: ='REVRUNS 12ME0921'!P276 -> 159335.688
B14: Schedule 45 | C14: ='St Lts'!AB$106*IF(Base1_Billing2=2,1+$I$39,1) -> 2919.2 | D14: 35030.4 | F14: ='St Lts'!AT$106*IF(Base1_Billing2=2,1+$D$39,1) -> 2989.14 | G14: 35869.68 | I14: 0.0239586188 | J14: 0 | L14: =L11 -> 0.0238 | N14: ='REVRUNS 12ME0921'!P285 -> 421051.229
B15: Schedule 46 | C15: ='St Lts'!AC$106*IF(Base1_Billing2=2,1+$I$39,1) -> 8347.69 | D15: 100172.28 | F15: ='St Lts'!AU$106*IF(Base1_Billing2=2,1+$D$39,1) -> 8544.81 | G15: 102537.72 | I15: 0.02361371829 | J15: 0 | L15: =L11 -> 0.0238 | N15: ='REVRUNS 12ME0921'!P294 -> 772407.876 | O15: =D15/N15 -> 0.1296883203 | P15: =G15/N15 -> 0.1327507437
B16: Schedule 47 | C16: ='Area Lts'!S55*IF(Base1_Billing2=2,1+$I$39,1) -> 129012.29 | D16: 1548147.48 | F16: =IF(Base1_Billing2=1,'Area Lts'!AG55,'Area Lts'!AG64) -> 132081.27 | G16: 1584975.24 | I16: 0.0237882763 | J16: 0 | L16: =L11 -> 0.0238 | N16: ='REVRUNS 12ME0921'!P303 -> 4370876.387
B17: Schedule 48 | C17: ='Area Lts'!T55*IF(Base1_Billing2=2,1+$I$39,1) -> 75170.13019 | D17: 902041.5623 | F17: =IF(Base1_Billing2=1,'Area Lts'!AH55,'Area Lts'!AH64) -> 76959.08019 | G17: 923508.9623 | I17: 0.02379868168 | J17: 0 | L17: =L11 -> 0.0238 | N17: ='REVRUNS 12ME0921'!P313 -> 2284668.126
B19: Total | C19: =SUM(C11:C17) -> 596958.5402 | D19: =SUM(D11:D17) -> 7163502.482 | F19: =SUM(F11:F17) -> 611374.7202 | G19: =SUM(G11:G17) -> 7336496.642 | I19: =G19/D19-1 -> 0.02414938229 | J19: 0 | L19: =L11 -> 0.0238 | N19: =SUM(N11:N18) -> 16979796.48
C20: =ROUND(C19-CHOOSE(Base1_Billing2,'St Lts'!AC108+'Area Lts'!T56,'St Lts'!AC114+'Area Lts'!T65+G52),0) -> 0 | F20: =ROUND(F19-CHOOSE(Base1_Billing2,'St Lts'!AU107+'Area Lts'!AH56,'St Lts'!AU113+'Area Lts'!AH65),0) -> 0 | L20: =I19-L19 -> 0.0003493822926
B21: Sch 46 Per kWh Rate | D21: =D15/N15 -> 0.1296883203 | G21: =G15/N15 -> 0.1327507437
P22: Reconciliation
B23: (1) from JDM-E-12/14 | G23: 7479 | L23: =G19-('Rate Spread GRC'!H31*1000) -> 10949.58183 | P23: 7610000 | Q23: Rate Year 1 Final
B24: (2) from JDM-E-13/14 | P24: -445000 | Q24: Colstrip Schedule 99
P25: =SUM(P23:P24) -> 7165000 | Q25: Rate Year 1 Revised
C26: Billed | D26: =D19*(1+I39)+'Area Lts'!T63*12 -> 7163502.482 | F26: b4 Sch 91/92 | G26: =G19*(1+J39)+'Area Lts'!AH63*12 -> 7336496.642 | I26: =G26/D26-1 -> 0.02414938229 | K26: =G26-D26 -> 172994.16
C27: Diff | D27: =D26-D19 -> 0 | F27: b4 Sch 91/92 | G27: =G26-G19 -> 0 | P27: 7610000 | Q27: Rate Year 1 Final
C28: Pres 91/92 | D28: =D$19*(I36+I37) -> 0 | F28: 91/92 b4 Sch 91/92 | G28: =G$19*(J36+J37) -> 0 | P28: -445000 | Q28: Colstrip Schedule 99
C29: Pres 93 | D29: =D$19*I38 -> 0 | F29: 93 b4 Sch 93 | G29: =G$19*J38 -> 0 | P29: 172000 | Q29: Rate Year 2 Stip Increase
C30: add'l 91/92 | D30: =D28*($L$36+L37) -> 0 | P30: =SUM(P27:P29) -> 7337000 | Q30: Rate Year 2 Revised
C31: Billed | D31: =D26 -> 7163502.482 | F31: w/Sch 91/92/93/98 | G31: =G19*(1+D39)+'Area Lts'!AH63*12 -> 7336496.642 | I31: =G31/D31-1 -> 0.02414938229 | K31: =G31-D26 -> 172994.16 | L31: =K31-J$19 -> 172994.16
P32: 7782000 | Q32: Rate Year 2 Stip
P33: =P28 -> -445000 | Q33: Colstrip
J34: Revised | P34: =SUM(P32:P33) -> 7337000 | Q34: Rate Year 2 Revised
D35: Proposed | I35: Present | J35: Present | K35: Proposed
D36: =K36 -> 0 | G36: Sch 91-DSM | I36: 0 | J36: =(L19+(1+I36))/(1+L19)-1 -> 0 | K36: =J36*(1+L36) -> 0 | L36: 0
D37: =K37 -> 0 | G37: Sch 92-LIRAP | I37: 0 | J37: =(L19+(1+I37))/(1+L19)-1 -> 0 | K37: =J37*(1+L37) -> 0 | L37: 0 | M37: Reflects additional LIRAP funding
D38: =K38 -> 0 | I38: 0 | J38: =(L19+(1+I38))/(1+L19)-1 -> 0 | K38: =J38*(1+$L$38) -> 0 | L38: 0
D39: =D36+D37+D38 -> 0 | G39: Total adder | I39: =I36+I37+I38 -> 0 | J39: =J36+J37+J38 -> 0 | K39: =K36+K37+K38 -> 0
C41: Schedule 98 | D41: Schedule 91 | E41: Schedule 59 | G41: Total Revenue
B42: copy of Total above | C42: 488916.6501 | D42: 488917.65 | E42: 5866999.801 | G42: 556466.5401 | H42: 6677598.481
B43: diff from curr Total above | C43: =C19-C42 -> 108041.8901 | D43: =D19-D42 -> 6674584.832 | E43: =D19-E42 -> 1296502.682 | G43: =F19-G42 -> 54908.18014 | H43: =G19-H42 -> 658898.1617
B44: % diff | C44: =C43/C42 -> 0.220982227 | D44: =D43/D42 -> 13.65175676 | E44: =E43/E42 -> 0.220982227 | G44: =G43/G42 -> 0.09867292315 | H44: =H43/H42 -> 0.09867292315
B45: Schedule 41 | G45: =C45+D45+F45 -> 0
B46: Schedule 42 | G46: =C46+D46+F46 -> 0
B47: Schedule 44 | G47: 0
B48: Schedule 45 | G48: 0
B49: Schedule 46 | G49: 0
B50: Schedule 47 | G50: 0
B51: Schedule 48 | G51: 0
B52: Total | C52: =C45+C46+C47+C48+C49+C50+C51 -> 0 | D52: =D45+D46+D47+D48+D49+D50+D51 -> 0 | F52: =E45+E46+E47+E48+E49+E50+F51 -> 0 | G52: =C52+F52+D52 -> 0
F55: Total Billed | G55: =D31+G52 -> 7163502.482

Sheet St Lts
A1: Street Light Summary | I1: WASHINGTON Street Lights (Schedule 41 - 46 Rates) | AJ1: % rate increase --> | AK1: ='Lighting summary'!L11 -> 0.0238 | AL1: ='Lighting summary'!L12 -> 0.0225 | AM1: ='Lighting summary'!L13 -> 0.0238 | AN1: ='Lighting summary'!L14 -> 0.0238 | AO1: ='Lighting summary'!L15 -> 0.0238 | BE1: =-0.00789-0.00045-0.00339 -> -0.01173 | BF1: compare input Present Billing Rates to calculated Present Billing Rates | BM1: =BF2 -> 1.0151
A2: MDM-10069 Report as of 9/30/21 | M2: Number of Lights(1) | S2: Present Rates | Y2: Monthly Revenue at Present Rates | AE2: Number of Lights | AK2: Proposed Rates | AQ2: Monthly Revenue at Proposed Rates | AY2: Present Billing Rates | BE2: 0.01394 | BF2: =1+0.0151 -> 1.0151 | BG2: Sch 91 & 92 | BM2: New Billing Rates | BS2: Increase
I3: Fixture Type | J3: Pole Facility | K3: Size | L3: Sched | M3: 041 | N3: 042 | O3: 044 | P3: 045 | Q3: 046 | S3: 041 | T3: 042 | U3: 044 | V3: 045 | W3: 046 | Y3: 041 | Z3: 042 | AA3: 044 | AB3: 045 | AC3: 046 | AE3: 041 | AF3: 042 | AG3: 044 | AH3: 045 | AI3: 046 | AK3: 041 | AL3: 042 | AM3: 044 | AN3: 045 | AO3: 046 | AQ3: 041 | AR3: 042 | AS3: 044 | AT3: 045 | AU3: 046 | AX3: kwh | AY3: 041 | AZ3: 042 | BA3: 044 | BB3: 045 | BC3: 046 | BE3: Sch 93/94 | BF3: 041 | BG3: 042 | BH3: 044 | BI3: 045 | BJ3: 046 | BM3: 041 | BN3: 042 | BO3: 044 | BP3: 045 | BQ3: 046 | BS3: 041 | BT3: 042 | BU3: 044 | BV3: 045 | BW3: 046
I4: LED (Dusk to Dawn) | J4: Dusk to Dawn | K4: 5W | L4: 005L | M4: =SUMIF($G:$G,TEXT(M$3,"000")&TEXT($L4,"000"),$E:$E) -> 0 | N4: 0 | O4: 0 | P4: 0 | Q4: 0 | R4: =IF(SUM(M4:Q4)>0,0,1) -> 1 | S4: 0 | U4: 0 | V4: 0 | W4: 0.23 | Y4: =IF(AND(M4<>0,S4=0),#VALUE!,M4*S4) -> 0 | Z4: =IF(AND(N4<>0,T4=0),#VALUE!,N4*T4) -> 0 | AA4: =IF(AND(O4<>0,U4=0),#VALUE!,O4*U4) -> 0 | AB4: =IF(AND(P4<>0,V4=0),#VALUE!,P4*V4) -> 0 | AC4: =IF(AND(Q4<>0,W4=0),#VALUE!,Q4*W4) -> 0 | AE4: =SUMIF($G:$G,TEXT(AE$3,"000")&TEXT($L4,"000"),$E:$E) -> 0 | AF4: 0 | AG4: 0 | AH4: 0 | AI4: 0 | AK4: =ROUND(S4*(1+AK$1),2) -> 0 | AM4: =ROUND(U4*(1+AM$1),2) -> 0 | AN4: =ROUND(V4*(1+AN$1),2) -> 0 | AO4: =ROUND(W4*(1+AO$1),2) -> 0.24 | AQ4: =IF(AND(AE4<>0,AK4=0),#VALUE!,AE4*AK4) -> 0 | AR4: =IF(AND(AF4<>0,AL4=0),#VALUE!,AF4*AL4) -> 0 | AS4: =IF(AND(AG4<>0,AM4=0),#VALUE!,AG4*AM4) -> 0 | AT4: =IF(AND(AH4<>0,AN4=0),#VALUE!,AH4*AN4) -> 0 | AU4: =IF(AND(AI4<>0,AO4=0),#VALUE!,AI4*AO4) -> 0 | AX4: 2 | BC4: 0.233473 | BE4: =ROUND(AX4*$BE$2,2)+ROUND(AX4*$BE$1,2) -> 0.01 | BJ4: =ROUND((W4*$BF$2)+$BE4-BC4,2) -> 0.01 | BM4: =AK4*$BM$1 -> 0 | BN4: =AL4*$BM$1 -> 0 | BO4: =AM4*$BM$1 -> 0 | BP4: =AN4*$BM$1 -> 0 | BQ4: =AO4*$BM$1 -> 0.243624 | BS4: =BM4-AY4 -> 0 | BT4: =BN4-AZ4 -> 0 | BU4: =BO4-BA4 -> 0 | BV4: =BP4-BB4 -> 0 | BW4: =BQ4-BC4 -> 0.010151
B5: State | C5: Sched | D5: Rate Sub | E5: # of Lights | I5: LED (Dusk to Dawn) | J5: Dusk to Dawn | K5: 5W | L5: 015L | M5: 0 | N5: 0 | O5: 0 | P5: 0 | Q5: 42 | R5: =IF(SUM(M5:Q5)>0,0,1) -> 0 | S5: 0 | U5: 0 | V5: 0 | W5: 0.56 | Y5: =IF(AND(M5<>0,S5=0),#VALUE!,M5*S5) -> 0 | Z5: =IF(AND(N5<>0,T5=0),#VALUE!,N5*T5) -> 0 | AA5: =IF(AND(O5<>0,U5=0),#VALUE!,O5*U5) -> 0 | AB5: =IF(AND(P5<>0,V5=0),#VALUE!,P5*V5) -> 0 | AC5: =IF(AND(Q5<>0,W5=0),#VALUE!,Q5*W5) -> 23.52 | AE5: 0 | AF5: 0 | AG5: 0 | AH5: 0 | AI5: 42 | AK5: =ROUND(S5*(1+AK$1),2) -> 0 | AM5: =ROUND(U5*(1+AM$1),2) -> 0 | AN5: =ROUND(V5*(1+AN$1),2) -> 0 | AO5: =ROUND(W5*(1+AO$1),2) -> 0.57 | AQ5: =IF(AND(AE5<>0,AK5=0),#VALUE!,AE5*AK5) -> 0 | AR5: =IF(AND(AF5<>0,AL5=0),#VALUE!,AF5*AL5) -> 0 | AS5: =IF(AND(AG5<>0,AM5=0),#VALUE!,AG5*AM5) -> 0 | AT5: =IF(AND(AH5<>0,AN5=0),#VALUE!,AH5*AN5) -> 0 | AU5: =IF(AND(AI5<>0,AO5=0),#VALUE!,AI5*AO5) -> 23.94 | AX5: 5 | BC5: 0.568456 | BE5: =ROUND(AX5*$BE$2,2)+ROUND(AX5*$BE$1,2) -> 0.01 | BJ5: =ROUND((W5*$BF$2)+$BE5-BC5,2) -> 0.01 | BM5: =AK5*$BM$1 -> 0 | BN5: =AL5*$BM$1 -> 0 | BO5: =AM5*$BM$1 -> 0 | BP5: =AN5*$BM$1 -> 0 | BQ5: =AO5*$BM$1 -> 0.578607 | BS5: =BM5-AY5 -> 0 | BT5: =BN5-AZ5 -> 0 | BU5: =BO5-BA5 -> 0 | BV5: =BP5-BB5 -> 0 | BW5: =BQ5-BC5 -> 0.010151
I6: LED (Dusk to Dawn) | J6: Dusk to Dawn | K6: 5W | L6: 025L | M6: 0 | N6: 0 | O6: 0 | P6: 0 | Q6: 45 | R6: 0 | S6: 0 | U6: 0 | V6: 0 | W6: 1.02 | Y6: 0 | Z6: 0 | AA6: 0 | AB6: 0 | AC6: =IF(AND(Q6<>0,W6=0),#VALUE!,Q6*W6) -> 45.9 | AE6: 0 | AF6: 0 | AG6: 0 | AH6: 0 | AI6: 45 | AK6: 0 | AM6: 0 | AN6: 0 | AO6: 1.04 | AQ6: 0 | AR6: =IF(AND(AF6<>0,AL6=0),#VALUE!,AF6*AL6) -> 0 | AS6: 0 | AT6: 0 | AU6: =IF(AND(AI6<>0,AO6=0),#VALUE!,AI6*AO6) -> 46.8 | AX6: 9 | BC6: 1.025251 | BE6: 0.02 | BJ6: =ROUND((W6*$BF$2)+$BE6-BC6,2) -> 0.03 | BM6: 0 | BN6: 0 | BO6: 0 | BP6: 0 | BQ6: 1.055704 | BS6: 0 | BT6: 0 | BU6: 0 | BV6: 0 | BW6: 0.030453
B7: 2 | C7: 041 | D7: 214 | E7: 0 | G7: =IF(OR(ISBLANK(C7),ISBLANK(D7)),"",TEXT(C7,"000")&TEXT(D7,"000")) -> 041214 | I7: LED (Dusk to Dawn) | J7: Dusk to Dawn | K7: 5W | L7: 035L | M7: 0 | N7: 0 | O7: 0 | P7: 0 | Q7: 0 | R7: 1 | S7: 0 | U7: 0 | V7: 0 | W7: 1.46 | Y7: 0 | Z7: 0 | AA7: 0 | AB7: 0 | AC7: 0 | AE7: 0 | AF7: 0 | AG7: 0 | AH7: 0 | AI7: 0 | AK7: 0 | AM7: 0 | AN7: 0 | AO7: 1.49 | AQ7: 0 | AR7: 0 | AS7: 0 | AT7: 0 | AU7: 0 | AX7: 13 | BC7: 1.482046 | BE7: 0.03 | BJ7: 0.03 | BM7: 0 | BN7: 0 | BO7: 0 | BP7: 0 | BQ7: 1.512499 | BS7: 0 | BT7: 0 | BU7: 0 | BV7: 0 | BW7: 0.030453
B8: 2 | C8: 041 | D8: 411 | E8: 1 | G8: =IF(OR(ISBLANK(C8),ISBLANK(D8)),"",TEXT(C8,"000")&TEXT(D8,"000")) -> 041411 | I8: LED (Dusk to Dawn) | J8: Dusk to Dawn | K8: 5W | L8: 045L | M8: 0 | N8: 0 | O8: 0 | P8: 0 | Q8: 0 | R8: 1 | S8: 0 | U8: 0 | V8: 0 | W8: 1.81 | Y8: 0 | Z8: 0 | AA8: 0 | AB8: 0 | AC8: 0 | AE8: 0 | AF8: 0 | AG8: 0 | AH8: 0 | AI8: 0 | AK8: 0 | AM8: 0 | AN8: 0 | AO8: 1.85 | AQ8: 0 | AR8: 0 | AS8: 0 | AT8: 0 | AU8: 0 | AX8: 16 | BC8: 1.82718 | BE8: 0.03 | BJ8: 0.04 | BM8: 0 | BN8: 0 | BO8: 0 | BP8: 0 | BQ8: 1.877935 | BS8: 0 | BT8: 0 | BU8: 0 | BV8: 0 | BW8: 0.050755
B9: 2 | C9: 041 | D9: 511 | E9: 0 | G9: =IF(OR(ISBLANK(C9),ISBLANK(D9)),"",TEXT(C9,"000")&TEXT(D9,"000")) -> 041511 | I9: LED (Dusk to Dawn) | J9: Dusk to Dawn | K9: 5W | L9: 055L | M9: 0 | N9: 0 | O9: 0 | P9: 0 | Q9: 0 | R9: 1 | S9: 0 | U9: 0 | V9: 0 | W9: 2.25 | Y9: 0 | Z9: 0 | AA9: 0 | AB9: 0 | AC9: 0 | AE9: 0 | AF9: 0 | AG9: 0 | AH9: 0 | AI9: 0 | AK9: 0 | AM9: 0 | AN9: 0 | AO9: 2.3 | AQ9: 0 | AR9: 0 | AS9: 0 | AT9: 0 | AU9: 0 | AX9: 20 | BC9: 2.273824 | BE9: 0.05 | BJ9: 0.06 | BM9: 0 | BN9: 0 | BO9: 0 | BP9: 0 | BQ9: 2.33473 | BS9: 0 | BT9: 0 | BU9: 0 | BV9: 0 | BW9: 0.060906
B10: 2 | C10: 041 | D10: 611 | E10: 6 | G10: =IF(OR(ISBLANK(C10),ISBLANK(D10)),"",TEXT(C10,"000")&TEXT(D10,"000")) -> 041611 | I10: LED (Dusk to Dawn) | J10: Dusk to Dawn | K10: 5W | L10: 065L | M10: 0 | N10: 0 | O10: 0 | P10: 0 | Q10: 3 | R10: 0 | S10: 0 | U10: 0 | V10: 0 | W10: 2.6 | Y10: 0 | Z10: 0 | AA10: 0 | AB10: 0 | AC10: 7.8 | AE10: 0 | AF10: 0 | AG10: 0 | AH10: 0 | AI10: 3 | AK10: 0 | AM10: 0 | AN10: 0 | AO10: 2.66 | AQ10: 0 | AR10: 0 | AS10: 0 | AT10: 0 | AU10: 7.98 | AX10: 23 | BC10: 2.618958 | BE10: 0.05 | BJ10: 0.07 | BM10: 0 | BN10: 0 | BO10: 0 | BP10: 0 | BQ10: 2.700166 | BS10: 0 | BT10: 0 | BU10: 0 | BV10: 0 | BW10: 0.081208
E11: =SUM(E7:E10) -> 7 | I11: LED (Dusk to Dawn) | J11: Dusk to Dawn | K11: 5W | L11: 075L | M11: 0 | N11: 0 | O11: 0 | P11: 0 | Q11: 0 | R11: 1 | S11: 0 | U11: 0 | V11: 0 | W11: 3.04 | Y11: 0 | Z11: 0 | AA11: 0 | AB11: 0 | AC11: 0 | AE11: 0 | AF11: 0 | AG11: 0 | AH11: 0 | AI11: 0 | AK11: 0 | AM11: 0 | AN11: 0 | AO11: 3.11 | AQ11: 0 | AR11: 0 | AS11: 0 | AT11: 0 | AU11: 0 | AX11: 27 | BC11: 3.075753 | BE11: 0.06 | BJ11: 0.07 | BM11: 0 | BN11: 0 | BO11: 0 | BP11: 0 | BQ11: 3.156961 | BS11: 0 | BT11: 0 | BU11: 0 | BV11: 0 | BW11: 0.081208
G12: =IF(OR(ISBLANK(C12),ISBLANK(D12)),"",TEXT(C12,"000")&TEXT(D12,"000")) ->  | I12: LED (Dusk to Dawn) | J12: Dusk to Dawn | K12: 5W | L12: 085L | M12: 0 | N12: 0 | O12: 0 | P12: 0 | Q12: 0 | R12: 1 | S12: 0 | U12: 0 | V12: 0 | W12: 3.5 | Y12: 0 | Z12: 0 | AA12: 0 | AB12: 0 | AC12: 0 | AE12: 0 | AF12: 0 | AG12: 0 | AH12: 0 | AI12: 0 | AK12: 0 | AM12: 0 | AN12: 0 | AO12: 3.58 | AQ12: 0 | AR12: 0 | AS12: 0 | AT12: 0 | AU12: 0 | AX12: 31 | BC12: 3.532548 | BE12: 0.07 | BJ12: 0.09 | BM12: 0 | BN12: 0 | BO12: 0 | BP12: 0 | BQ12: 3.634058 | BS12: 0 | BT12: 0 | BU12: 0 | BV12: 0 | BW12: 0.10151
B13: 2 | C13: 042 | D13: 234 | E13: 81 | G13: 042234 | I13: LED (Dusk to Dawn) | J13: Dusk to Dawn | K13: 5W | L13: 095L | M13: 0 | N13: 0 | O13: 0 | P13: 0 | Q13: 0 | R13: 1 | S13: 0 | U13: 0 | V13: 0 | W13: 3.84 | Y13: 0 | Z13: 0 | AA13: 0 | AB13: 0 | AC13: 0 | AE13: 0 | AF13: 0 | AG13: 0 | AH13: 0 | AI13: 0 | AK13: 0 | AM13: 0 | AN13: 0 | AO13: 3.93 | AQ13: 0 | AR13: 0 | AS13: 0 | AT13: 0 | AU13: 0 | AX13: 34 | BC13: 3.877682 | BE13: 0.07 | BJ13: 0.09 | BM13: 0 | BN13: 0 | BO13: 0 | BP13: 0 | BQ13: 3.989343 | BS13: 0 | BT13: 0 | BU13: 0 | BV13: 0 | BW13: 0.111661
B14: 2 | C14: 042 | D14: 421 | E14: 2 | G14: 042421 | I14: LED (Dusk to Dawn) | J14: Dusk to Dawn | K14: 5W | L14: 105L | M14: =SUMIF($G:$G,TEXT(M$3,"000")&TEXT($L14,"000"),$E:$E) -> 0 | N14: 0 | O14: 0 | P14: 0 | Q14: 8 | R14: 0 | S14: 0 | U14: 0 | V14: 0 | W14: 4.28 | Y14: 0 | Z14: 0 | AA14: 0 | AB14: 0 | AC14: 34.24 | AE14: =SUMIF($G:$G,TEXT(AE$3,"000")&TEXT($L14,"000"),$E:$E) -> 0 | AF14: 0 | AG14: 0 | AH14: 0 | AI14: 8 | AK14: 0 | AM14: 0 | AN14: 0 | AO14: 4.38 | AQ14: 0 | AR14: 0 | AS14: 0 | AT14: 0 | AU14: 35.04 | AX14: 38 | BC14: 4.334477 | BE14: 0.08 | BJ14: 0.09 | BM14: 0 | BN14: 0 | BO14: 0 | BP14: 0 | BQ14: 4.446138 | BS14: 0 | BT14: 0 | BU14: 0 | BV14: 0 | BW14: 0.111661
B15: 2 | C15: 042 | D15: 421L | E15: 1 | G15: 042421L | I15: LED (Dusk to Dawn) | J15: Dusk to Dawn | K15: 5W | L15: 115L | M15: 0 | N15: 0 | O15: 0 | P15: 0 | Q15: 0 | R15: 1 | S15: 0 | U15: 0 | V15: 0 | W15: 4.63 | Y15: 0 | Z15: 0 | AA15: 0 | AB15: 0 | AC15: 0 | AE15: 0 | AF15: 0 | AG15: 0 | AH15: 0 | AI15: 0 | AK15: 0 | AM15: 0 | AN15: 0 | AO15: 4.74 | AQ15: 0 | AR15: 0 | AS15: 0 | AT15: 0 | AU15: 0 | AX15: 41 | BC15: 4.679611 | BE15: 0.09 | BJ15: 0.11 | BM15: 0 | BN15: 0 | BO15: 0 | BP15: 0 | BQ15: 4.811574 | BS15: 0 | BT15: 0 | BU15: 0 | BV15: 0 | BW15: 0.131963
B16: 2 | C16: 042 | D16: 431 | E16: 529 | G16: 042431 | I16: LED (Dusk to Dawn) | J16: Dusk to Dawn | K16: 5W | L16: 125L | M16: 0 | N16: 0 | O16: 0 | P16: 0 | Q16: 97 | R16: 0 | S16: 0 | U16: 0 | V16: 0 | W16: 5.07 | Y16: 0 | Z16: 0 | AA16: 0 | AB16: 0 | AC16: 491.79 | AE16: 0 | AF16: 0 | AG16: 0 | AH16: 0 | AI16: 97 | AK16: 0 | AM16: 0 | AN16: 0 | AO16: 5.19 | AQ16: 0 | AR16: 0 | AS16: 0 | AT16: 0 | AU16: 503.43 | AX16: 45 | BC16: 5.126255 | BE16: 0.1 | BJ16: 0.12 | BM16: 0 | BN16: 0 | BO16: 0 | BP16: 0 | BQ16: 5.268369 | BS16: 0 | BT16: 0 | BU16: 0 | BV16: 0 | BW16: 0.142114
B17: 2 | C17: 042 | D17: 431L | E17: 5337 | G17: 042431L | I17: LED (Dusk to Dawn) | J17: Dusk to Dawn | K17: 5W | L17: 135L | M17: 0 | N17: 0 | O17: 0 | P17: 0 | Q17: 36 | R17: 0 | S17: 0 | U17: 0 | V17: 0 | W17: 5.54 | Y17: 0 | Z17: 0 | AA17: 0 | AB17: 0 | AC17: 199.44 | AE17: 0 | AF17: 0 | AG17: 0 | AH17: 0 | AI17: 36 | AK17: 0 | AM17: 0 | AN17: 0 | AO17: 5.67 | AQ17: 0 | AR17: 0 | AS17: 0 | AT17: 0 | AU17: 204.12 | AX17: 49 | BC17: 5.593201 | BE17: 0.11 | BJ17: 0.14 | BM17: 0 | BN17: 0 | BO17: 0 | BP17: 0 | BQ17: 5.755617 | BS17: 0 | BT17: 0 | BU17: 0 | BV17: 0 | BW17: 0.162416
B18: 2 | C18: 042 | D18: 431T | E18: =1840+2 -> 1842 | G18: 042431T | I18: LED (Dusk to Dawn) | J18: Dusk to Dawn | K18: 5W | L18: 145L | M18: 0 | N18: 0 | O18: 0 | P18: 0 | Q18: 0 | R18: 1 | S18: 0 | U18: 0 | V18: 0 | W18: 5.87 | Y18: 0 | Z18: 0 | AA18: 0 | AB18: 0 | AC18: 0 | AE18: 0 | AF18: 0 | AG18: 0 | AH18: 0 | AI18: 0 | AK18: 0 | AM18: 0 | AN18: 0 | AO18: 6.01 | AQ18: 0 | AR18: 0 | AS18: 0 | AT18: 0 | AU18: 0 | AX18: 52 | BC18: 5.928184 | BE18: 0.11 | BJ18: 0.14 | BM18: 0 | BN18: 0 | BO18: 0 | BP18: 0 | BQ18: 6.100751 | BS18: 0 | BT18: 0 | BU18: 0 | BV18: 0 | BW18: 0.172567
B19: 2 | C19: 042 | D19: 432 | E19: 63 | G19: 042432 | I19: LED (Dusk to Dawn) | J19: Dusk to Dawn | K19: 5W | L19: 155L | M19: 0 | N19: 0 | O19: 0 | P19: 0 | Q19: 0 | R19: 1 | S19: 0 | U19: 0 | V19: 0 | W19: 6.33 | Y19: 0 | Z19: 0 | AA19: 0 | AB19: 0 | AC19: 0 | AE19: 0 | AF19: 0 | AG19: 0 | AH19: 0 | AI19: 0 | AK19: 0 | AM19: 0 | AN19: 0 | AO19: 6.48 | AQ19: 0 | AR19: 0 | AS19: 0 | AT19: 0 | AU19: 0 | AX19: 56 | BC19: 6.384979 | BE19: 0.12 | BJ19: 0.16 | BM19: 0 | BN19: 0 | BO19: 0 | BP19: 0 | BQ19: 6.577848 | BS19: 0 | BT19: 0 | BU19: 0 | BV19: 0 | BW19: 0.192869
B20: 2 | C20: 042 | D20: 432L | E20: 134 | G20: 042432L | I20: LED (Dusk to Dawn) | J20: Dusk to Dawn | K20: 5W | L20: 165L | M20: 0 | N20: 0 | O20: 0 | P20: 0 | Q20: 0 | R20: 1 | S20: 0 | U20: 0 | V20: 0 | W20: 6.66 | Y20: 0 | Z20: 0 | AA20: 0 | AB20: 0 | AC20: 0 | AE20: 0 | AF20: 0 | AG20: 0 | AH20: 0 | AI20: 0 | AK20: 0 | AM20: 0 | AN20: 0 | AO20: 6.82 | AQ20: 0 | AR20: 0 | AS20: 0 | AT20: 0 | AU20: 0 | AX20: 59 | BC20: 6.719962 | BE20: 0.13 | BJ20: 0.17 | BM20: 0 | BN20: 0 | BO20: 0 | BP20: 0 | BQ20: 6.922982 | BS20: 0 | BT20: 0 | BU20: 0 | BV20: 0 | BW20: 0.20302
B21: 2 | C21: 042 | D21: 432T | E21: 29 | G21: 042432T | I21: LED (Dusk to Dawn) | J21: Dusk to Dawn | K21: 5W | L21: 175L | M21: 0 | N21: 0 | O21: 0 | P21: 0 | Q21: 0 | R21: 1 | S21: 0 | U21: 0 | V21: 0 | W21: 7.11 | Y21: 0 | Z21: 0 | AA21: 0 | AB21: 0 | AC21: 0 | AE21: 0 | AF21: 0 | AG21: 0 | AH21: 0 | AI21: 0 | AK21: 0 | AM21: 0 | AN21: 0 | AO21: 7.28 | AQ21: 0 | AR21: 0 | AS21: 0 | AT21: 0 | AU21: 0 | AX21: 63 | BC21: 7.186908 | BE21: 0.14 | BJ21: 0.17 | BM21: 0 | BN21: 0 | BO21: 0 | BP21: 0 | BQ21: 7.389928 | BS21: 0 | BT21: 0 | BU21: 0 | BV21: 0 | BW21: 0.20302
B22: 2 | C22: 042 | D22: 433 | E22: 6 | G22: 042433 | I22: LED (Dusk to Dawn) | J22: Dusk to Dawn | K22: 5W | L22: 185L | M22: 0 | N22: 0 | O22: 0 | P22: 0 | Q22: 0 | R22: 1 | S22: 0 | U22: 0 | V22: 0 | W22: 7.56 | Y22: 0 | Z22: 0 | AA22: 0 | AB22: 0 | AC22: 0 | AE22: 0 | AF22: 0 | AG22: 0 | AH22: 0 | AI22: 0 | AK22: 0 | AM22: 0 | AN22: 0 | AO22: 7.74 | AQ22: 0 | AR22: 0 | AS22: 0 | AT22: 0 | AU22: 0 | AX22: 67 | BC22: 7.633552 | BE22: 0.14 | BJ22: 0.18 | BM22: 0 | BN22: 0 | BO22: 0 | BP22: 0 | BQ22: 7.856874 | BS22: 0 | BT22: 0 | BU22: 0 | BV22: 0 | BW22: 0.223322
B23: 2 | C23: 042 | D23: 433L | E23: 69 | G23: 042433L | I23: LED (Dusk to Dawn) | J23: Dusk to Dawn | K23: 5W | L23: 195L | M23: 0 | N23: 0 | O23: 0 | P23: 0 | Q23: 0 | R23: 1 | S23: 0 | U23: 0 | V23: 0 | W23: 7.9 | Y23: 0 | Z23: 0 | AA23: 0 | AB23: 0 | AC23: 0 | AE23: 0 | AF23: 0 | AG23: 0 | AH23: 0 | AI23: 0 | AK23: 0 | AM23: 0 | AN23: 0 | AO23: 8.09 | AQ23: 0 | AR23: 0 | AS23: 0 | AT23: 0 | AU23: 0 | AX23: 70 | BC23: 7.978686 | BE23: 0.16 | BJ23: 0.2 | BM23: 0 | BN23: 0 | BO23: 0 | BP23: 0 | BQ23: 8.212159 | BS23: 0 | BT23: 0 | BU23: 0 | BV23: 0 | BW23: 0.233473
B24: 2 | C24: 042 | D24: 433T | E24: 67 | G24: 042433T | I24: LED (Dusk to Dawn) | J24: Dusk to Dawn | K24: 5W | L24: 212L | M24: =SUMIF($G:$G,TEXT(M$3,"000")&TEXT($L24,"000"),$E:$E) -> 0 | N24: 0 | O24: 0 | P24: 0 | Q24: 8 | R24: 0 | S24: 0 | U24: 0 | V24: 0 | W24: 8.69 | Y24: 0 | Z24: 0 | AA24: 0 | AB24: 0 | AC24: 69.52 | AE24: 0 | AF24: 0 | AG24: 0 | AH24: 0 | AI24: 8 | AK24: 0 | AM24: 0 | AN24: 0 | AO24: 8.9 | AQ24: 0 | AR24: 0 | AS24: 0 | AT24: 0 | AU24: 71.2 | AX24: 77 | BC24: 8.780615 | BE24: 0.17 | BJ24: 0.21 | BM24: 0 | BN24: 0 | BO24: 0 | BP24: 0 | BQ24: 9.03439 | BS24: 0 | BT24: 0 | BU24: 0 | BV24: 0 | BW24: 0.253775
B25: 2 | C25: 042 | D25: 434 | E25: 1634 | G25: 042434 | I25: LED (Dusk to Dawn) | J25: Dusk to Dawn | K25: 5W | L25: 237L | M25: 0 | N25: 0 | O25: 0 | P25: 0 | Q25: 60 | R25: 0 | S25: 0 | U25: 0 | V25: 0 | W25: 9.71 | Y25: 0 | Z25: 0 | AA25: 0 | AB25: 0 | AC25: =IF(AND(Q25<>0,W25=0),#VALUE!,Q25*W25) -> 582.6 | AE25: 0 | AF25: 0 | AG25: 0 | AH25: 0 | AI25: 60 | AK25: 0 | AM25: 0 | AN25: 0 | AO25: =ROUND(W25*(1+AO$1),2) -> 9.94 | AQ25: 0 | AR25: 0 | AS25: 0 | AT25: 0 | AU25: =IF(AND(AI25<>0,AO25=0),#VALUE!,AI25*AO25) -> 596.4 | AX25: 86 | BC25: 9.805866 | BE25: 0.19 | BJ25: 0.24 | BM25: 0 | BN25: 0 | BO25: 0 | BP25: 0 | BQ25: 10.090094 | BS25: 0 | BT25: 0 | BU25: 0 | BV25: 0 | BW25: 0.284228
B26: 2 | C26: 042 | D26: 434L | E26: 1792 | G26: 042434L | I26: Single High-Pressure Sodium Vapor | J26: Direct Burial | K26: 50W | L26: 234 | M26: 0 | N26: 81 | O26: 0 | P26: 0 | Q26: 0 | R26: =IF(SUM(M26:Q26)>0,0,1) -> 0 | S26: 0 | T26: 14.68 | U26: 0 | V26: 0 | W26: 0 | Y26: =IF(AND(M26<>0,S26=0),#VALUE!,M26*S26) -> 0 | Z26: =IF(AND(N26<>0,T26=0),#VALUE!,N26*T26) -> 1189.08 | AA26: =IF(AND(O26<>0,U26=0),#VALUE!,O26*U26) -> 0 | AB26: =IF(AND(P26<>0,V26=0),#VALUE!,P26*V26) -> 0 | AC26: =IF(AND(Q26<>0,W26=0),#VALUE!,Q26*W26) -> 0 | AE26: =M26 -> 0 | AF26: =N26 -> 81 | AG26: 0 | AH26: 0 | AI26: 0 | AK26: 0 | AL26: =ROUND(T26*(1+AL$1),2) -> 15.01 | AM26: 0 | AN26: 0 | AO26: =ROUND(W26*(1+AO$1),2) -> 0 | AQ26: 0 | AR26: 1215.81 | AS26: 0 | AT26: 0 | AU26: 0 | AV26: =SUM(AR26)-SUM(Z26) -> 26.73 | AW26: =AV26/Z26 -> 0.02247956403 | AX26: 20 | AZ26: 14.93 | BE26: =ROUND(AX26*$BE$2,2)+ROUND(AX26*$BE$1,2) -> 0.05 | BG26: =ROUND((T26*$BF$2)+$BE26-AZ26,2) -> 0.02 | BM26: =AK26*$BM$1 -> 0 | BN26: =AL26*$BM$1 -> 15.236651 | BO26: =AM26*$BM$1 -> 0 | BP26: 0 | BQ26: 0 | BS26: =BM26-AY26 -> 0 | BT26: =BN26-AZ26 -> 0.306651 | BU26: =BO26-BA26 -> 0 | BV26: =BP26-BB26 -> 0 | BW26: =BQ26-BC26 -> 0
B27: 2 | C27: 042 | D27: 435 | E27: 233 | G27: 042435 | I27: High-Pressure Sodium Vapor | J27: Dusk to Dawn | K27: 70W | L27: 335 | M27: 0 | N27: 0 | O27: 0 | P27: 0 | Q27: 8 | R27: 0 | S27: 0 | T27: 0 | U27: 0 | V27: 0 | W27: 3.8 | Y27: 0 | Z27: 0 | AA27: 0 | AB27: 0 | AC27: 30.4 | AE27: 0 | AF27: 0 | AG27: 0 | AH27: 0 | AI27: 8 | AK27: 0 | AL27: 0 | AM27: 0 | AN27: 0 | AO27: 3.89 | AQ27: 0 | AR27: 0 | AS27: 0 | AT27: 0 | AU27: 31.12 | AV27: 0 | AW27: =AV27/Z27 ->  | AX27: 25 | BC27: 3.84 | BE27: 0.06 | BJ27: =ROUND((W27*$BF$2)+$BE27-BC27,2) -> 0.08 | BM27: 0 | BN27: 0 | BO27: 0 | BP27: 0 | BQ27: 3.948739 | BS27: 0 | BT27: 0 | BU27: 0 | BV27: 0 | BW27: 0.108739
B28: 2 | C28: 042 | D28: 435L | E28: =2602+3 -> 2605 | G28: 042435L | I28: Single Mercury Vapor | J28: Wood Pole | K28: 7000 | L28: 411 | M28: 1 | N28: 0 | O28: 0 | P28: 0 | Q28: 0 | R28: 0 | S28: 17.07 | T28: 0 | U28: 0 | V28: 0 | W28: 0 | Y28: 17.07 | Z28: 0 | AA28: 0 | AB28: 0 | AC28: 0 | AE28: 1 | AF28: 0 | AG28: 0 | AH28: 0 | AI28: 0 | AK28: 17.48 | AL28: 0 | AM28: 0 | AN28: 0 | AO28: 0 | AQ28: 17.48 | AR28: 0 | AS28: 0 | AT28: 0 | AU28: 0 | AV28: 0 | AW28: =AV28/Z28 ->  | AX28: 80 | AY28: 17.25 | BE28: 0.18 | BF28: =ROUND((S28*$BF$2)+$BE28-AY28,2) -> 0.26 | BM28: 17.743948 | BN28: 0 | BO28: 0 | BP28: 0 | BQ28: 0 | BS28: 0.493948 | BT28: 0 | BU28: 0 | BV28: 0 | BW28: 0
B29: 2 | C29: 042 | D29: 435T | E29: =1854+6 -> 1860 | G29: 042435T | I29: Mercury Vapor | J29: Dusk to Dawn | K29: 7000 | L29: 415 | M29: 0 | N29: 0 | O29: 0 | P29: 61 | Q29: 0 | R29: 0 | S29: 0 | T29: 0 | U29: 0 | V29: 7.49 | W29: 0 | Y29: 0 | Z29: 0 | AA29: 0 | AB29: 456.89 | AC29: 0 | AE29: 0 | AF29: 0 | AG29: 0 | AH29: 61 | AI29: 0 | AK29: 0 | AL29: 0 | AM29: 0 | AN29: 7.67 | AO29: 0 | AQ29: 0 | AR29: 0 | AS29: 0 | AT29: 467.87 | AU29: 0 | AV29: 0 | AX29: 80 | BB29: 7.56 | BE29: 0.18 | BI29: =ROUND((V29*$BF$2)+$BE29-BB29,2) -> 0.22 | BM29: 0 | BN29: 0 | BO29: 0 | BP29: 7.785817 | BQ29: 0 | BS29: 0 | BT29: 0 | BU29: 0 | BV29: 0.225817 | BW29: 0
B30: 2 | C30: 042 | D30: 436 | E30: 20 | G30: 042436 | I30: Mercury Vapor | J30: Dusk to 1 AM | K30: 7000 | L30: 419 | M30: 0 | N30: 0 | O30: 0 | P30: 16 | Q30: 0 | R30: 0 | S30: 0 | T30: 0 | U30: 0 | V30: 5.07 | W30: 0 | Y30: 0 | Z30: 0 | AA30: 0 | AB30: 81.12 | AC30: 0 | AE30: =M30 -> 0 | AF30: 0 | AG30: 0 | AH30: 16 | AI30: 0 | AK30: 0 | AL30: 0 | AM30: 0 | AN30: 5.19 | AO30: 0 | AQ30: 0 | AR30: 0 | AS30: 0 | AT30: 83.04 | AU30: 0 | AV30: 0 | AX30: 80 | BB30: 5.13 | BE30: 0.18 | BI30: =ROUND((V30*$BF$2)+$BE30-BB30,2) -> 0.2 | BM30: 0 | BN30: 0 | BO30: =AM30*$BM$1 -> 0 | BP30: =AN30*$BM$1 -> 5.268369 | BQ30: =AO30*$BM$1 -> 0 | BS30: 0 | BT30: 0 | BU30: 0 | BV30: 0.138369 | BW30: 0
B31: 2 | C31: 042 | D31: 436L | E31: 84 | G31: 042436L | I31: Single High-Pressure Sodium Vapor | J31: Standard | K31: 100W | L31: 421 | M31: 0 | N31: 2 | O31: 0 | P31: 0 | Q31: 0 | R31: 0 | S31: 0 | T31: 25.85 | U31: 0 | V31: 0 | W31: 0 | Y31: 0 | Z31: =IF(AND(N31<>0,T31=0),#VALUE!,N31*T31) -> 51.7 | AA31: 0 | AB31: 0 | AC31: 0 | AE31: 0 | AF31: 2 | AG31: 0 | AH31: 0 | AI31: 0 | AK31: 0 | AL31: =ROUND(T31*(1+AL$1),2) -> 26.43 | AM31: 0 | AN31: 0 | AO31: 0 | AQ31: 0 | AR31: 52.86 | AS31: 0 | AT31: 0 | AU31: 0 | AV31: 1.16 | AW31: 0.02243713733 | AX31: 40 | AZ31: 26.29109 | BE31: 0.09 | BG31: =ROUND((T31*$BF$2)+$BE31-AZ31,2) -> 0.04 | BM31: 0 | BN31: 26.829093 | BO31: 0 | BP31: 0 | BQ31: 0 | BS31: 0 | BT31: 0.538003 | BU31: 0 | BV31: 0 | BW31: 0
B32: 2 | C32: 042 | D32: 436T | E32: 274 | G32: 042436T | I32: Single Light Emitting Diode (LED) | J32: Standard | K32: 70W | L32: 421L | M32: 0 | N32: 1 | O32: 0 | P32: 0 | Q32: 0 | R32: 0 | S32: 0 | T32: =T31 -> 25.85 | Y32: =IF(AND(M32<>0,S32=0),#VALUE!,M32*S32) -> 0 | Z32: =IF(AND(N32<>0,T32=0),#VALUE!,N32*T32) -> 25.85 | AA32: =IF(AND(O32<>0,U32=0),#VALUE!,O32*U32) -> 0 | AB32: =IF(AND(P32<>0,V32=0),#VALUE!,P32*V32) -> 0 | AC32: =IF(AND(Q32<>0,W32=0),#VALUE!,Q32*W32) -> 0 | AE32: =SUMIF($G:$G,TEXT(AE$3,"000")&TEXT($L32,"000"),$E:$E) -> 0 | AF32: =SUMIF($G:$G,TEXT(AF$3,"000")&TEXT($L32,"000"),$E:$E) -> 1 | AG32: =SUMIF($G:$G,TEXT(AG$3,"000")&TEXT($L32,"000"),$E:$E) -> 0 | AH32: =SUMIF($G:$G,TEXT(AH$3,"000")&TEXT($L32,"000"),$E:$E) -> 0 | AI32: =SUMIF($G:$G,TEXT(AI$3,"000")&TEXT($L32,"000"),$E:$E) -> 0 | AK32: =ROUND(S32*(1+AK$1),2) -> 0 | AL32: =AL31 -> 26.43 | AM32: 0 | AN32: 0 | AO32: 0 | AQ32: 0 | AR32: 26.43 | AS32: 0 | AT32: 0 | AU32: 0 | AV32: 0.58 | AW32: 0.02243713733 | AX32: 26 | AZ32: 26.29109 | BE32: =ROUND(AX32*$BE$2,2)+ROUND(AX32*$BE$1,2) -> 0.06 | BG32: 0.01 | BM32: 0 | BN32: 26.829093 | BO32: =AM32*$BM$1 -> 0 | BP32: =AN32*$BM$1 -> 0 | BQ32: =AO32*$BM$1 -> 0 | BS32: =BM32-AY32 -> 0 | BT32: =BN32-AZ32 -> 0.538003 | BU32: =BO32-BA32 -> 0 | BV32: =BP32-BB32 -> 0 | BW32: =BQ32-BC32 -> 0
B33: 2 | C33: 042 | D33: 438 | E33: 11 | G33: 042438 | I33: Single High-Pressure Sodium Vapor | J33: Standard | K33: 100W | L33: 431 | M33: 0 | N33: 529 | O33: 1 | P33: 0 | Q33: 0 | R33: 0 | S33: 0 | T33: 14.9 | U33: 8.05 | V33: 0 | W33: 0 | Y33: 0 | Z33: =IF(AND(N33<>0,T33=0),#VALUE!,N33*T33) -> 7882.1 | AA33: 8.05 | AB33: 0 | AC33: 0 | AE33: 0 | AF33: =N33 -> 529 | AG33: 1 | AH33: 0 | AI33: 0 | AK33: 0 | AL33: 15.24 | AM33: 8.24 | AN33: 0 | AO33: 0 | AQ33: 0 | AR33: =IF(AND(AF33<>0,AL33=0),#VALUE!,AF33*AL33) -> 8061.96 | AS33: 8.24 | AT33: 0 | AU33: 0 | AV33: 179.86 | AW33: 0.02281879195 | AX33: 40 | BA33: 8.130951 | BE33: 0.09 | BG33: 15.21 | BH33: =ROUND((U33*$BF$2)+$BE33-BA33,2) -> 0.13 | BM33: 0 | BN33: 15.470124 | BO33: 8.364424 | BP33: 0 | BQ33: 0 | BS33: 0 | BT33: 15.470124 | BU33: 0.233473 | BV33: 0 | BW33: 0
B34: 2 | C34: 042 | D34: 441L | E34: 14 | G34: 042441L | I34: Single Light Emitting Diode (LED) | J34: Standard | K34: 70W | L34: 431L | M34: =SUMIF($G:$G,TEXT(M$3,"000")&TEXT($L34,"000"),$E:$E) -> 0 | N34: 5337 | O34: 0 | P34: 0 | Q34: 0 | R34: =IF(SUM(M34:Q34)>0,0,1) -> 0 | S34: 0 | T34: =T33 -> 14.9 | U34: 0 | V34: 0 | W34: 0 | Y34: 0 | Z34: =IF(AND(N34<>0,T34=0),#VALUE!,N34*T34) -> 79521.3 | AA34: 0 | AB34: 0 | AC34: 0 | AE34: =SUMIF($G:$G,TEXT(AE$3,"000")&TEXT($L34,"000"),$E:$E) -> 0 | AF34: =SUMIF($G:$G,TEXT(AF$3,"000")&TEXT($L34,"000"),$E:$E) -> 5337 | AG34: =SUMIF($G:$G,TEXT(AG$3,"000")&TEXT($L34,"000"),$E:$E) -> 0 | AH34: =SUMIF($G:$G,TEXT(AH$3,"000")&TEXT($L34,"000"),$E:$E) -> 0 | AI34: =SUMIF($G:$G,TEXT(AI$3,"000")&TEXT($L34,"000"),$E:$E) -> 0 | AK34: 0 | AL34: =AL33 -> 15.24 | AM34: 0 | AN34: 0 | AO34: 0 | AQ34: 0 | AR34: =IF(AND(AF34<>0,AL34=0),#VALUE!,AF34*AL34) -> 81335.88 | AS34: 0 | AT34: 0 | AU34: 0 | AX34: 26 | BE34: 0.06 | BG34: 15.18 | BM34: 0 | BN34: 15.470124 | BO34: 0 | BP34: =AN34*$BM$1 -> 0 | BQ34: =AO34*$BM$1 -> 0 | BS34: 0 | BT34: =BN34-AZ34 -> 15.470124 | BU34: =BO34-BA34 -> 0 | BV34: =BP34-BB34 -> 0 | BW34: =BQ34-BC34 -> 0
B35: 2 | C35: 042 | D35: 441T | E35: 11 | G35: 042441T | I35: Single Light Emitting Diode (LED) | J35: Standard | K35: 70W | L35: 431T | M35: 0 | N35: 1842 | O35: 0 | P35: 0 | Q35: 0 | R35: 0 | S35: 0 | T35: =T33-T103 -> 9.98 | U35: 0 | V35: 0 | W35: 0 | Y35: 0 | Z35: 18383.16 | AA35: 0 | AB35: 0 | AC35: 0 | AE35: =M35 -> 0 | AF35: =N35 -> 1842 | AG35: =O35 -> 0 | AH35: =P35 -> 0 | AI35: =Q35 -> 0 | AK35: 0 | AL35: =AL33-AL103 -> 10.32 | AM35: 0 | AN35: 0 | AO35: 0 | AQ35: 0 | AR35: 19009.44 | AS35: 0 | AT35: 0 | AU35: 0 | AV35: =SUM(AQ35:AU35)-SUM(Y35:AC35) -> 626.28 | AX35: 26 | BE35: 0.06 | BG35: 10.19 | BM35: 0 | BN35: 10.475832 | BO35: 0 | BP35: 0 | BQ35: 0 | BS35: 0 | BT35: 10.475832 | BU35: 0 | BV35: 0 | BW35: 0
B36: 2 | C36: 042 | D36: 474 | E36: 116 | G36: 042474 | I36: Single High-Pressure Sodium Vapor | J36: Pedestal Base | K36: 100W | L36: 432 | M36: 0 | N36: 63 | O36: 4 | P36: 0 | Q36: 0 | R36: 0 | S36: 0 | T36: 27.84 | U36: 8.05 | V36: 0 | W36: 0 | Y36: 0 | Z36: 1753.92 | AA36: 32.2 | AB36: 0 | AC36: 0 | AE36: 0 | AF36: 63 | AG36: 4 | AH36: 0 | AI36: 0 | AK36: 0 | AL36: =ROUND(T36*(1+AL$1),2) -> 28.47 | AM36: 8.24 | AN36: 0 | AO36: 0 | AQ36: 0 | AR36: 1793.61 | AS36: 32.96 | AT36: 0 | AU36: 0 | AV36: 39.69 | AW36: 0.02262931034 | AX36: 40 | AZ36: 28.331441 | BA36: 8.130951 | BE36: 0.09 | BG36: 0.02 | BH36: =ROUND((U36*$BF$2)+$BE36-BA36,2) -> 0.13 | BM36: 0 | BN36: 28.899897 | BO36: 8.364424 | BP36: 0 | BQ36: 0 | BS36: 0 | BT36: 0.568456 | BU36: 0.233473 | BV36: 0 | BW36: 0
B37: 2 | C37: 042 | D37: 474L | E37: =229+6 -> 235 | G37: 042474L | I37: Single Light Emitting Diode (LED) | J37: Pedestal Base | K37: 70W | L37: 432L | M37: 0 | N37: 134 | O37: 0 | P37: 0 | Q37: 0 | R37: 0 | S37: 0 | T37: =T36 -> 27.84 | U37: 0 | V37: 0 | W37: 0 | Y37: =IF(AND(M37<>0,S37=0),#VALUE!,M37*S37) -> 0 | Z37: 3730.56 | AA37: 0 | AB37: 0 | AC37: 0 | AE37: =SUMIF($G:$G,TEXT(AE$3,"000")&TEXT($L37,"000"),$E:$E) -> 0 | AF37: =SUMIF($G:$G,TEXT(AF$3,"000")&TEXT($L37,"000"),$E:$E) -> 134 | AG37: =SUMIF($G:$G,TEXT(AG$3,"000")&TEXT($L37,"000"),$E:$E) -> 0 | AH37: =SUMIF($G:$G,TEXT(AH$3,"000")&TEXT($L37,"000"),$E:$E) -> 0 | AI37: =SUMIF($G:$G,TEXT(AI$3,"000")&TEXT($L37,"000"),$E:$E) -> 0 | AK37: 0 | AL37: =AL36 -> 28.47 | AM37: 0 | AN37: 0 | AO37: 0 | AQ37: 0 | AR37: 3814.98 | AS37: 0 | AT37: 0 | AU37: 0 | AV37: 84.42 | AW37: 0.02262931034 | AX37: 26 | AZ37: 28.331441 | BE37: =ROUND(AX37*$BE$2,2)+ROUND(AX37*$BE$1,2) -> 0.06 | BG37: -0.01 | BM37: 0 | BN37: 28.899897 | BO37: =AM37*$BM$1 -> 0 | BP37: 0 | BQ37: 0 | BS37: =BM37-AY37 -> 0 | BT37: 0.568456 | BU37: 0 | BV37: 0 | BW37: 0
B38: 2 | C38: 042 | D38: 475 | E38: 0 | G38: 042475 | I38: Single Light Emitting Diode (LED) | J38: Pedestal Base | K38: 70W | L38: 432T | M38: 0 | N38: 29 | O38: 0 | P38: 0 | Q38: 0 | R38: 0 | S38: 0 | T38: =T36-T103 -> 22.92 | U38: 0 | V38: 0 | W38: 0 | Y38: 0 | Z38: =IF(AND(N38<>0,T38=0),#VALUE!,N38*T38) -> 664.68 | AA38: 0 | AB38: 0 | AC38: 0 | AE38: =M38 -> 0 | AF38: =N38 -> 29 | AG38: =O38 -> 0 | AH38: =P38 -> 0 | AI38: =Q38 -> 0 | AK38: 0 | AL38: =AL37-AL103 -> 23.55 | AM38: 0 | AN38: 0 | AO38: 0 | AQ38: 0 | AR38: 682.95 | AS38: 0 | AT38: 0 | AU38: 0 | AV38: 18.27 | AW38: 0.02748691099 | AX38: 26 | AZ38: 23.022468 | BE38: =ROUND(AX38*$BE$2,2)+ROUND(AX38*$BE$1,2) -> 0.06 | BG38: 0.3 | BM38: 0 | BN38: 23.905605 | BO38: 0 | BP38: 0 | BQ38: 0 | BS38: 0 | BT38: 0.883137 | BU38: 0 | BV38: 0 | BW38: 0
B39: 3 | C39: 042 | D39: 478 | E39: 0 | G39: 042478 | I39: Single High-Pressure Sodium Vapor | J39: Direct Burial | K39: 100W | L39: 433 | M39: 0 | N39: 6 | O39: 10 | P39: 0 | Q39: 0 | R39: 0 | S39: 0 | T39: 27.84 | U39: 8.05 | V39: 0 | W39: 0 | Y39: 0 | Z39: 167.04 | AA39: 80.5 | AB39: 0 | AC39: 0 | AE39: 0 | AF39: =N39 -> 6 | AG39: =O39 -> 10 | AH39: =P39 -> 0 | AI39: =Q39 -> 0 | AK39: 0 | AL39: =ROUND(T39*(1+AL$1),2) -> 28.47 | AM39: 8.24 | AN39: 0 | AO39: 0 | AQ39: 0 | AR39: 170.82 | AS39: 82.4 | AT39: 0 | AU39: 0 | AV39: 3.78 | AW39: 0.02262931034 | AX39: 40 | AZ39: 28.331441 | BA39: 8.130951 | BE39: 0.09 | BG39: 0.02 | BH39: =ROUND((U39*$BF$2)+$BE39-BA39,2) -> 0.13 | BM39: 0 | BN39: 28.899897 | BO39: 8.364424 | BP39: 0 | BQ39: 0 | BS39: 0 | BT39: 0.568456 | BU39: 0.233473 | BV39: 0 | BW39: 0
B40: 2 | C40: 042 | D40: 484 | E40: 68 | G40: 042484 | I40: Single Light Emitting Diode (LED) | J40: Direct Burial | K40: 70W | L40: 433L | M40: 0 | N40: 69 | O40: 0 | P40: 0 | Q40: 0 | R40: 0 | S40: 0 | T40: =T39 -> 27.84 | U40: 0 | V40: 0 | W40: 0 | Y40: =IF(AND(M40<>0,S40=0),#VALUE!,M40*S40) -> 0 | Z40: 1920.96 | AA40: 0 | AB40: 0 | AC40: 0 | AE40: =SUMIF($G:$G,TEXT(AE$3,"000")&TEXT($L40,"000"),$E:$E) -> 0 | AF40: =SUMIF($G:$G,TEXT(AF$3,"000")&TEXT($L40,"000"),$E:$E) -> 69 | AG40: =SUMIF($G:$G,TEXT(AG$3,"000")&TEXT($L40,"000"),$E:$E) -> 0 | AH40: =SUMIF($G:$G,TEXT(AH$3,"000")&TEXT($L40,"000"),$E:$E) -> 0 | AI40: =SUMIF($G:$G,TEXT(AI$3,"000")&TEXT($L40,"000"),$E:$E) -> 0 | AK40: 0 | AL40: =AL39 -> 28.47 | AM40: 0 | AN40: 0 | AO40: 0 | AQ40: 0 | AR40: 1964.43 | AS40: 0 | AT40: 0 | AU40: 0 | AV40: 43.47 | AW40: 0.02262931034 | AX40: 26 | AZ40: 28.331441 | BE40: =ROUND(AX40*$BE$2,2)+ROUND(AX40*$BE$1,2) -> 0.06 | BG40: -0.01 | BM40: 0 | BN40: 28.899897 | BO40: =AM40*$BM$1 -> 0 | BP40: 0 | BQ40: 0 | BS40: =BM40-AY40 -> 0 | BT40: 0.568456 | BU40: 0 | BV40: 0 | BW40: 0
B41: 2 | C41: 042 | D41: 484L | E41: 99 | G41: 042484L | I41: Single Light Emitting Diode (LED) | J41: Direct Burial | K41: 70W | L41: 433T | M41: 0 | N41: 67 | O41: 0 | P41: 0 | Q41: 0 | R41: 0 | S41: 0 | T41: =T39-T103 -> 22.92 | U41: 0 | V41: 0 | W41: 0 | Y41: 0 | Z41: 1535.64 | AA41: 0 | AB41: 0 | AC41: 0 | AE41: =M41 -> 0 | AF41: =N41 -> 67 | AG41: =O41 -> 0 | AH41: =P41 -> 0 | AI41: =Q41 -> 0 | AK41: 0 | AL41: =AL40-AL103 -> 23.55 | AM41: 0 | AN41: 0 | AO41: 0 | AQ41: 0 | AR41: =IF(AND(AF41<>0,AL41=0),#VALUE!,AF41*AL41) -> 1577.85 | AS41: 0 | AT41: 0 | AU41: 0 | AV41: =SUM(AR41)-SUM(Z41) -> 42.21 | AW41: 0.02748691099 | AX41: 26 | AZ41: 23.022468 | BE41: =ROUND(AX41*$BE$2,2)+ROUND(AX41*$BE$1,2) -> 0.06 | BG41: 0.3 | BM41: 0 | BN41: 23.905605 | BO41: 0 | BP41: 0 | BQ41: 0 | BS41: 0 | BT41: 0.883137 | BU41: 0 | BV41: 0 | BW41: 0
B42: 2 | C42: 042 | D42: 494L | E42: 12 | G42: =IF(OR(ISBLANK(C42),ISBLANK(D42)),"",TEXT(C42,"000")&TEXT(D42,"000")) -> 042494L | I42: Single High-Pressure Sodium Vapor | J42: Direct Burial | K42: 100W | L42: 434 | M42: 0 | N42: 1634 | O42: 0 | P42: 0 | Q42: 0 | R42: 0 | S42: 0 | T42: 15.7 | U42: 0 | V42: 0 | W42: 0 | Y42: 0 | Z42: 25653.8 | AA42: 0 | AB42: 0 | AC42: 0 | AE42: 0 | AF42: =N42 -> 1634 | AG42: =O42 -> 0 | AH42: =P42 -> 0 | AI42: =Q42 -> 0 | AK42: 0 | AL42: =ROUND(T42*(1+AL$1),2) -> 16.05 | AM42: 0 | AN42: 0 | AO42: 0 | AQ42: 0 | AR42: 26225.7 | AS42: 0 | AT42: 0 | AU42: 0 | AV42: 571.9 | AW42: 0.02229299363 | AX42: 40 | AZ42: 15.977674 | BE42: 0.09 | BG42: 0.05 | BM42: 0 | BN42: 16.292355 | BO42: 0 | BP42: 0 | BQ42: 0 | BS42: 0 | BT42: 0.314681 | BU42: 0 | BV42: 0 | BW42: 0
B43: 2 | C43: 042 | D43: 531 | E43: 163 | G43: =IF(OR(ISBLANK(C43),ISBLANK(D43)),"",TEXT(C43,"000")&TEXT(D43,"000")) -> 042531 | I43: Single Light Emitting Diode (LED) | J43: Direct Burial | K43: 70W | L43: 434L | M43: 0 | N43: 1792 | O43: 0 | P43: 0 | Q43: 0 | R43: 0 | S43: 0 | T43: =T42 -> 15.7 | U43: 0 | V43: 0 | W43: 0 | Y43: =IF(AND(M43<>0,S43=0),#VALUE!,M43*S43) -> 0 | Z43: =IF(AND(N43<>0,T43=0),#VALUE!,N43*T43) -> 28134.4 | AA43: =IF(AND(O43<>0,U43=0),#VALUE!,O43*U43) -> 0 | AB43: =IF(AND(P43<>0,V43=0),#VALUE!,P43*V43) -> 0 | AC43: =IF(AND(Q43<>0,W43=0),#VALUE!,Q43*W43) -> 0 | AE43: =SUMIF($G:$G,TEXT(AE$3,"000")&TEXT($L43,"000"),$E:$E) -> 0 | AF43: =SUMIF($G:$G,TEXT(AF$3,"000")&TEXT($L43,"000"),$E:$E) -> 1792 | AG43: =SUMIF($G:$G,TEXT(AG$3,"000")&TEXT($L43,"000"),$E:$E) -> 0 | AH43: =SUMIF($G:$G,TEXT(AH$3,"000")&TEXT($L43,"000"),$E:$E) -> 0 | AI43: =SUMIF($G:$G,TEXT(AI$3,"000")&TEXT($L43,"000"),$E:$E) -> 0 | AK43: 0 | AL43: =AL42 -> 16.05 | AM43: 0 | AN43: 0 | AO43: 0 | AQ43: 0 | AR43: 28761.6 | AS43: 0 | AT43: 0 | AU43: 0 | AV43: 627.2 | AW43: 0.02229299363 | AX43: 26 | AZ43: 15.977674 | BE43: =ROUND(AX43*$BE$2,2)+ROUND(AX43*$BE$1,2) -> 0.06 | BG43: 0.02 | BM43: 0 | BN43: 16.292355 | BO43: =AM43*$BM$1 -> 0 | BP43: =AN43*$BM$1 -> 0 | BQ43: =AO43*$BM$1 -> 0 | BS43: =BM43-AY43 -> 0 | BT43: =BN43-AZ43 -> 0.314681 | BU43: =BO43-BA43 -> 0 | BV43: =BP43-BB43 -> 0 | BW43: =BQ43-BC43 -> 0
B44: 2 | C44: 042 | D44: 531L | E44: 1349 | G44: 042531L | I44: Single High-Pressure Sodium Vapor | J44: Standard / Dusk to Dawn (046) | K44: 100W | L44: 435 | M44: =SUMIF($G:$G,TEXT(M$3,"000")&TEXT($L44,"000"),$E:$E) -> 0 | N44: 233 | O44: 13 | P44: 0 | Q44: 17 | R44: 0 | S44: 0 | T44: 14.9 | U44: 8.05 | V44: 0 | W44: 5.38 | Y44: 0 | Z44: 3471.7 | AA44: 104.65 | AB44: 0 | AC44: 91.46 | AE44: 0 | AF44: =N44 -> 233 | AG44: =O44 -> 13 | AH44: =P44 -> 0 | AI44: =Q44 -> 17 | AK44: 0 | AL44: 15.24 | AM44: 8.24 | AN44: 0 | AO44: 5.51 | AQ44: 0 | AR44: 3550.92 | AS44: 107.12 | AT44: 0 | AU44: 93.67 | AV44: 79.22 | AW44: =AV44/Z44 -> 0.02281879195 | AX44: 40 | AZ44: 15.165594 | BA44: 8.13 | BC44: 5.43 | BE44: 0.09 | BG44: 0.05 | BH44: =ROUND((U44*$BF$2)+$BE44-BA44,2) -> 0.13 | BJ44: =ROUND((W44*$BF$2)+$BE44-BC44,2) -> 0.12 | BM44: 0 | BN44: 15.470124 | BO44: 8.364424 | BP44: 0 | BQ44: 5.593201 | BS44: 0 | BT44: 0.30453 | BU44: 0.234424 | BV44: 0 | BW44: 0.163201
B45: 2 | C45: 042 | D45: 531T | E45: =473+1 -> 474 | G45: 042531T | I45: Single Light Emitting Diode (LED) | J45: Standard / Dusk to Dawn (046) | K45: 70W | L45: 435L | M45: 0 | N45: 2605 | O45: 0 | P45: 0 | Q45: 0 | R45: 0 | S45: 0 | T45: =T44 -> 14.9 | U45: 0 | V45: 0 | W45: 0 | Y45: =IF(AND(M45<>0,S45=0),#VALUE!,M45*S45) -> 0 | Z45: 38814.5 | AA45: 0 | AB45: 0 | AC45: 0 | AE45: =SUMIF($G:$G,TEXT(AE$3,"000")&TEXT($L45,"000"),$E:$E) -> 0 | AF45: =SUMIF($G:$G,TEXT(AF$3,"000")&TEXT($L45,"000"),$E:$E) -> 2605 | AG45: =SUMIF($G:$G,TEXT(AG$3,"000")&TEXT($L45,"000"),$E:$E) -> 0 | AH45: =SUMIF($G:$G,TEXT(AH$3,"000")&TEXT($L45,"000"),$E:$E) -> 0 | AI45: =SUMIF($G:$G,TEXT(AI$3,"000")&TEXT($L45,"000"),$E:$E) -> 0 | AK45: 0 | AL45: =AL44 -> 15.24 | AM45: 0 | AN45: 0 | AO45: 0 | AQ45: 0 | AR45: 39700.2 | AS45: 0 | AT45: 0 | AU45: 0 | AV45: 885.7 | AW45: 0.02281879195 | AX45: 26 | AZ45: 15.165594 | BE45: =ROUND(AX45*$BE$2,2)+ROUND(AX45*$BE$1,2) -> 0.06 | BG45: 0.02 | BM45: 0 | BN45: 15.470124 | BO45: =AM45*$BM$1 -> 0 | BP45: 0 | BQ45: 0 | BS45: =BM45-AY45 -> 0 | BT45: 0.30453 | BU45: 0 | BV45: 0 | BW45: 0
B46: 2 | C46: 042 | D46: 532 | E46: 106 | G46: 042532 | I46: Single Light Emitting Diode (LED) | J46: Standard / Dusk to Dawn (046) | K46: 70W | L46: 435T | M46: 0 | N46: 1860 | O46: 0 | P46: 0 | Q46: 0 | R46: 0 | S46: 0 | T46: =T44-T103 -> 9.98 | U46: 0 | V46: 0 | W46: 0 | Y46: 0 | Z46: 18562.8 | AA46: 0 | AB46: 0 | AC46: 0 | AE46: =M46 -> 0 | AF46: =N46 -> 1860 | AG46: =O46 -> 0 | AH46: =P46 -> 0 | AI46: =Q46 -> 0 | AK46: 0 | AL46: =AL45-AL103 -> 10.32 | AM46: 0 | AN46: 0 | AO46: 0 | AQ46: 0 | AR46: 19195.2 | AS46: 0 | AT46: 0 | AU46: 0 | AV46: 632.4 | AW46: 0.03406813627 | AX46: 26 | AZ46: 9.856621 | BE46: =ROUND(AX46*$BE$2,2)+ROUND(AX46*$BE$1,2) -> 0.06 | BG46: 0.33 | BM46: 0 | BN46: 10.475832 | BO46: 0 | BP46: 0 | BQ46: 0 | BS46: 0 | BT46: 0.619211 | BU46: 0 | BV46: 0 | BW46: 0
B47: 2 | C47: 042 | D47: 532L | E47: 705 | G47: 042532L | I47: Single High-Pressure Sodium Vapor | J47: Developer Contributed | K47: 100W | L47: 436 | M47: 0 | N47: 20 | O47: 0 | P47: 0 | Q47: 0 | R47: 0 | S47: 0 | T47: 16.9 | U47: 0 | V47: 0 | W47: 0 | Y47: 0 | Z47: 338 | AA47: 0 | AB47: 0 | AC47: 0 | AE47: 0 | AF47: =N47 -> 20 | AG47: =O47 -> 0 | AH47: =P47 -> 0 | AI47: =Q47 -> 0 | AK47: 0 | AL47: 17.28 | AM47: 0 | AN47: 0 | AO47: 0 | AQ47: 0 | AR47: 345.6 | AS47: 0 | AT47: 0 | AU47: 0 | AV47: 7.6 | AW47: 0.0224852071 | AX47: 40 | AZ47: 17.195794 | BE47: 0.09 | BG47: 0.05 | BM47: 0 | BN47: 17.540928 | BO47: 0 | BP47: 0 | BQ47: 0 | BS47: 0 | BT47: 0.345134 | BU47: 0 | BV47: 0 | BW47: 0
B48: 2 | C48: 042 | D48: 532T | E48: 152 | G48: 042532T | I48: Single Light Emitting Diode (LED) | J48: Developer Contributed | K48: 70W | L48: 436L | M48: 0 | N48: 84 | O48: 0 | P48: 0 | Q48: 0 | R48: 0 | S48: 0 | T48: =T47 -> 16.9 | U48: 0 | V48: 0 | W48: 0 | Y48: =IF(AND(M48<>0,S48=0),#VALUE!,M48*S48) -> 0 | Z48: 1419.6 | AA48: 0 | AB48: 0 | AC48: 0 | AE48: =SUMIF($G:$G,TEXT(AE$3,"000")&TEXT($L48,"000"),$E:$E) -> 0 | AF48: =SUMIF($G:$G,TEXT(AF$3,"000")&TEXT($L48,"000"),$E:$E) -> 84 | AG48: =SUMIF($G:$G,TEXT(AG$3,"000")&TEXT($L48,"000"),$E:$E) -> 0 | AH48: =SUMIF($G:$G,TEXT(AH$3,"000")&TEXT($L48,"000"),$E:$E) -> 0 | AI48: =SUMIF($G:$G,TEXT(AI$3,"000")&TEXT($L48,"000"),$E:$E) -> 0 | AK48: 0 | AL48: =AL47 -> 17.28 | AM48: 0 | AN48: 0 | AO48: 0 | AQ48: 0 | AR48: 1451.52 | AS48: 0 | AT48: 0 | AU48: 0 | AV48: 31.92 | AW48: 0.0224852071 | AX48: 26 | AZ48: 17.195794 | BE48: =ROUND(AX48*$BE$2,2)+ROUND(AX48*$BE$1,2) -> 0.06 | BG48: 0.02 | BM48: 0 | BN48: 17.540928 | BO48: =AM48*$BM$1 -> 0 | BP48: 0 | BQ48: 0 | BS48: =BM48-AY48 -> 0 | BT48: 0.345134 | BU48: 0 | BV48: 0 | BW48: 0
B49: 2 | C49: 042 | D49: 533 | E49: 18 | G49: 042533 | I49: Single Light Emitting Diode (LED) | J49: Developer Contributed | K49: 70W | L49: 436T | M49: 0 | N49: 274 | O49: 0 | P49: 0 | Q49: 0 | R49: 0 | S49: 0 | T49: =T47-T103 -> 11.98 | U49: 0 | V49: 0 | W49: 0 | Y49: 0 | Z49: 3282.52 | AA49: 0 | AB49: 0 | AC49: 0 | AE49: =M49 -> 0 | AF49: =N49 -> 274 | AG49: =O49 -> 0 | AH49: =P49 -> 0 | AI49: =Q49 -> 0 | AK49: 0 | AL49: =AL48-AL103 -> 12.36 | AM49: 0 | AN49: 0 | AO49: 0 | AQ49: 0 | AR49: 3386.64 | AS49: 0 | AT49: 0 | AU49: 0 | AV49: 104.12 | AW49: 0.03171953255 | AX49: 26 | AZ49: 11.886821 | BE49: =ROUND(AX49*$BE$2,2)+ROUND(AX49*$BE$1,2) -> 0.06 | BG49: 0.33 | BM49: 0 | BN49: 12.546636 | BO49: 0 | BP49: 0 | BQ49: 0 | BS49: 0 | BT49: 0.659815 | BU49: 0 | BV49: 0 | BW49: 0
B50: 2 | C50: 042 | D50: 533L | E50: 55 | G50: 042533L | I50: Decorative Sodium Vapor | J50: No Pole | K50: Kim Light 100W | L50: 438 | M50: 0 | N50: 11 | O50: 0 | P50: 0 | Q50: 0 | R50: =IF(SUM(M50:Q50)>0,0,1) -> 0 | S50: 0 | T50: 15.7 | U50: 0 | V50: 0 | W50: 0 | Y50: 0 | Z50: 172.7 | AA50: 0 | AB50: 0 | AC50: 0 | AE50: 0 | AF50: =N50 -> 11 | AG50: 0 | AH50: 0 | AI50: 0 | AK50: 0 | AL50: =ROUND(T50*(1+AL$1),2) -> 16.05 | AM50: 0 | AN50: 0 | AO50: 0 | AQ50: 0 | AR50: 176.55 | AS50: 0 | AT50: 0 | AU50: 0 | AV50: 3.85 | AW50: 0.02229299363 | AX50: 40 | AZ50: 15.977674 | BE50: 0.09 | BG50: 0.05 | BM50: 0 | BN50: 16.292355 | BO50: 0 | BP50: 0 | BQ50: 0 | BS50: 0 | BT50: 0.314681 | BU50: 0 | BV50: 0 | BW50: 0
B51: 2 | C51: 042 | D51: 533T | E51: =46+1 -> 47 | G51: 042533T | I51: Double Light Emitting Diode (LED) | J51: Standard | K51: 70W | L51: 441L | M51: 0 | N51: 14 | O51: 0 | P51: 0 | Q51: 0 | R51: 0 | S51: 0 | T51: 28.59 | U51: 0 | W51: 0 | Y51: =IF(AND(M51<>0,S51=0),#VALUE!,M51*S51) -> 0 | Z51: 400.26 | AA51: 0 | AB51: 0 | AC51: 0 | AE51: =SUMIF($G:$G,TEXT(AE$3,"000")&TEXT($L51,"000"),$E:$E) -> 0 | AF51: 14 | AG51: 0 | AH51: 0 | AI51: 0 | AK51: 0 | AL51: 29.23 | AM51: 0 | AN51: 0 | AO51: 0 | AQ51: 0 | AR51: =IF(AND(AF51<>0,AL51=0),#VALUE!,AF51*AL51) -> 409.22 | AS51: 0 | AT51: 0 | AU51: 0 | AV51: 8.96 | AW51: 0.02238544946 | AX51: 52 | AZ51: 29.092766 | BE51: =ROUND(AX51*$BE$2,2)+ROUND(AX51*$BE$1,2) -> 0.11 | BG51: 0.04 | BM51: 0 | BN51: 29.671373 | BO51: =AM51*$BM$1 -> 0 | BP51: 0 | BQ51: 0 | BS51: =BM51-AY51 -> 0 | BT51: 0.578607 | BU51: 0 | BV51: 0 | BW51: 0
B52: 2 | C52: 042 | D52: 535 | E52: 93 | G52: 042535 | I52: Double Light Emitting Diode (LED) | J52: Standard | K52: 70W | L52: 441T | M52: 0 | N52: 11 | O52: 0 | P52: 0 | Q52: 0 | R52: 0 | T52: =T51-T103-T103 -> 18.75 | U52: 0 | V52: 0 | W52: 0 | Y52: 0 | Z52: 206.25 | AA52: 0 | AB52: 0 | AC52: 0 | AE52: 0 | AF52: 11 | AG52: 0 | AH52: 0 | AI52: 0 | AK52: 0 | AL52: =AL51-AL103-AL103 -> 19.39 | AM52: 0 | AN52: 0 | AO52: 0 | AQ52: 0 | AR52: 213.29 | AS52: 0 | AT52: 0 | AU52: 0 | AV52: 7.04 | AW52: 0.03413333333 | AX52: 52 | AZ52: 18.47482 | BE52: =ROUND(AX52*$BE$2,2)+ROUND(AX52*$BE$1,2) -> 0.11 | BG52: 0.67 | BM52: 0 | BN52: 19.682789 | BO52: 0 | BP52: 0 | BQ52: 0 | BS52: 0 | BT52: 1.207969 | BU52: 0 | BV52: 0 | BW52: 0
B53: 2 | C53: 042 | D53: 535L | E53: 831 | G53: 042535L | I53: Decorative Sodium Vapor | J53: Direct Burial | K53: Granville 100W | L53: 474 | M53: 0 | N53: 116 | O53: 0 | P53: 0 | Q53: 0 | R53: 0 | S53: 0 | T53: 27.36 | U53: 0 | V53: 0 | W53: 0 | Y53: 0 | Z53: 3173.76 | AA53: 0 | AB53: 0 | AC53: 0 | AE53: 0 | AF53: =N53 -> 116 | AG53: =O53 -> 0 | AH53: =P53 -> 0 | AI53: =Q53 -> 0 | AK53: 0 | AL53: 27.98 | AM53: 0 | AN53: 0 | AO53: 0 | AQ53: =IF(AND(AE53<>0,AK53=0),#VALUE!,AE53*AK53) -> 0 | AR53: =IF(AND(AF53<>0,AL53=0),#VALUE!,AF53*AL53) -> 3245.68 | AS53: =IF(AND(AG53<>0,AM53=0),#VALUE!,AG53*AM53) -> 0 | AT53: 0 | AU53: 0 | AV53: 71.92 | AW53: 0.02266081871 | AX53: 40 | AZ53: 27.834042 | BE53: 0.09 | BG53: 0.03 | BM53: 0 | BN53: 28.402498 | BO53: 0 | BP53: 0 | BQ53: 0 | BS53: 0 | BT53: 0.568456 | BU53: 0 | BV53: 0 | BW53: 0
B54: 2 | C54: 042 | D54: 535T | E54: =394+2 -> 396 | G54: 042535T | I54: Decorative Light Emitting Diode (LED) | J54: Direct Burial | K54: Granville 70W | L54: 474L | M54: =SUMIF($G:$G,TEXT(M$3,"000")&TEXT($L54,"000"),$E:$E) -> 0 | N54: 235 | O54: 0 | P54: 0 | Q54: 0 | R54: 0 | S54: 0 | T54: =T53 -> 27.36 | U54: 0 | V54: 0 | W54: 0 | Y54: =IF(AND(M54<>0,S54=0),#VALUE!,M54*S54) -> 0 | Z54: =IF(AND(N54<>0,T54=0),#VALUE!,N54*T54) -> 6429.6 | AA54: =IF(AND(O54<>0,U54=0),#VALUE!,O54*U54) -> 0 | AB54: =IF(AND(P54<>0,V54=0),#VALUE!,P54*V54) -> 0 | AC54: =IF(AND(Q54<>0,W54=0),#VALUE!,Q54*W54) -> 0 | AE54: =SUMIF($G:$G,TEXT(AE$3,"000")&TEXT($L54,"000"),$E:$E) -> 0 | AF54: =SUMIF($G:$G,TEXT(AF$3,"000")&TEXT($L54,"000"),$E:$E) -> 235 | AG54: =SUMIF($G:$G,TEXT(AG$3,"000")&TEXT($L54,"000"),$E:$E) -> 0 | AH54: =SUMIF($G:$G,TEXT(AH$3,"000")&TEXT($L54,"000"),$E:$E) -> 0 | AI54: =SUMIF($G:$G,TEXT(AI$3,"000")&TEXT($L54,"000"),$E:$E) -> 0 | AK54: 0 | AL54: =AL53 -> 27.98 | AM54: 0 | AN54: 0 | AO54: 0 | AQ54: =IF(AND(AE54<>0,AK54=0),#VALUE!,AE54*AK54) -> 0 | AR54: 6575.3 | AS54: 0 | AT54: 0 | AU54: 0 | AV54: 145.7 | AW54: 0.02266081871 | AX54: 26 | AZ54: 27.834042 | BE54: =ROUND(AX54*$BE$2,2)+ROUND(AX54*$BE$1,2) -> 0.06 | BG54: 0 | BM54: 0 | BN54: 28.402498 | BO54: =AM54*$BM$1 -> 0 | BP54: 0 | BQ54: 0 | BS54: =BM54-AY54 -> 0 | BT54: 0.568456 | BU54: 0 | BV54: 0 | BW54: 0
B55: 2 | C55: 042 | D55: 536 | E55: 152 | G55: 042536 | I55: Decorative Sodium Vapor | J55: Direct Burial | K55: Post Top 100W | L55: 484 | M55: 0 | N55: 68 | O55: 0 | P55: 0 | Q55: 0 | R55: 0 | S55: 0 | T55: 26.04 | U55: 0 | V55: 0 | W55: 0 | Y55: 0 | Z55: 1770.72 | AA55: 0 | AB55: 0 | AC55: 0 | AE55: 0 | AF55: =N55 -> 68 | AG55: 0 | AH55: 0 | AI55: 0 | AK55: =ROUND(S55*(1+AK$1),2) -> 0 | AL55: 26.63 | AM55: =ROUND(U55*(1+AM$1),2) -> 0 | AN55: =ROUND(V55*(1+AN$1),2) -> 0 | AO55: =ROUND(W55*(1+AO$1),2) -> 0 | AQ55: =IF(AND(AE55<>0,AK55=0),#VALUE!,AE55*AK55) -> 0 | AR55: 1810.84 | AS55: =IF(AND(AG55<>0,AM55=0),#VALUE!,AG55*AM55) -> 0 | AT55: =IF(AND(AH55<>0,AN55=0),#VALUE!,AH55*AN55) -> 0 | AU55: =IF(AND(AI55<>0,AO55=0),#VALUE!,AI55*AO55) -> 0 | AV55: 40.12 | AW55: 0.02265745008 | AX55: 40 | AZ55: 26.49411 | BE55: 0.09 | BG55: 0.03 | BM55: =AK55*$BM$1 -> 0 | BN55: =AL55*$BM$1 -> 27.032113 | BO55: 0 | BP55: 0 | BQ55: 0 | BS55: 0 | BT55: 0.538003 | BU55: 0 | BV55: 0 | BW55: 0
B56: 2 | C56: 042 | D56: 536L | E56: 245 | G56: 042536L | I56: Decorative Light Emitting Diode (LED) | J56: Direct Burial | K56: Post Top 70W | L56: 484L | M56: 0 | N56: 99 | O56: 0 | P56: 0 | Q56: 0 | R56: 0 | S56: 0 | T56: =T55 -> 26.04 | U56: 0 | V56: 0 | W56: 0 | Y56: =IF(AND(M56<>0,S56=0),#VALUE!,M56*S56) -> 0 | Z56: =IF(AND(N56<>0,T56=0),#VALUE!,N56*T56) -> 2577.96 | AA56: =IF(AND(O56<>0,U56=0),#VALUE!,O56*U56) -> 0 | AB56: =IF(AND(P56<>0,V56=0),#VALUE!,P56*V56) -> 0 | AC56: =IF(AND(Q56<>0,W56=0),#VALUE!,Q56*W56) -> 0 | AE56: =SUMIF($G:$G,TEXT(AE$3,"000")&TEXT($L56,"000"),$E:$E) -> 0 | AF56: 99 | AG56: 0 | AH56: 0 | AI56: 0 | AK56: =ROUND(S56*(1+AK$1),2) -> 0 | AL56: =AL55 -> 26.63 | AM56: 0 | AN56: 0 | AO56: 0 | AQ56: 0 | AR56: 2636.37 | AS56: 0 | AT56: 0 | AU56: 0 | AV56: 58.41 | AW56: 0.02265745008 | AX56: 26 | AZ56: 26.49411 | BE56: =ROUND(AX56*$BE$2,2)+ROUND(AX56*$BE$1,2) -> 0.06 | BG56: 0 | BM56: 0 | BN56: 27.032113 | BO56: =AM56*$BM$1 -> 0 | BP56: 0 | BQ56: 0 | BS56: =BM56-AY56 -> 0 | BT56: =BN56-AZ56 -> 0.538003 | BU56: =BO56-BA56 -> 0 | BV56: =BP56-BB56 -> 0 | BW56: =BQ56-BC56 -> 0
B57: 2 | C57: 042 | D57: 536T | E57: =339+4 -> 343 | G57: 042536T | I57: Single Light Emitting Diode (LED) | J57: 30ft Fiberglass Pole | K57: 70W | L57: 494L | M57: 0 | N57: 12 | O57: 0 | P57: 0 | Q57: 0 | R57: =IF(SUM(M57:Q57)>0,0,1) -> 0 | S57: 0 | T57: 28.79 | U57: 0 | V57: 0 | W57: 0 | Y57: =IF(AND(M57<>0,S57=0),#VALUE!,M57*S57) -> 0 | Z57: =IF(AND(N57<>0,T57=0),#VALUE!,N57*T57) -> 345.48 | AA57: =IF(AND(O57<>0,U57=0),#VALUE!,O57*U57) -> 0 | AB57: =IF(AND(P57<>0,V57=0),#VALUE!,P57*V57) -> 0 | AC57: =IF(AND(Q57<>0,W57=0),#VALUE!,Q57*W57) -> 0 | AE57: 0 | AF57: 12 | AG57: 0 | AH57: 0 | AI57: 0 | AK57: =ROUND(S57*(1+AK$1),2) -> 0 | AL57: =ROUND(T57*(1+AL$1),2) -> 29.44 | AM57: 0 | AN57: 0 | AO57: 0 | AQ57: 0 | AR57: 353.28 | AS57: 0 | AT57: 0 | AU57: 0 | AX57: 26 | AZ57: 29.295786 | BE57: =ROUND(AX57*$BE$2,2)+ROUND(AX57*$BE$1,2) -> 0.06 | BG57: -0.01 | BM57: 0 | BN57: 29.884544 | BO57: 0 | BP57: 0 | BQ57: 0 | BS57: =BM57-AY57 -> 0 | BT57: =BN57-AZ57 -> 0.588758 | BU57: =BO57-BA57 -> 0 | BV57: =BP57-BB57 -> 0 | BW57: =BQ57-BC57 -> 0
B58: 2 | C58: 042 | D58: 541 | E58: 2 | G58: 042541 | I58: LED (Dusk to 11:00) | J58: Dusk to 11 PM | K58: 100W | L58: 499 | M58: 0 | N58: 0 | O58: 0 | P58: 0 | Q58: 41 | R58: 0 | S58: 0 | T58: 0 | U58: 0 | V58: 0 | W58: 2.98 | Y58: 0 | Z58: 0 | AA58: 0 | AB58: 0 | AC58: 122.18 | AE58: 0 | AF58: 0 | AG58: 0 | AH58: 0 | AI58: 41 | AK58: 0 | AL58: 0 | AM58: 0 | AN58: 0 | AO58: 3.05 | AQ58: 0 | AR58: 0 | AS58: 0 | AT58: 0 | AU58: 125.05 | AV58: 0 | AX58: 21 | BC58: 3.01 | BE58: 0.04 | BJ58: =ROUND((W58*$BF$2)+$BE58-BC58,2) -> 0.05 | BM58: 0 | BN58: 0 | BO58: 0 | BP58: 0 | BQ58: 3.096055 | BS58: =BM58-AY58 -> 0 | BT58: 0 | BU58: 0 | BV58: 0 | BW58: 0.086055
B59: 2 | C59: 042 | D59: 541L | E59: 1 | G59: 042541L | I59: Mercury Vapor | J59: Dusk to Dawn | K59: 10000 | L59: 515 | M59: 0 | N59: 0 | O59: 0 | P59: 1 | Q59: 0 | R59: 0 | S59: 0 | T59: 0 | U59: 0 | V59: 10.35 | W59: 0 | Y59: 0 | Z59: 0 | AA59: 0 | AB59: 10.35 | AC59: 0 | AE59: 0 | AF59: 0 | AG59: 0 | AH59: 1 | AI59: 0 | AK59: 0 | AL59: 0 | AM59: 0 | AN59: 10.6 | AO59: 0 | AQ59: 0 | AR59: 0 | AS59: 0 | AT59: 10.6 | AU59: 0 | AV59: 0 | AX59: 111 | BB59: 10.46 | BE59: 0.25 | BI59: =ROUND((V59*$BF$2)+$BE59-BB59,2) -> 0.3 | BM59: 0 | BN59: 0 | BO59: 0 | BP59: 10.76006 | BQ59: 0 | BS59: 0 | BT59: 0 | BU59: 0 | BV59: 0.30006 | BW59: 0
B60: 2 | C60: 042 | D60: 541T | E60: 0 | G60: 042541T | I60: Single High-Pressure Sodium Vapor | J60: Standard | K60: 200W | L60: 531 | M60: 0 | N60: 163 | O60: 0 | P60: 0 | Q60: 0 | R60: 0 | S60: 0 | T60: 20.72 | U60: 12.53 | V60: 0 | W60: 0 | Y60: 0 | Z60: 3377.36 | AA60: 0 | AB60: 0 | AC60: 0 | AE60: 0 | AF60: =N60 -> 163 | AG60: =O60 -> 0 | AH60: =P60 -> 0 | AI60: =Q60 -> 0 | AK60: 0 | AL60: =ROUND(T60*(1+AL$1),2) -> 21.19 | AM60: 12.83 | AN60: 0 | AO60: 0 | AQ60: 0 | AR60: 3453.97 | AS60: 0 | AT60: 0 | AU60: 0 | AV60: 76.61 | AW60: 0.02268339768 | AX60: 85 | BA60: 12.66 | BE60: 0.18 | BH60: =ROUND((U60*$BF$2)+$BE60-BA60,2) -> 0.24 | BM60: 0 | BN60: 21.509969 | BO60: 13.023733 | BP60: 0 | BQ60: 0 | BS60: 0 | BT60: 21.509969 | BU60: 0.363733 | BV60: 0 | BW60: 0
B61: 2 | C61: 042 | D61: 542L | E61: 15 | G61: 042542L | I61: Single Light Emitting Diode (LED) | J61: Standard | K61: 107W | L61: 531L | M61: 0 | N61: 1349 | O61: 0 | P61: 0 | Q61: 0 | R61: =IF(SUM(M61:Q61)>0,0,1) -> 0 | S61: 0 | T61: =T60 -> 20.72 | U61: 0 | V61: 0 | W61: 0 | Y61: 0 | Z61: 27951.28 | AA61: 0 | AB61: 0 | AC61: 0 | AE61: =SUMIF($G:$G,TEXT(AE$3,"000")&TEXT($L61,"000"),$E:$E) -> 0 | AF61: =SUMIF($G:$G,TEXT(AF$3,"000")&TEXT($L61,"000"),$E:$E) -> 1349 | AG61: =SUMIF($G:$G,TEXT(AG$3,"000")&TEXT($L61,"000"),$E:$E) -> 0 | AH61: =SUMIF($G:$G,TEXT(AH$3,"000")&TEXT($L61,"000"),$E:$E) -> 0 | AI61: =SUMIF($G:$G,TEXT(AI$3,"000")&TEXT($L61,"000"),$E:$E) -> 0 | AK61: 0 | AL61: =AL60 -> 21.19 | AM61: 0 | AN61: 0 | AO61: 0 | AQ61: 0 | AR61: 28585.31 | AS61: 0 | AT61: 0 | AU61: 0 | AX61: 39 | BE61: 0.08 | BG61: =ROUND((T61*$BF$2)+$BE61-AZ61,2) -> 21.11 | BM61: 0 | BN61: 21.509969 | BO61: 0 | BP61: 0 | BQ61: 0 | BS61: 0 | BT61: 21.509969 | BU61: 0 | BV61: 0 | BW61: 0
B62: 2 | C62: 042 | D62: 542T | E62: 9 | G62: 042542T | I62: Single Light Emitting Diode (LED) | J62: Standard | K62: 107W | L62: 531T | M62: 0 | N62: 474 | O62: 0 | P62: 0 | Q62: 0 | R62: 0 | S62: 0 | T62: =T60-T104 -> 15.51 | U62: 0 | V62: 0 | W62: 0 | Y62: 0 | Z62: 7351.74 | AA62: 0 | AB62: 0 | AC62: 0 | AE62: =M62 -> 0 | AF62: =N62 -> 474 | AG62: =O62 -> 0 | AH62: =P62 -> 0 | AI62: =Q62 -> 0 | AK62: 0 | AL62: =AL60-AL104 -> 15.98 | AM62: 0 | AN62: 0 | AO62: 0 | AQ62: 0 | AR62: 7574.52 | AS62: 0 | AT62: 0 | AU62: 0 | AV62: =SUM(AQ62:AU62)-SUM(Y62:AC62) -> 222.78 | AX62: 39 | BE62: 0.08 | BG62: 15.82 | BM62: 0 | BN62: 16.221298 | BO62: 0 | BP62: 0 | BQ62: 0 | BS62: 0 | BT62: 16.221298 | BU62: 0 | BV62: 0 | BW62: 0
B63: 2 | C63: 042 | D63: 546T | E63: 8 | G63: 042546T | I63: Single High-Pressure Sodium Vapor | J63: Pedestal Base | K63: 200W | L63: 532 | M63: 0 | N63: 106 | O63: 89 | P63: 0 | Q63: 0 | R63: 0 | S63: 0 | T63: 37.26 | U63: 12.53 | V63: 0 | W63: 0 | Y63: 0 | Z63: =IF(AND(N63<>0,T63=0),#VALUE!,N63*T63) -> 3949.56 | AA63: 1115.17 | AB63: 0 | AC63: 0 | AE63: 0 | AF63: 106 | AG63: 89 | AH63: 0 | AI63: 0 | AK63: 0 | AL63: 38.1 | AM63: 12.83 | AN63: 0 | AO63: 0 | AQ63: 0 | AR63: 4038.6 | AS63: 1141.87 | AT63: 0 | AU63: 0 | AV63: 89.04 | AW63: 0.02254428341 | AX63: 85 | AZ63: 37.903834 | BA63: 12.66 | BE63: 0.18 | BG63: =ROUND((T63*$BF$2)+$BE63-AZ63,2) -> 0.1 | BH63: =ROUND((U63*$BF$2)+$BE63-BA63,2) -> 0.24 | BM63: 0 | BN63: 38.67531 | BO63: 13.023733 | BP63: 0 | BQ63: 0 | BS63: 0 | BT63: 0.771476 | BU63: 0.363733 | BV63: 0 | BW63: 0
B64: 2 | C64: 042 | D64: 594L | E64: 5 | G64: =IF(OR(ISBLANK(C64),ISBLANK(D64)),"",TEXT(C64,"000")&TEXT(D64,"000")) -> 042594L | I64: Single Light Emitting Diode (LED) | J64: Pedestal Base | K64: 107W | L64: 532L | M64: =SUMIF($G:$G,TEXT(M$3,"000")&TEXT($L64,"000"),$E:$E) -> 0 | N64: 705 | O64: 0 | P64: 0 | Q64: 0 | R64: 0 | S64: 0 | T64: =T63 -> 37.26 | U64: 0 | V64: 0 | W64: 0 | Y64: =IF(AND(M64<>0,S64=0),#VALUE!,M64*S64) -> 0 | Z64: 26268.3 | AA64: 0 | AB64: 0 | AC64: 0 | AE64: =SUMIF($G:$G,TEXT(AE$3,"000")&TEXT($L64,"000"),$E:$E) -> 0 | AF64: =SUMIF($G:$G,TEXT(AF$3,"000")&TEXT($L64,"000"),$E:$E) -> 705 | AG64: =SUMIF($G:$G,TEXT(AG$3,"000")&TEXT($L64,"000"),$E:$E) -> 0 | AH64: =SUMIF($G:$G,TEXT(AH$3,"000")&TEXT($L64,"000"),$E:$E) -> 0 | AI64: =SUMIF($G:$G,TEXT(AI$3,"000")&TEXT($L64,"000"),$E:$E) -> 0 | AK64: =ROUND(S64*(1+AK$1),2) -> 0 | AL64: =AL63 -> 38.1 | AM64: 0 | AN64: 0 | AO64: 0 | AQ64: 0 | AR64: 26860.5 | AS64: 0 | AT64: 0 | AU64: 0 | AV64: 592.2 | AW64: 0.02254428341 | AX64: 39 | AZ64: 37.903834 | BE64: =ROUND(AX64*$BE$2,2)+ROUND(AX64*$BE$1,2) -> 0.08 | BG64: 0 | BM64: 0 | BN64: 38.67531 | BO64: =AM64*$BM$1 -> 0 | BP64: 0 | BQ64: 0 | BS64: =BM64-AY64 -> 0 | BT64: 0.771476 | BU64: 0 | BV64: 0 | BW64: 0
B65: 2 | C65: 042 | D65: 631 | E65: 38 | G65: 042631 | I65: Single Light Emitting Diode (LED) | J65: Pedestal Base | K65: 107W | L65: 532T | M65: 0 | N65: 152 | O65: 0 | P65: 0 | Q65: 0 | R65: 0 | S65: 0 | T65: =T63-T104 -> 32.05 | U65: 0 | V65: 0 | W65: 0 | Y65: 0 | Z65: 4871.6 | AA65: 0 | AB65: 0 | AC65: 0 | AE65: =M65 -> 0 | AF65: =N65 -> 152 | AG65: =O65 -> 0 | AH65: =P65 -> 0 | AI65: =Q65 -> 0 | AK65: =ROUND(S65*(1+AK$1),2) -> 0 | AL65: =AL64-AL104 -> 32.89 | AM65: 0 | AN65: 0 | AO65: 0 | AQ65: 0 | AR65: 4999.28 | AS65: 0 | AT65: 0 | AU65: 0 | AV65: 127.68 | AW65: 0.02620904836 | AX65: 39 | AZ65: 32.290331 | BE65: =ROUND(AX65*$BE$2,2)+ROUND(AX65*$BE$1,2) -> 0.08 | BG65: 0.32 | BM65: 0 | BN65: 33.386639 | BO65: 0 | BP65: 0 | BQ65: 0 | BS65: 0 | BT65: 1.096308 | BU65: 0 | BV65: 0 | BW65: 0
B66: 2 | C66: 042 | D66: 633 | E66: 34 | G66: 042633 | I66: Single High-Pressure Sodium Vapor | J66: Direct Burial | K66: 200W | L66: 533 | M66: 0 | N66: 18 | O66: 2 | P66: 0 | Q66: 0 | R66: 0 | S66: 0 | T66: 37.26 | U66: 12.53 | V66: 0 | W66: 0 | Y66: 0 | Z66: 670.68 | AA66: 25.06 | AB66: 0 | AC66: 0 | AE66: 0 | AF66: 18 | AG66: 2 | AH66: 0 | AI66: 0 | AK66: 0 | AL66: 38.1 | AM66: 12.83 | AN66: 0 | AO66: 0 | AQ66: 0 | AR66: 685.8 | AS66: 25.66 | AT66: 0 | AU66: 0 | AV66: 15.12 | AW66: 0.02254428341 | AX66: 85 | AZ66: 37.903834 | BA66: 12.66 | BE66: 0.18 | BG66: 0.1 | BH66: =ROUND((U66*$BF$2)+$BE66-BA66,2) -> 0.24 | BM66: 0 | BN66: 38.67531 | BO66: 13.023733 | BP66: 0 | BQ66: 0 | BS66: 0 | BT66: 0.771476 | BU66: 0.363733 | BV66: 0 | BW66: 0
B67: 2 | C67: 042 | D67: 636 | E67: 2 | G67: 042636 | I67: Single Light Emitting Diode (LED) | J67: Direct Burial | K67: 107W | L67: 533L | M67: 0 | N67: 55 | O67: 0 | P67: 0 | Q67: 0 | R67: 0 | S67: 0 | T67: =T66 -> 37.26 | U67: 0 | V67: 0 | W67: 0 | Y67: =IF(AND(M67<>0,S67=0),#VALUE!,M67*S67) -> 0 | Z67: 2049.3 | AA67: 0 | AB67: 0 | AC67: 0 | AE67: =SUMIF($G:$G,TEXT(AE$3,"000")&TEXT($L67,"000"),$E:$E) -> 0 | AF67: =SUMIF($G:$G,TEXT(AF$3,"000")&TEXT($L67,"000"),$E:$E) -> 55 | AG67: =SUMIF($G:$G,TEXT(AG$3,"000")&TEXT($L67,"000"),$E:$E) -> 0 | AH67: =SUMIF($G:$G,TEXT(AH$3,"000")&TEXT($L67,"000"),$E:$E) -> 0 | AI67: =SUMIF($G:$G,TEXT(AI$3,"000")&TEXT($L67,"000"),$E:$E) -> 0 | AK67: =ROUND(S67*(1+AK$1),2) -> 0 | AL67: =AL66 -> 38.1 | AM67: 0 | AN67: 0 | AO67: 0 | AQ67: 0 | AR67: 2095.5 | AS67: 0 | AT67: 0 | AU67: 0 | AV67: 46.2 | AW67: 0.02254428341 | AX67: 39 | AZ67: 37.903834 | BE67: =ROUND(AX67*$BE$2,2)+ROUND(AX67*$BE$1,2) -> 0.08 | BG67: 0 | BM67: 0 | BN67: 38.67531 | BO67: =AM67*$BM$1 -> 0 | BP67: 0 | BQ67: 0 | BS67: =BM67-AY67 -> 0 | BT67: 0.771476 | BU67: 0 | BV67: 0 | BW67: 0
B68: 2 | C68: 042 | D68: 831 | E68: 14 | G68: 042831 | I68: Single Light Emitting Diode (LED) | J68: Direct Burial | K68: 107W | L68: 533T | M68: 0 | N68: 47 | O68: 0 | P68: 0 | Q68: 0 | R68: 0 | S68: 0 | T68: =T66-T104 -> 32.05 | U68: 0 | V68: 0 | W68: 0 | Y68: 0 | Z68: 1506.35 | AA68: 0 | AB68: 0 | AC68: 0 | AE68: =M68 -> 0 | AF68: =N68 -> 47 | AG68: =O68 -> 0 | AH68: =P68 -> 0 | AI68: =Q68 -> 0 | AK68: =ROUND(S68*(1+AK$1),2) -> 0 | AL68: =AL67-AL104 -> 32.89 | AM68: 0 | AN68: 0 | AO68: 0 | AQ68: 0 | AR68: 1545.83 | AS68: 0 | AT68: 0 | AU68: 0 | AV68: 39.48 | AW68: 0.02620904836 | AX68: 39 | AZ68: 32.290331 | BE68: =ROUND(AX68*$BE$2,2)+ROUND(AX68*$BE$1,2) -> 0.08 | BG68: 0.32 | BM68: 0 | BN68: 33.386639 | BO68: 0 | BP68: 0 | BQ68: 0 | BS68: 0 | BT68: 1.096308 | BU68: 0 | BV68: 0 | BW68: 0
B69: 2 | C69: 042 | D69: 831T | E69: 39 | G69: 042831T | I69: Single High-Pressure Sodium Vapor | J69: Standard / Dusk to Dawn (046) | K69: 200W | L69: 535 | M69: 0 | N69: 93 | O69: 8 | P69: 0 | Q69: 45 | R69: 0 | S69: 0 | T69: 20.72 | U69: 12.53 | V69: 0 | W69: 9.9 | Y69: 0 | Z69: 1926.96 | AA69: 100.24 | AB69: 0 | AC69: 445.5 | AE69: 0 | AF69: 93 | AG69: 8 | AH69: 0 | AI69: 45 | AK69: 0 | AL69: 21.19 | AM69: 12.83 | AN69: 0 | AO69: =ROUND(W69*(1+AO$1),2) -> 10.14 | AQ69: 0 | AR69: 1970.67 | AS69: 102.64 | AT69: 0 | AU69: 456.3 | AV69: 43.71 | AW69: 0.02268339768 | AX69: 85 | AZ69: 21.083627 | BA69: 12.66 | BC69: 10.01 | BE69: 0.18 | BG69: 0.13 | BH69: =ROUND((U69*$BF$2)+$BE69-BA69,2) -> 0.24 | BJ69: =ROUND((W69*$BF$2)+$BE69-BC69,2) -> 0.22 | BM69: 0 | BN69: 21.509969 | BO69: 13.023733 | BP69: 0 | BQ69: 10.293114 | BS69: 0 | BT69: 0.426342 | BU69: 0.363733 | BV69: 0 | BW69: 0.283114
B70: 2 | C70: 042 | D70: 831L | E70: 2 | G70: =IF(OR(ISBLANK(C70),ISBLANK(D70)),"",TEXT(C70,"000")&TEXT(D70,"000")) -> 042831L | I70: Single Light Emitting Diode (LED) | J70: Standard / Dusk to Dawn (046) | K70: 107W | L70: 535L | M70: 0 | N70: 831 | O70: 0 | P70: 0 | Q70: 0 | R70: 0 | S70: 0 | T70: =T69 -> 20.72 | U70: 0 | V70: 0 | W70: 0 | Y70: =IF(AND(M70<>0,S70=0),#VALUE!,M70*S70) -> 0 | Z70: 17218.32 | AA70: 0 | AB70: 0 | AC70: 0 | AE70: =SUMIF($G:$G,TEXT(AE$3,"000")&TEXT($L70,"000"),$E:$E) -> 0 | AF70: =SUMIF($G:$G,TEXT(AF$3,"000")&TEXT($L70,"000"),$E:$E) -> 831 | AG70: =SUMIF($G:$G,TEXT(AG$3,"000")&TEXT($L70,"000"),$E:$E) -> 0 | AH70: =SUMIF($G:$G,TEXT(AH$3,"000")&TEXT($L70,"000"),$E:$E) -> 0 | AI70: =SUMIF($G:$G,TEXT(AI$3,"000")&TEXT($L70,"000"),$E:$E) -> 0 | AK70: =ROUND(S70*(1+AK$1),2) -> 0 | AL70: =AL69 -> 21.19 | AM70: 0 | AN70: 0 | AO70: 0 | AQ70: 0 | AR70: 17608.89 | AS70: 0 | AT70: 0 | AU70: 0 | AV70: 390.57 | AW70: 0.02268339768 | AX70: 39 | AZ70: 21.083627 | BE70: =ROUND(AX70*$BE$2,2)+ROUND(AX70*$BE$1,2) -> 0.08 | BG70: 0.03 | BM70: 0 | BN70: 21.509969 | BO70: =AM70*$BM$1 -> 0 | BP70: 0 | BQ70: 0 | BS70: =BM70-AY70 -> 0 | BT70: 0.426342 | BU70: 0 | BV70: 0 | BW70: 0
B71: 2 | C71: 042 | D71: 832 | E71: 0 | G71: 042832 | I71: Single Light Emitting Diode (LED) | J71: Standard / Dusk to Dawn (046) | K71: 107W | L71: 535T | M71: 0 | N71: 396 | O71: 0 | P71: 0 | Q71: 0 | R71: 0 | S71: 0 | T71: =T69-T104 -> 15.51 | U71: 0 | V71: 0 | W71: 0 | Y71: 0 | Z71: 6141.96 | AA71: 0 | AB71: 0 | AC71: 0 | AE71: =M71 -> 0 | AF71: =N71 -> 396 | AG71: =O71 -> 0 | AH71: =P71 -> 0 | AI71: =Q71 -> 0 | AK71: =ROUND(S71*(1+AK$1),2) -> 0 | AL71: =AL70-AL104 -> 15.98 | AM71: 0 | AN71: 0 | AO71: 0 | AQ71: 0 | AR71: 6328.08 | AS71: 0 | AT71: 0 | AU71: 0 | AV71: 186.12 | AW71: 0.0303030303 | AX71: 39 | AZ71: 15.470124 | BE71: =ROUND(AX71*$BE$2,2)+ROUND(AX71*$BE$1,2) -> 0.08 | BG71: 0.35 | BM71: 0 | BN71: 16.221298 | BO71: 0 | BP71: 0 | BQ71: 0 | BS71: 0 | BT71: 0.751174 | BU71: 0 | BV71: 0 | BW71: 0
B72: 2 | C72: 042 | D72: 832T | E72: =1+1 -> 2 | G72: =IF(OR(ISBLANK(C72),ISBLANK(D72)),"",TEXT(C72,"000")&TEXT(D72,"000")) -> 042832T | I72: Single High-Pressure Sodium Vapor | J72: Developer Contributed | K72: 200W | L72: 536 | M72: 0 | N72: 152 | O72: 0 | P72: 0 | Q72: 0 | R72: 0 | S72: 0 | T72: 25.17 | U72: 0 | V72: 0 | W72: 0 | Y72: 0 | Z72: 3825.84 | AA72: 0 | AB72: 0 | AC72: 0 | AE72: 0 | AF72: 152 | AG72: 0 | AH72: 0 | AI72: 0 | AK72: 0 | AL72: 25.74 | AM72: 0 | AN72: 0 | AO72: 0 | AQ72: 0 | AR72: 3912.48 | AS72: 0 | AT72: 0 | AU72: 0 | AV72: 86.64 | AW72: 0.02264600715 | AX72: 85 | AZ72: 25.600822 | BE72: 0.18 | BG72: 0.13 | BM72: 0 | BN72: 26.128674 | BO72: 0 | BP72: 0 | BQ72: 0 | BS72: 0 | BT72: 0.527852 | BU72: 0 | BV72: 0 | BW72: 0
B73: 2 | C73: 042 | D73: 832L | E73: 1 | G73: 042832L | I73: Single Light Emitting Diode (LED) | J73: Developer Contributed | K73: 107W | L73: 536L | M73: 0 | N73: 245 | O73: 0 | P73: 0 | Q73: 0 | R73: 0 | S73: 0 | T73: =T72 -> 25.17 | U73: 0 | V73: 0 | W73: 0 | Y73: =IF(AND(M73<>0,S73=0),#VALUE!,M73*S73) -> 0 | Z73: 6166.65 | AA73: 0 | AB73: 0 | AC73: 0 | AE73: =SUMIF($G:$G,TEXT(AE$3,"000")&TEXT($L73,"000"),$E:$E) -> 0 | AF73: =SUMIF($G:$G,TEXT(AF$3,"000")&TEXT($L73,"000"),$E:$E) -> 245 | AG73: =SUMIF($G:$G,TEXT(AG$3,"000")&TEXT($L73,"000"),$E:$E) -> 0 | AH73: =SUMIF($G:$G,TEXT(AH$3,"000")&TEXT($L73,"000"),$E:$E) -> 0 | AI73: =SUMIF($G:$G,TEXT(AI$3,"000")&TEXT($L73,"000"),$E:$E) -> 0 | AK73: =ROUND(S73*(1+AK$1),2) -> 0 | AL73: =AL72 -> 25.74 | AM73: 0 | AN73: 0 | AO73: 0 | AQ73: 0 | AR73: 6306.3 | AS73: 0 | AT73: 0 | AU73: 0 | AV73: 139.65 | AW73: 0.02264600715 | AX73: 39 | AZ73: 25.600822 | BE73: =ROUND(AX73*$BE$2,2)+ROUND(AX73*$BE$1,2) -> 0.08 | BG73: 0.03 | BM73: 0 | BN73: 26.128674 | BO73: =AM73*$BM$1 -> 0 | BP73: 0 | BQ73: 0 | BS73: =BM73-AY73 -> 0 | BT73: 0.527852 | BU73: 0 | BV73: 0 | BW73: 0
B74: 2 | C74: 042 | D74: 835 | E74: 7 | G74: =IF(OR(ISBLANK(C74),ISBLANK(D74)),"",TEXT(C74,"000")&TEXT(D74,"000")) -> 042835 | I74: Single Light Emitting Diode (LED) | J74: Developer Contributed | K74: 107W | L74: 536T | M74: =SUMIF($G:$G,TEXT(M$3,"000")&TEXT($L74,"000"),$E:$E) -> 0 | N74: 343 | O74: 0 | P74: 0 | Q74: 0 | R74: 0 | S74: 0 | T74: =T72-T104 -> 19.96 | U74: 0 | V74: 0 | W74: 0 | Y74: 0 | Z74: 6846.28 | AA74: 0 | AB74: 0 | AC74: 0 | AE74: =M74 -> 0 | AF74: =N74 -> 343 | AG74: =O74 -> 0 | AH74: =P74 -> 0 | AI74: =Q74 -> 0 | AK74: =ROUND(S74*(1+AK$1),2) -> 0 | AL74: =AL73-AL104 -> 20.53 | AM74: 0 | AN74: 0 | AO74: 0 | AQ74: 0 | AR74: 7041.79 | AS74: 0 | AT74: 0 | AU74: 0 | AV74: 195.51 | AW74: 0.02855711423 | AX74: 39 | AZ74: 19.987319 | BE74: =ROUND(AX74*$BE$2,2)+ROUND(AX74*$BE$1,2) -> 0.08 | BG74: 0.35 | BM74: 0 | BN74: 20.840003 | BO74: 0 | BP74: 0 | BQ74: 0 | BS74: 0 | BT74: 0.852684 | BU74: 0 | BV74: 0 | BW74: 0
B75: 2 | C75: 042 | D75: 835T | E75: 39 | G75: =IF(OR(ISBLANK(C75),ISBLANK(D75)),"",TEXT(C75,"000")&TEXT(D75,"000")) -> 042835T | I75: Double High-Pressure Sodium Vapor | J75: Standard | K75: 200W | L75: 541 | M75: 0 | N75: 2 | O75: 0 | P75: 0 | Q75: 0 | R75: 0 | S75: 0 | T75: 45.9 | U75: 0 | V75: 0 | W75: 0 | Y75: 0 | Z75: 91.8 | AA75: 0 | AB75: 0 | AC75: 0 | AE75: 0 | AF75: 2 | AG75: 0 | AH75: 0 | AI75: 0 | AK75: 0 | AL75: =ROUND(T75*(1+AL$1),2) -> 46.93 | AM75: 0 | AN75: 0 | AO75: 0 | AQ75: 0 | AR75: 93.86 | AS75: 0 | AT75: 0 | AU75: 0 | AV75: 2.06 | AW75: 0.02244008715 | AX75: 170 | AZ75: 46.6946 | BE75: 0.38 | BG75: 0.28 | BM75: 0 | BN75: 47.638643 | BO75: 0 | BP75: 0 | BQ75: 0 | BS75: 0 | BT75: 0.944043 | BU75: 0 | BV75: 0 | BW75: 0
B76: 2 | C76: 042 | D76: 835L | E76: 12 | G76: =IF(OR(ISBLANK(C76),ISBLANK(D76)),"",TEXT(C76,"000")&TEXT(D76,"000")) -> 042835L | I76: Double Light Emitting Diode (LED) | J76: Standard | K76: 107W | L76: 541L | M76: 0 | N76: 1 | O76: 0 | P76: 0 | Q76: 0 | R76: 0 | S76: 0 | T76: =T75 -> 45.9 | U76: 0 | V76: 0 | W76: 0 | Y76: =IF(AND(M76<>0,S76=0),#VALUE!,M76*S76) -> 0 | Z76: 45.9 | AA76: 0 | AB76: 0 | AC76: 0 | AE76: =SUMIF($G:$G,TEXT(AE$3,"000")&TEXT($L76,"000"),$E:$E) -> 0 | AF76: 1 | AG76: 0 | AH76: 0 | AI76: 0 | AK76: =ROUND(S76*(1+AK$1),2) -> 0 | AL76: =AL75 -> 46.93 | AM76: 0 | AN76: 0 | AO76: 0 | AQ76: 0 | AR76: 46.93 | AS76: 0 | AT76: 0 | AU76: 0 | AV76: 1.03 | AW76: 0.02244008715 | AX76: 78 | AZ76: 46.6946 | BE76: =ROUND(AX76*$BE$2,2)+ROUND(AX76*$BE$1,2) -> 0.18 | BG76: 0.08 | BM76: 0 | BN76: 47.638643 | BO76: =AM76*$BM$1 -> 0 | BP76: =AN76*$BM$1 -> 0 | BQ76: =AO76*$BM$1 -> 0 | BS76: =BM76-AY76 -> 0 | BT76: 0.944043 | BU76: 0 | BV76: 0 | BW76: 0
B77: 2 | C77: 042 | D77: 836T | E77: 0 | G77: =IF(OR(ISBLANK(C77),ISBLANK(D77)),"",TEXT(C77,"000")&TEXT(D77,"000")) -> 042836T | I77: Double Light Emitting Diode (LED) | J77: Pedestal Base | K77: 107W | L77: 542L | M77: 0 | N77: 15 | O77: 0 | P77: 0 | Q77: 0 | R77: 0 | S77: 0 | T77: 63.15 | U77: 0 | V77: 0 | W77: 0 | Y77: =IF(AND(M77<>0,S77=0),#VALUE!,M77*S77) -> 0 | Z77: 947.25 | AA77: 0 | AB77: 0 | AC77: 0 | AE77: 0 | AF77: 15 | AG77: 0 | AH77: 0 | AI77: 0 | AK77: 0 | AL77: 64.57 | AM77: 0 | AN77: 0 | AO77: 0 | AQ77: 0 | AR77: =IF(AND(AF77<>0,AL77=0),#VALUE!,AF77*AL77) -> 968.55 | AS77: 0 | AT77: 0 | AU77: 0 | AV77: 21.3 | AW77: 0.0224861441 | AX77: 78 | AZ77: 64.245679 | BE77: 0.18 | BG77: 0.04 | BM77: 0 | BN77: 65.545007 | BO77: 0 | BP77: 0 | BQ77: 0 | BS77: 0 | BT77: 1.299328 | BU77: 0 | BV77: 0 | BW77: 0
B78: 2 | C78: 042 | D78: 842 | E78: 2 | G78: 042842 | I78: Double Light Emitting Diode (LED) | J78: Pedestal Base | K78: 107W | L78: 542T | M78: 0 | N78: 9 | O78: 0 | P78: 0 | Q78: 0 | R78: 0 | S78: 0 | T78: =T77-T104-T104 -> 52.73 | U78: 0 | V78: 0 | W78: 0 | Y78: 0 | Z78: 474.57 | AA78: 0 | AB78: 0 | AC78: 0 | AE78: =M78 -> 0 | AF78: 9 | AG78: 0 | AH78: 0 | AI78: 0 | AK78: =ROUND(S78*(1+AK$1),2) -> 0 | AL78: =AL77-AL104-AL104 -> 54.15 | AM78: 0 | AN78: 0 | AO78: 0 | AQ78: 0 | AR78: 487.35 | AS78: 0 | AT78: 0 | AU78: 0 | AV78: 12.78 | AW78: 0.02692964157 | AX78: 78 | AZ78: 53.018673 | BE78: =ROUND(AX78*$BE$2,2)+ROUND(AX78*$BE$1,2) -> 0.18 | BG78: =ROUND((T78*$BF$2)+$BE78-AZ78,2) -> 0.69 | BM78: 0 | BN78: 54.967665 | BO78: =AM78*$BM$1 -> 0 | BP78: 0 | BQ78: 0 | BS78: =BM78-AY78 -> 0 | BT78: 1.948992 | BU78: 0 | BV78: 0 | BW78: 0
E79: =SUM(E13:E78) -> 22589 | I79: Double Light Emitting Diode (LED) | J79: Developer Contributed | K79: 107W | L79: 546T | M79: 0 | N79: 8 | O79: 0 | P79: 0 | Q79: 0 | R79: 0 | S79: 0 | T79: =T144-T104-T104 -> 39.92 | U79: 0 | V79: 0 | W79: 0 | Y79: 0 | Z79: 319.36 | AA79: 0 | AB79: 0 | AC79: 0 | AE79: 0 | AF79: 8 | AG79: 0 | AH79: 0 | AI79: 0 | AK79: =ROUND(S79*(1+AK$1),2) -> 0 | AL79: =AL144-AL104-AL104 -> 41.05 | AM79: 0 | AN79: 0 | AO79: 0 | AQ79: 0 | AR79: 328.4 | AS79: 0 | AT79: 0 | AU79: 0 | AV79: 9.04 | AW79: 0.02830661323 | AX79: 78 | AZ79: 38.340327 | BE79: =ROUND(AX79*$BE$2,2)+ROUND(AX79*$BE$1,2) -> 0.18 | BG79: 2.36 | BM79: 0 | BN79: 41.669855 | BO79: 0 | BP79: 0 | BQ79: 0 | BS79: 0 | BT79: 3.329528 | BU79: 0 | BV79: 0 | BW79: 0
I80: Single Light Emitting Diode (LED) | J80: 35ft Fiberglass Pole | K80: 107W | L80: 594L | M80: 0 | N80: 5 | O80: 0 | P80: 0 | Q80: 0 | R80: =IF(SUM(M80:Q80)>0,0,1) -> 0 | S80: 0 | T80: 31.72 | U80: 0 | V80: 0 | W80: 0 | Y80: 0 | Z80: 158.6 | AA80: 0 | AB80: 0 | AC80: 0 | AE80: =M80 -> 0 | AF80: =N80 -> 5 | AG80: =O80 -> 0 | AH80: =P80 -> 0 | AI80: =Q80 -> 0 | AK80: =ROUND(S80*(1+AK$1),2) -> 0 | AL80: =ROUND(T80*(1+AL$1),2) -> 32.43 | AM80: 0 | AN80: 0 | AO80: 0 | AQ80: 0 | AR80: 162.15 | AS80: 0 | AT80: 0 | AU80: 0 | AV80: =SUM(AQ80:AU80)-SUM(Y80:AC80) -> 3.55 | AX80: 39 | AZ80: 32.270029 | BE80: =ROUND(AX80*$BE$2,2)+ROUND(AX80*$BE$1,2) -> 0.08 | BG80: 0.01 | BM80: 0 | BN80: 32.919693 | BO80: 0 | BP80: 0 | BQ80: 0 | BS80: 0 | BT80: 0.649664 | BU80: 0 | BV80: 0 | BW80: 0
B81: 2 | C81: 044 | D81: 431 | E81: 1 | G81: =IF(OR(ISBLANK(C81),ISBLANK(D81)),"",TEXT(C81,"000")&TEXT(D81,"000")) -> 044431 | I81: Single Mercury Vapor | J81: Wood Pole | K81: 20000 | L81: 611 | M81: 6 | N81: 0 | O81: 0 | P81: 0 | Q81: 0 | R81: 0 | S81: 29.56 | T81: 0 | U81: 0 | V81: 0 | W81: 0 | Y81: =IF(AND(M81<>0,S81=0),#VALUE!,M81*S81) -> 177.36 | Z81: 0 | AA81: 0 | AB81: 0 | AC81: 0 | AE81: 6 | AF81: 0 | AG81: 0 | AH81: 0 | AI81: 0 | AK81: 30.26 | AL81: 0 | AM81: =ROUND(U81*(1+AM$1),2) -> 0 | AN81: =ROUND(V81*(1+AN$1),2) -> 0 | AO81: =ROUND(W81*(1+AO$1),2) -> 0 | AQ81: 181.56 | AR81: 0 | AS81: 0 | AT81: 0 | AU81: 0 | AV81: 0 | AX81: 182 | AY81: 29.87 | BE81: 0.41 | BF81: =ROUND((S81*$BF$2)+$BE81-AY81,2) -> 0.55 | BM81: 30.716926 | BN81: 0 | BO81: 0 | BP81: 0 | BQ81: 0 | BS81: 0.846926 | BT81: 0 | BU81: 0 | BV81: 0 | BW81: 0
B82: 2 | C82: 044 | D82: 432 | E82: 4 | G82: 044432 | I82: Mercury Vapor | J82: Dusk to Dawn | K82: 20000 | L82: 615 | M82: 0 | N82: 0 | O82: 0 | P82: 87 | Q82: 0 | R82: 0 | S82: 0 | T82: 0 | U82: 0 | V82: 16 | W82: 0 | Y82: 0 | Z82: 0 | AA82: 0 | AB82: 1392 | AC82: 0 | AE82: 0 | AF82: 0 | AG82: 0 | AH82: 87 | AI82: 0 | AK82: 0 | AL82: 0 | AM82: 0 | AN82: 16.38 | AO82: 0 | AQ82: =IF(AND(AE82<>0,AK82=0),#VALUE!,AE82*AK82) -> 0 | AR82: 0 | AS82: =IF(AND(AG82<>0,AM82=0),#VALUE!,AG82*AM82) -> 0 | AT82: =IF(AND(AH82<>0,AN82=0),#VALUE!,AH82*AN82) -> 1425.06 | AU82: =IF(AND(AI82<>0,AO82=0),#VALUE!,AI82*AO82) -> 0 | AV82: 0 | AX82: 182 | BB82: 16.16 | BE82: =ROUND(AX82*$BE$2,2)+ROUND(AX82*$BE$1,2) -> 0.41 | BI82: =ROUND((V82*$BF$2)+$BE82-BB82,2) -> 0.49 | BM82: =AK82*$BM$1 -> 0 | BN82: =AL82*$BM$1 -> 0 | BO82: 0 | BP82: 16.627338 | BQ82: 0 | BS82: 0 | BT82: 0 | BU82: 0 | BV82: 0.467338 | BW82: 0
B83: 2 | C83: 044 | D83: 433 | E83: 10 | G83: 044433 | I83: Mercury Vapor | J83: Dust to 1 AM | K83: 20000 | L83: 618 | M83: 0 | N83: 0 | O83: 0 | P83: 87 | Q83: 0 | R83: =IF(SUM(M83:Q83)>0,0,1) -> 0 | S83: 0 | T83: 0 | U83: 0 | V83: 9.46 | W83: 0 | Y83: =IF(AND(M83<>0,S83=0),#VALUE!,M83*S83) -> 0 | Z83: =IF(AND(N83<>0,T83=0),#VALUE!,N83*T83) -> 0 | AA83: =IF(AND(O83<>0,U83=0),#VALUE!,O83*U83) -> 0 | AB83: =IF(AND(P83<>0,V83=0),#VALUE!,P83*V83) -> 823.02 | AC83: =IF(AND(Q83<>0,W83=0),#VALUE!,Q83*W83) -> 0 | AE83: =M83 -> 0 | AF83: =N83 -> 0 | AG83: =O83 -> 0 | AH83: =P83 -> 87 | AI83: =Q83 -> 0 | AK83: =ROUND(S83*(1+AK$1),2) -> 0 | AL83: =ROUND(T83*(1+AL$1),2) -> 0 | AM83: =ROUND(U83*(1+AM$1),2) -> 0 | AN83: =ROUND(V83*(1+AN$1),2) -> 9.69 | AO83: =ROUND(W83*(1+AO$1),2) -> 0 | AQ83: =IF(AND(AE83<>0,AK83=0),#VALUE!,AE83*AK83) -> 0 | AR83: =IF(AND(AF83<>0,AL83=0),#VALUE!,AF83*AL83) -> 0 | AS83: =IF(AND(AG83<>0,AM83=0),#VALUE!,AG83*AM83) -> 0 | AT83: =IF(AND(AH83<>0,AN83=0),#VALUE!,AH83*AN83) -> 843.03 | AU83: =IF(AND(AI83<>0,AO83=0),#VALUE!,AI83*AO83) -> 0 | AV83: 0 | AX83: 124 | BB83: 9.78 | BE83: =ROUND(AX83*$BE$2,2)+ROUND(AX83*$BE$1,2) -> 0.28 | BI83: =ROUND((V83*$BF$2)+$BE83-BB83,2) -> 0.1 | BM83: =AK83*$BM$1 -> 0 | BN83: =AL83*$BM$1 -> 0 | BO83: =AM83*$BM$1 -> 0 | BP83: =AN83*$BM$1 -> 9.836319 | BQ83: =AO83*$BM$1 -> 0 | BS83: =BM83-AY83 -> 0 | BT83: =BN83-AZ83 -> 0 | BU83: =BO83-BA83 -> 0 | BV83: =BP83-BB83 -> 0.056319 | BW83: =BQ83-BC83 -> 0
B84: 2 | C84: 044 | D84: 435 | E84: =11+1+1 -> 13 | G84: 044435 | I84: Single High-Pressure Sodium Vapor | J84: Standard | K84: 250W | L84: 631 | M84: =SUMIF($G:$G,TEXT(M$3,"000")&TEXT($L84,"000"),$E:$E) -> 0 | N84: 38 | O84: 0 | P84: 0 | Q84: 0 | R84: 0 | S84: 0 | T84: 25.23 | U84: 0 | V84: 0 | W84: 0 | Y84: 0 | Z84: 958.74 | AA84: 0 | AB84: 0 | AC84: 0 | AE84: 0 | AF84: 38 | AG84: 0 | AH84: 0 | AI84: 0 | AK84: 0 | AL84: 25.8 | AM84: 0 | AN84: 0 | AO84: 0 | AQ84: 0 | AR84: 980.4 | AS84: 0 | AT84: 0 | AU84: 0 | AV84: 21.66 | AW84: 0.0225921522 | AX84: 107 | AZ84: 25.68203 | BA84: 14.729101 | BE84: 0.23 | BG84: =ROUND((T84*$BF$2)+$BE84-AZ84,2) -> 0.16 | BH84: =ROUND((U84*$BF$2)+$BE84-BA84,2) -> -14.5 | BM84: 0 | BN84: 26.18958 | BO84: 0 | BP84: 0 | BQ84: 0 | BS84: 0 | BT84: 0.50755 | BU84: -14.729101 | BV84: 0 | BW84: 0
B85: 2 | C85: 044 | D85: 531 | E85: 0 | G85: 044531 | I85: Single High-Pressure Sodium Vapor | J85: Direct Burial | K85: 250W | L85: 633 | M85: 0 | N85: 34 | O85: 0 | P85: 0 | Q85: 0 | R85: 0 | S85: 0 | T85: 41.79 | U85: 0 | V85: 0 | W85: 0 | Y85: 0 | Z85: 1420.86 | AA85: 0 | AB85: 0 | AC85: 0 | AE85: 0 | AF85: 34 | AG85: 0 | AH85: 0 | AI85: 0 | AK85: 0 | AL85: 42.73 | AM85: 0 | AN85: 0 | AO85: 0 | AQ85: 0 | AR85: 1452.82 | AS85: 0 | AT85: 0 | AU85: 0 | AV85: 31.96 | AW85: 0.02249341948 | AX85: 107 | AZ85: 42.512388 | BA85: 14.729101 | BE85: 0.23 | BG85: =ROUND((T85*$BF$2)+$BE85-AZ85,2) -> 0.14 | BH85: =ROUND((U85*$BF$2)+$BE85-BA85,2) -> -14.5 | BM85: 0 | BN85: 43.375223 | BO85: 0 | BP85: 0 | BQ85: 0 | BS85: 0 | BT85: 0.862835 | BU85: -14.729101 | BV85: 0 | BW85: 0
B86: 2 | C86: 044 | D86: 532 | E86: 89 | G86: 044532 | I86: Single High-Pressure Sodium Vapor | J86: Dusk to Dawn (046) | K86: 250W | L86: 635 | M86: 0 | N86: 0 | O86: 14 | P86: 0 | Q86: 237 | R86: 0 | S86: 0 | T86: 0 | U86: 14.57 | V86: 0 | W86: 11.93 | Y86: 0 | Z86: 0 | AA86: 203.98 | AB86: 0 | AC86: 2827.41 | AE86: 0 | AF86: 0 | AG86: 14 | AH86: 0 | AI86: 237 | AK86: 0 | AL86: 0 | AM86: 14.92 | AN86: 0 | AO86: 12.21 | AQ86: 0 | AR86: 0 | AS86: 208.88 | AT86: 0 | AU86: 2893.77 | AV86: 0 | AX86: 107 | BA86: 14.729101 | BC86: 12.049237 | BE86: 0.23 | BH86: =ROUND((U86*$BF$2)+$BE86-BA86,2) -> 0.29 | BJ86: =ROUND((W86*$BF$2)+$BE86-BC86,2) -> 0.29 | BM86: 0 | BN86: 0 | BO86: 15.145292 | BP86: 0 | BQ86: 12.394371 | BS86: 0 | BT86: 0 | BU86: 0.416191 | BV86: 0 | BW86: 0.345134
B87: 2 | C87: 044 | D87: 533 | E87: 2 | G87: 044533 | I87: Single High-Pressure Sodium Vapor | J87: Developer Contributed | K87: 250W | L87: 636 | M87: 0 | N87: 2 | O87: 0 | P87: 0 | Q87: 0 | R87: 0 | S87: 0 | T87: 29.68 | U87: 0 | V87: 0 | W87: 0 | Y87: 0 | Z87: 59.36 | AA87: 0 | AB87: 0 | AC87: 0 | AE87: 0 | AF87: 2 | AG87: 0 | AH87: 0 | AI87: 0 | AK87: 0 | AL87: 30.35 | AM87: 0 | AN87: 0 | AO87: 0 | AQ87: 0 | AR87: 60.7 | AS87: 0 | AT87: 0 | AU87: 0 | AV87: 1.34 | AW87: 0.02257412399 | AX87: 107 | AZ87: 30.199225 | BE87: 0.23 | BG87: =ROUND((T87*$BF$2)+$BE87-AZ87,2) -> 0.16 | BM87: 0 | BN87: 30.808285 | BO87: 0 | BP87: 0 | BQ87: 0 | BS87: 0 | BT87: 0.60906 | BU87: 0 | BV87: 0 | BW87: 0
